Workbook

Sheet CLASSEMENT
D1: SAISON 2021
B2: CLASSEMENTS | G2: STATISTIQUES
D45: MAISON LUNDI
E46: FINAL
A47: POS | B47: ÉQUIPE | C47: PJ | D47: V | E47: D | F47: N | G47: PP | H47: PC | I47: PTS | J47: DIFF | K47: %VICT. | L47: GB
A48: 1 | B48: CS-H20 | C48: =D48+E48+F48 -> 10 | D48: =[1]TOTAUX!$G$32 -> 9 | E48: =[1]TOTAUX!$H$32 -> 1 | F48: =[1]TOTAUX!$I$32 -> 0 | G48: =[1]TOTAUX!$G$23 -> 63 | H48: =[1]TOTAUX!$K$32 -> 17 | I48: =(D48*2)+F48 -> 18 | J48: =G48-H48 -> 46 | K48: =D48/(D48+E48+F48) -> 0.9 | L48: =((D48-D48)+(E48-E48))/2 -> 0
A49: =A48+1 -> 2 | B49: DRINKERIE | C49: 10 | D49: =[2]TOTAUX!$G$32 -> 7 | E49: =[2]TOTAUX!$H$32 -> 3 | F49: =[2]TOTAUX!$I$32 -> 0 | G49: =[2]TOTAUX!$G$23 -> 73 | H49: =[2]TOTAUX!$K$32 -> 58 | I49: 14 | J49: 15 | K49: 0.7 | L49: =((D48-D49)+(E49-E48))/2 -> 2
A50: =A49+1 -> 3 | B50: CP-METS | C50: 10 | D50: =[3]TOTAUX!$G$32 -> 6 | E50: =[3]TOTAUX!$H$32 -> 3 | F50: =[3]TOTAUX!$I$32 -> 1 | G50: =[3]TOTAUX!$G$23 -> 56 | H50: =[3]TOTAUX!$K$32 -> 55 | I50: 13 | J50: 1 | K50: 0.6 | L50: =((D48-D50)+(E50-E48))/2 -> 2.5
A51: 4 | B51: SOLIDE SPA | C51: 10 | D51: =[4]TOTAUX!$G$32 -> 5 | E51: =[4]TOTAUX!$H$32 -> 4 | F51: =[4]TOTAUX!$I$32 -> 1 | G51: =[4]TOTAUX!$G$23 -> 72 | H51: =[4]TOTAUX!$K$32 -> 55 | I51: 11 | J51: 17 | K51: 0.5 | L51: =((D48-D51)+(E51-E48))/2 -> 3.5
A52: 5 | B52: EAGLES | C52: 10 | D52: =[5]TOTAUX!$G$32 -> 5 | E52: =[5]TOTAUX!$H$32 -> 5 | F52: =[5]TOTAUX!$I$32 -> 0 | G52: =[5]TOTAUX!$G$23 -> 63 | H52: =[5]TOTAUX!$K$32 -> 61 | I52: 10 | J52: 2 | K52: 0.5 | L52: =((D48-D52)+(E52-E48))/2 -> 4
A53: 6 | B53: HOCHELAGA | C53: 10 | D53: =[6]TOTAUX!$G$32 -> 3 | E53: =[6]TOTAUX!$H$32 -> 7 | F53: =[6]TOTAUX!$I$32 -> 0 | G53: =[6]TOTAUX!$G$23 -> 66 | H53: =[6]TOTAUX!$K$32 -> 75 | I53: 6 | J53: -9 | K53: 0.3 | L53: =((D48-D53)+(E53-E48))/2 -> 6
A54: 7 | B54: LUMBERJACKS | C54: 10 | D54: =[7]TOTAUX!$G$32 -> 2 | E54: =[7]TOTAUX!$H$32 -> 8 | F54: =[7]TOTAUX!$I$32 -> 0 | G54: =[7]TOTAUX!$G$23 -> 60 | H54: =[7]TOTAUX!$K$32 -> 92 | I54: 4 | J54: -32 | K54: 0.2 | L54: =((D48-D54)+(E54-E48))/2 -> 7
A55: 8 | B55: JAMBONS | C55: 10 | D55: =[8]TOTAUX!$G$32 -> 2 | E55: =[8]TOTAUX!$H$32 -> 8 | F55: =[8]TOTAUX!$I$32 -> 0 | G55: =[8]TOTAUX!$G$23 -> 42 | H55: =[8]TOTAUX!$K$32 -> 85 | I55: 4 | J55: -43 | K55: 0.2 | L55: =((D48-D55)+(E55-E48))/2 -> 7
A56: 9 | C56: =D56+E56+F56 -> 0 | I56: =(D56*2)+F56 -> 0 | J56: =G56-H56 -> 0 | K56: =D56/(D56+E56+F56) ->  | L56: =((D48-D56)+(E56-E48))/2 -> 4
A57: 10 | C57: 0 | I57: 0 | J57: 0 | L57: =((D48-D57)+(E57-E48))/2 -> 4
A58: 11 | C58: 0 | I58: 0 | J58: 0 | L58: =((D48-D58)+(E58-E48))/2 -> 4
A59: 12 | C59: 0 | I59: 0 | J59: 0 | L59: =((D48-D59)+(E59-E48))/2 -> 4
C61: RÉSULTATS SEMAINE DU: | G61: 16 AOUT
B62: MATCH #37 | C62: JAMBONS | E62: 0 | F62: PD | G62: 7 | H62: H2O
B63: MATCH #38 | C63: HOCHELAGA | E63: 5 | F63: VS | G63: 6 | H63: DRINKERIE
B64: MATCH #39 | C64: EAGLES | E64: 11 | F64: VS | G64: 2 | H64: LUMBERJACKS
B65: MATCH #40 | C65: SOLIDE SPA | E65: 7 | F65: VS | G65: 7 | H65: METS
F66: VS
F67: VS
F68: VS
F69: VS
F70: VS
C72: MENEURS FRAPPEURS (MIN. 25AB)
A73: RANG | B73: NOM | D73: ÉQUIPE | H73: AB | I73: CS | J73: MOY.
A74: 1 | B74: FÉLIX DOSTON | D74: DRINKERIE | H74: 32 | I74: 20 | J74: =I74/H74 -> 0.625
A75: =A74+1 -> 2 | B75: JEAN-PHILIPPE BOURGIE | D75: DRINKERIE | H75: 26 | I75: 15 | J75: =I75/H75 -> 0.5769230769
A76: =A75+1 -> 3 | B76: JULIEN VÉRONNEAU | D76: DRINKERIE | H76: 31 | I76: 17 | J76: =I76/H76 -> 0.5483870968
A77: =A76+1 -> 4 | B77: MARTIN DESCHÊNES | D77: SOLIDE SPA | H77: 30 | I77: 16 | J77: =I77/H77 -> 0.5333333333
A78: =A77+1 -> 5 | B78: ÉRIC ÉMILUS | D78: EAGLES | H78: 27 | I78: 14 | J78: =I78/H78 -> 0.5185185185
C80: MENEURS LANCEURS (MIN. 10ML)
A81: RANG | B81: NOM | D81: ÉQUIPE | H81: PM | I81: ML | J81: MPM
A82: 1 | B82: GABRIEL LAFOREST | D82: METS | H82: 1 | I82: 10.33 | J82: =(H82*7)/I82 -> 0.6776379477
A83: =A82+1 -> 2 | B83: LUC LAFRANCE | D83: H20 | H83: 2 | I83: 12 | J83: =(H83*7)/I83 -> 1.166666667
A84: =A83+1 -> 3 | B84: PHILIPPE DALLAIRE | D84: H20 | H84: 5 | I84: 19.67 | J84: =(H84*7)/I84 -> 1.779359431
A85: =A84+1 -> 4 | B85: JEAN-GUY GAUTHIER | D85: H20 | H85: 8 | I85: 31.33 | J85: =(H85*7)/I85 -> 1.787424194
A86: =A85+1 -> 5 | B86: MARTIN DESCHÊNES | D86: SOLIDE SPA | H86: 22 | I86: 51 | J86: =(H86*7)/I86 -> 3.019607843
A88: MÀJ | B88: 2021-08-30 | J88: STÉPHANE TARDIF
C89: MAISON MERCREDI
E90: FINAL
A91: POS | B91: ÉQUIPE | C91: PJ | D91: V | E91: D | F91: N | G91: PP | H91: PC | I91: PTS | J91: DIFF | K91: %VICT. | L91: GB
A92: 1 | B92: CS-CHEVALIERS | C92: =D92+E92+F92 -> 11 | D92: =[9]TOTAUX!$G$32 -> 8 | E92: =[9]TOTAUX!$H$32 -> 2 | F92: =[9]TOTAUX!$I$32 -> 1 | G92: =[9]TOTAUX!$G$23 -> 91 | H92: =[9]TOTAUX!$K$32 -> 56 | I92: =(D92*2)+F92 -> 17 | J92: =G92-H92 -> 35 | K92: =D92/(D92+E92+F92) -> 0.7272727273 | L92: =((D92-D92)+(E92-E92))/2 -> 0
A93: =A92+1 -> 2 | B93: BUCANEROS | C93: 11 | D93: =[10]TOTAUX!$G$32 -> 8 | E93: =[10]TOTAUX!$H$32 -> 3 | F93: =[10]TOTAUX!$I$32 -> 0 | G93: =[10]TOTAUX!$G$23 -> 103 | H93: =[10]TOTAUX!$K$32 -> 49 | I93: 16 | J93: 54 | K93: 0.7272727273 | L93: =((D92-D93)+(E93-E92))/2 -> 0.5
A94: =A93+1 -> 3 | B94: METS | C94: 11 | D94: =[11]TOTAUX!$G$32 -> 6 | E94: =[11]TOTAUX!$H$32 -> 5 | F94: =[11]TOTAUX!$I$32 -> 0 | G94: =[11]TOTAUX!$G$23 -> 86 | H94: =[11]TOTAUX!$K$32 -> 80 | I94: 12 | J94: 6 | K94: 0.5454545455 | L94: =((D92-D94)+(E94-E92))/2 -> 2.5
A95: 4 | B95: CP-EAGLES | C95: 11 | D95: =[12]TOTAUX!$G$32 -> 6 | E95: =[12]TOTAUX!$H$32 -> 5 | F95: =[12]TOTAUX!$I$32 -> 0 | G95: =[12]TOTAUX!$G$23 -> 69 | H95: =[12]TOTAUX!$K$32 -> 73 | I95: 12 | J95: -4 | K95: 0.5454545455 | L95: =((D92-D95)+(E95-E92))/2 -> 2.5
A96: 5 | B96: GIANTS | C96: 11 | D96: =[13]TOTAUX!$G$32 -> 2 | E96: =[13]TOTAUX!$H$32 -> 8 | F96: =[13]TOTAUX!$I$32 -> 1 | G96: =[13]TOTAUX!$G$23 -> 59 | H96: =[13]TOTAUX!$K$32 -> 96 | I96: 5 | J96: -37 | K96: 0.1818181818 | L96: =((D92-D96)+(E96-E92))/2 -> 6
A97: 6 | B97: SONS OF PITCHES | C97: 11 | D97: =[14]TOTAUX!$G$32 -> 2 | E97: =[14]TOTAUX!$H$32 -> 9 | F97: =[14]TOTAUX!$I$32 -> 0 | G97: =[14]TOTAUX!$G$23 -> 42 | H97: =[14]TOTAUX!$K$32 -> 99 | I97: 4 | J97: -57 | K97: 0.1818181818 | L97: =((D92-D97)+(E97-E92))/2 -> 6.5
A98: 7 | B98: ÉD-ROTOCULTEURS | C98: 1 | D98: =[15]TOTAUX!$G$32 -> 0 | E98: =[15]TOTAUX!$H$32 -> 0 | F98: =[15]TOTAUX!$I$32 -> 1 | G98: =[15]TOTAUX!$G$23 -> 1 | H98: =[15]TOTAUX!$K$32 -> 1 | I98: 1 | J98: 0 | K98: 0 | L98: =((D92-D98)+(E98-E92))/2 -> 3
A99: 8 | B99: EAGLES | C99: =D99+E99+F99 -> 0 | I99: =(D99*2)+F99 -> 0 | J99: =G99-H99 -> 0 | K99: =D99/(D99+E99+F99) ->  | L99: =((D92-D99)+(E99-E92))/2 -> 3
A100: 9 | C100: 0 | I100: 0 | J100: 0 | L100: =((D92-D100)+(E100-E92))/2 -> 3
A101: 10 | C101: 0 | I101: 0 | J101: 0 | L101: =((D92-D101)+(E101-E92))/2 -> 3
A102: 11 | C102: 0 | I102: 0 | J102: 0 | L102: =((D92-D102)+(E102-E92))/2 -> 3
A103: 12 | C103: 0 | I103: 0 | J103: 0 | L103: =((D92-D103)+(E103-E92))/2 -> 3
C105: RÉSULTATS SEMAINE DU: | G105: 9 AOUT
B106: MATCH #30 | C106: EAGLES | E106: 11 | F106: VS | G106: 3 | H106: SONS OF PITCHES
B107: MATCH #31 | C107: CHEVALIERS | E107: 9 | F107: VS | G107: 7 | H107: METS
B108: MATCH #32 | C108: GIANTS | E108: 4 | F108: VS | G108: 8 | H108: BUCANEROS
B109: MATCH #33 | C109: GIANTS | E109: 5 | F109: VS | G109: 8 | H109: CHEVALIERS
B110: MATCH #34 | C110: SONS OF PITCHES | E110: 6 | F110: VS | G110: 8 | H110: GIANTS
F111: VS
F112: VS
F113: VS
F114: VS
C116: MENEURS FRAPPEURS (MIN. 25AB)
A117: RANG | B117: NOM | D117: ÉQUIPE | H117: AB | I117: CS | J117: MOY.
A118: 1 | B118: ALEX ANTONACCI | D118: METS | H118: 26 | I118: 15 | J118: =I118/H118 -> 0.5769230769
A119: =A118+1 -> 2 | B119: ADAM BOUCHARD | D119: BUCANEROS | H119: 32 | I119: 18 | J119: =I119/H119 -> 0.5625
A120: =A119+1 -> 3 | B120: JUAN MARTINEZ | D120: BUCANEROS | H120: 29 | I120: 16 | J120: =I120/H120 -> 0.5517241379
A121: =A120+1 -> 4 | B121: PHILIP JALBERT | D121: METS | H121: 39 | I121: 21 | J121: =I121/H121 -> 0.5384615385
A122: =A121+1 -> 5 | B122: ALEXANDRE THIBAULT | D122: CHEVALIERS | H122: 28 | I122: 15 | J122: =I122/H122 -> 0.5357142857
C124: MENEURS LANCEURS (MIN. 10 ML)
A125: RANG | B125: NOM | D125: ÉQUIPE | H125: PM | I125: ML | J125: MPM
A126: 1 | B126: LUC BOUCHARD | D126: BUCANEROS | H126: 0 | I126: 13 | J126: =(H126*7)/I126 -> 0
A127: =A126+1 -> 2 | B127: ADAM BOUCHARD | D127: BUCANEROS | H127: 1 | I127: 11 | J127: =(H127*7)/I127 -> 0.6363636364
A128: =A127+1 -> 3 | B128: PHILIPPE DALLAIRE | D128: METS | H128: 3 | I128: 14 | J128: =(H128*7)/I128 -> 1.5
A129: =A128+1 -> 4 | B129: HAROLD SALINAS | D129: BUCANEROS | H129: 3 | I129: 13.33 | J129: =(H129*7)/I129 -> 1.575393848
A130: =A129+1 -> 5 | B130: ALEXANDRE THIBAULT | D130: CHEVALIERS | H130: 17 | I130: 35 | J130: =(H130*7)/I130 -> 3.4
A132: MÀJ | B132: 2021-09-01 | J132: STÉPHANE TARDIF
D133: AMICAL LUNDI
E134: FINAL
A135: POS | B135: ÉQUIPE | C135: PJ | D135: V | E135: D | F135: N | G135: PP | H135: PC | I135: PTS | J135: DIFF | K135: %VICT. | L135: GB
A136: 1 | B136: CS-LOS PADRES | C136: =D136+E136+F136 -> 10 | D136: =[16]TOTAUX!$G$32 -> 8 | E136: =[16]TOTAUX!$H$32 -> 2 | F136: =[16]TOTAUX!$I$32 -> 0 | G136: =[16]TOTAUX!$G$23 -> 80 | H136: =[16]TOTAUX!$K$32 -> 47 | I136: =(D136*2)+F136 -> 16 | J136: =G136-H136 -> 33 | K136: =D136/(D136+E136+F136) -> 0.8 | L136: =((D136-D136)+(E136-E136))/2 -> 0
A137: =A136+1 -> 2 | B137: LEONES | C137: 10 | D137: =[17]TOTAUX!$G$32 -> 7 | E137: =[17]TOTAUX!$H$32 -> 2 | F137: =[17]TOTAUX!$I$32 -> 1 | G137: =[17]TOTAUX!$G$23 -> 101 | H137: =[17]TOTAUX!$K$32 -> 48 | I137: 15 | J137: 53 | K137: 0.7 | L137: =((D136-D137)+(E137-E136))/2 -> 0.5
A138: 3 | B138: PLAYBOYS DE L'EST | C138: 10 | D138: =[18]TOTAUX!$G$32 -> 5 | E138: =[18]TOTAUX!$H$32 -> 2 | F138: =[18]TOTAUX!$I$32 -> 3 | G138: =[18]TOTAUX!$G$23 -> 95 | H138: =[18]TOTAUX!$K$32 -> 88 | I138: 13 | J138: 7 | K138: 0.5 | L138: =((D136-D138)+(E138-E136))/2 -> 1.5
A139: 4 | B139: ALCHIMISTE | C139: 10 | D139: =[19]TOTAUX!$G$32 -> 6 | E139: =[19]TOTAUX!$H$32 -> 4 | F139: =[19]TOTAUX!$I$32 -> 0 | G139: =[19]TOTAUX!$G$23 -> 73 | H139: =[19]TOTAUX!$K$32 -> 53 | I139: 12 | J139: 20 | K139: 0.6 | L139: =((D136-D139)+(E139-E136))/2 -> 2
A140: 5 | B140: BORATIFS | C140: 10 | D140: =[20]TOTAUX!$G$32 -> 6 | E140: =[20]TOTAUX!$H$32 -> 4 | F140: =[20]TOTAUX!$I$32 -> 0 | G140: =[20]TOTAUX!$G$23 -> 90 | H140: =[20]TOTAUX!$K$32 -> 71 | I140: 12 | J140: 19 | K140: 0.6 | L140: =((D136-D140)+(E140-E136))/2 -> 2
A141: 6 | B141: CP-RED SOX | C141: 10 | D141: =[21]TOTAUX!$G$32 -> 6 | E141: =[21]TOTAUX!$H$32 -> 4 | F141: =[21]TOTAUX!$I$32 -> 0 | G141: =[21]TOTAUX!$G$23 -> 85 | H141: =[21]TOTAUX!$K$32 -> 70 | I141: 12 | J141: 15 | K141: 0.6 | L141: =((D136-D141)+(E141-E136))/2 -> 2
A142: 7 | B142: KINO | C142: 10 | D142: =[22]TOTAUX!$G$32 -> 6 | E142: =[22]TOTAUX!$H$32 -> 4 | F142: =[22]TOTAUX!$I$32 -> 0 | G142: =[22]TOTAUX!$G$23 -> 70 | H142: =[22]TOTAUX!$K$32 -> 55 | I142: 12 | J142: 15 | K142: 0.6 | L142: =((D136-D142)+(E142-E136))/2 -> 2
A143: 8 | B143: ANGELS | C143: 10 | D143: =[23]TOTAUX!$G$32 -> 4 | E143: =[23]TOTAUX!$H$32 -> 6 | F143: =[23]TOTAUX!$I$32 -> 0 | G143: =[23]TOTAUX!$G$23 -> 78 | H143: =[23]TOTAUX!$K$32 -> 88 | I143: 8 | J143: -10 | K143: 0.4 | L143: =((D136-D143)+(E143-E136))/2 -> 4
A144: 9 | B144: LES VIANDES | C144: 10 | D144: =[24]TOTAUX!$G$32 -> 4 | E144: =[24]TOTAUX!$H$32 -> 6 | F144: =[24]TOTAUX!$I$32 -> 0 | G144: =[24]TOTAUX!$G$23 -> 54 | H144: =[24]TOTAUX!$K$32 -> 77 | I144: 8 | J144: -23 | K144: 0.4 | L144: =((D136-D144)+(E144-E136))/2 -> 4
A145: 10 | B145: BLACK SOX | C145: 10 | D145: =[25]TOTAUX!$G$32 -> 3 | E145: =[25]TOTAUX!$H$32 -> 6 | F145: =[25]TOTAUX!$I$32 -> 1 | G145: =[25]TOTAUX!$G$23 -> 56 | H145: =[25]TOTAUX!$K$32 -> 77 | I145: 7 | J145: -21 | K145: 0.3 | L145: =((D136-D145)+(E145-E136))/2 -> 4.5
A146: 11 | B146: BROBEANS | C146: 10 | D146: =[26]TOTAUX!$G$32 -> 1 | E146: =[26]TOTAUX!$H$32 -> 8 | F146: =[26]TOTAUX!$I$32 -> 1 | G146: =[26]TOTAUX!$G$23 -> 62 | H146: =[26]TOTAUX!$K$32 -> 127 | I146: 3 | J146: -65 | K146: 0.1 | L146: =((D136-D146)+(E146-E136))/2 -> 6.5
A147: 12 | B147: BREWERS | C147: 10 | D147: =[27]TOTAUX!$G$32 -> 1 | E147: =[27]TOTAUX!$H$32 -> 9 | F147: =[27]TOTAUX!$I$32 -> 0 | G147: =[27]TOTAUX!$G$23 -> 67 | H147: =[27]TOTAUX!$K$32 -> 109 | I147: 2 | J147: -42 | K147: 0.1 | L147: =((D136-D147)+(E147-E136))/2 -> 7
C149: RÉSULTATS SEMAINE DU: | G149: 16 AOUT
B150: MATCH #55 | C150: LOS PADRES | E150: 4 | F150: VS | G150: 8 | H150: BLACK SOX
B151: MATCH #56 | C151: LEONES | E151: 24 | F151: VS | G151: 6 | H151: BROBEANS
B152: MATCH #41 | C152: BORATIFS | E152: 8 | F152: VS | G152: 7 | H152: RED SOX
B153: MATCH #30 | C153: LOS PADRES | E153: 5 | F153: VS | G153: 3 | H153: BORATIFS
B154: MATCH #29 | C154: LES VIANDES | E154: 3 | F154: VS | G154: 11 | H154: KINO
F155: VS
F156: VS
F157: VS
F158: VS
C160: MENEURS FRAPPEURS (MIN. 25AB)
A161: RANG | B161: NOM | D161: ÉQUIPE | H161: AB | I161: CS | J161: MOY.
A162: 1 | B162: SÉBASTIEN BOUGIE | D162: LES VIANDES | H162: 22 | I162: 15 | J162: =I162/H162 -> 0.6818181818
A163: =A162+1 -> 2 | B163: DOMINIC MÉNARD | D163: RED SOX | H163: 25 | I163: 17 | J163: =I163/H163 -> 0.68
A164: =A163+1 -> 3 | B164: ORLANDO BERROTERAN | D164: LOS PADRES | H164: 30 | I164: 20 | J164: =I164/H164 -> 0.6666666667
A165: =A164+1 -> 4 | B165: MAIKEL JIMENEZ | D165: LEONES | H165: 28 | I165: 18 | J165: =I165/H165 -> 0.6428571429
A166: =A165+1 -> 5 | B166: BRAHYAN RIVERO | D166: LOS PADRES | H166: 28 | I166: 17 | J166: =I166/H166 -> 0.6071428571
C168: MENEURS LANCEURS (MIN. 10ML)
A169: RANG | B169: NOM | D169: ÉQUIPE | H169: PM | I169: ML | J169: MPM
A170: 1 | B170: CARLOS CHAVARRIA | D170: LOS PADRES | H170: 3 | I170: 11 | J170: =(H170*7)/I170 -> 1.909090909
A171: =A170+1 -> 2 | B171: BOURDEAU THIERRY | D171: PLAYBOYS DE L'EST | H171: 6 | I171: 19.67 | J171: =(H171*7)/I171 -> 2.135231317
A172: =A171+1 -> 3 | B172: ALEXANDRE BOURCIER | D172: ALCHIMISTE | H172: 5 | I172: 13 | J172: =(H172*7)/I172 -> 2.692307692
A173: =A172+1 -> 4 | B173: SERGE BOLDUC | D173: LOS PADRES | H173: 11 | I173: 28 | J173: =(H173*7)/I173 -> 2.75
A174: =A173+1 -> 5 | B174: NESTOR RODRIGUEZ | D174: LOS PADRES | H174: 6 | I174: 15 | J174: =(H174*7)/I174 -> 2.8
A176: MÀJ | B176: 2021-09-01 | J176: STÉPHANE TARDIF
C177: AMICAL MERCREDI
E178: FINAL
A179: POS | B179: ÉQUIPE | C179: PJ | D179: V | E179: D | F179: N | G179: PP | H179: PC | I179: PTS | J179: DIFF | K179: %VICT. | L179: GB
A180: 1 | B180: CS-PERDRIX | C180: =D180+E180+F180 -> 9 | D180: =[28]TOTAUX!$G$32 -> 7 | E180: =[28]TOTAUX!$H$32 -> 1 | F180: =[28]TOTAUX!$I$32 -> 1 | G180: =[28]TOTAUX!$G$23 -> 104 | H180: =[28]TOTAUX!$K$32 -> 53 | I180: =(D180*2)+F180 -> 15 | J180: =G180-H180 -> 51 | K180: =D180/(D180+E180+F180) -> 0.7777777778 | L180: =((D180-D180)+(E180-E180))/2 -> 0
A181: =A180+1 -> 2 | B181: EXPROS | C181: 9 | D181: =[29]TOTAUX!$G$32 -> 6 | E181: =[29]TOTAUX!$H$32 -> 2 | F181: =[29]TOTAUX!$I$32 -> 1 | G181: =[29]TOTAUX!$G$23 -> 81 | H181: =[29]TOTAUX!$K$32 -> 64 | I181: 13 | J181: 17 | K181: 0.6666666667 | L181: =((D180-D181)+(E181-E180))/2 -> 1
A182: =A181+1 -> 3 | B182: CP-HERE 4 BEER | C182: 9 | D182: =[30]TOTAUX!$G$32 -> 6 | E182: =[30]TOTAUX!$H$32 -> 3 | F182: =[30]TOTAUX!$I$32 -> 0 | G182: =[30]TOTAUX!$G$23 -> 91 | H182: =[30]TOTAUX!$K$32 -> 50 | I182: 12 | J182: 41 | K182: 0.6666666667 | L182: =((D180-D182)+(E182-E180))/2 -> 1.5
A183: 4 | B183: GROS BATS | C183: 9 | D183: =[31]TOTAUX!$G$32 -> 6 | E183: =[31]TOTAUX!$H$32 -> 3 | F183: =[31]TOTAUX!$I$32 -> 0 | G183: =[31]TOTAUX!$G$23 -> 67 | H183: =[31]TOTAUX!$K$32 -> 54 | I183: 12 | J183: 13 | K183: 0.6666666667 | L183: =((D180-D183)+(E183-E180))/2 -> 1.5
A184: 5 | B184: MEN IN BLACK | C184: 9 | D184: =[32]TOTAUX!$G$32 -> 5 | E184: =[32]TOTAUX!$H$32 -> 3 | F184: =[32]TOTAUX!$I$32 -> 1 | G184: =[32]TOTAUX!$G$23 -> 103 | H184: =[32]TOTAUX!$K$32 -> 68 | I184: 11 | J184: 35 | K184: 0.5555555556 | L184: =((D180-D184)+(E184-E180))/2 -> 2
A185: 6 | B185: GIANTS | C185: 9 | D185: =[33]TOTAUX!$G$32 -> 5 | E185: =[33]TOTAUX!$H$32 -> 4 | F185: =[33]TOTAUX!$I$32 -> 0 | G185: =[33]TOTAUX!$G$23 -> 66 | H185: =[33]TOTAUX!$K$32 -> 54 | I185: 10 | J185: 12 | K185: 0.5555555556 | L185: =((D180-D185)+(E185-E180))/2 -> 2.5
A186: 7 | B186: 360 AGENCY | C186: 9 | D186: =[34]TOTAUX!$G$32 -> 5 | E186: =[34]TOTAUX!$H$32 -> 4 | F186: =[34]TOTAUX!$I$32 -> 0 | G186: =[34]TOTAUX!$G$23 -> 51 | H186: =[34]TOTAUX!$K$32 -> 46 | I186: 10 | J186: 5 | K186: 0.5555555556 | L186: =((D180-D186)+(E186-E180))/2 -> 2.5
A187: 8 | B187: CASTROS | C187: 9 | D187: =[35]TOTAUX!$G$32 -> 3 | E187: =[35]TOTAUX!$H$32 -> 5 | F187: =[35]TOTAUX!$I$32 -> 1 | G187: =[35]TOTAUX!$G$23 -> 69 | H187: =[35]TOTAUX!$K$32 -> 75 | I187: 7 | J187: -6 | K187: 0.3333333333 | L187: =((D180-D187)+(E187-E180))/2 -> 4
A188: 9 | B188: NATIONALS | C188: 9 | D188: =[36]TOTAUX!$G$32 -> 3 | E188: =[36]TOTAUX!$H$32 -> 5 | F188: =[36]TOTAUX!$I$32 -> 1 | G188: =[36]TOTAUX!$G$23 -> 79 | H188: =[36]TOTAUX!$K$32 -> 105 | I188: 7 | J188: -26 | K188: 0.3333333333 | L188: =((D180-D188)+(E188-E180))/2 -> 4
A189: 10 | B189: BLUE JAYS | C189: 9 | D189: =[37]TOTAUX!$G$32 -> 3 | E189: =[37]TOTAUX!$H$32 -> 5 | F189: =[37]TOTAUX!$I$32 -> 1 | G189: =[37]TOTAUX!$G$23 -> 56 | H189: =[37]TOTAUX!$K$32 -> 90 | I189: 7 | J189: -34 | K189: 0.3333333333 | L189: =((D180-D189)+(E189-E180))/2 -> 4
A190: 11 | B190: AERO | C190: 9 | D190: =[38]TOTAUX!$G$32 -> 2 | E190: =[38]TOTAUX!$H$32 -> 7 | F190: =[38]TOTAUX!$I$32 -> 0 | G190: =[38]TOTAUX!$G$23 -> 42 | H190: =[38]TOTAUX!$K$32 -> 83 | I190: 4 | J190: -41 | K190: 0.2222222222 | L190: =((D180-D190)+(E190-E180))/2 -> 5.5
A191: 12 | B191: BREWERS | C191: 9 | D191: =[39]TOTAUX!$G$32 -> 0 | E191: =[39]TOTAUX!$H$32 -> 9 | F191: =[39]TOTAUX!$I$32 -> 0 | G191: =[39]TOTAUX!$G$23 -> 29 | H191: =[39]TOTAUX!$K$32 -> 102 | I191: 0 | J191: -73 | K191: 0 | L191: =((D180-D191)+(E191-E180))/2 -> 7.5
C193: RÉSULTATS SEMAINE DU: | G193: 16 AOUT
B194: MATCH #49 | C194: EXPROS | E194: 16 | F194: VS | G194: 10 | H194: GROS BATS
B195: MATCH #50 | C195: GIANTS | E195: 4 | F195: VS | G195: 6 | H195: PERDRIX
B196: MATCH #14 | C196: AERO | E196: 0 | F196: PD | G196: 7 | H196: NATIONALS
B197: MATCH #55 | C197: PERDRIX | E197: 16 | F197: VS | G197: 8 | H197: CASTROS
B198: MATCH #56 | C198: NATIONALS | E198: 12 | F198: VS | G198: 20 | H198: MEN IN BLACK
B199: MATCH #58 | C199: GROS BATS | E199: 0 | F199: VS | G199: 8 | H199: HERE 4 BEER
B200: MATCH #57 | C200: AERO | E200: 15 | F200: VS | G200: 7 | H200: BREWERS
B201: MATCH #59 | C201: 360 AGENCY | E201: 6 | F201: VS | G201: 8 | H201: EXPROS
B202: MATCH #60 | C202: GIANTS | E202: 12 | F202: VS | G202: 5 | H202: BLUE JAYS
C204: MENEURS FRAPPEURS (MIN. 25AB)
A205: RANG | B205: NOM | D205: ÉQUIPE | H205: AB | I205: CS | J205: MOY.
A206: 1 | B206: SAMUEL MORABITO | D206: PERDRIX | H206: 28 | I206: 18 | J206: =I206/H206 -> 0.6428571429
A207: =A206+1 -> 2 | B207: CHARLES VEILLEUX | D207: PERDRIX | H207: 27 | I207: 17 | J207: =I207/H207 -> 0.6296296296
A208: =A207+1 -> 3 | B208: MARC-ANDRÉ BEAULIEU | D208: HERE 4 BEER | H208: 27 | I208: 16 | J208: =I208/H208 -> 0.5925925926
A209: =A208+1 -> 4 | B209: DAVID M. LENGACHER | D209: GROS BATS | H209: 33 | I209: 19 | J209: =I209/H209 -> 0.5757575758
A210: =A209+1 -> 5 | B210: PATRICK LEFEBVRE | D210: GIANTS | H210: 25 | I210: 14 | J210: =I210/H210 -> 0.56
C212: MENEURS LANCEURS (MIN. 10ML)
A213: RANG | B213: NOM | D213: ÉQUIPE | H213: PM | I213: ML | J213: MPM
A214: 1 | B214: ALAIN SÉNÉCAL | D214: HERE 4 BEER | H214: 3 | I214: 14 | J214: =(H214*7)/I214 -> 1.5
A215: =A214+1 -> 2 | B215: JEAN-SÉBASTIEN POULIN | D215: GROS BATS | H215: 14 | I215: 31.33 | J215: =(H215*7)/I215 -> 3.12799234
A216: =A215+1 -> 3 | B216: OLIVIER BUSQUE | D216: PERDRIX | H216: 7 | I216: 15.66 | J216: =(H216*7)/I216 -> 3.12899106
A217: =A216+1 -> 4 | B217: NESTOR RODRIGUEZ | D217: MEN IN BLACK | H217: 12 | I217: 23 | J217: =(H217*7)/I217 -> 3.652173913
A218: =A217+1 -> 5 | B218: JEAN-PHILIPPE TROTTIER-HARDY | D218: CASTROS | H218: 19 | I218: 33.66 | J218: =(H218*7)/I218 -> 3.951277481
A220: MÀJ | B220: 2021-08-30 | J220: STÉPHANE TARDIF
D221: AMICAL JEUDI A
E222: FINAL
A223: POS | B223: ÉQUIPE | C223: PJ | D223: V | E223: D | F223: N | G223: PP | H223: PC | I223: PTS | J223: DIFF | K223: %VICT. | L223: GB
A224: 1 | B224: CS-KINO | C224: =D224+E224+F224 -> 9 | D224: =[40]TOTAUX!$G$32 -> 8 | E224: =[40]TOTAUX!$H$32 -> 1 | F224: =[40]TOTAUX!$I$32 -> 0 | G224: =[40]TOTAUX!$G$23 -> 87 | H224: =[40]TOTAUX!$K$32 -> 53 | I224: =(D224*2)+F224 -> 16 | J224: =G224-H224 -> 34 | K224: =D224/(D224+E224+F224) -> 0.8888888889 | L224: =((D224-D224)+(E224-E224))/2 -> 0
A225: =A224+1 -> 2 | B225: OOMPA LOOMPA | C225: 9 | D225: =[41]TOTAUX!$G$32 -> 6 | E225: =[41]TOTAUX!$H$32 -> 3 | F225: =[41]TOTAUX!$I$32 -> 0 | G225: =[41]TOTAUX!$G$23 -> 91 | H225: =[41]TOTAUX!$K$32 -> 62 | I225: 12 | J225: 29 | K225: 0.6666666667 | L225: =((D224-D225)+(E225-E224))/2 -> 2
A226: =A225+1 -> 3 | B226: SOUVERAINS | C226: 9 | D226: =[42]TOTAUX!$G$32 -> 6 | E226: =[42]TOTAUX!$H$32 -> 3 | F226: =[42]TOTAUX!$I$32 -> 0 | G226: =[42]TOTAUX!$G$23 -> 76 | H226: =[42]TOTAUX!$K$32 -> 47 | I226: 12 | J226: 29 | K226: 0.6666666667 | L226: =((D224-D226)+(E226-E224))/2 -> 2
A227: 4 | B227: BULLDOGS | C227: 9 | D227: =[43]TOTAUX!$G$32 -> 6 | E227: =[43]TOTAUX!$H$32 -> 3 | F227: =[43]TOTAUX!$I$32 -> 0 | G227: =[43]TOTAUX!$G$23 -> 85 | H227: =[43]TOTAUX!$K$32 -> 58 | I227: 12 | J227: 27 | K227: 0.6666666667 | L227: =((D224-D227)+(E227-E224))/2 -> 2
A228: 5 | B228: BORATIFS | C228: 9 | D228: =[44]TOTAUX!$G$32 -> 6 | E228: =[44]TOTAUX!$H$32 -> 3 | F228: =[44]TOTAUX!$I$32 -> 0 | G228: =[44]TOTAUX!$G$23 -> 81 | H228: =[44]TOTAUX!$K$32 -> 65 | I228: 12 | J228: 16 | K228: 0.6666666667 | L228: =((D224-D228)+(E228-E224))/2 -> 2
A229: 6 | B229: PLAYBOYS DE L'EST | C229: 9 | D229: =[45]TOTAUX!$G$32 -> 5 | E229: =[45]TOTAUX!$H$32 -> 3 | F229: =[45]TOTAUX!$I$32 -> 1 | G229: =[45]TOTAUX!$G$23 -> 90 | H229: =[45]TOTAUX!$K$32 -> 58 | I229: 11 | J229: 32 | K229: 0.5555555556 | L229: =((D224-D229)+(E229-E224))/2 -> 2.5
A230: 7 | B230: CP-CONCEPT KIA | C230: 9 | D230: =[46]TOTAUX!$G$32 -> 4 | E230: =[46]TOTAUX!$H$32 -> 4 | F230: =[46]TOTAUX!$I$32 -> 1 | G230: =[46]TOTAUX!$G$23 -> 65 | H230: =[46]TOTAUX!$K$32 -> 74 | I230: 9 | J230: -9 | K230: 0.4444444444 | L230: =((D224-D230)+(E230-E224))/2 -> 3.5
A231: 8 | B231: ROYAUX | C231: 9 | D231: =[47]TOTAUX!$G$32 -> 3 | E231: =[47]TOTAUX!$H$32 -> 6 | F231: =[47]TOTAUX!$I$32 -> 0 | G231: =[47]TOTAUX!$G$23 -> 79 | H231: =[47]TOTAUX!$K$32 -> 81 | I231: 6 | J231: -2 | K231: 0.3333333333 | L231: =((D224-D231)+(E231-E224))/2 -> 5
A232: 9 | B232: LOS HERMANOS | C232: 9 | D232: =[48]TOTAUX!$G$32 -> 3 | E232: =[48]TOTAUX!$H$32 -> 6 | F232: =[48]TOTAUX!$I$32 -> 0 | G232: =[48]TOTAUX!$G$23 -> 52 | H232: =[48]TOTAUX!$K$32 -> 87 | I232: 6 | J232: -35 | K232: 0.3333333333 | L232: =((D224-D232)+(E232-E224))/2 -> 5
A233: 10 | B233: AS | C233: 9 | D233: =[49]TOTAUX!$G$32 -> 2 | E233: =[49]TOTAUX!$H$32 -> 7 | F233: =[49]TOTAUX!$I$32 -> 0 | G233: =[49]TOTAUX!$G$23 -> 56 | H233: =[49]TOTAUX!$K$32 -> 61 | I233: 4 | J233: -5 | K233: 0.2222222222 | L233: =((D224-D233)+(E233-E224))/2 -> 6
A234: 11 | B234: BLUE JAYS | C234: 9 | D234: =[50]TOTAUX!$G$32 -> 2 | E234: =[50]TOTAUX!$H$32 -> 7 | F234: =[50]TOTAUX!$I$32 -> 0 | G234: =[50]TOTAUX!$G$23 -> 46 | H234: =[50]TOTAUX!$K$32 -> 99 | I234: 4 | J234: -53 | K234: 0.2222222222 | L234: =((D224-D234)+(E234-E224))/2 -> 6
A235: 12 | B235: CARCAJOUS | C235: 9 | D235: =[51]TOTAUX!$G$32 -> 2 | E235: =[51]TOTAUX!$H$32 -> 7 | F235: =[51]TOTAUX!$I$32 -> 0 | G235: =[51]TOTAUX!$G$23 -> 32 | H235: =[51]TOTAUX!$K$32 -> 94 | I235: 4 | J235: -62 | K235: 0.2222222222 | L235: =((D224-D235)+(E235-E224))/2 -> 6
C237: RÉSULTATS SEMAINE DU: | G237: 23 AOUT
B238: MATCH #9 | C238: LES AS | E238: 4 | F238: VS | G238: 6 | H238: LOS HERMANOS
B239: MATCH #14 | C239: OOMPA LOOMPA | E239: 11 | F239: VS | G239: 3 | H239: KINO
F240: VS
F241: VS
F242: VS
F243: VS
F244: VS
F245: VS
F246: VS
C248: MENEURS FRAPPEURS (MIN. 25AB)
A249: RANG | B249: NOM | D249: ÉQUIPE | H249: AB | I249: CS | J249: MOY.
A250: 1 | B250: FRANCIS ARSENAULT | D250: AS | H250: 31 | I250: 20 | J250: =I250/H250 -> 0.6451612903
A251: =A250+1 -> 2 | B251: RONALD RACICOT | D251: BORATIFS | H251: 26 | I251: 15 | J251: =I251/H251 -> 0.5769230769
A252: =A251+1 -> 3 | B252: PATRICE JODOIN | D252: SOUVERAINS | H252: 25 | I252: 14 | J252: =I252/H252 -> 0.56
A253: =A252+1 -> 4 | B253: JONATHAN PÉPIN | D253: BULLDOGS | H253: 27 | I253: 15 | J253: =I253/H253 -> 0.5555555556
A254: =A253+1 -> 5 | B254: DAVID RICHER | D254: OOMPA LOOMPA | H254: 25 | I254: 13 | J254: =I254/H254 -> 0.52
C256: MENEURS LANCEURS (MIN. 10ML)
A257: RANG | B257: NOM | D257: ÉQUIPE | H257: PM | I257: ML | J257: MPM
A258: 1 | B258: PHILIPE DALLAIRE | D258: BULLDOGS | H258: 1 | I258: 11 | J258: =(H258*7)/I258 -> 0.6363636364
A259: =A258+1 -> 2 | B259: BENOÎT HOULE | D259: KINO | H259: 5 | I259: 27 | J259: =(H259*7)/I259 -> 1.296296296
A260: =A259+1 -> 3 | B260: BOURDEAU THIERRY | D260: PLAYBOYS DE L'EST | H260: 4 | I260: 14.33 | J260: =(H260*7)/I260 -> 1.953942777
A261: =A260+1 -> 4 | B261: STÉPHANE RIBERDY | D261: CONCEPT KIA | H261: 12 | I261: 31 | J261: =(H261*7)/I261 -> 2.709677419
... 363 more rows

Sheet MAISON LUNDI
E1: STATISTIQUES MAISON LUNDI
H34: H2O
A35: # | B35: Photo | C35: Contrat | D35: Nom | E35: PJ | F35: AB | G35: P | H35: CS | I35: PP | J35: 1B | K35: 2B | L35: 3B | M35: CC | N35: BB | O35: SAC | P35: BSAC | Q35: RAB | R35: ERR | S35: MOY | T35: MPB | U35: PUI
A36: 1 | B36: =[1]TOTAUX!$B$20 -> OUI | C36: =[1]TOTAUX!$C$20 -> OUI | D36: =[1]TOTAUX!$D$20 -> CHARLES DUMAS | E36: =[1]TOTAUX!$E$20 -> 2 | F36: =[1]TOTAUX!$F$20 -> 5 | G36: =[1]TOTAUX!$G$20 -> 3 | H36: =[1]TOTAUX!$H$20 -> 3 | I36: =[1]TOTAUX!$I$20 -> 4 | J36: =[1]TOTAUX!$J$20 -> 1 | K36: =[1]TOTAUX!$K$20 -> 0 | L36: =[1]TOTAUX!$L$20 -> 0 | M36: =[1]TOTAUX!$M$20 -> 2 | N36: =[1]TOTAUX!$N$20 -> 1 | O36: =[1]TOTAUX!$O$20 -> 0 | P36: =[1]TOTAUX!$P$20 -> 0 | Q36: =[1]TOTAUX!$Q$20 -> 0 | R36: =[1]TOTAUX!$R$20 -> 0 | S36: =H36/F36 -> 0.6 | T36: =((H36+N36)/(F36+N36+P36)) -> 0.6666666667 | U36: =((J36)+(K36*2)+(L36*3)+(M36*4))/F36 -> 1.8
A37: 2 | B37: =[1]TOTAUX!$B$12 -> OUI | C37: =[1]TOTAUX!$C$12 -> OUI | D37: =[1]TOTAUX!$D$12 -> MAXIME BÉDARD | E37: =[1]TOTAUX!$E$12 -> 8 | F37: =[1]TOTAUX!$F$12 -> 26 | G37: =[1]TOTAUX!$G$12 -> 9 | H37: =[1]TOTAUX!$H$12 -> 13 | I37: =[1]TOTAUX!$I$12 -> 10 | J37: =[1]TOTAUX!$J$12 -> 7 | K37: =[1]TOTAUX!$K$12 -> 5 | L37: =[1]TOTAUX!$L$12 -> 0 | M37: =[1]TOTAUX!$M$12 -> 1 | N37: =[1]TOTAUX!$N$12 -> 3 | O37: =[1]TOTAUX!$O$12 -> 0 | P37: =[1]TOTAUX!$P$12 -> 0 | Q37: =[1]TOTAUX!$Q$12 -> 1 | R37: =[1]TOTAUX!$R$12 -> 0 | S37: 0.5 | T37: 0.5517241379 | U37: 0.8076923077
A38: 3 | B38: =[1]TOTAUX!$B$6 -> OUI | C38: =[1]TOTAUX!$C$6 -> OUI | D38: =[1]TOTAUX!$D$6 -> ÉRIC CASTONGUAY | E38: =[1]TOTAUX!$E$6 -> 7 | F38: =[1]TOTAUX!$F$6 -> 22 | G38: =[1]TOTAUX!$G$6 -> 4 | H38: =[1]TOTAUX!$H$6 -> 11 | I38: =[1]TOTAUX!$I$6 -> 5 | J38: =[1]TOTAUX!$J$6 -> 9 | K38: =[1]TOTAUX!$K$6 -> 2 | L38: =[1]TOTAUX!$L$6 -> 0 | M38: =[1]TOTAUX!$M$6 -> 0 | N38: =[1]TOTAUX!$N$6 -> 1 | O38: =[1]TOTAUX!$O$6 -> 0 | P38: =[1]TOTAUX!$P$6 -> 0 | Q38: =[1]TOTAUX!$Q$6 -> 1 | R38: =[1]TOTAUX!$R$6 -> 1 | S38: 0.5 | T38: 0.5217391304 | U38: 0.5909090909
A39: 4 | B39: =[1]TOTAUX!$B$11 -> OUI | C39: =[1]TOTAUX!$C$11 -> OUI | D39: =[1]TOTAUX!$D$11 -> PHILIPPE BOURRET | E39: =[1]TOTAUX!$E$11 -> 6 | F39: =[1]TOTAUX!$F$11 -> 19 | G39: =[1]TOTAUX!$G$11 -> 5 | H39: =[1]TOTAUX!$H$11 -> 9 | I39: =[1]TOTAUX!$I$11 -> 4 | J39: =[1]TOTAUX!$J$11 -> 7 | K39: =[1]TOTAUX!$K$11 -> 2 | L39: =[1]TOTAUX!$L$11 -> 0 | M39: =[1]TOTAUX!$M$11 -> 0 | N39: =[1]TOTAUX!$N$11 -> 1 | O39: =[1]TOTAUX!$O$11 -> 0 | P39: =[1]TOTAUX!$P$11 -> 0 | Q39: =[1]TOTAUX!$Q$11 -> 0 | R39: =[1]TOTAUX!$R$11 -> 0 | S39: 0.4736842105 | T39: 0.5 | U39: 0.5789473684
A40: 5 | B40: =[1]TOTAUX!$B$9 -> OUI | C40: =[1]TOTAUX!$C$9 -> OUI | D40: =[1]TOTAUX!$D$9 -> SÉBASTIEN GAGNON | E40: =[1]TOTAUX!$E$9 -> 8 | F40: =[1]TOTAUX!$F$9 -> 22 | G40: =[1]TOTAUX!$G$9 -> 5 | H40: =[1]TOTAUX!$H$9 -> 10 | I40: =[1]TOTAUX!$I$9 -> 6 | J40: =[1]TOTAUX!$J$9 -> 8 | K40: =[1]TOTAUX!$K$9 -> 2 | L40: =[1]TOTAUX!$L$9 -> 0 | M40: =[1]TOTAUX!$M$9 -> 0 | N40: =[1]TOTAUX!$N$9 -> 4 | O40: =[1]TOTAUX!$O$9 -> 0 | P40: =[1]TOTAUX!$P$9 -> 0 | Q40: =[1]TOTAUX!$Q$9 -> 1 | R40: =[1]TOTAUX!$R$9 -> 0 | S40: 0.4545454545 | T40: 0.5384615385 | U40: 0.5454545455
A41: 6 | B41: =[1]TOTAUX!$B$16 -> OUI | C41: =[1]TOTAUX!$C$16 -> OUI | D41: =[1]TOTAUX!$D$16 -> BENOIT RICHARD | E41: =[1]TOTAUX!$E$16 -> 5 | F41: =[1]TOTAUX!$F$16 -> 9 | G41: =[1]TOTAUX!$G$16 -> 5 | H41: =[1]TOTAUX!$H$16 -> 4 | I41: =[1]TOTAUX!$I$16 -> 1 | J41: =[1]TOTAUX!$J$16 -> 4 | K41: =[1]TOTAUX!$K$16 -> 0 | L41: =[1]TOTAUX!$L$16 -> 0 | M41: =[1]TOTAUX!$M$16 -> 0 | N41: =[1]TOTAUX!$N$16 -> 5 | O41: =[1]TOTAUX!$O$16 -> 0 | P41: =[1]TOTAUX!$P$16 -> 0 | Q41: =[1]TOTAUX!$Q$16 -> 3 | R41: =[1]TOTAUX!$R$16 -> 0 | S41: 0.4444444444 | T41: 0.6428571429 | U41: 0.4444444444
A42: 7 | B42: =[1]TOTAUX!$B$14 -> OUI | C42: =[1]TOTAUX!$C$14 -> OUI | D42: =[1]TOTAUX!$D$14 -> PATRICE JODOIN | E42: =[1]TOTAUX!$E$14 -> 3 | F42: =[1]TOTAUX!$F$14 -> 9 | G42: =[1]TOTAUX!$G$14 -> 1 | H42: =[1]TOTAUX!$H$14 -> 4 | I42: =[1]TOTAUX!$I$14 -> 2 | J42: =[1]TOTAUX!$J$14 -> 4 | K42: =[1]TOTAUX!$K$14 -> 0 | L42: =[1]TOTAUX!$L$14 -> 0 | M42: =[1]TOTAUX!$M$14 -> 0 | N42: =[1]TOTAUX!$N$14 -> 1 | O42: =[1]TOTAUX!$O$14 -> 0 | P42: =[1]TOTAUX!$P$14 -> 1 | Q42: =[1]TOTAUX!$Q$14 -> 0 | R42: =[1]TOTAUX!$R$14 -> 1 | S42: 0.4444444444 | T42: 0.4545454545 | U42: 0.4444444444
A43: 8 | B43: =[1]TOTAUX!$B$4 -> OUI | C43: =[1]TOTAUX!$C$4 -> OUI | D43: =[1]TOTAUX!$D$4 -> PIERRE RICHARD | E43: =[1]TOTAUX!$E$4 -> 6 | F43: =[1]TOTAUX!$F$4 -> 20 | G43: =[1]TOTAUX!$G$4 -> 4 | H43: =[1]TOTAUX!$H$4 -> 8 | I43: =[1]TOTAUX!$I$4 -> 2 | J43: =[1]TOTAUX!$J$4 -> 6 | K43: =[1]TOTAUX!$K$4 -> 1 | L43: =[1]TOTAUX!$L$4 -> 1 | M43: =[1]TOTAUX!$M$4 -> 0 | N43: =[1]TOTAUX!$N$4 -> 0 | O43: =[1]TOTAUX!$O$4 -> 1 | P43: =[1]TOTAUX!$P$4 -> 0 | Q43: =[1]TOTAUX!$Q$4 -> 1 | R43: =[1]TOTAUX!$R$4 -> 1 | S43: 0.4 | T43: 0.4 | U43: 0.55
A44: 9 | B44: =[1]TOTAUX!$B$21 -> OUI | C44: =[1]TOTAUX!$C$21 -> OUI | D44: =[1]TOTAUX!$D$21 -> JESSY LANDRY | E44: =[1]TOTAUX!$E$21 -> 3 | F44: =[1]TOTAUX!$F$21 -> 5 | G44: =[1]TOTAUX!$G$21 -> 0 | H44: =[1]TOTAUX!$H$21 -> 2 | I44: =[1]TOTAUX!$I$21 -> 0 | J44: =[1]TOTAUX!$J$21 -> 2 | K44: =[1]TOTAUX!$K$21 -> 0 | L44: =[1]TOTAUX!$L$21 -> 0 | M44: =[1]TOTAUX!$M$21 -> 0 | N44: =[1]TOTAUX!$N$21 -> 2 | O44: =[1]TOTAUX!$O$21 -> 0 | P44: =[1]TOTAUX!$P$21 -> 0 | Q44: =[1]TOTAUX!$Q$21 -> 0 | R44: =[1]TOTAUX!$R$21 -> 1 | S44: 0.4 | T44: 0.5714285714 | U44: 0.4
A45: 10 | B45: =[1]TOTAUX!$B$5 -> OUI | C45: =[1]TOTAUX!$C$5 -> OUI | D45: =[1]TOTAUX!$D$5 -> BENOIT HUCHETTE | E45: =[1]TOTAUX!$E$5 -> 9 | F45: =[1]TOTAUX!$F$5 -> 28 | G45: =[1]TOTAUX!$G$5 -> 4 | H45: =[1]TOTAUX!$H$5 -> 11 | I45: =[1]TOTAUX!$I$5 -> 9 | J45: =[1]TOTAUX!$J$5 -> 8 | K45: =[1]TOTAUX!$K$5 -> 2 | L45: =[1]TOTAUX!$L$5 -> 0 | M45: =[1]TOTAUX!$M$5 -> 1 | N45: =[1]TOTAUX!$N$5 -> 1 | O45: =[1]TOTAUX!$O$5 -> 0 | P45: =[1]TOTAUX!$P$5 -> 1 | Q45: =[1]TOTAUX!$Q$5 -> 2 | R45: =[1]TOTAUX!$R$5 -> 0 | S45: 0.3928571429 | T45: 0.4 | U45: 0.5714285714
A46: 11 | B46: =[1]TOTAUX!$B$15 -> OUI | C46: =[1]TOTAUX!$C$15 -> OUI | D46: =[1]TOTAUX!$D$15 -> GILLES LAFRAMBOISE | E46: =[1]TOTAUX!$E$15 -> 9 | F46: =[1]TOTAUX!$F$15 -> 26 | G46: =[1]TOTAUX!$G$15 -> 5 | H46: =[1]TOTAUX!$H$15 -> 8 | I46: =[1]TOTAUX!$I$15 -> 3 | J46: =[1]TOTAUX!$J$15 -> 8 | K46: =[1]TOTAUX!$K$15 -> 0 | L46: =[1]TOTAUX!$L$15 -> 0 | M46: =[1]TOTAUX!$M$15 -> 0 | N46: =[1]TOTAUX!$N$15 -> 3 | O46: =[1]TOTAUX!$O$15 -> 0 | P46: =[1]TOTAUX!$P$15 -> 0 | Q46: =[1]TOTAUX!$Q$15 -> 2 | R46: =[1]TOTAUX!$R$15 -> 1 | S46: 0.3076923077 | T46: 0.3793103448 | U46: 0.3076923077
A47: 12 | B47: =[1]TOTAUX!$B$8 -> OUI | C47: =[1]TOTAUX!$C$8 -> OUI | D47: =[1]TOTAUX!$D$8 -> PHILIPPE DALLAIRE | E47: =[1]TOTAUX!$E$8 -> 7 | F47: =[1]TOTAUX!$F$8 -> 20 | G47: =[1]TOTAUX!$G$8 -> 4 | H47: =[1]TOTAUX!$H$8 -> 6 | I47: =[1]TOTAUX!$I$8 -> 3 | J47: =[1]TOTAUX!$J$8 -> 6 | K47: =[1]TOTAUX!$K$8 -> 0 | L47: =[1]TOTAUX!$L$8 -> 0 | M47: =[1]TOTAUX!$M$8 -> 0 | N47: =[1]TOTAUX!$N$8 -> 3 | O47: =[1]TOTAUX!$O$8 -> 0 | P47: =[1]TOTAUX!$P$8 -> 0 | Q47: =[1]TOTAUX!$Q$8 -> 2 | R47: =[1]TOTAUX!$R$8 -> 0 | S47: 0.3 | T47: 0.3913043478 | U47: 0.3
A48: 13 | B48: =[1]TOTAUX!$B$7 -> OUI | C48: =[1]TOTAUX!$C$7 -> OUI | D48: =[1]TOTAUX!$D$7 -> JEAN-GUY GAUTHIER | E48: =[1]TOTAUX!$E$7 -> 8 | F48: =[1]TOTAUX!$F$7 -> 23 | G48: =[1]TOTAUX!$G$7 -> 3 | H48: =[1]TOTAUX!$H$7 -> 6 | I48: =[1]TOTAUX!$I$7 -> 3 | J48: =[1]TOTAUX!$J$7 -> 5 | K48: =[1]TOTAUX!$K$7 -> 1 | L48: =[1]TOTAUX!$L$7 -> 0 | M48: =[1]TOTAUX!$M$7 -> 0 | N48: =[1]TOTAUX!$N$7 -> 1 | O48: =[1]TOTAUX!$O$7 -> 1 | P48: =[1]TOTAUX!$P$7 -> 0 | Q48: =[1]TOTAUX!$Q$7 -> 0 | R48: =[1]TOTAUX!$R$7 -> 2 | S48: 0.2608695652 | T48: 0.2916666667 | U48: 0.3043478261
A49: 14 | B49: =[1]TOTAUX!$B$18 -> OUI | C49: =[1]TOTAUX!$C$18 -> OUI | D49: =[1]TOTAUX!$D$18 -> DANNY PLANTE | E49: =[1]TOTAUX!$E$18 -> 2 | F49: =[1]TOTAUX!$F$18 -> 4 | G49: =[1]TOTAUX!$G$18 -> 0 | H49: =[1]TOTAUX!$H$18 -> 1 | I49: =[1]TOTAUX!$I$18 -> 0 | J49: =[1]TOTAUX!$J$18 -> 0 | K49: =[1]TOTAUX!$K$18 -> 1 | L49: =[1]TOTAUX!$L$18 -> 0 | M49: =[1]TOTAUX!$M$18 -> 0 | N49: =[1]TOTAUX!$N$18 -> 0 | O49: =[1]TOTAUX!$O$18 -> 0 | P49: =[1]TOTAUX!$P$18 -> 0 | Q49: =[1]TOTAUX!$Q$18 -> 1 | R49: =[1]TOTAUX!$R$18 -> 0 | S49: 0.25 | T49: 0.25 | U49: 0.5
A50: 15 | B50: =[1]TOTAUX!$B$10 -> OUI | C50: =[1]TOTAUX!$C$10 -> OUI | D50: =[1]TOTAUX!$D$10 -> LUC LAFRANCE | E50: =[1]TOTAUX!$E$10 -> 5 | F50: =[1]TOTAUX!$F$10 -> 9 | G50: =[1]TOTAUX!$G$10 -> 2 | H50: =[1]TOTAUX!$H$10 -> 2 | I50: =[1]TOTAUX!$I$10 -> 0 | J50: =[1]TOTAUX!$J$10 -> 0 | K50: =[1]TOTAUX!$K$10 -> 2 | L50: =[1]TOTAUX!$L$10 -> 0 | M50: =[1]TOTAUX!$M$10 -> 0 | N50: =[1]TOTAUX!$N$10 -> 2 | O50: =[1]TOTAUX!$O$10 -> 2 | P50: =[1]TOTAUX!$P$10 -> 0 | Q50: =[1]TOTAUX!$Q$10 -> 2 | R50: =[1]TOTAUX!$R$10 -> 0 | S50: 0.2222222222 | T50: 0.3636363636 | U50: 0.4444444444
A51: 16 | B51: =[1]TOTAUX!$B$22 -> OUI | C51: =[1]TOTAUX!$C$22 -> OUI | D51: =[1]TOTAUX!$D$22 -> FREDERICK BERTRAND | E51: =[1]TOTAUX!$E$22 -> 2 | F51: =[1]TOTAUX!$F$22 -> 6 | G51: =[1]TOTAUX!$G$22 -> 1 | H51: =[1]TOTAUX!$H$22 -> 1 | I51: =[1]TOTAUX!$I$22 -> 0 | J51: =[1]TOTAUX!$J$22 -> 1 | K51: =[1]TOTAUX!$K$22 -> 0 | L51: =[1]TOTAUX!$L$22 -> 0 | M51: =[1]TOTAUX!$M$22 -> 0 | N51: =[1]TOTAUX!$N$22 -> 1 | O51: =[1]TOTAUX!$O$22 -> 0 | P51: =[1]TOTAUX!$P$22 -> 0 | Q51: =[1]TOTAUX!$Q$22 -> 0 | R51: =[1]TOTAUX!$R$22 -> 0 | S51: 0.1666666667 | T51: 0.2857142857 | U51: 0.1666666667
A52: 17 | B52: =[1]TOTAUX!$B$3 -> OUI | C52: =[1]TOTAUX!$C$3 -> OUI | D52: =[1]TOTAUX!$D$3 -> MARTIN BOUCHER | E52: =[1]TOTAUX!$E$3 -> 3 | F52: =[1]TOTAUX!$F$3 -> 6 | G52: =[1]TOTAUX!$G$3 -> 1 | H52: =[1]TOTAUX!$H$3 -> 0 | I52: =[1]TOTAUX!$I$3 -> 0 | J52: =[1]TOTAUX!$J$3 -> 0 | K52: =[1]TOTAUX!$K$3 -> 0 | L52: =[1]TOTAUX!$L$3 -> 0 | M52: =[1]TOTAUX!$M$3 -> 0 | N52: =[1]TOTAUX!$N$3 -> 0 | O52: =[1]TOTAUX!$O$3 -> 3 | P52: =[1]TOTAUX!$P$3 -> 0 | Q52: =[1]TOTAUX!$Q$3 -> 0 | R52: =[1]TOTAUX!$R$3 -> 0 | S52: 0 | T52: 0 | U52: 0
A53: 18 | B53: =[1]TOTAUX!$B$13 -> OUI | C53: =[1]TOTAUX!$C$13 -> OUI | D53: =[1]TOTAUX!$D$13 -> GABRIEL JULIEN | E53: =[1]TOTAUX!$E$13 -> 2 | F53: =[1]TOTAUX!$F$13 -> 6 | G53: =[1]TOTAUX!$G$13 -> 0 | H53: =[1]TOTAUX!$H$13 -> 0 | I53: =[1]TOTAUX!$I$13 -> 0 | J53: =[1]TOTAUX!$J$13 -> 0 | K53: =[1]TOTAUX!$K$13 -> 0 | L53: =[1]TOTAUX!$L$13 -> 0 | M53: =[1]TOTAUX!$M$13 -> 0 | N53: =[1]TOTAUX!$N$13 -> 0 | O53: =[1]TOTAUX!$O$13 -> 0 | P53: =[1]TOTAUX!$P$13 -> 0 | Q53: =[1]TOTAUX!$Q$13 -> 0 | R53: =[1]TOTAUX!$R$13 -> 0 | S53: 0 | T53: 0 | U53: 0
A54: 19 | B54: =[1]TOTAUX!$B$19 -> OUI | C54: =[1]TOTAUX!$C$19 -> OUI | D54: =[1]TOTAUX!$D$19 -> MICHEL BACHELET | E54: =[1]TOTAUX!$E$19 -> 2 | F54: =[1]TOTAUX!$F$19 -> 1 | G54: =[1]TOTAUX!$G$19 -> 0 | H54: =[1]TOTAUX!$H$19 -> 0 | I54: =[1]TOTAUX!$I$19 -> 0 | J54: =[1]TOTAUX!$J$19 -> 0 | K54: =[1]TOTAUX!$K$19 -> 0 | L54: =[1]TOTAUX!$L$19 -> 0 | M54: =[1]TOTAUX!$M$19 -> 0 | N54: =[1]TOTAUX!$N$19 -> 2 | O54: =[1]TOTAUX!$O$19 -> 0 | P54: =[1]TOTAUX!$P$19 -> 0 | Q54: =[1]TOTAUX!$Q$19 -> 1 | R54: =[1]TOTAUX!$R$19 -> 0 | S54: 0 | T54: 0.6666666667 | U54: 0
A55: 20 | B55: =[1]TOTAUX!$B$17 -> NON | C55: =[1]TOTAUX!$C$17 -> NON | D55: =[1]TOTAUX!$D$17 -> 20 | E55: =[1]TOTAUX!$E$17 -> 0 | F55: =[1]TOTAUX!$F$17 -> 0 | G55: =[1]TOTAUX!$G$17 -> 0 | H55: =[1]TOTAUX!$H$17 -> 0 | I55: =[1]TOTAUX!$I$17 -> 0 | J55: =[1]TOTAUX!$J$17 -> 0 | K55: =[1]TOTAUX!$K$17 -> 0 | L55: =[1]TOTAUX!$L$17 -> 0 | M55: =[1]TOTAUX!$M$17 -> 0 | N55: =[1]TOTAUX!$N$17 -> 0 | O55: =[1]TOTAUX!$O$17 -> 0 | P55: =[1]TOTAUX!$P$17 -> 0 | Q55: =[1]TOTAUX!$Q$17 -> 0 | R55: =[1]TOTAUX!$R$17 -> 0 | S55: =H55/F55 ->  | T55: =((H55+N55)/(F55+N55+P55)) ->  | U55: =((J55)+(K55*2)+(L55*3)+(M55*4))/F55 -> 
D56: TOTAUX | F56: =[1]TOTAUX!$F$23 -> 266 | G56: =[1]TOTAUX!$G$23 -> 63 | H56: =[1]TOTAUX!$H$23 -> 99 | I56: =[1]TOTAUX!$I$23 -> 52 | J56: =[1]TOTAUX!$J$23 -> 76 | K56: =[1]TOTAUX!$K$23 -> 18 | L56: =[1]TOTAUX!$L$23 -> 1 | M56: =[1]TOTAUX!$M$23 -> 4 | N56: =[1]TOTAUX!$N$23 -> 31 | O56: =[1]TOTAUX!$O$23 -> 7 | P56: =[1]TOTAUX!$P$23 -> 2 | Q56: =[1]TOTAUX!$Q$23 -> 17 | R56: =[1]TOTAUX!$R$23 -> 7 | S56: 0.3721804511 | T56: 0.4347826087 | U56: 0.492481203
D58: NOM | E58: PJ | F58: PD | G58: V | H58: D | I58: N | J58: ML | K58: P | L58: PM | M58: CS | N58: BB | O58: WP | P58: RAB | Q58: MPM | R58: K/7 | S58: WHIP | T58: ML SÉRIES
D59: =[1]TOTAUX!$D$28 -> LUC LAFRANCE | E59: =[1]TOTAUX!$E$28 -> 2 | F59: =[1]TOTAUX!$F$28 -> 2 | G59: =[1]TOTAUX!$G$28 -> 1 | H59: =[1]TOTAUX!$H$28 -> 0 | I59: =[1]TOTAUX!$I$28 -> 0 | J59: =[1]TOTAUX!$J$28 -> 12 | K59: =[1]TOTAUX!$K$28 -> 4 | L59: =[1]TOTAUX!$L$28 -> 2 | M59: =[1]TOTAUX!$M$28 -> 7 | N59: =[1]TOTAUX!$N$28 -> 8 | O59: =[1]TOTAUX!$O$28 -> 0 | P59: =[1]TOTAUX!$P$28 -> 2 | Q59: =(L59*7)/J59 -> 1.166666667 | R59: =(P59*7)/J59 -> 1.166666667 | S59: =(M59+N59)/J59 -> 1.25 | T59: =[1]TOTAUX!$T$28 -> 12
D60: =[1]TOTAUX!$D$26 -> PHILIPPE DALLAIRE | E60: =[1]TOTAUX!$E$26 -> 4 | F60: =[1]TOTAUX!$F$26 -> 3 | G60: =[1]TOTAUX!$G$26 -> 3 | H60: =[1]TOTAUX!$H$26 -> 0 | I60: =[1]TOTAUX!$I$26 -> 0 | J60: =[1]TOTAUX!$J$26 -> 19.66 | K60: =[1]TOTAUX!$K$26 -> 5 | L60: =[1]TOTAUX!$L$26 -> 5 | M60: =[1]TOTAUX!$M$26 -> 20 | N60: =[1]TOTAUX!$N$26 -> 13 | O60: =[1]TOTAUX!$O$26 -> 0 | P60: =[1]TOTAUX!$P$26 -> 6 | Q60: 1.780264496 | R60: 2.136317396 | S60: 1.678535097 | T60: =[1]TOTAUX!$T$26 -> 19.66
D61: =[1]TOTAUX!$D$27 -> JEAN-GUY GAUTHIER | E61: =[1]TOTAUX!$E$27 -> 6 | F61: =[1]TOTAUX!$F$27 -> 4 | G61: =[1]TOTAUX!$G$27 -> 4 | H61: =[1]TOTAUX!$H$27 -> 1 | I61: =[1]TOTAUX!$I$27 -> 0 | J61: =[1]TOTAUX!$J$27 -> 31.34 | K61: =[1]TOTAUX!$K$27 -> 8 | L61: =[1]TOTAUX!$L$27 -> 8 | M61: =[1]TOTAUX!$M$27 -> 25 | N61: =[1]TOTAUX!$N$27 -> 4 | O61: =[1]TOTAUX!$O$27 -> 0 | P61: =[1]TOTAUX!$P$27 -> 10 | Q61: 1.786853861 | R61: 2.233567326 | S61: 0.9253350351 | T61: =[1]TOTAUX!$T$27 -> 31.34
D62: =[1]TOTAUX!$D$29 -> 4 | E62: =[1]TOTAUX!$E$29 -> 0 | F62: =[1]TOTAUX!$F$29 -> 0 | G62: =[1]TOTAUX!$G$29 -> 0 | H62: =[1]TOTAUX!$H$29 -> 0 | I62: =[1]TOTAUX!$I$29 -> 0 | J62: =[1]TOTAUX!$J$29 -> 0 | K62: =[1]TOTAUX!$K$29 -> 0 | L62: =[1]TOTAUX!$L$29 -> 0 | M62: =[1]TOTAUX!$M$29 -> 0 | N62: =[1]TOTAUX!$N$29 -> 0 | O62: =[1]TOTAUX!$O$29 -> 0 | P62: =[1]TOTAUX!$P$29 -> 0 | T62: =[1]TOTAUX!$T$29 -> 0
D63: =[1]TOTAUX!$D$30 -> 5 | E63: =[1]TOTAUX!$E$30 -> 0 | F63: =[1]TOTAUX!$F$30 -> 0 | G63: =[1]TOTAUX!$G$30 -> 0 | H63: =[1]TOTAUX!$H$30 -> 0 | I63: =[1]TOTAUX!$I$30 -> 0 | J63: =[1]TOTAUX!$J$30 -> 0 | K63: =[1]TOTAUX!$K$30 -> 0 | L63: =[1]TOTAUX!$L$30 -> 0 | M63: =[1]TOTAUX!$M$30 -> 0 | N63: =[1]TOTAUX!$N$30 -> 0 | O63: =[1]TOTAUX!$O$30 -> 0 | P63: =[1]TOTAUX!$P$30 -> 0 | T63: =[1]TOTAUX!$T$30 -> 0
D64: =[1]TOTAUX!$D$31 -> DÉFAUT | E64: =[1]TOTAUX!$E$31 -> 0 | F64: =[1]TOTAUX!$F$31 -> 1 | G64: =[1]TOTAUX!$G$31 -> 1 | H64: =[1]TOTAUX!$H$31 -> 0 | I64: =[1]TOTAUX!$I$31 -> 0 | J64: =[1]TOTAUX!$J$31 -> 0 | K64: =[1]TOTAUX!$K$31 -> 0 | L64: =[1]TOTAUX!$L$31 -> 0 | M64: =[1]TOTAUX!$M$31 -> 0 | N64: =[1]TOTAUX!$N$31 -> 0 | O64: =[1]TOTAUX!$O$31 -> 0 | P64: =[1]TOTAUX!$P$31 -> 0 | T64: =[1]TOTAUX!$T$31 -> 0
D65: TOTAUX | E65: =[1]TOTAUX!$E$32 -> 12 | F65: =[1]TOTAUX!$F$32 -> 10 | G65: =[1]TOTAUX!$G$32 -> 9 | H65: =[1]TOTAUX!$H$32 -> 1 | I65: =[1]TOTAUX!$I$32 -> 0 | J65: =[1]TOTAUX!$J$32 -> 63 | K65: =[1]TOTAUX!$K$32 -> 17 | L65: =[1]TOTAUX!$L$32 -> 15 | M65: =[1]TOTAUX!$M$32 -> 52 | N65: =[1]TOTAUX!$N$32 -> 25 | O65: =[1]TOTAUX!$O$32 -> 0 | P65: =[1]TOTAUX!$P$32 -> 18 | Q65: 1.666666667 | R65: 2 | S65: 1.222222222
H66: METS
A67: # | B67: Photo | C67: Contrat | D67: Nom | E67: PJ | F67: AB | G67: P | H67: CS | I67: PP | J67: 1B | K67: 2B | L67: 3B | M67: CC | N67: BB | O67: SAC | P67: BSAC | Q67: RAB | R67: ERR | S67: MOY | T67: MPB | U67: PUI
A68: 1 | B68: =[3]TOTAUX!$B$5 -> OUI | C68: =[3]TOTAUX!$C$5 -> OUI | D68: =[3]TOTAUX!$D$5 -> ALEX ANTONACCI | E68: =[3]TOTAUX!$E$5 -> 8 | F68: =[3]TOTAUX!$F$5 -> 21 | G68: =[3]TOTAUX!$G$5 -> 9 | H68: =[3]TOTAUX!$H$5 -> 11 | I68: =[3]TOTAUX!$I$5 -> 11 | J68: =[3]TOTAUX!$J$5 -> 4 | K68: =[3]TOTAUX!$K$5 -> 2 | L68: =[3]TOTAUX!$L$5 -> 2 | M68: =[3]TOTAUX!$M$5 -> 3 | N68: =[3]TOTAUX!$N$5 -> 3 | O68: =[3]TOTAUX!$O$5 -> 0 | P68: =[3]TOTAUX!$P$5 -> 2 | Q68: =[3]TOTAUX!$Q$5 -> 2 | R68: =[3]TOTAUX!$R$5 -> 1 | S68: =H68/F68 -> 0.5238095238 | T68: =((H68+N68)/(F68+N68+P68)) -> 0.5384615385 | U68: =((J68)+(K68*2)+(L68*3)+(M68*4))/F68 -> 1.238095238
A69: =A68+1 -> 2 | B69: =[3]TOTAUX!$B$6 -> OUI | C69: =[3]TOTAUX!$C$6 -> OUI | D69: =[3]TOTAUX!$D$6 -> PHILIP JALBERT | E69: =[3]TOTAUX!$E$6 -> 7 | F69: =[3]TOTAUX!$F$6 -> 24 | G69: =[3]TOTAUX!$G$6 -> 8 | H69: =[3]TOTAUX!$H$6 -> 12 | I69: =[3]TOTAUX!$I$6 -> 6 | J69: =[3]TOTAUX!$J$6 -> 6 | K69: =[3]TOTAUX!$K$6 -> 3 | L69: =[3]TOTAUX!$L$6 -> 2 | M69: =[3]TOTAUX!$M$6 -> 1 | N69: =[3]TOTAUX!$N$6 -> 1 | O69: =[3]TOTAUX!$O$6 -> 0 | P69: =[3]TOTAUX!$P$6 -> 0 | Q69: =[3]TOTAUX!$Q$6 -> 0 | R69: =[3]TOTAUX!$R$6 -> 0 | S69: 0.5 | T69: 0.52 | U69: 0.9166666667
A70: =A69+1 -> 3 | B70: =[3]TOTAUX!$B$16 -> OUI | C70: =[3]TOTAUX!$C$16 -> OUI | D70: =[3]TOTAUX!$D$16 -> JEAN-CHRISTOPHE PESANT-TREMBLAY | E70: =[3]TOTAUX!$E$16 -> 2 | F70: =[3]TOTAUX!$F$16 -> 6 | G70: =[3]TOTAUX!$G$16 -> 3 | H70: =[3]TOTAUX!$H$16 -> 3 | I70: =[3]TOTAUX!$I$16 -> 5 | J70: =[3]TOTAUX!$J$16 -> 1 | K70: =[3]TOTAUX!$K$16 -> 1 | L70: =[3]TOTAUX!$L$16 -> 1 | M70: =[3]TOTAUX!$M$16 -> 0 | N70: =[3]TOTAUX!$N$16 -> 0 | O70: =[3]TOTAUX!$O$16 -> 0 | P70: =[3]TOTAUX!$P$16 -> 0 | Q70: =[3]TOTAUX!$Q$16 -> 1 | R70: =[3]TOTAUX!$R$16 -> 0 | S70: 0.5 | T70: 0.5 | U70: 1
A71: 4 | B71: =[3]TOTAUX!$B$13 -> OUI | C71: =[3]TOTAUX!$C$13 -> OUI | D71: =[3]TOTAUX!$D$13 -> FRÉDÉRIC CHARLEBOIS | E71: =[3]TOTAUX!$E$13 -> 3 | F71: =[3]TOTAUX!$F$13 -> 9 | G71: =[3]TOTAUX!$G$13 -> 1 | H71: =[3]TOTAUX!$H$13 -> 3 | I71: =[3]TOTAUX!$I$13 -> 1 | J71: =[3]TOTAUX!$J$13 -> 3 | K71: =[3]TOTAUX!$K$13 -> 0 | L71: =[3]TOTAUX!$L$13 -> 0 | M71: =[3]TOTAUX!$M$13 -> 0 | N71: =[3]TOTAUX!$N$13 -> 0 | O71: =[3]TOTAUX!$O$13 -> 0 | P71: =[3]TOTAUX!$P$13 -> 0 | Q71: =[3]TOTAUX!$Q$13 -> 2 | R71: =[3]TOTAUX!$R$13 -> 2 | S71: 0.3333333333 | T71: 0.3333333333 | U71: 0.3333333333
A72: 5 | B72: =[3]TOTAUX!$B$15 -> OUI | C72: =[3]TOTAUX!$C$15 -> OUI | D72: =[3]TOTAUX!$D$15 -> JÉRÔME TREMBLAY | E72: =[3]TOTAUX!$E$15 -> 7 | F72: =[3]TOTAUX!$F$15 -> 19 | G72: =[3]TOTAUX!$G$15 -> 3 | H72: =[3]TOTAUX!$H$15 -> 8 | I72: =[3]TOTAUX!$I$15 -> 1 | J72: =[3]TOTAUX!$J$15 -> 6 | K72: =[3]TOTAUX!$K$15 -> 2 | L72: =[3]TOTAUX!$L$15 -> 0 | M72: =[3]TOTAUX!$M$15 -> 0 | N72: =[3]TOTAUX!$N$15 -> 0 | O72: =[3]TOTAUX!$O$15 -> 0 | P72: =[3]TOTAUX!$P$15 -> 0 | Q72: =[3]TOTAUX!$Q$15 -> 2 | R72: =[3]TOTAUX!$R$15 -> 0 | S72: 0.4210526316 | T72: 0.4210526316 | U72: 0.5263157895
A73: 6 | B73: =[3]TOTAUX!$B$11 -> OUI | C73: =[3]TOTAUX!$C$11 -> OUI | D73: =[3]TOTAUX!$D$11 -> SÉBASTIEN LORD-MASSÉ | E73: =[3]TOTAUX!$E$11 -> 2 | F73: =[3]TOTAUX!$F$11 -> 6 | G73: =[3]TOTAUX!$G$11 -> 0 | H73: =[3]TOTAUX!$H$11 -> 1 | I73: =[3]TOTAUX!$I$11 -> 0 | J73: =[3]TOTAUX!$J$11 -> 1 | K73: =[3]TOTAUX!$K$11 -> 0 | L73: =[3]TOTAUX!$L$11 -> 0 | M73: =[3]TOTAUX!$M$11 -> 0 | N73: =[3]TOTAUX!$N$11 -> 0 | O73: =[3]TOTAUX!$O$11 -> 0 | P73: =[3]TOTAUX!$P$11 -> 0 | Q73: =[3]TOTAUX!$Q$11 -> 2 | R73: =[3]TOTAUX!$R$11 -> 1 | S73: 0.1666666667 | T73: 0.1666666667 | U73: 0.1666666667
A74: 7 | B74: =[3]TOTAUX!$B$10 -> OUI | C74: =[3]TOTAUX!$C$10 -> OUI | D74: =[3]TOTAUX!$D$10 -> LOUIS-SÉBASTIEN DESHAIES | E74: =[3]TOTAUX!$E$10 -> 8 | F74: =[3]TOTAUX!$F$10 -> 22 | G74: =[3]TOTAUX!$G$10 -> 2 | H74: =[3]TOTAUX!$H$10 -> 9 | I74: =[3]TOTAUX!$I$10 -> 6 | J74: =[3]TOTAUX!$J$10 -> 8 | K74: =[3]TOTAUX!$K$10 -> 1 | L74: =[3]TOTAUX!$L$10 -> 0 | M74: =[3]TOTAUX!$M$10 -> 0 | N74: =[3]TOTAUX!$N$10 -> 1 | O74: =[3]TOTAUX!$O$10 -> 0 | P74: =[3]TOTAUX!$P$10 -> 2 | Q74: =[3]TOTAUX!$Q$10 -> 2 | R74: =[3]TOTAUX!$R$10 -> 2 | S74: 0.4090909091 | T74: 0.4 | U74: 0.4545454545
A75: 8 | B75: =[3]TOTAUX!$B$14 -> OUI | C75: =[3]TOTAUX!$C$14 -> OUI | D75: =[3]TOTAUX!$D$14 -> DANIEL JIMENEZ | E75: =[3]TOTAUX!$E$14 -> 8 | F75: =[3]TOTAUX!$F$14 -> 21 | G75: =[3]TOTAUX!$G$14 -> 2 | H75: =[3]TOTAUX!$H$14 -> 4 | I75: =[3]TOTAUX!$I$14 -> 2 | J75: =[3]TOTAUX!$J$14 -> 2 | K75: =[3]TOTAUX!$K$14 -> 1 | L75: =[3]TOTAUX!$L$14 -> 1 | M75: =[3]TOTAUX!$M$14 -> 0 | N75: =[3]TOTAUX!$N$14 -> 2 | O75: =[3]TOTAUX!$O$14 -> 0 | P75: =[3]TOTAUX!$P$14 -> 0 | Q75: =[3]TOTAUX!$Q$14 -> 3 | R75: =[3]TOTAUX!$R$14 -> 0 | S75: 0.1904761905 | T75: 0.2608695652 | U75: 0.3333333333
A76: 9 | B76: =[3]TOTAUX!$B$7 -> OUI | C76: =[3]TOTAUX!$C$7 -> OUI | D76: =[3]TOTAUX!$D$7 -> HUGO VANASSE | E76: =[3]TOTAUX!$E$7 -> 7 | F76: =[3]TOTAUX!$F$7 -> 24 | G76: =[3]TOTAUX!$G$7 -> 6 | H76: =[3]TOTAUX!$H$7 -> 8 | I76: =[3]TOTAUX!$I$7 -> 8 | J76: =[3]TOTAUX!$J$7 -> 6 | K76: =[3]TOTAUX!$K$7 -> 2 | L76: =[3]TOTAUX!$L$7 -> 0 | M76: =[3]TOTAUX!$M$7 -> 0 | N76: =[3]TOTAUX!$N$7 -> 1 | O76: =[3]TOTAUX!$O$7 -> 0 | P76: =[3]TOTAUX!$P$7 -> 0 | Q76: =[3]TOTAUX!$Q$7 -> 1 | R76: =[3]TOTAUX!$R$7 -> 2 | S76: 0.3333333333 | T76: 0.36 | U76: 0.4166666667
A77: 10 | B77: =[3]TOTAUX!$B$4 -> OUI | C77: =[3]TOTAUX!$C$4 -> OUI | D77: =[3]TOTAUX!$D$4 -> WILLIAM SCOTT | E77: =[3]TOTAUX!$E$4 -> 8 | F77: =[3]TOTAUX!$F$4 -> 22 | G77: =[3]TOTAUX!$G$4 -> 3 | H77: =[3]TOTAUX!$H$4 -> 5 | I77: =[3]TOTAUX!$I$4 -> 3 | J77: =[3]TOTAUX!$J$4 -> 4 | K77: =[3]TOTAUX!$K$4 -> 1 | L77: =[3]TOTAUX!$L$4 -> 0 | M77: =[3]TOTAUX!$M$4 -> 0 | N77: =[3]TOTAUX!$N$4 -> 2 | O77: =[3]TOTAUX!$O$4 -> 1 | P77: =[3]TOTAUX!$P$4 -> 0 | Q77: =[3]TOTAUX!$Q$4 -> 1 | R77: =[3]TOTAUX!$R$4 -> 1 | S77: 0.2272727273 | T77: 0.2916666667 | U77: 0.2727272727
A78: 11 | B78: =[3]TOTAUX!$B$8 -> OUI | C78: =[3]TOTAUX!$C$8 -> OUI | D78: =[3]TOTAUX!$D$8 -> JULIEN HENRI | E78: =[3]TOTAUX!$E$8 -> 5 | F78: =[3]TOTAUX!$F$8 -> 10 | G78: =[3]TOTAUX!$G$8 -> 4 | H78: =[3]TOTAUX!$H$8 -> 1 | I78: =[3]TOTAUX!$I$8 -> 1 | J78: =[3]TOTAUX!$J$8 -> 1 | K78: =[3]TOTAUX!$K$8 -> 0 | L78: =[3]TOTAUX!$L$8 -> 0 | M78: =[3]TOTAUX!$M$8 -> 0 | N78: =[3]TOTAUX!$N$8 -> 4 | O78: =[3]TOTAUX!$O$8 -> 0 | P78: =[3]TOTAUX!$P$8 -> 0 | Q78: =[3]TOTAUX!$Q$8 -> 1 | R78: =[3]TOTAUX!$R$8 -> 3 | S78: 0.1 | T78: 0.3571428571 | U78: 0.1
A79: 12 | B79: =[3]TOTAUX!$B$12 -> OUI | C79: =[3]TOTAUX!$C$12 -> OUI | D79: =[3]TOTAUX!$D$12 -> GABRIEL LAFOREST | E79: =[3]TOTAUX!$E$12 -> 7 | F79: =[3]TOTAUX!$F$12 -> 20 | G79: =[3]TOTAUX!$G$12 -> 1 | H79: =[3]TOTAUX!$H$12 -> 3 | I79: =[3]TOTAUX!$I$12 -> 0 | J79: =[3]TOTAUX!$J$12 -> 2 | K79: =[3]TOTAUX!$K$12 -> 1 | L79: =[3]TOTAUX!$L$12 -> 0 | M79: =[3]TOTAUX!$M$12 -> 0 | N79: =[3]TOTAUX!$N$12 -> 0 | O79: =[3]TOTAUX!$O$12 -> 0 | P79: =[3]TOTAUX!$P$12 -> 0 | Q79: =[3]TOTAUX!$Q$12 -> 8 | R79: =[3]TOTAUX!$R$12 -> 1 | S79: 0.15 | T79: 0.15 | U79: 0.2
A80: 13 | B80: =[3]TOTAUX!$B$17 -> OUI | C80: =[3]TOTAUX!$C$17 -> OUI | D80: =[3]TOTAUX!$D$17 -> DOMINIC THÉRIAULT | E80: =[3]TOTAUX!$E$17 -> 4 | F80: =[3]TOTAUX!$F$17 -> 9 | G80: =[3]TOTAUX!$G$17 -> 1 | H80: =[3]TOTAUX!$H$17 -> 1 | I80: =[3]TOTAUX!$I$17 -> 0 | J80: =[3]TOTAUX!$J$17 -> 1 | K80: =[3]TOTAUX!$K$17 -> 0 | L80: =[3]TOTAUX!$L$17 -> 0 | M80: =[3]TOTAUX!$M$17 -> 0 | N80: =[3]TOTAUX!$N$17 -> 0 | O80: =[3]TOTAUX!$O$17 -> 0 | P80: =[3]TOTAUX!$P$17 -> 0 | Q80: =[3]TOTAUX!$Q$17 -> 0 | R80: =[3]TOTAUX!$R$17 -> 1 | S80: 0.1111111111 | T80: 0.1111111111 | U80: 0.1111111111
A81: 14 | B81: =[3]TOTAUX!$B$3 -> OUI | C81: =[3]TOTAUX!$C$3 -> OUI | D81: =[3]TOTAUX!$D$3 -> ALEXANDRE BRODEUR | E81: =[3]TOTAUX!$E$3 -> 9 | F81: =[3]TOTAUX!$F$3 -> 29 | G81: =[3]TOTAUX!$G$3 -> 4 | H81: =[3]TOTAUX!$H$3 -> 4 | I81: =[3]TOTAUX!$I$3 -> 3 | J81: =[3]TOTAUX!$J$3 -> 1 | K81: =[3]TOTAUX!$K$3 -> 3 | L81: =[3]TOTAUX!$L$3 -> 0 | M81: =[3]TOTAUX!$M$3 -> 0 | N81: =[3]TOTAUX!$N$3 -> 1 | O81: =[3]TOTAUX!$O$3 -> 0 | P81: =[3]TOTAUX!$P$3 -> 1 | Q81: =[3]TOTAUX!$Q$3 -> 2 | R81: =[3]TOTAUX!$R$3 -> 3 | S81: 0.1379310345 | T81: 0.1612903226 | U81: 0.2413793103
A82: 15 | B82: =[3]TOTAUX!$B$9 -> OUI | C82: =[3]TOTAUX!$C$9 -> OUI | D82: =[3]TOTAUX!$D$9 -> RAPHAËL HENRI | E82: =[3]TOTAUX!$E$9 -> 2 | F82: =[3]TOTAUX!$F$9 -> 1 | G82: =[3]TOTAUX!$G$9 -> 1 | H82: =[3]TOTAUX!$H$9 -> 0 | I82: =[3]TOTAUX!$I$9 -> 0 | J82: =[3]TOTAUX!$J$9 -> 0 | K82: =[3]TOTAUX!$K$9 -> 0 | L82: =[3]TOTAUX!$L$9 -> 0 | M82: =[3]TOTAUX!$M$9 -> 0 | N82: =[3]TOTAUX!$N$9 -> 1 | O82: =[3]TOTAUX!$O$9 -> 0 | P82: =[3]TOTAUX!$P$9 -> 0 | Q82: =[3]TOTAUX!$Q$9 -> 0 | R82: =[3]TOTAUX!$R$9 -> 0 | S82: 0 | T82: 0.5 | U82: 0
A83: 16 | B83: =[3]TOTAUX!$B$18 -> OUI | C83: =[3]TOTAUX!$C$18 -> OUI | D83: =[3]TOTAUX!$D$18 -> MATHIEU VADEBONCOEUR | E83: =[3]TOTAUX!$E$18 -> 2 | F83: =[3]TOTAUX!$F$18 -> 1 | G83: =[3]TOTAUX!$G$18 -> 0 | H83: =[3]TOTAUX!$H$18 -> 0 | I83: =[3]TOTAUX!$I$18 -> 0 | J83: =[3]TOTAUX!$J$18 -> 0 | K83: =[3]TOTAUX!$K$18 -> 0 | L83: =[3]TOTAUX!$L$18 -> 0 | M83: =[3]TOTAUX!$M$18 -> 0 | N83: =[3]TOTAUX!$N$18 -> 0 | O83: =[3]TOTAUX!$O$18 -> 0 | P83: =[3]TOTAUX!$P$18 -> 0 | Q83: =[3]TOTAUX!$Q$18 -> 0 | R83: =[3]TOTAUX!$R$18 -> 0 | S83: 0 | T83: 0 | U83: 0
A84: 17 | B84: =[3]TOTAUX!$B$20 -> OUI | C84: =[3]TOTAUX!$C$20 -> OUI | D84: =[3]TOTAUX!$D$20 -> JEAN-CHRISTOPHE CUSSON | E84: =[3]TOTAUX!$E$20 -> 2 | F84: =[3]TOTAUX!$F$20 -> 1 | G84: =[3]TOTAUX!$G$20 -> 0 | H84: =[3]TOTAUX!$H$20 -> 0 | I84: =[3]TOTAUX!$I$20 -> 0 | J84: =[3]TOTAUX!$J$20 -> 0 | K84: =[3]TOTAUX!$K$20 -> 0 | L84: =[3]TOTAUX!$L$20 -> 0 | M84: =[3]TOTAUX!$M$20 -> 0 | N84: =[3]TOTAUX!$N$20 -> 0 | O84: =[3]TOTAUX!$O$20 -> 0 | P84: =[3]TOTAUX!$P$20 -> 0 | Q84: =[3]TOTAUX!$Q$20 -> 0 | R84: =[3]TOTAUX!$R$20 -> 1 | S84: 0 | T84: 0 | U84: 0
A85: 18 | B85: =[3]TOTAUX!$B$22 -> OUI | C85: =[3]TOTAUX!$C$22 -> OUI | D85: =[3]TOTAUX!$D$22 -> DANIEL SCOTT | E85: =[3]TOTAUX!$E$22 -> 2 | F85: =[3]TOTAUX!$F$22 -> 1 | G85: =[3]TOTAUX!$G$22 -> 0 | H85: =[3]TOTAUX!$H$22 -> 0 | I85: =[3]TOTAUX!$I$22 -> 0 | J85: =[3]TOTAUX!$J$22 -> 0 | K85: =[3]TOTAUX!$K$22 -> 0 | L85: =[3]TOTAUX!$L$22 -> 0 | M85: =[3]TOTAUX!$M$22 -> 0 | N85: =[3]TOTAUX!$N$22 -> 0 | O85: =[3]TOTAUX!$O$22 -> 0 | P85: =[3]TOTAUX!$P$22 -> 0 | Q85: =[3]TOTAUX!$Q$22 -> 0 | R85: =[3]TOTAUX!$R$22 -> 0 | S85: 0 | T85: 0 | U85: 0
A86: 19 | B86: =[3]TOTAUX!$B$21 -> OUI | C86: =[3]TOTAUX!$C$21 -> OUI | D86: =[3]TOTAUX!$D$21 -> FRANCIS LE MESURIER | E86: =[3]TOTAUX!$E$21 -> 2 | F86: =[3]TOTAUX!$F$21 -> 1 | G86: =[3]TOTAUX!$G$21 -> 1 | H86: =[3]TOTAUX!$H$21 -> 0 | I86: =[3]TOTAUX!$I$21 -> 0 | J86: =[3]TOTAUX!$J$21 -> 0 | K86: =[3]TOTAUX!$K$21 -> 0 | L86: =[3]TOTAUX!$L$21 -> 0 | M86: =[3]TOTAUX!$M$21 -> 0 | N86: =[3]TOTAUX!$N$21 -> 2 | O86: =[3]TOTAUX!$O$21 -> 0 | P86: =[3]TOTAUX!$P$21 -> 0 | Q86: =[3]TOTAUX!$Q$21 -> 0 | R86: =[3]TOTAUX!$R$21 -> 0 | S86: 0 | T86: 0.6666666667 | U86: 0
A87: 20 | B87: =[3]TOTAUX!$B$19 -> OUI | C87: =[3]TOTAUX!$C$19 -> OUI | D87: =[3]TOTAUX!$D$19 -> CHARLES-ÉTIENNE LAURIN | E87: =[3]TOTAUX!$E$19 -> 0 | F87: =[3]TOTAUX!$F$19 -> 0 | G87: =[3]TOTAUX!$G$19 -> 0 | H87: =[3]TOTAUX!$H$19 -> 0 | I87: =[3]TOTAUX!$I$19 -> 0 | J87: =[3]TOTAUX!$J$19 -> 0 | K87: =[3]TOTAUX!$K$19 -> 0 | L87: =[3]TOTAUX!$L$19 -> 0 | M87: =[3]TOTAUX!$M$19 -> 0 | N87: =[3]TOTAUX!$N$19 -> 0 | O87: =[3]TOTAUX!$O$19 -> 0 | P87: =[3]TOTAUX!$P$19 -> 0 | Q87: =[3]TOTAUX!$Q$19 -> 0 | R87: =[3]TOTAUX!$R$19 -> 0
D88: TOTAUX | F88: =[3]TOTAUX!$F$23 -> 247 | G88: =[3]TOTAUX!$G$23 -> 56 | H88: =[3]TOTAUX!$H$23 -> 73 | I88: =[3]TOTAUX!$I$23 -> 47 | J88: =[3]TOTAUX!$J$23 -> 46 | K88: =[3]TOTAUX!$K$23 -> 17 | L88: =[3]TOTAUX!$L$23 -> 6 | M88: =[3]TOTAUX!$M$23 -> 4 | N88: =[3]TOTAUX!$N$23 -> 18 | O88: =[3]TOTAUX!$O$23 -> 1 | P88: =[3]TOTAUX!$P$23 -> 5 | Q88: =[3]TOTAUX!$Q$23 -> 27 | R88: =[3]TOTAUX!$R$23 -> 18 | S88: 0.2955465587 | T88: 0.337037037 | U88: 0.4615384615
D90: NOM | E90: PJ | F90: PD | G90: V | H90: D | I90: N | J90: ML | K90: P | L90: PM | M90: CS | N90: BB | O90: WP | P90: RAB | Q90: MPM | R90: K/7 | S90: WHIP | T90: ML SÉRIES
D91: =[3]TOTAUX!$D$27 -> GABRIEL LAFOREST | E91: =[3]TOTAUX!$E$27 -> 3 | F91: =[3]TOTAUX!$F$27 -> 2 | G91: =[3]TOTAUX!$G$27 -> 1 | H91: =[3]TOTAUX!$H$27 -> 0 | I91: =[3]TOTAUX!$I$27 -> 0 | J91: =[3]TOTAUX!$J$27 -> 10.33 | K91: =[3]TOTAUX!$K$27 -> 8 | L91: =[3]TOTAUX!$L$27 -> 1 | M91: =[3]TOTAUX!$M$27 -> 7 | N91: =[3]TOTAUX!$N$27 -> 11 | O91: =[3]TOTAUX!$O$27 -> 0 | P91: =[3]TOTAUX!$P$27 -> 4 | Q91: =(L91*7)/J91 -> 0.6776379477 | R91: =(P91*7)/J91 -> 2.710551791 | S91: =(M91+N91)/J91 -> 1.74249758 | T91: =[3]TOTAUX!$T$27 -> 10.33
D92: =[3]TOTAUX!$D$26 -> DANIEL JIMENEZ | E92: =[3]TOTAUX!$E$26 -> 8 | F92: =[3]TOTAUX!$F$26 -> 7 | G92: =[3]TOTAUX!$G$26 -> 4 | H92: =[3]TOTAUX!$H$26 -> 3 | I92: =[3]TOTAUX!$I$26 -> 1 | J92: =[3]TOTAUX!$J$26 -> 47 | K92: =[3]TOTAUX!$K$26 -> 39 | L92: =[3]TOTAUX!$L$26 -> 32 | M92: =[3]TOTAUX!$M$26 -> 66 | N92: =[3]TOTAUX!$N$26 -> 13 | O92: =[3]TOTAUX!$O$26 -> 0 | P92: =[3]TOTAUX!$P$26 -> 18 | Q92: 4.765957447 | R92: 2.680851064 | S92: 1.680851064 | T92: =[3]TOTAUX!$T$26 -> 40
D93: =[3]TOTAUX!$D$28 -> ALEXANDRE BRODEUR | E93: =[3]TOTAUX!$E$28 -> 1 | F93: =[3]TOTAUX!$F$28 -> 0 | G93: =[3]TOTAUX!$G$28 -> 0 | H93: =[3]TOTAUX!$H$28 -> 0 | I93: =[3]TOTAUX!$I$28 -> 0 | J93: =[3]TOTAUX!$J$28 -> 0.67 | K93: =[3]TOTAUX!$K$28 -> 8 | L93: =[3]TOTAUX!$L$28 -> 8 | M93: =[3]TOTAUX!$M$28 -> 8 | N93: =[3]TOTAUX!$N$28 -> 3 | O93: =[3]TOTAUX!$O$28 -> 0 | P93: =[3]TOTAUX!$P$28 -> 0 | Q93: 83.58208955 | R93: 0 | S93: 16.41791045 | T93: =[3]TOTAUX!$T$28 -> 0.67
D94: =[3]TOTAUX!$D$29 -> 4 | E94: =[3]TOTAUX!$E$29 -> 0 | F94: =[3]TOTAUX!$F$29 -> 0 | G94: =[3]TOTAUX!$G$29 -> 0 | H94: =[3]TOTAUX!$H$29 -> 0 | I94: =[3]TOTAUX!$I$29 -> 0 | J94: =[3]TOTAUX!$J$29 -> 0 | K94: =[3]TOTAUX!$K$29 -> 0 | L94: =[3]TOTAUX!$L$29 -> 0 | M94: =[3]TOTAUX!$M$29 -> 0 | N94: =[3]TOTAUX!$N$29 -> 0 | O94: =[3]TOTAUX!$O$29 -> 0 | P94: =[3]TOTAUX!$P$29 -> 0 | T94: =[3]TOTAUX!$T$29 -> 0
D95: =[3]TOTAUX!$D$30 -> 5 | E95: =[3]TOTAUX!$E$30 -> 0 | F95: =[3]TOTAUX!$F$30 -> 0 | G95: =[3]TOTAUX!$G$30 -> 0 | H95: =[3]TOTAUX!$H$30 -> 0 | I95: =[3]TOTAUX!$I$30 -> 0 | J95: =[3]TOTAUX!$J$30 -> 0 | K95: =[3]TOTAUX!$K$30 -> 0 | L95: =[3]TOTAUX!$L$30 -> 0 | M95: =[3]TOTAUX!$M$30 -> 0 | N95: =[3]TOTAUX!$N$30 -> 0 | O95: =[3]TOTAUX!$O$30 -> 0 | P95: =[3]TOTAUX!$P$30 -> 0 | T95: =[3]TOTAUX!$T$30 -> 0
D96: =[3]TOTAUX!$D$31 -> DÉFAUT | E96: =[3]TOTAUX!$E$31 -> 0 | F96: =[3]TOTAUX!$F$31 -> 1 | G96: =[3]TOTAUX!$G$31 -> 1 | H96: =[3]TOTAUX!$H$31 -> 0 | I96: =[3]TOTAUX!$I$31 -> 0 | J96: =[3]TOTAUX!$J$31 -> 0 | K96: =[3]TOTAUX!$K$31 -> 0 | L96: =[3]TOTAUX!$L$31 -> 0 | M96: =[3]TOTAUX!$M$31 -> 0 | N96: =[3]TOTAUX!$N$31 -> 0 | O96: =[3]TOTAUX!$O$31 -> 0 | P96: =[3]TOTAUX!$P$31 -> 0 | T96: =[3]TOTAUX!$T$31 -> 0
D97: TOTAUX | E97: =[3]TOTAUX!$E$32 -> 12 | F97: =[3]TOTAUX!$F$32 -> 10 | G97: =[3]TOTAUX!$G$32 -> 6 | H97: =[3]TOTAUX!$H$32 -> 3 | I97: =[3]TOTAUX!$I$32 -> 1 | J97: =[3]TOTAUX!$J$32 -> 58 | K97: =[3]TOTAUX!$K$32 -> 55 | L97: =[3]TOTAUX!$L$32 -> 41 | M97: =[3]TOTAUX!$M$32 -> 81 | N97: =[3]TOTAUX!$N$32 -> 27 | O97: =[3]TOTAUX!$O$32 -> 0 | P97: =[3]TOTAUX!$P$32 -> 22 | Q97: 4.948275862 | R97: 2.655172414 | S97: 1.862068966
H98: EAGLES
A99: # | B99: Photo | C99: Contrat | D99: Nom | E99: PJ | F99: AB | G99: P | H99: CS | I99: PP | J99: 1B | K99: 2B | L99: 3B | M99: CC | N99: BB | O99: SAC | P99: BSAC | Q99: RAB | R99: ERR | S99: MOY | T99: MPB | U99: PUI
A100: 1 | B100: =[5]TOTAUX!$B$15 -> OUI | C100: =[5]TOTAUX!$C$15 -> OUI | D100: =[5]TOTAUX!$D$15 -> DÉRY JEAN-FRANÇOIS | E100: =[5]TOTAUX!$E$15 -> 3 | F100: =[5]TOTAUX!$F$15 -> 10 | G100: =[5]TOTAUX!$G$15 -> 4 | H100: =[5]TOTAUX!$H$15 -> 6 | I100: =[5]TOTAUX!$I$15 -> 2 | J100: =[5]TOTAUX!$J$15 -> 6 | K100: =[5]TOTAUX!$K$15 -> 0 | L100: =[5]TOTAUX!$L$15 -> 0 | M100: =[5]TOTAUX!$M$15 -> 0 | N100: =[5]TOTAUX!$N$15 -> 0 | O100: =[5]TOTAUX!$O$15 -> 0 | P100: =[5]TOTAUX!$P$15 -> 0 | Q100: =[5]TOTAUX!$Q$15 -> 0 | R100: =[5]TOTAUX!$R$15 -> 0 | S100: =H100/F100 -> 0.6 | T100: =((H100+N100)/(F100+N100+P100)) -> 0.6 | U100: =((J100)+(K100*2)+(L100*3)+(M100*4))/F100 -> 0.6
A101: =A100+1 -> 2 | B101: =[5]TOTAUX!$B$12 -> OUI | C101: =[5]TOTAUX!$C$12 -> OUI | D101: =[5]TOTAUX!$D$12 -> ÉRIC ÉMILUS | E101: =[5]TOTAUX!$E$12 -> 9 | F101: =[5]TOTAUX!$F$12 -> 27 | G101: =[5]TOTAUX!$G$12 -> 7 | H101: =[5]TOTAUX!$H$12 -> 14 | I101: =[5]TOTAUX!$I$12 -> 6 | J101: =[5]TOTAUX!$J$12 -> 11 | K101: =[5]TOTAUX!$K$12 -> 2 | L101: =[5]TOTAUX!$L$12 -> 1 | M101: =[5]TOTAUX!$M$12 -> 0 | N101: =[5]TOTAUX!$N$12 -> 2 | O101: =[5]TOTAUX!$O$12 -> 0 | P101: =[5]TOTAUX!$P$12 -> 0 | Q101: =[5]TOTAUX!$Q$12 -> 0 | R101: =[5]TOTAUX!$R$12 -> 3 | S101: 0.5185185185 | T101: 0.5517241379 | U101: 0.6666666667
A102: =A101+1 -> 3 | B102: =[5]TOTAUX!$B$3 -> OUI | C102: =[5]TOTAUX!$C$3 -> OUI | D102: =[5]TOTAUX!$D$3 -> MARTIN CHAUVETTE | E102: =[5]TOTAUX!$E$3 -> 10 | F102: =[5]TOTAUX!$F$3 -> 34 | G102: =[5]TOTAUX!$G$3 -> 8 | H102: =[5]TOTAUX!$H$3 -> 17 | I102: =[5]TOTAUX!$I$3 -> 7 | J102: =[5]TOTAUX!$J$3 -> 13 | K102: =[5]TOTAUX!$K$3 -> 3 | L102: =[5]TOTAUX!$L$3 -> 0 | M102: =[5]TOTAUX!$M$3 -> 0 | N102: =[5]TOTAUX!$N$3 -> 0 | O102: =[5]TOTAUX!$O$3 -> 0 | P102: =[5]TOTAUX!$P$3 -> 0 | Q102: =[5]TOTAUX!$Q$3 -> 1 | R102: =[5]TOTAUX!$R$3 -> 0 | S102: 0.5 | T102: 0.5 | U102: 0.5588235294
A103: 4 | B103: =[5]TOTAUX!$B$6 -> OUI | C103: =[5]TOTAUX!$C$6 -> OUI | D103: =[5]TOTAUX!$D$6 -> KIM SENG OUM | E103: =[5]TOTAUX!$E$6 -> 2 | F103: =[5]TOTAUX!$F$6 -> 6 | G103: =[5]TOTAUX!$G$6 -> 0 | H103: =[5]TOTAUX!$H$6 -> 3 | I103: =[5]TOTAUX!$I$6 -> 0 | J103: =[5]TOTAUX!$J$6 -> 3 | K103: =[5]TOTAUX!$K$6 -> 0 | L103: =[5]TOTAUX!$L$6 -> 0 | M103: =[5]TOTAUX!$M$6 -> 0 | N103: =[5]TOTAUX!$N$6 -> 0 | O103: =[5]TOTAUX!$O$6 -> 0 | P103: =[5]TOTAUX!$P$6 -> 0 | Q103: =[5]TOTAUX!$Q$6 -> 0 | R103: =[5]TOTAUX!$R$6 -> 0 | S103: 0.5 | T103: 0.5 | U103: 0.5
A104: 5 | B104: =[5]TOTAUX!$B$8 -> OUI | C104: =[5]TOTAUX!$C$8 -> OUI | D104: =[5]TOTAUX!$D$8 -> FRANCO MANGIONE | E104: =[5]TOTAUX!$E$8 -> 8 | F104: =[5]TOTAUX!$F$8 -> 21 | G104: =[5]TOTAUX!$G$8 -> 5 | H104: =[5]TOTAUX!$H$8 -> 10 | I104: =[5]TOTAUX!$I$8 -> 8 | J104: =[5]TOTAUX!$J$8 -> 10 | K104: =[5]TOTAUX!$K$8 -> 0 | L104: =[5]TOTAUX!$L$8 -> 0 | M104: =[5]TOTAUX!$M$8 -> 0 | N104: =[5]TOTAUX!$N$8 -> 6 | O104: =[5]TOTAUX!$O$8 -> 0 | P104: =[5]TOTAUX!$P$8 -> 0 | Q104: =[5]TOTAUX!$Q$8 -> 0 | R104: =[5]TOTAUX!$R$8 -> 0 | S104: 0.4761904762 | T104: 0.5925925926 | U104: 0.4761904762
A105: 6 | B105: =[5]TOTAUX!$B$4 -> OUI | C105: =[5]TOTAUX!$C$4 -> OUI | D105: =[5]TOTAUX!$D$4 -> TAT CHI KHAO | E105: =[5]TOTAUX!$E$4 -> 5 | F105: =[5]TOTAUX!$F$4 -> 14 | G105: =[5]TOTAUX!$G$4 -> 5 | H105: =[5]TOTAUX!$H$4 -> 6 | I105: =[5]TOTAUX!$I$4 -> 4 | J105: =[5]TOTAUX!$J$4 -> 3 | K105: =[5]TOTAUX!$K$4 -> 1 | L105: =[5]TOTAUX!$L$4 -> 0 | M105: =[5]TOTAUX!$M$4 -> 2 | N105: =[5]TOTAUX!$N$4 -> 2 | O105: =[5]TOTAUX!$O$4 -> 0 | P105: =[5]TOTAUX!$P$4 -> 1 | Q105: =[5]TOTAUX!$Q$4 -> 2 | R105: =[5]TOTAUX!$R$4 -> 0 | S105: 0.4285714286 | T105: 0.4705882353 | U105: 0.9285714286
A106: 7 | B106: =[5]TOTAUX!$B$11 -> OUI | C106: =[5]TOTAUX!$C$11 -> OUI | D106: =[5]TOTAUX!$D$11 -> SYLVAIN BÉDARD | E106: =[5]TOTAUX!$E$11 -> 8 | F106: =[5]TOTAUX!$F$11 -> 24 | G106: =[5]TOTAUX!$G$11 -> 7 | H106: =[5]TOTAUX!$H$11 -> 10 | I106: =[5]TOTAUX!$I$11 -> 1 | J106: =[5]TOTAUX!$J$11 -> 9 | K106: =[5]TOTAUX!$K$11 -> 1 | L106: =[5]TOTAUX!$L$11 -> 0 | M106: =[5]TOTAUX!$M$11 -> 0 | N106: =[5]TOTAUX!$N$11 -> 2 | O106: =[5]TOTAUX!$O$11 -> 0 | P106: =[5]TOTAUX!$P$11 -> 0 | Q106: =[5]TOTAUX!$Q$11 -> 1 | R106: =[5]TOTAUX!$R$11 -> 0 | S106: 0.4166666667 | T106: 0.4615384615 | U106: 0.4583333333
A107: 8 | B107: =[5]TOTAUX!$B$14 -> OUI | C107: =[5]TOTAUX!$C$14 -> OUI | D107: =[5]TOTAUX!$D$14 -> ÉRIC CHAPADOS | E107: =[5]TOTAUX!$E$14 -> 8 | F107: =[5]TOTAUX!$F$14 -> 22 | G107: =[5]TOTAUX!$G$14 -> 4 | H107: =[5]TOTAUX!$H$14 -> 9 | I107: =[5]TOTAUX!$I$14 -> 2 | J107: =[5]TOTAUX!$J$14 -> 8 | K107: =[5]TOTAUX!$K$14 -> 1 | L107: =[5]TOTAUX!$L$14 -> 0 | M107: =[5]TOTAUX!$M$14 -> 0 | N107: =[5]TOTAUX!$N$14 -> 3 | O107: =[5]TOTAUX!$O$14 -> 0 | P107: =[5]TOTAUX!$P$14 -> 0 | Q107: =[5]TOTAUX!$Q$14 -> 0 | R107: =[5]TOTAUX!$R$14 -> 3 | S107: 0.4090909091 | T107: 0.48 | U107: 0.4545454545
A108: 9 | B108: =[5]TOTAUX!$B$13 -> OUI | C108: =[5]TOTAUX!$C$13 -> OUI | D108: =[5]TOTAUX!$D$13 -> RÉMY PARÉ | E108: =[5]TOTAUX!$E$13 -> 10 | F108: =[5]TOTAUX!$F$13 -> 27 | G108: =[5]TOTAUX!$G$13 -> 6 | H108: =[5]TOTAUX!$H$13 -> 11 | I108: =[5]TOTAUX!$I$13 -> 13 | J108: =[5]TOTAUX!$J$13 -> 7 | K108: =[5]TOTAUX!$K$13 -> 3 | L108: =[5]TOTAUX!$L$13 -> 0 | M108: =[5]TOTAUX!$M$13 -> 1 | N108: =[5]TOTAUX!$N$13 -> 3 | O108: =[5]TOTAUX!$O$13 -> 0 | P108: =[5]TOTAUX!$P$13 -> 1 | Q108: =[5]TOTAUX!$Q$13 -> 1 | R108: =[5]TOTAUX!$R$13 -> 1 | S108: 0.4074074074 | T108: 0.4516129032 | U108: 0.6296296296
A109: 10 | B109: =[5]TOTAUX!$B$17 -> OUI | C109: =[5]TOTAUX!$C$17 -> OUI | D109: =[5]TOTAUX!$D$17 -> FOLLANO ANGELO | E109: =[5]TOTAUX!$E$17 -> 2 | F109: =[5]TOTAUX!$F$17 -> 6 | G109: =[5]TOTAUX!$G$17 -> 2 | H109: =[5]TOTAUX!$H$17 -> 2 | I109: =[5]TOTAUX!$I$17 -> 2 | J109: =[5]TOTAUX!$J$17 -> 2 | K109: =[5]TOTAUX!$K$17 -> 0 | L109: =[5]TOTAUX!$L$17 -> 0 | M109: =[5]TOTAUX!$M$17 -> 0 | N109: =[5]TOTAUX!$N$17 -> 1 | O109: =[5]TOTAUX!$O$17 -> 0 | P109: =[5]TOTAUX!$P$17 -> 0 | Q109: =[5]TOTAUX!$Q$17 -> 0 | R109: =[5]TOTAUX!$R$17 -> 0 | S109: 0.3333333333 | T109: 0.4285714286 | U109: 0.3333333333
A110: 11 | B110: =[5]TOTAUX!$B$21 -> OUI | C110: =[5]TOTAUX!$C$21 -> OUI | D110: =[5]TOTAUX!$D$21 -> CHAPADOS JÉRÉMY | E110: =[5]TOTAUX!$E$21 -> 1 | F110: =[5]TOTAUX!$F$21 -> 3 | G110: =[5]TOTAUX!$G$21 -> 0 | H110: =[5]TOTAUX!$H$21 -> 1 | I110: =[5]TOTAUX!$I$21 -> 0 | J110: =[5]TOTAUX!$J$21 -> 0 | K110: =[5]TOTAUX!$K$21 -> 1 | L110: =[5]TOTAUX!$L$21 -> 0 | M110: =[5]TOTAUX!$M$21 -> 0 | N110: =[5]TOTAUX!$N$21 -> 0 | O110: =[5]TOTAUX!$O$21 -> 0 | P110: =[5]TOTAUX!$P$21 -> 0 | Q110: =[5]TOTAUX!$Q$21 -> 1 | R110: =[5]TOTAUX!$R$21 -> 0 | S110: 0.3333333333 | T110: 0.3333333333 | U110: 0.6666666667
A111: 12 | B111: =[5]TOTAUX!$B$5 -> OUI | C111: =[5]TOTAUX!$C$5 -> OUI | D111: =[5]TOTAUX!$D$5 -> BENOIT HAMEL | E111: =[5]TOTAUX!$E$5 -> 10 | F111: =[5]TOTAUX!$F$5 -> 33 | G111: =[5]TOTAUX!$G$5 -> 7 | H111: =[5]TOTAUX!$H$5 -> 10 | I111: =[5]TOTAUX!$I$5 -> 4 | J111: =[5]TOTAUX!$J$5 -> 5 | K111: =[5]TOTAUX!$K$5 -> 5 | L111: =[5]TOTAUX!$L$5 -> 0 | M111: =[5]TOTAUX!$M$5 -> 0 | N111: =[5]TOTAUX!$N$5 -> 2 | O111: =[5]TOTAUX!$O$5 -> 0 | P111: =[5]TOTAUX!$P$5 -> 0 | Q111: =[5]TOTAUX!$Q$5 -> 1 | R111: =[5]TOTAUX!$R$5 -> 0 | S111: 0.303030303 | T111: 0.3428571429 | U111: 0.4545454545
A112: 13 | B112: =[5]TOTAUX!$B$19 -> OUI | C112: =[5]TOTAUX!$C$19 -> OUI | D112: =[5]TOTAUX!$D$19 -> DUSSAULT MATHIEU | E112: =[5]TOTAUX!$E$19 -> 2 | F112: =[5]TOTAUX!$F$19 -> 7 | G112: =[5]TOTAUX!$G$19 -> 0 | H112: =[5]TOTAUX!$H$19 -> 2 | I112: =[5]TOTAUX!$I$19 -> 0 | J112: =[5]TOTAUX!$J$19 -> 2 | K112: =[5]TOTAUX!$K$19 -> 0 | L112: =[5]TOTAUX!$L$19 -> 0 | M112: =[5]TOTAUX!$M$19 -> 0 | N112: =[5]TOTAUX!$N$19 -> 0 | O112: =[5]TOTAUX!$O$19 -> 0 | P112: =[5]TOTAUX!$P$19 -> 0 | Q112: =[5]TOTAUX!$Q$19 -> 0 | R112: =[5]TOTAUX!$R$19 -> 0 | S112: 0.2857142857 | T112: 0.2857142857 | U112: 0.2857142857
A113: 14 | B113: =[5]TOTAUX!$B$10 -> OUI | C113: =[5]TOTAUX!$C$10 -> OUI | D113: =[5]TOTAUX!$D$10 -> MAXIME LARAMÉ | E113: =[5]TOTAUX!$E$10 -> 8 | F113: =[5]TOTAUX!$F$10 -> 25 | G113: =[5]TOTAUX!$G$10 -> 3 | H113: =[5]TOTAUX!$H$10 -> 7 | I113: =[5]TOTAUX!$I$10 -> 2 | J113: =[5]TOTAUX!$J$10 -> 6 | K113: =[5]TOTAUX!$K$10 -> 1 | L113: =[5]TOTAUX!$L$10 -> 0 | M113: =[5]TOTAUX!$M$10 -> 0 | N113: =[5]TOTAUX!$N$10 -> 2 | O113: =[5]TOTAUX!$O$10 -> 0 | P113: =[5]TOTAUX!$P$10 -> 0 | Q113: =[5]TOTAUX!$Q$10 -> 1 | R113: =[5]TOTAUX!$R$10 -> 2 | S113: 0.28 | T113: 0.3333333333 | U113: 0.32
A114: 15 | B114: =[5]TOTAUX!$B$20 -> OUI | C114: =[5]TOTAUX!$C$20 -> OUI | D114: =[5]TOTAUX!$D$20 -> LAPORTE RICHARD | E114: =[5]TOTAUX!$E$20 -> 2 | F114: =[5]TOTAUX!$F$20 -> 5 | G114: =[5]TOTAUX!$G$20 -> 0 | H114: =[5]TOTAUX!$H$20 -> 1 | I114: =[5]TOTAUX!$I$20 -> 1 | J114: =[5]TOTAUX!$J$20 -> 1 | K114: =[5]TOTAUX!$K$20 -> 0 | L114: =[5]TOTAUX!$L$20 -> 0 | M114: =[5]TOTAUX!$M$20 -> 0 | N114: =[5]TOTAUX!$N$20 -> 1 | O114: =[5]TOTAUX!$O$20 -> 0 | P114: =[5]TOTAUX!$P$20 -> 1 | Q114: =[5]TOTAUX!$Q$20 -> 0 | R114: =[5]TOTAUX!$R$20 -> 0 | S114: 0.2 | T114: 0.2857142857 | U114: 0.2
A115: 16 | B115: =[5]TOTAUX!$B$9 -> OUI | C115: =[5]TOTAUX!$C$9 -> OUI | D115: =[5]TOTAUX!$D$9 -> KOSTA PAPAPOSTOULOU | E115: =[5]TOTAUX!$E$9 -> 9 | F115: =[5]TOTAUX!$F$9 -> 24 | G115: =[5]TOTAUX!$G$9 -> 5 | H115: =[5]TOTAUX!$H$9 -> 4 | I115: =[5]TOTAUX!$I$9 -> 3 | J115: =[5]TOTAUX!$J$9 -> 3 | K115: =[5]TOTAUX!$K$9 -> 1 | L115: =[5]TOTAUX!$L$9 -> 0 | M115: =[5]TOTAUX!$M$9 -> 0 | N115: =[5]TOTAUX!$N$9 -> 6 | O115: =[5]TOTAUX!$O$9 -> 0 | P115: =[5]TOTAUX!$P$9 -> 1 | Q115: =[5]TOTAUX!$Q$9 -> 2 | R115: =[5]TOTAUX!$R$9 -> 0 | S115: 0.1666666667 | T115: 0.3225806452 | U115: 0.2083333333
A116: 17 | B116: =[5]TOTAUX!$B$16 -> OUI | C116: =[5]TOTAUX!$C$16 -> OUI | D116: =[5]TOTAUX!$D$16 -> GAMACHE GABRIEL | E116: =[5]TOTAUX!$E$16 -> 2 | F116: =[5]TOTAUX!$F$16 -> 6 | G116: =[5]TOTAUX!$G$16 -> 0 | H116: =[5]TOTAUX!$H$16 -> 1 | I116: =[5]TOTAUX!$I$16 -> 1 | J116: =[5]TOTAUX!$J$16 -> 1 | K116: =[5]TOTAUX!$K$16 -> 0 | L116: =[5]TOTAUX!$L$16 -> 0 | M116: =[5]TOTAUX!$M$16 -> 0 | N116: =[5]TOTAUX!$N$16 -> 0 | O116: =[5]TOTAUX!$O$16 -> 0 | P116: =[5]TOTAUX!$P$16 -> 1 | Q116: =[5]TOTAUX!$Q$16 -> 0 | R116: =[5]TOTAUX!$R$16 -> 2 | S116: 0.1666666667 | T116: 0.1428571429 | U116: 0.1666666667
A117: 18 | B117: =[5]TOTAUX!$B$18 -> OUI | C117: =[5]TOTAUX!$C$18 -> OUI | D117: =[5]TOTAUX!$D$18 -> DE LA CRUZ WILSON | E117: =[5]TOTAUX!$E$18 -> 1 | F117: =[5]TOTAUX!$F$18 -> 2 | G117: =[5]TOTAUX!$G$18 -> 0 | H117: =[5]TOTAUX!$H$18 -> 0 | I117: =[5]TOTAUX!$I$18 -> 1 | J117: =[5]TOTAUX!$J$18 -> 0 | K117: =[5]TOTAUX!$K$18 -> 0 | L117: =[5]TOTAUX!$L$18 -> 0 | M117: =[5]TOTAUX!$M$18 -> 0 | N117: =[5]TOTAUX!$N$18 -> 1 | O117: =[5]TOTAUX!$O$18 -> 0 | P117: =[5]TOTAUX!$P$18 -> 0 | Q117: =[5]TOTAUX!$Q$18 -> 0 | R117: =[5]TOTAUX!$R$18 -> 0 | S117: 0 | T117: 0.3333333333 | U117: 0
A118: 19 | B118: =[5]TOTAUX!$B$7 -> OUI | C118: =[5]TOTAUX!$C$7 -> OUI | D118: =[5]TOTAUX!$D$7 -> MICHAEL GAMACHE | E118: =[5]TOTAUX!$E$7 -> 1 | F118: =[5]TOTAUX!$F$7 -> 2 | G118: =[5]TOTAUX!$G$7 -> 0 | H118: =[5]TOTAUX!$H$7 -> 0 | I118: =[5]TOTAUX!$I$7 -> 0 | J118: =[5]TOTAUX!$J$7 -> 0 | K118: =[5]TOTAUX!$K$7 -> 0 | L118: =[5]TOTAUX!$L$7 -> 0 | M118: =[5]TOTAUX!$M$7 -> 0 | N118: =[5]TOTAUX!$N$7 -> 1 | O118: =[5]TOTAUX!$O$7 -> 0 | P118: =[5]TOTAUX!$P$7 -> 0 | Q118: =[5]TOTAUX!$Q$7 -> 0 | R118: =[5]TOTAUX!$R$7 -> 0 | S118: 0 | T118: 0.3333333333 | U118: 0
A119: 20 | B119: =[5]TOTAUX!$B$22 -> OUI | C119: =[5]TOTAUX!$C$22 -> OUI | D119: =[5]TOTAUX!$D$22 -> GAUTHIER BENOIT | E119: =[5]TOTAUX!$E$22 -> 0 | F119: =[5]TOTAUX!$F$22 -> 0 | G119: =[5]TOTAUX!$G$22 -> 0 | H119: =[5]TOTAUX!$H$22 -> 0 | I119: =[5]TOTAUX!$I$22 -> 0 | J119: =[5]TOTAUX!$J$22 -> 0 | K119: =[5]TOTAUX!$K$22 -> 0 | L119: =[5]TOTAUX!$L$22 -> 0 | M119: =[5]TOTAUX!$M$22 -> 0 | N119: =[5]TOTAUX!$N$22 -> 0 | O119: =[5]TOTAUX!$O$22 -> 0 | P119: =[5]TOTAUX!$P$22 -> 0 | Q119: =[5]TOTAUX!$Q$22 -> 0 | R119: =[5]TOTAUX!$R$22 -> 0 | S119: =H119/F119 ->  | T119: =((H119+N119)/(F119+N119+P119)) ->  | U119: =((J119)+(K119*2)+(L119*3)+(M119*4))/F119 -> 
D120: TOTAUX | F120: =[5]TOTAUX!$F$23 -> 298 | G120: =[5]TOTAUX!$G$23 -> 63 | H120: =[5]TOTAUX!$H$23 -> 114 | I120: =[5]TOTAUX!$I$23 -> 57 | J120: =[5]TOTAUX!$J$23 -> 90 | K120: =[5]TOTAUX!$K$23 -> 19 | L120: =[5]TOTAUX!$L$23 -> 1 | M120: =[5]TOTAUX!$M$23 -> 3 | N120: =[5]TOTAUX!$N$23 -> 32 | O120: =[5]TOTAUX!$O$23 -> 0 | P120: =[5]TOTAUX!$P$23 -> 5 | Q120: =[5]TOTAUX!$Q$23 -> 10 | R120: =[5]TOTAUX!$R$23 -> 11 | S120: 0.3825503356 | T120: 0.4358208955 | U120: 0.4798657718
D122: NOM | E122: PJ | F122: PD | G122: V | H122: D | I122: N | J122: ML | K122: P | L122: PM | M122: CS | N122: BB | O122: WP | P122: RAB | Q122: MPM | R122: K/7 | S122: WHIP | T122: ML SÉRIES
D123: =[5]TOTAUX!$D$26 -> MAXIME LARAMÉ | E123: =[5]TOTAUX!$E$26 -> 6 | F123: =[5]TOTAUX!$F$26 -> 3 | G123: =[5]TOTAUX!$G$26 -> 2 | H123: =[5]TOTAUX!$H$26 -> 2 | I123: =[5]TOTAUX!$I$26 -> 0 | J123: =[5]TOTAUX!$J$26 -> 25 | K123: =[5]TOTAUX!$K$26 -> 14 | L123: =[5]TOTAUX!$L$26 -> 13 | M123: =[5]TOTAUX!$M$26 -> 33 | N123: =[5]TOTAUX!$N$26 -> 11 | O123: =[5]TOTAUX!$O$26 -> 1 | P123: =[5]TOTAUX!$P$26 -> 7 | Q123: =(L123*7)/J123 -> 3.64 | R123: =(P123*7)/J123 -> 1.96 | S123: =(M123+N123)/J123 -> 1.76 | T123: =[5]TOTAUX!$T$26 -> 25
D124: =[5]TOTAUX!$D$28 -> BENOIT HAMEL | E124: =[5]TOTAUX!$E$28 -> 4 | F124: =[5]TOTAUX!$F$28 -> 2 | G124: =[5]TOTAUX!$G$28 -> 1 | H124: =[5]TOTAUX!$H$28 -> 0 | I124: =[5]TOTAUX!$I$28 -> 0 | J124: =[5]TOTAUX!$J$28 -> 13.33 | K124: =[5]TOTAUX!$K$28 -> 14 | L124: =[5]TOTAUX!$L$28 -> 11 | M124: =[5]TOTAUX!$M$28 -> 26 | N124: =[5]TOTAUX!$N$28 -> 5 | O124: =[5]TOTAUX!$O$28 -> 0 | P124: =[5]TOTAUX!$P$28 -> 4 | Q124: =(L124*7)/J124 -> 5.776444111 | R124: =(P124*7)/J124 -> 2.100525131 | S124: =(M124+N124)/J124 -> 2.325581395 | T124: =[5]TOTAUX!$T$28 -> 13.33
D125: =[5]TOTAUX!$D$27 -> ÉRIC CHAPADOS | E125: =[5]TOTAUX!$E$27 -> 7 | F125: =[5]TOTAUX!$F$27 -> 5 | G125: =[5]TOTAUX!$G$27 -> 2 | H125: =[5]TOTAUX!$H$27 -> 3 | I125: =[5]TOTAUX!$I$27 -> 0 | J125: =[5]TOTAUX!$J$27 -> 26 | K125: =[5]TOTAUX!$K$27 -> 30 | L125: =[5]TOTAUX!$L$27 -> 25 | M125: =[5]TOTAUX!$M$27 -> 47 | N125: =[5]TOTAUX!$N$27 -> 13 | O125: =[5]TOTAUX!$O$27 -> 0 | P125: =[5]TOTAUX!$P$27 -> 12 | Q125: =(L125*7)/J125 -> 6.730769231 | R125: =(P125*7)/J125 -> 3.230769231 | S125: =(M125+N125)/J125 -> 2.307692308 | T125: =[5]TOTAUX!$T$27 -> 26.67
D126: =[5]TOTAUX!$D$29 -> MARTIN CHAUVETTE | E126: =[5]TOTAUX!$E$29 -> 1 | F126: =[5]TOTAUX!$F$29 -> 0 | G126: =[5]TOTAUX!$G$29 -> 0 | H126: =[5]TOTAUX!$H$29 -> 0 | I126: =[5]TOTAUX!$I$29 -> 0 | J126: =[5]TOTAUX!$J$29 -> 1 | K126: =[5]TOTAUX!$K$29 -> 3 | L126: =[5]TOTAUX!$L$29 -> 3 | M126: =[5]TOTAUX!$M$29 -> 5 | N126: =[5]TOTAUX!$N$29 -> 2 | O126: =[5]TOTAUX!$O$29 -> 0 | P126: =[5]TOTAUX!$P$29 -> 0 | Q126: =(L126*7)/J126 -> 21 | R126: =(P126*7)/J126 -> 0 | S126: =(M126+N126)/J126 -> 7 | T126: =[5]TOTAUX!$T$29 -> 1
D127: =[5]TOTAUX!$D$30 -> 5 | E127: =[5]TOTAUX!$E$30 -> 0 | F127: =[5]TOTAUX!$F$30 -> 0 | G127: =[5]TOTAUX!$G$30 -> 0 | H127: =[5]TOTAUX!$H$30 -> 0 | I127: =[5]TOTAUX!$I$30 -> 0 | J127: =[5]TOTAUX!$J$30 -> 0 | K127: =[5]TOTAUX!$K$30 -> 0 | L127: =[5]TOTAUX!$L$30 -> 0 | M127: =[5]TOTAUX!$M$30 -> 0 | N127: =[5]TOTAUX!$N$30 -> 0 | O127: =[5]TOTAUX!$O$30 -> 0 | P127: =[5]TOTAUX!$P$30 -> 0 | Q127: =(L127*7)/J127 ->  | R127: =(P127*7)/J127 ->  | S127: =(M127+N127)/J127 ->  | T127: =[5]TOTAUX!$T$30 -> 0
D128: =[5]TOTAUX!$D$31 -> 6 | E128: =[5]TOTAUX!$E$31 -> 0 | F128: =[5]TOTAUX!$F$31 -> 0 | G128: =[5]TOTAUX!$G$31 -> 0 | H128: =[5]TOTAUX!$H$31 -> 0 | I128: =[5]TOTAUX!$I$31 -> 0 | J128: =[5]TOTAUX!$J$31 -> 0 | K128: =[5]TOTAUX!$K$31 -> 0 | L128: =[5]TOTAUX!$L$31 -> 0 | M128: =[5]TOTAUX!$M$31 -> 0 | N128: =[5]TOTAUX!$N$31 -> 0 | O128: =[5]TOTAUX!$O$31 -> 0 | P128: =[5]TOTAUX!$P$31 -> 0 | T128: =[5]TOTAUX!$T$31 -> 0
D129: TOTAUX | E129: =[5]TOTAUX!$E$32 -> 18 | F129: =[5]TOTAUX!$F$32 -> 10 | G129: =[5]TOTAUX!$G$32 -> 5 | H129: =[5]TOTAUX!$H$32 -> 5 | I129: =[5]TOTAUX!$I$32 -> 0 | J129: =[5]TOTAUX!$J$32 -> 65.33 | K129: =[5]TOTAUX!$K$32 -> 61 | L129: =[5]TOTAUX!$L$32 -> 52 | M129: =[5]TOTAUX!$M$32 -> 111 | N129: =[5]TOTAUX!$N$32 -> 31 | O129: =[5]TOTAUX!$O$32 -> 1 | P129: =[5]TOTAUX!$P$32 -> 23 | Q129: 5.571712842 | R129: 2.46441145 | S129: 2.173580285
H130: JAMBONS
A131: # | B131: Photo | C131: Contrat | D131: Nom | E131: PJ | F131: AB | G131: P | H131: CS | I131: PP | J131: 1B | K131: 2B | L131: 3B | M131: CC | N131: BB | O131: SAC | P131: BSAC | Q131: RAB | R131: ERR | S131: MOY | T131: MPB | U131: PUI
A132: 1 | B132: =[8]TOTAUX!$B$22 -> OUI | C132: =[8]TOTAUX!$C$22 -> OUI | D132: =[8]TOTAUX!$D$22 -> FRÉDÉRIK LORRAIN | E132: =[8]TOTAUX!$E$22 -> 1 | F132: =[8]TOTAUX!$F$22 -> 1 | G132: =[8]TOTAUX!$G$22 -> 0 | H132: =[8]TOTAUX!$H$22 -> 1 | I132: =[8]TOTAUX!$I$22 -> 0 | J132: =[8]TOTAUX!$J$22 -> 1 | K132: =[8]TOTAUX!$K$22 -> 0 | L132: =[8]TOTAUX!$L$22 -> 0 | M132: =[8]TOTAUX!$M$22 -> 0 | N132: =[8]TOTAUX!$N$22 -> 0 | O132: =[8]TOTAUX!$O$22 -> 0 | P132: =[8]TOTAUX!$P$22 -> 0 | Q132: =[8]TOTAUX!$Q$22 -> 0 | R132: =[8]TOTAUX!$R$22 -> 0 | S132: =H132/F132 -> 1 | T132: =((H132+N132)/(F132+N132+P132)) -> 1 | U132: =((J132)+(K132*2)+(L132*3)+(M132*4))/F132 -> 1
A133: =A132+1 -> 2 | B133: =[8]TOTAUX!$B$13 -> OUI | C133: =[8]TOTAUX!$C$13 -> OUI | D133: =[8]TOTAUX!$D$13 -> RICHARD DISALVO | E133: =[8]TOTAUX!$E$13 -> 7 | F133: =[8]TOTAUX!$F$13 -> 14 | G133: =[8]TOTAUX!$G$13 -> 3 | H133: =[8]TOTAUX!$H$13 -> 6 | I133: =[8]TOTAUX!$I$13 -> 0 | J133: =[8]TOTAUX!$J$13 -> 5 | K133: =[8]TOTAUX!$K$13 -> 1 | L133: =[8]TOTAUX!$L$13 -> 0 | M133: =[8]TOTAUX!$M$13 -> 0 | N133: =[8]TOTAUX!$N$13 -> 2 | O133: =[8]TOTAUX!$O$13 -> 0 | P133: =[8]TOTAUX!$P$13 -> 0 | Q133: =[8]TOTAUX!$Q$13 -> 1 | R133: =[8]TOTAUX!$R$13 -> 0 | S133: 0.4285714286 | T133: 0.5 | U133: 0.5
A134: =A133+1 -> 3 | B134: =[8]TOTAUX!$B$7 -> OUI | C134: =[8]TOTAUX!$C$7 -> OUI | D134: =[8]TOTAUX!$D$7 -> FRÉDÉRICK MAGNAN | E134: =[8]TOTAUX!$E$7 -> 6 | F134: =[8]TOTAUX!$F$7 -> 14 | G134: =[8]TOTAUX!$G$7 -> 4 | H134: =[8]TOTAUX!$H$7 -> 5 | I134: =[8]TOTAUX!$I$7 -> 1 | J134: =[8]TOTAUX!$J$7 -> 2 | K134: =[8]TOTAUX!$K$7 -> 1 | L134: =[8]TOTAUX!$L$7 -> 2 | M134: =[8]TOTAUX!$M$7 -> 0 | N134: =[8]TOTAUX!$N$7 -> 7 | O134: =[8]TOTAUX!$O$7 -> 0 | P134: =[8]TOTAUX!$P$7 -> 0 | Q134: =[8]TOTAUX!$Q$7 -> 1 | R134: =[8]TOTAUX!$R$7 -> 0 | S134: 0.3571428571 | T134: 0.5714285714 | U134: 0.7142857143
A135: 4 | B135: =[8]TOTAUX!$B$8 -> OUI | C135: =[8]TOTAUX!$C$8 -> OUI | D135: =[8]TOTAUX!$D$8 -> FRÉDÉRIC BOUCHARD | E135: =[8]TOTAUX!$E$8 -> 6 | F135: =[8]TOTAUX!$F$8 -> 13 | G135: =[8]TOTAUX!$G$8 -> 5 | H135: =[8]TOTAUX!$H$8 -> 4 | I135: =[8]TOTAUX!$I$8 -> 2 | J135: =[8]TOTAUX!$J$8 -> 2 | K135: =[8]TOTAUX!$K$8 -> 1 | L135: =[8]TOTAUX!$L$8 -> 0 | M135: =[8]TOTAUX!$M$8 -> 0 | N135: =[8]TOTAUX!$N$8 -> 5 | O135: =[8]TOTAUX!$O$8 -> 0 | P135: =[8]TOTAUX!$P$8 -> 0 | Q135: =[8]TOTAUX!$Q$8 -> 1 | R135: =[8]TOTAUX!$R$8 -> 0 | S135: 0.3076923077 | T135: 0.5 | U135: 0.3076923077
A136: 5 | B136: =[8]TOTAUX!$B$9 -> OUI | C136: =[8]TOTAUX!$C$9 -> OUI | D136: =[8]TOTAUX!$D$9 -> JEAN-FRANÇOIS MAGNAN | E136: =[8]TOTAUX!$E$9 -> 8 | F136: =[8]TOTAUX!$F$9 -> 24 | G136: =[8]TOTAUX!$G$9 -> 7 | H136: =[8]TOTAUX!$H$9 -> 7 | I136: =[8]TOTAUX!$I$9 -> 2 | J136: =[8]TOTAUX!$J$9 -> 7 | K136: =[8]TOTAUX!$K$9 -> 0 | L136: =[8]TOTAUX!$L$9 -> 0 | M136: =[8]TOTAUX!$M$9 -> 0 | N136: =[8]TOTAUX!$N$9 -> 5 | O136: =[8]TOTAUX!$O$9 -> 0 | P136: =[8]TOTAUX!$P$9 -> 0 | Q136: =[8]TOTAUX!$Q$9 -> 1 | R136: =[8]TOTAUX!$R$9 -> 0 | S136: 0.2916666667 | T136: 0.4137931034 | U136: 0.2916666667
A137: 6 | B137: =[8]TOTAUX!$B$10 -> OUI | C137: =[8]TOTAUX!$C$10 -> OUI | D137: =[8]TOTAUX!$D$10 -> MARTIN LOCAS | E137: =[8]TOTAUX!$E$10 -> 7 | F137: =[8]TOTAUX!$F$10 -> 18 | G137: =[8]TOTAUX!$G$10 -> 4 | H137: =[8]TOTAUX!$H$10 -> 5 | I137: =[8]TOTAUX!$I$10 -> 4 | J137: =[8]TOTAUX!$J$10 -> 4 | K137: =[8]TOTAUX!$K$10 -> 1 | L137: =[8]TOTAUX!$L$10 -> 0 | M137: =[8]TOTAUX!$M$10 -> 0 | N137: =[8]TOTAUX!$N$10 -> 5 | O137: =[8]TOTAUX!$O$10 -> 0 | P137: =[8]TOTAUX!$P$10 -> 0 | Q137: =[8]TOTAUX!$Q$10 -> 1 | R137: =[8]TOTAUX!$R$10 -> 3 | S137: 0.2777777778 | T137: 0.4347826087 | U137: 0.3333333333
A138: 7 | B138: =[8]TOTAUX!$B$14 -> OUI | C138: =[8]TOTAUX!$C$14 -> OUI | D138: =[8]TOTAUX!$D$14 -> SÉBASTIEN FOREST | E138: =[8]TOTAUX!$E$14 -> 6 | F138: =[8]TOTAUX!$F$14 -> 11 | G138: =[8]TOTAUX!$G$14 -> 1 | H138: =[8]TOTAUX!$H$14 -> 3 | I138: =[8]TOTAUX!$I$14 -> 2 | J138: =[8]TOTAUX!$J$14 -> 2 | K138: =[8]TOTAUX!$K$14 -> 1 | L138: =[8]TOTAUX!$L$14 -> 0 | M138: =[8]TOTAUX!$M$14 -> 0 | N138: =[8]TOTAUX!$N$14 -> 5 | O138: =[8]TOTAUX!$O$14 -> 0 | P138: =[8]TOTAUX!$P$14 -> 0 | Q138: =[8]TOTAUX!$Q$14 -> 3 | R138: =[8]TOTAUX!$R$14 -> 0 | S138: 0.2727272727 | T138: 0.5 | U138: 0.3636363636
A139: 8 | B139: =[8]TOTAUX!$B$12 -> OUI | C139: =[8]TOTAUX!$C$12 -> OUI | D139: =[8]TOTAUX!$D$12 -> PIERRE ARCAND | E139: =[8]TOTAUX!$E$12 -> 6 | F139: =[8]TOTAUX!$F$12 -> 11 | G139: =[8]TOTAUX!$G$12 -> 1 | H139: =[8]TOTAUX!$H$12 -> 3 | I139: =[8]TOTAUX!$I$12 -> 0 | J139: =[8]TOTAUX!$J$12 -> 3 | K139: =[8]TOTAUX!$K$12 -> 0 | L139: =[8]TOTAUX!$L$12 -> 0 | M139: =[8]TOTAUX!$M$12 -> 0 | N139: =[8]TOTAUX!$N$12 -> 0 | O139: =[8]TOTAUX!$O$12 -> 0 | P139: =[8]TOTAUX!$P$12 -> 0 | Q139: =[8]TOTAUX!$Q$12 -> 0 | R139: =[8]TOTAUX!$R$12 -> 0 | S139: 0.2727272727 | T139: 0.2727272727 | U139: 0.2727272727
A140: 9 | B140: =[8]TOTAUX!$B$5 -> OUI | C140: =[8]TOTAUX!$C$5 -> OUI | D140: =[8]TOTAUX!$D$5 -> DANIEL RODGERS | E140: =[8]TOTAUX!$E$5 -> 9 | F140: =[8]TOTAUX!$F$5 -> 16 | G140: =[8]TOTAUX!$G$5 -> 6 | H140: =[8]TOTAUX!$H$5 -> 4 | I140: =[8]TOTAUX!$I$5 -> 2 | J140: =[8]TOTAUX!$J$5 -> 4 | K140: =[8]TOTAUX!$K$5 -> 0 | L140: =[8]TOTAUX!$L$5 -> 0 | M140: =[8]TOTAUX!$M$5 -> 0 | N140: =[8]TOTAUX!$N$5 -> 9 | O140: =[8]TOTAUX!$O$5 -> 0 | P140: =[8]TOTAUX!$P$5 -> 0 | Q140: =[8]TOTAUX!$Q$5 -> 1 | R140: =[8]TOTAUX!$R$5 -> 0 | S140: 0.25 | T140: 0.52 | U140: 0.25
A141: 10 | B141: =[8]TOTAUX!$B$15 -> OUI | C141: =[8]TOTAUX!$C$15 -> OUI | D141: =[8]TOTAUX!$D$15 -> SÉBASTIEN NADEAU | E141: =[8]TOTAUX!$E$15 -> 5 | F141: =[8]TOTAUX!$F$15 -> 14 | G141: =[8]TOTAUX!$G$15 -> 0 | H141: =[8]TOTAUX!$H$15 -> 3 | I141: =[8]TOTAUX!$I$15 -> 7 | J141: =[8]TOTAUX!$J$15 -> 2 | K141: =[8]TOTAUX!$K$15 -> 1 | L141: =[8]TOTAUX!$L$15 -> 0 | M141: =[8]TOTAUX!$M$15 -> 0 | N141: =[8]TOTAUX!$N$15 -> 1 | O141: =[8]TOTAUX!$O$15 -> 0 | P141: =[8]TOTAUX!$P$15 -> 1 | Q141: =[8]TOTAUX!$Q$15 -> 0 | R141: =[8]TOTAUX!$R$15 -> 0 | S141: 0.2142857143 | T141: 0.25 | U141: 0.2857142857
A142: 11 | B142: =[8]TOTAUX!$B$17 -> OUI | C142: =[8]TOTAUX!$C$17 -> OUI | D142: =[8]TOTAUX!$D$17 -> FRANÇOIS ARCHAMBAULT | E142: =[8]TOTAUX!$E$17 -> 2 | F142: =[8]TOTAUX!$F$17 -> 5 | G142: =[8]TOTAUX!$G$17 -> 2 | H142: =[8]TOTAUX!$H$17 -> 1 | I142: =[8]TOTAUX!$I$17 -> 0 | J142: =[8]TOTAUX!$J$17 -> 1 | K142: =[8]TOTAUX!$K$17 -> 0 | L142: =[8]TOTAUX!$L$17 -> 0 | M142: =[8]TOTAUX!$M$17 -> 0 | N142: =[8]TOTAUX!$N$17 -> 1 | O142: =[8]TOTAUX!$O$17 -> 0 | P142: =[8]TOTAUX!$P$17 -> 0 | Q142: =[8]TOTAUX!$Q$17 -> 0 | R142: =[8]TOTAUX!$R$17 -> 0 | S142: 0.2 | T142: 0.3333333333 | U142: 0.2
A143: 12 | B143: =[8]TOTAUX!$B$19 -> OUI | C143: =[8]TOTAUX!$C$19 -> OUI | D143: =[8]TOTAUX!$D$19 -> LUC PELLETIER | E143: =[8]TOTAUX!$E$19 -> 2 | F143: =[8]TOTAUX!$F$19 -> 5 | G143: =[8]TOTAUX!$G$19 -> 0 | H143: =[8]TOTAUX!$H$19 -> 1 | I143: =[8]TOTAUX!$I$19 -> 0 | J143: =[8]TOTAUX!$J$19 -> 1 | K143: =[8]TOTAUX!$K$19 -> 0 | L143: =[8]TOTAUX!$L$19 -> 0 | M143: =[8]TOTAUX!$M$19 -> 0 | N143: =[8]TOTAUX!$N$19 -> 0 | O143: =[8]TOTAUX!$O$19 -> 0 | P143: =[8]TOTAUX!$P$19 -> 0 | Q143: =[8]TOTAUX!$Q$19 -> 2 | R143: =[8]TOTAUX!$R$19 -> 0 | S143: 0.2 | T143: 0.2 | U143: 0.2
A144: 13 | B144: =[8]TOTAUX!$B$11 -> OUI | C144: =[8]TOTAUX!$C$11 -> OUI | D144: =[8]TOTAUX!$D$11 -> PHILIPPE DURANCEAU | E144: =[8]TOTAUX!$E$11 -> 5 | F144: =[8]TOTAUX!$F$11 -> 16 | G144: =[8]TOTAUX!$G$11 -> 2 | H144: =[8]TOTAUX!$H$11 -> 3 | I144: =[8]TOTAUX!$I$11 -> 5 | J144: =[8]TOTAUX!$J$11 -> 1 | K144: =[8]TOTAUX!$K$11 -> 1 | L144: =[8]TOTAUX!$L$11 -> 0 | M144: =[8]TOTAUX!$M$11 -> 1 | N144: =[8]TOTAUX!$N$11 -> 1 | O144: =[8]TOTAUX!$O$11 -> 0 | P144: =[8]TOTAUX!$P$11 -> 0 | Q144: =[8]TOTAUX!$Q$11 -> 2 | R144: =[8]TOTAUX!$R$11 -> 2 | S144: 0.1875 | T144: 0.2352941176 | U144: 0.4375
A145: 14 | B145: =[8]TOTAUX!$B$4 -> OUI | C145: =[8]TOTAUX!$C$4 -> OUI | D145: =[8]TOTAUX!$D$4 -> CHARLES DUMONT | E145: =[8]TOTAUX!$E$4 -> 8 | F145: =[8]TOTAUX!$F$4 -> 17 | G145: =[8]TOTAUX!$G$4 -> 2 | H145: =[8]TOTAUX!$H$4 -> 3 | I145: =[8]TOTAUX!$I$4 -> 3 | J145: =[8]TOTAUX!$J$4 -> 1 | K145: =[8]TOTAUX!$K$4 -> 2 | L145: =[8]TOTAUX!$L$4 -> 0 | M145: =[8]TOTAUX!$M$4 -> 0 | N145: =[8]TOTAUX!$N$4 -> 6 | O145: =[8]TOTAUX!$O$4 -> 0 | P145: =[8]TOTAUX!$P$4 -> 0 | Q145: =[8]TOTAUX!$Q$4 -> 0 | R145: =[8]TOTAUX!$R$4 -> 0 | S145: 0.1764705882 | T145: 0.3913043478 | U145: 0.2941176471
A146: 15 | B146: =[8]TOTAUX!$B$6 -> OUI | C146: =[8]TOTAUX!$C$6 -> OUI | D146: =[8]TOTAUX!$D$6 -> DAVE WRIGHT | E146: =[8]TOTAUX!$E$6 -> 7 | F146: =[8]TOTAUX!$F$6 -> 15 | G146: =[8]TOTAUX!$G$6 -> 2 | H146: =[8]TOTAUX!$H$6 -> 2 | I146: =[8]TOTAUX!$I$6 -> 3 | J146: =[8]TOTAUX!$J$6 -> 2 | K146: =[8]TOTAUX!$K$6 -> 0 | L146: =[8]TOTAUX!$L$6 -> 0 | M146: =[8]TOTAUX!$M$6 -> 0 | N146: =[8]TOTAUX!$N$6 -> 1 | O146: =[8]TOTAUX!$O$6 -> 0 | P146: =[8]TOTAUX!$P$6 -> 0 | Q146: =[8]TOTAUX!$Q$6 -> 1 | R146: =[8]TOTAUX!$R$6 -> 3 | S146: 0.1333333333 | T146: 0.1875 | U146: 0.1333333333
A147: 16 | B147: =[8]TOTAUX!$B$16 -> OUI | C147: =[8]TOTAUX!$C$16 -> OUI | D147: =[8]TOTAUX!$D$16 -> JEAN-FRANÇOIS LORRAIN | E147: =[8]TOTAUX!$E$16 -> 8 | F147: =[8]TOTAUX!$F$16 -> 24 | G147: =[8]TOTAUX!$G$16 -> 2 | H147: =[8]TOTAUX!$H$16 -> 2 | I147: =[8]TOTAUX!$I$16 -> 0 | J147: =[8]TOTAUX!$J$16 -> 2 | K147: =[8]TOTAUX!$K$16 -> 0 | L147: =[8]TOTAUX!$L$16 -> 0 | M147: =[8]TOTAUX!$M$16 -> 0 | N147: =[8]TOTAUX!$N$16 -> 3 | O147: =[8]TOTAUX!$O$16 -> 0 | P147: =[8]TOTAUX!$P$16 -> 0 | Q147: =[8]TOTAUX!$Q$16 -> 2 | R147: =[8]TOTAUX!$R$16 -> 1 | S147: 0.08333333333 | T147: 0.1851851852 | U147: 0.08333333333
A148: 17 | B148: =[8]TOTAUX!$B$3 -> OUI | C148: =[8]TOTAUX!$C$3 -> OUI | D148: =[8]TOTAUX!$D$3 -> CHRISTIAN GRIMM | E148: =[8]TOTAUX!$E$3 -> 5 | F148: =[8]TOTAUX!$F$3 -> 8 | G148: =[8]TOTAUX!$G$3 -> 1 | H148: =[8]TOTAUX!$H$3 -> 0 | I148: =[8]TOTAUX!$I$3 -> 0 | J148: =[8]TOTAUX!$J$3 -> 0 | K148: =[8]TOTAUX!$K$3 -> 0 | L148: =[8]TOTAUX!$L$3 -> 0 | M148: =[8]TOTAUX!$M$3 -> 0 | N148: =[8]TOTAUX!$N$3 -> 2 | O148: =[8]TOTAUX!$O$3 -> 0 | P148: =[8]TOTAUX!$P$3 -> 0 | Q148: =[8]TOTAUX!$Q$3 -> 1 | R148: =[8]TOTAUX!$R$3 -> 0 | S148: 0 | T148: 0.2 | U148: 0
A149: 18 | B149: =[8]TOTAUX!$B$18 -> OUI | C149: =[8]TOTAUX!$C$18 -> OUI | D149: =[8]TOTAUX!$D$18 -> JEAN-SÉBASTIEN ROY | E149: =[8]TOTAUX!$E$18 -> 0 | F149: =[8]TOTAUX!$F$18 -> 0 | G149: =[8]TOTAUX!$G$18 -> 0 | H149: =[8]TOTAUX!$H$18 -> 0 | I149: =[8]TOTAUX!$I$18 -> 0 | J149: =[8]TOTAUX!$J$18 -> 0 | K149: =[8]TOTAUX!$K$18 -> 0 | L149: =[8]TOTAUX!$L$18 -> 0 | M149: =[8]TOTAUX!$M$18 -> 0 | N149: =[8]TOTAUX!$N$18 -> 0 | O149: =[8]TOTAUX!$O$18 -> 0 | P149: =[8]TOTAUX!$P$18 -> 0 | Q149: =[8]TOTAUX!$Q$18 -> 0 | R149: =[8]TOTAUX!$R$18 -> 0
A150: 19 | B150: =[8]TOTAUX!$B$20 -> OUI | C150: =[8]TOTAUX!$C$20 -> OUI | D150: =[8]TOTAUX!$D$20 -> PATRICK SABOURIN | E150: =[8]TOTAUX!$E$20 -> 0 | F150: =[8]TOTAUX!$F$20 -> 0 | G150: =[8]TOTAUX!$G$20 -> 0 | H150: =[8]TOTAUX!$H$20 -> 0 | I150: =[8]TOTAUX!$I$20 -> 0 | J150: =[8]TOTAUX!$J$20 -> 0 | K150: =[8]TOTAUX!$K$20 -> 0 | L150: =[8]TOTAUX!$L$20 -> 0 | M150: =[8]TOTAUX!$M$20 -> 0 | N150: =[8]TOTAUX!$N$20 -> 0 | O150: =[8]TOTAUX!$O$20 -> 0 | P150: =[8]TOTAUX!$P$20 -> 0 | Q150: =[8]TOTAUX!$Q$20 -> 0 | R150: =[8]TOTAUX!$R$20 -> 0
A151: 20 | B151: =[8]TOTAUX!$B$21 -> OUI | C151: =[8]TOTAUX!$C$21 -> OUI | D151: =[8]TOTAUX!$D$21 -> NICK MAUCIERI | E151: =[8]TOTAUX!$E$21 -> 0 | F151: =[8]TOTAUX!$F$21 -> 0 | G151: =[8]TOTAUX!$G$21 -> 0 | H151: =[8]TOTAUX!$H$21 -> 0 | I151: =[8]TOTAUX!$I$21 -> 0 | J151: =[8]TOTAUX!$J$21 -> 0 | K151: =[8]TOTAUX!$K$21 -> 0 | L151: =[8]TOTAUX!$L$21 -> 0 | M151: =[8]TOTAUX!$M$21 -> 0 | N151: =[8]TOTAUX!$N$21 -> 0 | O151: =[8]TOTAUX!$O$21 -> 0 | P151: =[8]TOTAUX!$P$21 -> 0 | Q151: =[8]TOTAUX!$Q$21 -> 0 | R151: =[8]TOTAUX!$R$21 -> 0
D152: TOTAUX | F152: =[8]TOTAUX!$F$23 -> 226 | G152: =[8]TOTAUX!$G$23 -> 42 | H152: =[8]TOTAUX!$H$23 -> 53 | I152: =[8]TOTAUX!$I$23 -> 31 | J152: =[8]TOTAUX!$J$23 -> 40 | K152: =[8]TOTAUX!$K$23 -> 9 | L152: =[8]TOTAUX!$L$23 -> 2 | M152: =[8]TOTAUX!$M$23 -> 1 | N152: =[8]TOTAUX!$N$23 -> 53 | O152: =[8]TOTAUX!$O$23 -> 0 | P152: =[8]TOTAUX!$P$23 -> 1 | Q152: =[8]TOTAUX!$Q$23 -> 17 | R152: =[8]TOTAUX!$R$23 -> 9 | S152: 0.2345132743 | T152: 0.3785714286 | U152: 0.3008849558
D154: NOM | E154: PJ | F154: PD | G154: V | H154: D | I154: N | J154: ML | K154: P | L154: PM | M154: CS | N154: BB | O154: WP | P154: RAB | Q154: MPM | R154: K/7 | S154: WHIP | T154: ML SÉRIES
D155: =[8]TOTAUX!$D$27 -> JEAN-FRANÇOIS LORRAIN | E155: =[8]TOTAUX!$E$27 -> 7 | F155: =[8]TOTAUX!$F$27 -> 0 | G155: =[8]TOTAUX!$G$27 -> 0 | H155: =[8]TOTAUX!$H$27 -> 1 | I155: =[8]TOTAUX!$I$27 -> 0 | J155: =[8]TOTAUX!$J$27 -> 19.67 | K155: =[8]TOTAUX!$K$27 -> 16 | L155: =[8]TOTAUX!$L$27 -> 10 | M155: =[8]TOTAUX!$M$27 -> 23 | N155: =[8]TOTAUX!$N$27 -> 16 | O155: =[8]TOTAUX!$O$27 -> 1 | P155: =[8]TOTAUX!$P$27 -> 38 | Q155: =(L155*7)/J155 -> 3.558718861 | R155: =(P155*7)/J155 -> 13.52313167 | S155: =(M155+N155)/J155 -> 1.982714794 | T155: =[8]TOTAUX!$T$27 -> 17
D156: =[8]TOTAUX!$D$26 -> SÉBASTIEN FOREST | E156: =[8]TOTAUX!$E$26 -> 5 | F156: =[8]TOTAUX!$F$26 -> 4 | G156: =[8]TOTAUX!$G$26 -> 1 | H156: =[8]TOTAUX!$H$26 -> 1 | I156: =[8]TOTAUX!$I$26 -> 0 | J156: =[8]TOTAUX!$J$26 -> 13 | K156: =[8]TOTAUX!$K$26 -> 22 | L156: =[8]TOTAUX!$L$26 -> 17 | M156: =[8]TOTAUX!$M$26 -> 29 | N156: =[8]TOTAUX!$N$26 -> 12 | O156: =[8]TOTAUX!$O$26 -> 0 | P156: =[8]TOTAUX!$P$26 -> 3 | Q156: 9.153846154 | R156: 1.615384615 | S156: 3.153846154 | T156: =[8]TOTAUX!$T$26 -> 13
D157: =[8]TOTAUX!$D$28 -> RICHARD DISALVO | E157: =[8]TOTAUX!$E$28 -> 7 | F157: =[8]TOTAUX!$F$28 -> 4 | G157: =[8]TOTAUX!$G$28 -> 1 | H157: =[8]TOTAUX!$H$28 -> 4 | I157: =[8]TOTAUX!$I$28 -> 0 | J157: =[8]TOTAUX!$J$28 -> 20.01 | K157: =[8]TOTAUX!$K$28 -> 31 | L157: =[8]TOTAUX!$L$28 -> 28 | M157: =[8]TOTAUX!$M$28 -> 51 | N157: =[8]TOTAUX!$N$28 -> 14 | O157: =[8]TOTAUX!$O$28 -> 0 | P157: =[8]TOTAUX!$P$28 -> 7 | Q157: 9.795102449 | R157: 2.448775612 | S157: 3.248375812 | T157: =[8]TOTAUX!$T$28 -> 21.67
D158: =[8]TOTAUX!$D$29 -> FRÉDÉRIC BOUCHARD | E158: =[8]TOTAUX!$E$29 -> 1 | F158: =[8]TOTAUX!$F$29 -> 1 | G158: =[8]TOTAUX!$G$29 -> 0 | H158: =[8]TOTAUX!$H$29 -> 1 | I158: =[8]TOTAUX!$I$29 -> 0 | J158: =[8]TOTAUX!$J$29 -> 1.33 | K158: =[8]TOTAUX!$K$29 -> 9 | L158: =[8]TOTAUX!$L$29 -> 9 | M158: =[8]TOTAUX!$M$29 -> 11 | N158: =[8]TOTAUX!$N$29 -> 6 | O158: =[8]TOTAUX!$O$29 -> 0 | P158: =[8]TOTAUX!$P$29 -> 0 | Q158: 47.36842105 | R158: 0 | S158: 12.78195489 | T158: =[8]TOTAUX!$T$29 -> 2
D159: =[8]TOTAUX!$D$30 -> 5 | E159: =[8]TOTAUX!$E$30 -> 0 | F159: =[8]TOTAUX!$F$30 -> 0 | G159: =[8]TOTAUX!$G$30 -> 0 | H159: =[8]TOTAUX!$H$30 -> 0 | I159: =[8]TOTAUX!$I$30 -> 0 | J159: =[8]TOTAUX!$J$30 -> 0 | K159: =[8]TOTAUX!$K$30 -> 0 | L159: =[8]TOTAUX!$L$30 -> 0 | M159: =[8]TOTAUX!$M$30 -> 0 | N159: =[8]TOTAUX!$N$30 -> 0 | O159: =[8]TOTAUX!$O$30 -> 0 | P159: =[8]TOTAUX!$P$30 -> 0 | T159: =[8]TOTAUX!$T$30 -> 0
D160: =[8]TOTAUX!$D$31 -> DÉFAUT | E160: =[8]TOTAUX!$E$31 -> 0 | F160: =[8]TOTAUX!$F$31 -> 1 | G160: =[8]TOTAUX!$G$31 -> 0 | H160: =[8]TOTAUX!$H$31 -> 1 | I160: =[8]TOTAUX!$I$31 -> 0 | J160: =[8]TOTAUX!$J$31 -> 0 | K160: =[8]TOTAUX!$K$31 -> 7 | L160: =[8]TOTAUX!$L$31 -> 0 | M160: =[8]TOTAUX!$M$31 -> 0 | N160: =[8]TOTAUX!$N$31 -> 0 | O160: =[8]TOTAUX!$O$31 -> 0 | P160: =[8]TOTAUX!$P$31 -> 0 | T160: =[8]TOTAUX!$T$31 -> 0
D161: TOTAUX | E161: =[8]TOTAUX!$E$32 -> 20 | F161: =[8]TOTAUX!$F$32 -> 10 | G161: =[8]TOTAUX!$G$32 -> 2 | H161: =[8]TOTAUX!$H$32 -> 8 | I161: =[8]TOTAUX!$I$32 -> 0 | J161: =[8]TOTAUX!$J$32 -> 54.01 | K161: =[8]TOTAUX!$K$32 -> 85 | L161: =[8]TOTAUX!$L$32 -> 64 | M161: =[8]TOTAUX!$M$32 -> 114 | N161: =[8]TOTAUX!$N$32 -> 48 | O161: =[8]TOTAUX!$O$32 -> 1 | P161: =[8]TOTAUX!$P$32 -> 48 | Q161: 8.29476023 | R161: 6.221070172 | S161: 2.999444547
H162: SOLIDE SPA
A163: # | B163: Photo | C163: Contrat | D163: Nom | E163: PJ | F163: AB | G163: P | H163: CS | I163: PP | J163: 1B | K163: 2B | L163: 3B | M163: CC | N163: BB | O163: SAC | P163: BSAC | Q163: RAB | R163: ERR | S163: MOY | T163: MPB | U163: PUI
A164: 1 | B164: =[4]TOTAUX!$B$15 -> OUI | C164: =[4]TOTAUX!$C$15 -> OUI | D164: =[4]TOTAUX!$D$15 -> PIERRE-NICOLAS RHEAULT | E164: =[4]TOTAUX!$E$15 -> 7 | F164: =[4]TOTAUX!$F$15 -> 23 | G164: =[4]TOTAUX!$G$15 -> 8 | H164: =[4]TOTAUX!$H$15 -> 14 | I164: =[4]TOTAUX!$I$15 -> 10 | J164: =[4]TOTAUX!$J$15 -> 9 | K164: =[4]TOTAUX!$K$15 -> 0 | L164: =[4]TOTAUX!$L$15 -> 2 | M164: =[4]TOTAUX!$M$15 -> 1 | N164: =[4]TOTAUX!$N$15 -> 3 | O164: =[4]TOTAUX!$O$15 -> 0 | P164: =[4]TOTAUX!$P$15 -> 0 | Q164: =[4]TOTAUX!$Q$15 -> 0 | R164: =[4]TOTAUX!$R$15 -> 0 | S164: =H164/F164 -> 0.6086956522 | T164: =((H164+N164)/(F164+N164+P164)) -> 0.6538461538 | U164: =((J164)+(K164*2)+(L164*3)+(M164*4))/F164 -> 0.8260869565
A165: =A164+1 -> 2 | B165: =[4]TOTAUX!$B$3 -> OUI | C165: =[4]TOTAUX!$C$3 -> OUI | D165: =[4]TOTAUX!$D$3 -> MARTIN DESCHÊNES | E165: =[4]TOTAUX!$E$3 -> 9 | F165: =[4]TOTAUX!$F$3 -> 30 | G165: =[4]TOTAUX!$G$3 -> 10 | H165: =[4]TOTAUX!$H$3 -> 16 | I165: =[4]TOTAUX!$I$3 -> 4 | J165: =[4]TOTAUX!$J$3 -> 14 | K165: =[4]TOTAUX!$K$3 -> 2 | L165: =[4]TOTAUX!$L$3 -> 0 | M165: =[4]TOTAUX!$M$3 -> 0 | N165: =[4]TOTAUX!$N$3 -> 4 | O165: =[4]TOTAUX!$O$3 -> 0 | P165: =[4]TOTAUX!$P$3 -> 0 | Q165: =[4]TOTAUX!$Q$3 -> 0 | R165: =[4]TOTAUX!$R$3 -> 1 | S165: 0.5333333333 | T165: 0.5882352941 | U165: 0.6
A166: =A165+1 -> 3 | B166: =[4]TOTAUX!$B$21 -> OUI | C166: =[4]TOTAUX!$C$21 -> OUI | D166: =[4]TOTAUX!$D$21 -> GUILLAUME ST-ROCK | E166: =[4]TOTAUX!$E$21 -> 9 | F166: =[4]TOTAUX!$F$21 -> 33 | G166: =[4]TOTAUX!$G$21 -> 11 | H166: =[4]TOTAUX!$H$21 -> 16 | I166: =[4]TOTAUX!$I$21 -> 7 | J166: =[4]TOTAUX!$J$21 -> 12 | K166: =[4]TOTAUX!$K$21 -> 2 | L166: =[4]TOTAUX!$L$21 -> 1 | M166: =[4]TOTAUX!$M$21 -> 1 | N166: =[4]TOTAUX!$N$21 -> 2 | O166: =[4]TOTAUX!$O$21 -> 0 | P166: =[4]TOTAUX!$P$21 -> 0 | Q166: =[4]TOTAUX!$Q$21 -> 0 | R166: =[4]TOTAUX!$R$21 -> 2 | S166: 0.4848484848 | T166: 0.5142857143 | U166: 0.696969697
A167: 4 | B167: =[4]TOTAUX!$B$19 -> OUI | C167: =[4]TOTAUX!$C$19 -> OUI | D167: =[4]TOTAUX!$D$19 -> SYLVAIN TREMBLAY | E167: =[4]TOTAUX!$E$19 -> 8 | F167: =[4]TOTAUX!$F$19 -> 27 | G167: =[4]TOTAUX!$G$19 -> 5 | H167: =[4]TOTAUX!$H$19 -> 11 | I167: =[4]TOTAUX!$I$19 -> 7 | J167: =[4]TOTAUX!$J$19 -> 9 | K167: =[4]TOTAUX!$K$19 -> 0 | L167: =[4]TOTAUX!$L$19 -> 1 | M167: =[4]TOTAUX!$M$19 -> 1 | N167: =[4]TOTAUX!$N$19 -> 2 | O167: =[4]TOTAUX!$O$19 -> 0 | P167: =[4]TOTAUX!$P$19 -> 0 | Q167: =[4]TOTAUX!$Q$19 -> 4 | R167: =[4]TOTAUX!$R$19 -> 1 | S167: 0.4074074074 | T167: 0.4482758621 | U167: 0.5925925926
A168: 5 | B168: =[4]TOTAUX!$B$14 -> OUI | C168: =[4]TOTAUX!$C$14 -> OUI | D168: =[4]TOTAUX!$D$14 -> RAPHAEL MANCINI | E168: =[4]TOTAUX!$E$14 -> 7 | F168: =[4]TOTAUX!$F$14 -> 27 | G168: =[4]TOTAUX!$G$14 -> 5 | H168: =[4]TOTAUX!$H$14 -> 11 | I168: =[4]TOTAUX!$I$14 -> 0 | J168: =[4]TOTAUX!$J$14 -> 9 | K168: =[4]TOTAUX!$K$14 -> 2 | L168: =[4]TOTAUX!$L$14 -> 0 | M168: =[4]TOTAUX!$M$14 -> 0 | N168: =[4]TOTAUX!$N$14 -> 1 | O168: =[4]TOTAUX!$O$14 -> 0 | P168: =[4]TOTAUX!$P$14 -> 0 | Q168: =[4]TOTAUX!$Q$14 -> 0 | R168: =[4]TOTAUX!$R$14 -> 1 | S168: 0.4074074074 | T168: 0.4285714286 | U168: 0.4814814815
A169: 6 | B169: =[4]TOTAUX!$B$9 -> OUI | C169: =[4]TOTAUX!$C$9 -> OUI | D169: =[4]TOTAUX!$D$9 -> MATHIEU LENDICK | E169: =[4]TOTAUX!$E$9 -> 6 | F169: =[4]TOTAUX!$F$9 -> 23 | G169: =[4]TOTAUX!$G$9 -> 4 | H169: =[4]TOTAUX!$H$9 -> 9 | I169: =[4]TOTAUX!$I$9 -> 7 | J169: =[4]TOTAUX!$J$9 -> 7 | K169: =[4]TOTAUX!$K$9 -> 1 | L169: =[4]TOTAUX!$L$9 -> 1 | M169: =[4]TOTAUX!$M$9 -> 0 | N169: =[4]TOTAUX!$N$9 -> 1 | O169: =[4]TOTAUX!$O$9 -> 0 | P169: =[4]TOTAUX!$P$9 -> 0 | Q169: =[4]TOTAUX!$Q$9 -> 2 | R169: =[4]TOTAUX!$R$9 -> 0 | S169: 0.3913043478 | T169: 0.4166666667 | U169: 0.5217391304
A170: 7 | B170: =[4]TOTAUX!$B$7 -> OUI | C170: =[4]TOTAUX!$C$7 -> OUI | D170: =[4]TOTAUX!$D$7 -> ALAIN LACASSE | E170: =[4]TOTAUX!$E$7 -> 7 | F170: =[4]TOTAUX!$F$7 -> 27 | G170: =[4]TOTAUX!$G$7 -> 9 | H170: =[4]TOTAUX!$H$7 -> 10 | I170: =[4]TOTAUX!$I$7 -> 6 | J170: =[4]TOTAUX!$J$7 -> 8 | K170: =[4]TOTAUX!$K$7 -> 2 | L170: =[4]TOTAUX!$L$7 -> 0 | M170: =[4]TOTAUX!$M$7 -> 0 | N170: =[4]TOTAUX!$N$7 -> 2 | O170: =[4]TOTAUX!$O$7 -> 0 | P170: =[4]TOTAUX!$P$7 -> 1 | Q170: =[4]TOTAUX!$Q$7 -> 2 | R170: =[4]TOTAUX!$R$7 -> 2 | S170: 0.3703703704 | T170: 0.4 | U170: 0.4444444444
A171: 8 | B171: =[4]TOTAUX!$B$13 -> OUI | C171: =[4]TOTAUX!$C$13 -> OUI | D171: =[4]TOTAUX!$D$13 -> MARTIN CREAMER | E171: =[4]TOTAUX!$E$13 -> 9 | F171: =[4]TOTAUX!$F$13 -> 30 | G171: =[4]TOTAUX!$G$13 -> 4 | H171: =[4]TOTAUX!$H$13 -> 11 | I171: =[4]TOTAUX!$I$13 -> 4 | J171: =[4]TOTAUX!$J$13 -> 9 | K171: =[4]TOTAUX!$K$13 -> 1 | L171: =[4]TOTAUX!$L$13 -> 1 | M171: =[4]TOTAUX!$M$13 -> 0 | N171: =[4]TOTAUX!$N$13 -> 1 | O171: =[4]TOTAUX!$O$13 -> 0 | P171: =[4]TOTAUX!$P$13 -> 0 | Q171: =[4]TOTAUX!$Q$13 -> 2 | R171: =[4]TOTAUX!$R$13 -> 2 | S171: 0.3666666667 | T171: 0.3870967742 | U171: 0.4666666667
A172: 9 | B172: =[4]TOTAUX!$B$16 -> OUI | C172: =[4]TOTAUX!$C$16 -> OUI | D172: =[4]TOTAUX!$D$16 -> MICHAEL ZANGA | E172: =[4]TOTAUX!$E$16 -> 7 | F172: =[4]TOTAUX!$F$16 -> 17 | G172: =[4]TOTAUX!$G$16 -> 4 | H172: =[4]TOTAUX!$H$16 -> 5 | I172: =[4]TOTAUX!$I$16 -> 2 | J172: =[4]TOTAUX!$J$16 -> 4 | K172: =[4]TOTAUX!$K$16 -> 0 | L172: =[4]TOTAUX!$L$16 -> 1 | M172: =[4]TOTAUX!$M$16 -> 0 | N172: =[4]TOTAUX!$N$16 -> 4 | O172: =[4]TOTAUX!$O$16 -> 0 | P172: =[4]TOTAUX!$P$16 -> 1 | Q172: =[4]TOTAUX!$Q$16 -> 2 | R172: =[4]TOTAUX!$R$16 -> 0 | S172: 0.2941176471 | T172: 0.4090909091 | U172: 0.4117647059
A173: 10 | B173: =[4]TOTAUX!$B$18 -> OUI | C173: =[4]TOTAUX!$C$18 -> OUI | D173: =[4]TOTAUX!$D$18 -> JEAN-FRANÇOIS CHAMPIGNY | E173: =[4]TOTAUX!$E$18 -> 6 | F173: =[4]TOTAUX!$F$18 -> 18 | G173: =[4]TOTAUX!$G$18 -> 4 | H173: =[4]TOTAUX!$H$18 -> 5 | I173: =[4]TOTAUX!$I$18 -> 6 | J173: =[4]TOTAUX!$J$18 -> 1 | K173: =[4]TOTAUX!$K$18 -> 3 | L173: =[4]TOTAUX!$L$18 -> 1 | M173: =[4]TOTAUX!$M$18 -> 0 | N173: =[4]TOTAUX!$N$18 -> 2 | O173: =[4]TOTAUX!$O$18 -> 0 | P173: =[4]TOTAUX!$P$18 -> 0 | Q173: =[4]TOTAUX!$Q$18 -> 0 | R173: =[4]TOTAUX!$R$18 -> 0 | S173: 0.2777777778 | T173: 0.35 | U173: 0.5555555556
A174: 11 | B174: =[4]TOTAUX!$B$11 -> OUI | C174: =[4]TOTAUX!$C$11 -> OUI | D174: =[4]TOTAUX!$D$11 -> NICOLAS FOUCAULT | E174: =[4]TOTAUX!$E$11 -> 6 | F174: =[4]TOTAUX!$F$11 -> 19 | G174: =[4]TOTAUX!$G$11 -> 3 | H174: =[4]TOTAUX!$H$11 -> 5 | I174: =[4]TOTAUX!$I$11 -> 4 | J174: =[4]TOTAUX!$J$11 -> 4 | K174: =[4]TOTAUX!$K$11 -> 1 | L174: =[4]TOTAUX!$L$11 -> 0 | M174: =[4]TOTAUX!$M$11 -> 0 | N174: =[4]TOTAUX!$N$11 -> 3 | O174: =[4]TOTAUX!$O$11 -> 0 | P174: =[4]TOTAUX!$P$11 -> 0 | Q174: =[4]TOTAUX!$Q$11 -> 0 | R174: =[4]TOTAUX!$R$11 -> 1 | S174: 0.2631578947 | T174: 0.3636363636 | U174: 0.3157894737
A175: 12 | B175: =[4]TOTAUX!$B$20 -> OUI | C175: =[4]TOTAUX!$C$20 -> OUI | D175: =[4]TOTAUX!$D$20 -> BENOÎT HÉBERT | E175: =[4]TOTAUX!$E$20 -> 1 | F175: =[4]TOTAUX!$F$20 -> 4 | G175: =[4]TOTAUX!$G$20 -> 1 | H175: =[4]TOTAUX!$H$20 -> 1 | I175: =[4]TOTAUX!$I$20 -> 0 | J175: =[4]TOTAUX!$J$20 -> 1 | K175: =[4]TOTAUX!$K$20 -> 0 | L175: =[4]TOTAUX!$L$20 -> 0 | M175: =[4]TOTAUX!$M$20 -> 0 | N175: =[4]TOTAUX!$N$20 -> 0 | O175: =[4]TOTAUX!$O$20 -> 0 | P175: =[4]TOTAUX!$P$20 -> 0 | Q175: =[4]TOTAUX!$Q$20 -> 0 | R175: =[4]TOTAUX!$R$20 -> 1 | S175: 0.25 | T175: 0.25 | U175: 0.25
A176: 13 | B176: =[4]TOTAUX!$B$4 -> OUI | C176: =[4]TOTAUX!$C$4 -> OUI | D176: =[4]TOTAUX!$D$4 -> CHARLES QUESNEL | E176: =[4]TOTAUX!$E$4 -> 8 | F176: =[4]TOTAUX!$F$4 -> 22 | G176: =[4]TOTAUX!$G$4 -> 3 | H176: =[4]TOTAUX!$H$4 -> 4 | I176: =[4]TOTAUX!$I$4 -> 1 | J176: =[4]TOTAUX!$J$4 -> 3 | K176: =[4]TOTAUX!$K$4 -> 1 | L176: =[4]TOTAUX!$L$4 -> 0 | M176: =[4]TOTAUX!$M$4 -> 0 | N176: =[4]TOTAUX!$N$4 -> 5 | O176: =[4]TOTAUX!$O$4 -> 0 | P176: =[4]TOTAUX!$P$4 -> 0 | Q176: =[4]TOTAUX!$Q$4 -> 2 | R176: =[4]TOTAUX!$R$4 -> 1 | S176: 0.1818181818 | T176: 0.3333333333 | U176: 0.2272727273
A177: 14 | B177: =[4]TOTAUX!$B$6 -> OUI | C177: =[4]TOTAUX!$C$6 -> OUI | D177: =[4]TOTAUX!$D$6 -> STÉPHANE TÉTREAULT | E177: =[4]TOTAUX!$E$6 -> 2 | F177: =[4]TOTAUX!$F$6 -> 7 | G177: =[4]TOTAUX!$G$6 -> 1 | H177: =[4]TOTAUX!$H$6 -> 1 | I177: =[4]TOTAUX!$I$6 -> 0 | J177: =[4]TOTAUX!$J$6 -> 1 | K177: =[4]TOTAUX!$K$6 -> 0 | L177: =[4]TOTAUX!$L$6 -> 0 | M177: =[4]TOTAUX!$M$6 -> 0 | N177: =[4]TOTAUX!$N$6 -> 1 | O177: =[4]TOTAUX!$O$6 -> 0 | P177: =[4]TOTAUX!$P$6 -> 0 | Q177: =[4]TOTAUX!$Q$6 -> 2 | R177: =[4]TOTAUX!$R$6 -> 0 | S177: 0.1428571429 | T177: 0.25 | U177: 0.1428571429
A178: 15 | B178: =[4]TOTAUX!$B$10 -> OUI | C178: =[4]TOTAUX!$C$10 -> OUI | D178: =[4]TOTAUX!$D$10 -> PIERRE LEPAGE | E178: =[4]TOTAUX!$E$10 -> 3 | F178: =[4]TOTAUX!$F$10 -> 9 | G178: =[4]TOTAUX!$G$10 -> 0 | H178: =[4]TOTAUX!$H$10 -> 1 | I178: =[4]TOTAUX!$I$10 -> 1 | J178: =[4]TOTAUX!$J$10 -> 1 | K178: =[4]TOTAUX!$K$10 -> 0 | L178: =[4]TOTAUX!$L$10 -> 0 | M178: =[4]TOTAUX!$M$10 -> 0 | N178: =[4]TOTAUX!$N$10 -> 0 | O178: =[4]TOTAUX!$O$10 -> 0 | P178: =[4]TOTAUX!$P$10 -> 1 | Q178: =[4]TOTAUX!$Q$10 -> 1 | R178: =[4]TOTAUX!$R$10 -> 0 | S178: 0.1111111111 | T178: 0.1 | U178: 0.1111111111
A179: 16 | B179: =[4]TOTAUX!$B$5 -> OUI | C179: =[4]TOTAUX!$C$5 -> OUI | D179: =[4]TOTAUX!$D$5 -> JONATHAN PÉPIN | E179: =[4]TOTAUX!$E$5 -> 1 | F179: =[4]TOTAUX!$F$5 -> 2 | G179: =[4]TOTAUX!$G$5 -> 0 | H179: =[4]TOTAUX!$H$5 -> 0 | I179: =[4]TOTAUX!$I$5 -> 0 | J179: =[4]TOTAUX!$J$5 -> 0 | K179: =[4]TOTAUX!$K$5 -> 0 | L179: =[4]TOTAUX!$L$5 -> 0 | M179: =[4]TOTAUX!$M$5 -> 0 | N179: =[4]TOTAUX!$N$5 -> 0 | O179: =[4]TOTAUX!$O$5 -> 0 | P179: =[4]TOTAUX!$P$5 -> 0 | Q179: =[4]TOTAUX!$Q$5 -> 1 | R179: =[4]TOTAUX!$R$5 -> 0 | S179: 0 | T179: 0 | U179: 0
A180: 17 | B180: =[4]TOTAUX!$B$17 -> OUI | C180: =[4]TOTAUX!$C$17 -> OUI | D180: =[4]TOTAUX!$D$17 -> ÉTIENNE PÉPIN | E180: =[4]TOTAUX!$E$17 -> 1 | F180: =[4]TOTAUX!$F$17 -> 1 | G180: =[4]TOTAUX!$G$17 -> 0 | H180: =[4]TOTAUX!$H$17 -> 0 | I180: =[4]TOTAUX!$I$17 -> 0 | J180: =[4]TOTAUX!$J$17 -> 0 | K180: =[4]TOTAUX!$K$17 -> 0 | L180: =[4]TOTAUX!$L$17 -> 0 | M180: =[4]TOTAUX!$M$17 -> 0 | N180: =[4]TOTAUX!$N$17 -> 1 | O180: =[4]TOTAUX!$O$17 -> 0 | P180: =[4]TOTAUX!$P$17 -> 0 | Q180: =[4]TOTAUX!$Q$17 -> 0 | R180: =[4]TOTAUX!$R$17 -> 0 | S180: 0 | T180: 0.5 | U180: 0
A181: 18 | B181: =[4]TOTAUX!$B$22 -> OUI | C181: =[4]TOTAUX!$C$22 -> OUI | D181: =[4]TOTAUX!$D$22 -> LOUIS-PHILIPPE CHARRETTE | E181: =[4]TOTAUX!$E$22 -> 0 | F181: =[4]TOTAUX!$F$22 -> 0 | G181: =[4]TOTAUX!$G$22 -> 0 | H181: =[4]TOTAUX!$H$22 -> 0 | I181: =[4]TOTAUX!$I$22 -> 0 | J181: =[4]TOTAUX!$J$22 -> 0 | K181: =[4]TOTAUX!$K$22 -> 0 | L181: =[4]TOTAUX!$L$22 -> 0 | M181: =[4]TOTAUX!$M$22 -> 0 | N181: =[4]TOTAUX!$N$22 -> 0 | O181: =[4]TOTAUX!$O$22 -> 0 | P181: =[4]TOTAUX!$P$22 -> 0 | Q181: =[4]TOTAUX!$Q$22 -> 0 | R181: =[4]TOTAUX!$R$22 -> 0 | S181: =H181/F181 ->  | T181: =((H181+N181)/(F181+N181+P181)) ->  | U181: =((J181)+(K181*2)+(L181*3)+(M181*4))/F181 -> 
A182: 19 | B182: =[4]TOTAUX!$B$8 -> OUI | C182: =[4]TOTAUX!$C$8 -> OUI | D182: =[4]TOTAUX!$D$8 -> CHARLES-ANTOINE PARÉ | E182: =[4]TOTAUX!$E$8 -> 0 | F182: =[4]TOTAUX!$F$8 -> 0 | G182: =[4]TOTAUX!$G$8 -> 0 | H182: =[4]TOTAUX!$H$8 -> 0 | I182: =[4]TOTAUX!$I$8 -> 0 | J182: =[4]TOTAUX!$J$8 -> 0 | K182: =[4]TOTAUX!$K$8 -> 0 | L182: =[4]TOTAUX!$L$8 -> 0 | M182: =[4]TOTAUX!$M$8 -> 0 | N182: =[4]TOTAUX!$N$8 -> 0 | O182: =[4]TOTAUX!$O$8 -> 0 | P182: =[4]TOTAUX!$P$8 -> 0 | Q182: =[4]TOTAUX!$Q$8 -> 0 | R182: =[4]TOTAUX!$R$8 -> 0
A183: 20 | B183: =[4]TOTAUX!$B$12 -> OUI | C183: =[4]TOTAUX!$C$12 -> OUI | D183: =[4]TOTAUX!$D$12 -> FERNAND PINET | E183: =[4]TOTAUX!$E$12 -> 0 | F183: =[4]TOTAUX!$F$12 -> 0 | G183: =[4]TOTAUX!$G$12 -> 0 | H183: =[4]TOTAUX!$H$12 -> 0 | I183: =[4]TOTAUX!$I$12 -> 0 | J183: =[4]TOTAUX!$J$12 -> 0 | K183: =[4]TOTAUX!$K$12 -> 0 | L183: =[4]TOTAUX!$L$12 -> 0 | M183: =[4]TOTAUX!$M$12 -> 0 | N183: =[4]TOTAUX!$N$12 -> 0 | O183: =[4]TOTAUX!$O$12 -> 0 | P183: =[4]TOTAUX!$P$12 -> 0 | Q183: =[4]TOTAUX!$Q$12 -> 0 | R183: =[4]TOTAUX!$R$12 -> 0
D184: TOTAUX | F184: =[4]TOTAUX!$F$23 -> 319 | G184: =[4]TOTAUX!$G$23 -> 72 | H184: =[4]TOTAUX!$H$23 -> 120 | I184: =[4]TOTAUX!$I$23 -> 59 | J184: =[4]TOTAUX!$J$23 -> 92 | K184: =[4]TOTAUX!$K$23 -> 15 | L184: =[4]TOTAUX!$L$23 -> 8 | M184: =[4]TOTAUX!$M$23 -> 3 | N184: =[4]TOTAUX!$N$23 -> 32 | O184: =[4]TOTAUX!$O$23 -> 0 | P184: =[4]TOTAUX!$P$23 -> 3 | Q184: =[4]TOTAUX!$Q$23 -> 18 | R184: =[4]TOTAUX!$R$23 -> 12 | S184: 0.3761755486 | T184: 0.4293785311 | U184: 0.4952978056
D186: NOM | E186: PJ | F186: PD | G186: V | H186: D | I186: N | J186: ML | K186: P | L186: PM | M186: CS | N186: BB | O186: WP | P186: RAB | Q186: MPM | R186: K/7 | S186: WHIP | T186: ML SÉRIES
D187: =[4]TOTAUX!$D$27 -> MARTIN DESCHÊNES | E187: =[4]TOTAUX!$E$27 -> 9 | F187: =[4]TOTAUX!$F$27 -> 7 | G187: =[4]TOTAUX!$G$27 -> 4 | H187: =[4]TOTAUX!$H$27 -> 2 | I187: =[4]TOTAUX!$I$27 -> 1 | J187: =[4]TOTAUX!$J$27 -> 51 | K187: =[4]TOTAUX!$K$27 -> 31 | L187: =[4]TOTAUX!$L$27 -> 22 | M187: =[4]TOTAUX!$M$27 -> 80 | N187: =[4]TOTAUX!$N$27 -> 9 | O187: =[4]TOTAUX!$O$27 -> 0 | P187: =[4]TOTAUX!$P$27 -> 9 | Q187: =(L187*7)/J187 -> 3.019607843 | R187: =(P187*7)/J187 -> 1.235294118 | S187: =(M187+N187)/J187 -> 1.745098039 | T187: =[4]TOTAUX!$T$27 -> 51
D188: =[4]TOTAUX!$D$26 -> MARTIN CREAMER | E188: =[4]TOTAUX!$E$26 -> 3 | F188: =[4]TOTAUX!$F$26 -> 3 | G188: =[4]TOTAUX!$G$26 -> 1 | H188: =[4]TOTAUX!$H$26 -> 2 | I188: =[4]TOTAUX!$I$26 -> 0 | J188: =[4]TOTAUX!$J$26 -> 14.67 | K188: =[4]TOTAUX!$K$26 -> 24 | L188: =[4]TOTAUX!$L$26 -> 16 | M188: =[4]TOTAUX!$M$26 -> 36 | N188: =[4]TOTAUX!$N$26 -> 9 | O188: =[4]TOTAUX!$O$26 -> 0 | P188: =[4]TOTAUX!$P$26 -> 5 | Q188: 7.634628494 | R188: 2.385821404 | S188: 3.067484663 | T188: =[4]TOTAUX!$T$26 -> 15
D189: =[4]TOTAUX!$D$28 -> 3 | E189: =[4]TOTAUX!$E$28 -> 0 | F189: =[4]TOTAUX!$F$28 -> 0 | G189: =[4]TOTAUX!$G$28 -> 0 | H189: =[4]TOTAUX!$H$28 -> 0 | I189: =[4]TOTAUX!$I$28 -> 0 | J189: =[4]TOTAUX!$J$28 -> 0 | K189: =[4]TOTAUX!$K$28 -> 0 | L189: =[4]TOTAUX!$L$28 -> 0 | M189: =[4]TOTAUX!$M$28 -> 0 | N189: =[4]TOTAUX!$N$28 -> 0 | O189: =[4]TOTAUX!$O$28 -> 0 | P189: =[4]TOTAUX!$P$28 -> 0 | T189: =[4]TOTAUX!$T$28 -> 0
D190: =[4]TOTAUX!$D$29 -> 4 | E190: =[4]TOTAUX!$E$29 -> 0 | F190: =[4]TOTAUX!$F$29 -> 0 | G190: =[4]TOTAUX!$G$29 -> 0 | H190: =[4]TOTAUX!$H$29 -> 0 | I190: =[4]TOTAUX!$I$29 -> 0 | J190: =[4]TOTAUX!$J$29 -> 0 | K190: =[4]TOTAUX!$K$29 -> 0 | L190: =[4]TOTAUX!$L$29 -> 0 | M190: =[4]TOTAUX!$M$29 -> 0 | N190: =[4]TOTAUX!$N$29 -> 0 | O190: =[4]TOTAUX!$O$29 -> 0 | P190: =[4]TOTAUX!$P$29 -> 0 | T190: =[4]TOTAUX!$T$29 -> 0
D191: =[4]TOTAUX!$D$30 -> 5 | E191: =[4]TOTAUX!$E$30 -> 0 | F191: =[4]TOTAUX!$F$30 -> 0 | G191: =[4]TOTAUX!$G$30 -> 0 | H191: =[4]TOTAUX!$H$30 -> 0 | I191: =[4]TOTAUX!$I$30 -> 0 | J191: =[4]TOTAUX!$J$30 -> 0 | K191: =[4]TOTAUX!$K$30 -> 0 | L191: =[4]TOTAUX!$L$30 -> 0 | M191: =[4]TOTAUX!$M$30 -> 0 | N191: =[4]TOTAUX!$N$30 -> 0 | O191: =[4]TOTAUX!$O$30 -> 0 | P191: =[4]TOTAUX!$P$30 -> 0 | T191: =[4]TOTAUX!$T$30 -> 0
D192: =[4]TOTAUX!$D$31 -> 6 | E192: =[4]TOTAUX!$E$31 -> 0 | F192: =[4]TOTAUX!$F$31 -> 0 | G192: =[4]TOTAUX!$G$31 -> 0 | H192: =[4]TOTAUX!$H$31 -> 0 | I192: =[4]TOTAUX!$I$31 -> 0 | J192: =[4]TOTAUX!$J$31 -> 0 | K192: =[4]TOTAUX!$K$31 -> 0 | L192: =[4]TOTAUX!$L$31 -> 0 | M192: =[4]TOTAUX!$M$31 -> 0 | N192: =[4]TOTAUX!$N$31 -> 0 | O192: =[4]TOTAUX!$O$31 -> 0 | P192: =[4]TOTAUX!$P$31 -> 0 | T192: =[4]TOTAUX!$T$31 -> 0
D193: TOTAUX | E193: =[4]TOTAUX!$E$32 -> 12 | F193: =[4]TOTAUX!$F$32 -> 10 | G193: =[4]TOTAUX!$G$32 -> 5 | H193: =[4]TOTAUX!$H$32 -> 4 | I193: =[4]TOTAUX!$I$32 -> 1 | J193: =[4]TOTAUX!$J$32 -> 65.67 | K193: =[4]TOTAUX!$K$32 -> 55 | L193: =[4]TOTAUX!$L$32 -> 38 | M193: =[4]TOTAUX!$M$32 -> 116 | N193: =[4]TOTAUX!$N$32 -> 18 | O193: =[4]TOTAUX!$O$32 -> 0 | P193: =[4]TOTAUX!$P$32 -> 14 | Q193: 4.050555809 | R193: 1.492310035 | S193: 2.040505558
H194: DRINKERIE
A195: # | B195: Photo | C195: Contrat | D195: Nom | E195: PJ | F195: AB | G195: P | H195: CS | I195: PP | J195: 1B | K195: 2B | L195: 3B | M195: CC | N195: BB | O195: SAC | P195: BSAC | Q195: RAB | R195: ERR | S195: MOY | T195: MPB | U195: PUI
A196: 1 | B196: =[2]TOTAUX!$B$20 -> OUI | C196: =[2]TOTAUX!$C$20 -> OUI | D196: =[2]TOTAUX!$D$20 -> LATRAVERSE FÉLIX | E196: =[2]TOTAUX!$E$20 -> 2 | F196: =[2]TOTAUX!$F$20 -> 6 | G196: =[2]TOTAUX!$G$20 -> 1 | H196: =[2]TOTAUX!$H$20 -> 4 | I196: =[2]TOTAUX!$I$20 -> 3 | J196: =[2]TOTAUX!$J$20 -> 3 | K196: =[2]TOTAUX!$K$20 -> 0 | L196: =[2]TOTAUX!$L$20 -> 1 | M196: =[2]TOTAUX!$M$20 -> 0 | N196: =[2]TOTAUX!$N$20 -> 0 | O196: =[2]TOTAUX!$O$20 -> 0 | P196: =[2]TOTAUX!$P$20 -> 0 | Q196: =[2]TOTAUX!$Q$20 -> 0 | R196: =[2]TOTAUX!$R$20 -> 0 | S196: =H196/F196 -> 0.6666666667 | T196: =((H196+N196)/(F196+N196+P196)) -> 0.6666666667 | U196: =((J196)+(K196*2)+(L196*3)+(M196*4))/F196 -> 1
A197: =A196+1 -> 2 | B197: =[2]TOTAUX!$B$9 -> OUI | C197: =[2]TOTAUX!$C$9 -> OUI | D197: =[2]TOTAUX!$D$9 -> FÉLIX DOSTON | E197: =[2]TOTAUX!$E$9 -> 10 | F197: =[2]TOTAUX!$F$9 -> 32 | G197: =[2]TOTAUX!$G$9 -> 15 | H197: =[2]TOTAUX!$H$9 -> 20 | I197: =[2]TOTAUX!$I$9 -> 2 | J197: =[2]TOTAUX!$J$9 -> 17 | K197: =[2]TOTAUX!$K$9 -> 2 | L197: =[2]TOTAUX!$L$9 -> 1 | M197: =[2]TOTAUX!$M$9 -> 0 | N197: =[2]TOTAUX!$N$9 -> 7 | O197: =[2]TOTAUX!$O$9 -> 0 | P197: =[2]TOTAUX!$P$9 -> 0 | Q197: =[2]TOTAUX!$Q$9 -> 1 | R197: =[2]TOTAUX!$R$9 -> 2 | S197: 0.625 | T197: 0.6923076923 | U197: 0.75
A198: =A197+1 -> 3 | B198: =[2]TOTAUX!$B$13 -> OUI | C198: =[2]TOTAUX!$C$13 -> OUI | D198: =[2]TOTAUX!$D$13 -> JEAN-PHILIPPE BOURGIE | E198: =[2]TOTAUX!$E$13 -> 8 | F198: =[2]TOTAUX!$F$13 -> 26 | G198: =[2]TOTAUX!$G$13 -> 11 | H198: =[2]TOTAUX!$H$13 -> 15 | I198: =[2]TOTAUX!$I$13 -> 12 | J198: =[2]TOTAUX!$J$13 -> 12 | K198: =[2]TOTAUX!$K$13 -> 0 | L198: =[2]TOTAUX!$L$13 -> 0 | M198: =[2]TOTAUX!$M$13 -> 3 | N198: =[2]TOTAUX!$N$13 -> 3 | O198: =[2]TOTAUX!$O$13 -> 0 | P198: =[2]TOTAUX!$P$13 -> 1 | Q198: =[2]TOTAUX!$Q$13 -> 2 | R198: =[2]TOTAUX!$R$13 -> 2 | S198: 0.5769230769 | T198: 0.6 | U198: 0.9230769231
A199: 4 | B199: =[2]TOTAUX!$B$14 -> OUI | C199: =[2]TOTAUX!$C$14 -> OUI | D199: =[2]TOTAUX!$D$14 -> JULIEN VÉRONNEAU | E199: =[2]TOTAUX!$E$14 -> 9 | F199: =[2]TOTAUX!$F$14 -> 31 | G199: =[2]TOTAUX!$G$14 -> 7 | H199: =[2]TOTAUX!$H$14 -> 17 | I199: =[2]TOTAUX!$I$14 -> 12 | J199: =[2]TOTAUX!$J$14 -> 14 | K199: =[2]TOTAUX!$K$14 -> 2 | L199: =[2]TOTAUX!$L$14 -> 1 | M199: =[2]TOTAUX!$M$14 -> 0 | N199: =[2]TOTAUX!$N$14 -> 3 | O199: =[2]TOTAUX!$O$14 -> 0 | P199: =[2]TOTAUX!$P$14 -> 0 | Q199: =[2]TOTAUX!$Q$14 -> 0 | R199: =[2]TOTAUX!$R$14 -> 1 | S199: 0.5483870968 | T199: 0.5882352941 | U199: 0.6774193548
A200: 5 | B200: =[2]TOTAUX!$B$7 -> OUI | C200: =[2]TOTAUX!$C$7 -> OUI | D200: =[2]TOTAUX!$D$7 -> ANDRÉ PAQUETTE | E200: =[2]TOTAUX!$E$7 -> 3 | F200: =[2]TOTAUX!$F$7 -> 11 | G200: =[2]TOTAUX!$G$7 -> 4 | H200: =[2]TOTAUX!$H$7 -> 6 | I200: =[2]TOTAUX!$I$7 -> 6 | J200: =[2]TOTAUX!$J$7 -> 3 | K200: =[2]TOTAUX!$K$7 -> 1 | L200: =[2]TOTAUX!$L$7 -> 0 | M200: =[2]TOTAUX!$M$7 -> 2 | N200: =[2]TOTAUX!$N$7 -> 1 | O200: =[2]TOTAUX!$O$7 -> 0 | P200: =[2]TOTAUX!$P$7 -> 0 | Q200: =[2]TOTAUX!$Q$7 -> 1 | R200: =[2]TOTAUX!$R$7 -> 0 | S200: 0.5454545455 | T200: 0.5833333333 | U200: 1.181818182
A201: 6 | B201: =[2]TOTAUX!$B$17 -> OUI | C201: =[2]TOTAUX!$C$17 -> OUI | D201: =[2]TOTAUX!$D$17 -> LEJEUNE MARTIN | E201: =[2]TOTAUX!$E$17 -> 3 | F201: =[2]TOTAUX!$F$17 -> 10 | G201: =[2]TOTAUX!$G$17 -> 3 | H201: =[2]TOTAUX!$H$17 -> 5 | I201: =[2]TOTAUX!$I$17 -> 0 | J201: =[2]TOTAUX!$J$17 -> 5 | K201: =[2]TOTAUX!$K$17 -> 0 | L201: =[2]TOTAUX!$L$17 -> 0 | M201: =[2]TOTAUX!$M$17 -> 0 | N201: =[2]TOTAUX!$N$17 -> 0 | O201: =[2]TOTAUX!$O$17 -> 0 | P201: =[2]TOTAUX!$P$17 -> 0 | Q201: =[2]TOTAUX!$Q$17 -> 0 | R201: =[2]TOTAUX!$R$17 -> 0 | S201: 0.5 | T201: 0.5 | U201: 0.5
A202: 7 | B202: =[2]TOTAUX!$B$16 -> OUI | C202: =[2]TOTAUX!$C$16 -> OUI | D202: =[2]TOTAUX!$D$16 -> TOUPIN BENOIT | E202: =[2]TOTAUX!$E$16 -> 2 | F202: =[2]TOTAUX!$F$16 -> 2 | G202: =[2]TOTAUX!$G$16 -> 1 | H202: =[2]TOTAUX!$H$16 -> 1 | I202: =[2]TOTAUX!$I$16 -> 0 | J202: =[2]TOTAUX!$J$16 -> 1 | K202: =[2]TOTAUX!$K$16 -> 0 | L202: =[2]TOTAUX!$L$16 -> 0 | M202: =[2]TOTAUX!$M$16 -> 0 | N202: =[2]TOTAUX!$N$16 -> 1 | O202: =[2]TOTAUX!$O$16 -> 0 | P202: =[2]TOTAUX!$P$16 -> 0 | Q202: =[2]TOTAUX!$Q$16 -> 1 | R202: =[2]TOTAUX!$R$16 -> 0 | S202: 0.5 | T202: 0.6666666667 | U202: 0.5
A203: 8 | B203: =[2]TOTAUX!$B$5 -> OUI | C203: =[2]TOTAUX!$C$5 -> OUI | D203: =[2]TOTAUX!$D$5 -> ALEX LEJEUNE | E203: =[2]TOTAUX!$E$5 -> 6 | F203: =[2]TOTAUX!$F$5 -> 20 | G203: =[2]TOTAUX!$G$5 -> 4 | H203: =[2]TOTAUX!$H$5 -> 8 | I203: =[2]TOTAUX!$I$5 -> 1 | J203: =[2]TOTAUX!$J$5 -> 7 | K203: =[2]TOTAUX!$K$5 -> 1 | L203: =[2]TOTAUX!$L$5 -> 0 | M203: =[2]TOTAUX!$M$5 -> 0 | N203: =[2]TOTAUX!$N$5 -> 1 | O203: =[2]TOTAUX!$O$5 -> 0 | P203: =[2]TOTAUX!$P$5 -> 0 | Q203: =[2]TOTAUX!$Q$5 -> 1 | R203: =[2]TOTAUX!$R$5 -> 1 | S203: 0.4 | T203: 0.4285714286 | U203: 0.45
A204: 9 | B204: =[2]TOTAUX!$B$19 -> OUI | C204: =[2]TOTAUX!$C$19 -> OUI | D204: =[2]TOTAUX!$D$19 -> PEREIRA KEVIN | E204: =[2]TOTAUX!$E$19 -> 2 | F204: =[2]TOTAUX!$F$19 -> 5 | G204: =[2]TOTAUX!$G$19 -> 0 | H204: =[2]TOTAUX!$H$19 -> 2 | I204: =[2]TOTAUX!$I$19 -> 2 | J204: =[2]TOTAUX!$J$19 -> 0 | K204: =[2]TOTAUX!$K$19 -> 2 | L204: =[2]TOTAUX!$L$19 -> 0 | M204: =[2]TOTAUX!$M$19 -> 0 | N204: =[2]TOTAUX!$N$19 -> 1 | O204: =[2]TOTAUX!$O$19 -> 0 | P204: =[2]TOTAUX!$P$19 -> 1 | Q204: =[2]TOTAUX!$Q$19 -> 0 | R204: =[2]TOTAUX!$R$19 -> 0 | S204: 0.4 | T204: 0.4285714286 | U204: 0.8
A205: 10 | B205: =[2]TOTAUX!$B$4 -> OUI | C205: =[2]TOTAUX!$C$4 -> OUI | D205: =[2]TOTAUX!$D$4 -> MARC ST-MARTIN | E205: =[2]TOTAUX!$E$4 -> 10 | F205: =[2]TOTAUX!$F$4 -> 26 | G205: =[2]TOTAUX!$G$4 -> 5 | H205: =[2]TOTAUX!$H$4 -> 10 | I205: =[2]TOTAUX!$I$4 -> 4 | J205: =[2]TOTAUX!$J$4 -> 10 | K205: =[2]TOTAUX!$K$4 -> 0 | L205: =[2]TOTAUX!$L$4 -> 0 | M205: =[2]TOTAUX!$M$4 -> 0 | N205: =[2]TOTAUX!$N$4 -> 2 | O205: =[2]TOTAUX!$O$4 -> 2 | P205: =[2]TOTAUX!$P$4 -> 1 | Q205: =[2]TOTAUX!$Q$4 -> 0 | R205: =[2]TOTAUX!$R$4 -> 1 | S205: 0.3846153846 | T205: 0.4137931034 | U205: 0.3846153846
A206: 11 | B206: =[2]TOTAUX!$B$12 -> OUI | C206: =[2]TOTAUX!$C$12 -> OUI | D206: =[2]TOTAUX!$D$12 -> GUY TOUPIN | E206: =[2]TOTAUX!$E$12 -> 5 | F206: =[2]TOTAUX!$F$12 -> 11 | G206: =[2]TOTAUX!$G$12 -> 2 | H206: =[2]TOTAUX!$H$12 -> 4 | I206: =[2]TOTAUX!$I$12 -> 2 | J206: =[2]TOTAUX!$J$12 -> 3 | K206: =[2]TOTAUX!$K$12 -> 1 | L206: =[2]TOTAUX!$L$12 -> 0 | M206: =[2]TOTAUX!$M$12 -> 0 | N206: =[2]TOTAUX!$N$12 -> 3 | O206: =[2]TOTAUX!$O$12 -> 0 | P206: =[2]TOTAUX!$P$12 -> 1 | Q206: =[2]TOTAUX!$Q$12 -> 1 | R206: =[2]TOTAUX!$R$12 -> 0 | S206: 0.3636363636 | T206: 0.4666666667 | U206: 0.4545454545
A207: 12 | B207: =[2]TOTAUX!$B$15 -> OUI | C207: =[2]TOTAUX!$C$15 -> OUI | D207: =[2]TOTAUX!$D$15 -> RENÉ-PIERRE BÉLANGER | E207: =[2]TOTAUX!$E$15 -> 3 | F207: =[2]TOTAUX!$F$15 -> 11 | G207: =[2]TOTAUX!$G$15 -> 2 | H207: =[2]TOTAUX!$H$15 -> 4 | I207: =[2]TOTAUX!$I$15 -> 0 | J207: =[2]TOTAUX!$J$15 -> 4 | K207: =[2]TOTAUX!$K$15 -> 0 | L207: =[2]TOTAUX!$L$15 -> 0 | M207: =[2]TOTAUX!$M$15 -> 0 | N207: =[2]TOTAUX!$N$15 -> 1 | O207: =[2]TOTAUX!$O$15 -> 0 | P207: =[2]TOTAUX!$P$15 -> 0 | Q207: =[2]TOTAUX!$Q$15 -> 0 | R207: =[2]TOTAUX!$R$15 -> 0 | S207: 0.3636363636 | T207: 0.4166666667 | U207: 0.3636363636
A208: 13 | B208: =[2]TOTAUX!$B$10 -> OUI | C208: =[2]TOTAUX!$C$10 -> OUI | D208: =[2]TOTAUX!$D$10 -> HUGUES LAPOINTE | E208: =[2]TOTAUX!$E$10 -> 7 | F208: =[2]TOTAUX!$F$10 -> 18 | G208: =[2]TOTAUX!$G$10 -> 5 | H208: =[2]TOTAUX!$H$10 -> 6 | I208: =[2]TOTAUX!$I$10 -> 7 | J208: =[2]TOTAUX!$J$10 -> 3 | K208: =[2]TOTAUX!$K$10 -> 1 | L208: =[2]TOTAUX!$L$10 -> 1 | M208: =[2]TOTAUX!$M$10 -> 0 | N208: =[2]TOTAUX!$N$10 -> 6 | O208: =[2]TOTAUX!$O$10 -> 0 | P208: =[2]TOTAUX!$P$10 -> 0 | Q208: =[2]TOTAUX!$Q$10 -> 0 | R208: =[2]TOTAUX!$R$10 -> 0 | S208: 0.3333333333 | T208: 0.5 | U208: 0.4444444444
A209: 14 | B209: =[2]TOTAUX!$B$18 -> OUI | C209: =[2]TOTAUX!$C$18 -> OUI | D209: =[2]TOTAUX!$D$18 -> DUMONT MARC-ANDRÉ | E209: =[2]TOTAUX!$E$18 -> 3 | F209: =[2]TOTAUX!$F$18 -> 9 | G209: =[2]TOTAUX!$G$18 -> 1 | H209: =[2]TOTAUX!$H$18 -> 3 | I209: =[2]TOTAUX!$I$18 -> 3 | J209: =[2]TOTAUX!$J$18 -> 2 | K209: =[2]TOTAUX!$K$18 -> 1 | L209: =[2]TOTAUX!$L$18 -> 0 | M209: =[2]TOTAUX!$M$18 -> 0 | N209: =[2]TOTAUX!$N$18 -> 3 | O209: =[2]TOTAUX!$O$18 -> 0 | P209: =[2]TOTAUX!$P$18 -> 1 | Q209: =[2]TOTAUX!$Q$18 -> 0 | R209: =[2]TOTAUX!$R$18 -> 0 | S209: 0.3333333333 | T209: 0.4615384615 | U209: 0.4444444444
A210: 15 | B210: =[2]TOTAUX!$B$11 -> OUI | C210: =[2]TOTAUX!$C$11 -> OUI | D210: =[2]TOTAUX!$D$11 -> ALAIN BÉRARD | E210: =[2]TOTAUX!$E$11 -> 8 | F210: =[2]TOTAUX!$F$11 -> 22 | G210: =[2]TOTAUX!$G$11 -> 7 | H210: =[2]TOTAUX!$H$11 -> 7 | I210: =[2]TOTAUX!$I$11 -> 3 | J210: =[2]TOTAUX!$J$11 -> 5 | K210: =[2]TOTAUX!$K$11 -> 1 | L210: =[2]TOTAUX!$L$11 -> 1 | M210: =[2]TOTAUX!$M$11 -> 0 | N210: =[2]TOTAUX!$N$11 -> 4 | O210: =[2]TOTAUX!$O$11 -> 0 | P210: =[2]TOTAUX!$P$11 -> 0 | Q210: =[2]TOTAUX!$Q$11 -> 0 | R210: =[2]TOTAUX!$R$11 -> 2 | S210: 0.3181818182 | T210: 0.4230769231 | U210: 0.4545454545
A211: 16 | B211: =[2]TOTAUX!$B$3 -> OUI | C211: =[2]TOTAUX!$C$3 -> OUI | D211: =[2]TOTAUX!$D$3 -> MARTIN LAROCHE | E211: =[2]TOTAUX!$E$3 -> 10 | F211: =[2]TOTAUX!$F$3 -> 31 | G211: =[2]TOTAUX!$G$3 -> 2 | H211: =[2]TOTAUX!$H$3 -> 7 | I211: =[2]TOTAUX!$I$3 -> 10 | J211: =[2]TOTAUX!$J$3 -> 5 | K211: =[2]TOTAUX!$K$3 -> 1 | L211: =[2]TOTAUX!$L$3 -> 0 | M211: =[2]TOTAUX!$M$3 -> 1 | N211: =[2]TOTAUX!$N$3 -> 1 | O211: =[2]TOTAUX!$O$3 -> 1 | P211: =[2]TOTAUX!$P$3 -> 4 | Q211: =[2]TOTAUX!$Q$3 -> 2 | R211: =[2]TOTAUX!$R$3 -> 1 | S211: 0.2258064516 | T211: 0.2222222222 | U211: 0.3548387097
A212: 17 | B212: =[2]TOTAUX!$B$6 -> OUI | C212: =[2]TOTAUX!$C$6 -> OUI | D212: =[2]TOTAUX!$D$6 -> BARCLAY FORTIN | E212: =[2]TOTAUX!$E$6 -> 10 | F212: =[2]TOTAUX!$F$6 -> 25 | G212: =[2]TOTAUX!$G$6 -> 3 | H212: =[2]TOTAUX!$H$6 -> 3 | I212: =[2]TOTAUX!$I$6 -> 1 | J212: =[2]TOTAUX!$J$6 -> 3 | K212: =[2]TOTAUX!$K$6 -> 0 | L212: =[2]TOTAUX!$L$6 -> 0 | M212: =[2]TOTAUX!$M$6 -> 0 | N212: =[2]TOTAUX!$N$6 -> 5 | O212: =[2]TOTAUX!$O$6 -> 0 | P212: =[2]TOTAUX!$P$6 -> 0 | Q212: =[2]TOTAUX!$Q$6 -> 3 | R212: =[2]TOTAUX!$R$6 -> 1 | S212: 0.12 | T212: 0.2666666667 | U212: 0.12
A213: 18 | B213: =[2]TOTAUX!$B$8 -> OUI | C213: =[2]TOTAUX!$C$8 -> OUI | D213: =[2]TOTAUX!$D$8 -> FRANK THOMAS | E213: =[2]TOTAUX!$E$8 -> 0 | F213: =[2]TOTAUX!$F$8 -> 0 | G213: =[2]TOTAUX!$G$8 -> 0 | H213: =[2]TOTAUX!$H$8 -> 0 | I213: =[2]TOTAUX!$I$8 -> 0 | J213: =[2]TOTAUX!$J$8 -> 0 | K213: =[2]TOTAUX!$K$8 -> 0 | L213: =[2]TOTAUX!$L$8 -> 0 | M213: =[2]TOTAUX!$M$8 -> 0 | N213: =[2]TOTAUX!$N$8 -> 0 | O213: =[2]TOTAUX!$O$8 -> 0 | P213: =[2]TOTAUX!$P$8 -> 0 | Q213: =[2]TOTAUX!$Q$8 -> 0 | R213: =[2]TOTAUX!$R$8 -> 0 | S213: =H213/F213 ->  | T213: =((H213+N213)/(F213+N213+P213)) ->  | U213: =((J213)+(K213*2)+(L213*3)+(M213*4))/F213 -> 
A214: 19 | B214: =[2]TOTAUX!$B$21 -> OUI | C214: =[2]TOTAUX!$C$21 -> OUI | D214: =[2]TOTAUX!$D$21 -> THISDALE GILLES | E214: =[2]TOTAUX!$E$22 -> 0 | F214: =[2]TOTAUX!$F$21 -> 0 | G214: =[2]TOTAUX!$G$21 -> 0 | H214: =[2]TOTAUX!$H$21 -> 0 | I214: =[2]TOTAUX!$I$21 -> 0 | J214: =[2]TOTAUX!$J$21 -> 0 | K214: =[2]TOTAUX!$K$21 -> 0 | L214: =[2]TOTAUX!$L$21 -> 0 | M214: =[2]TOTAUX!$M$21 -> 0 | N214: =[2]TOTAUX!$N$21 -> 0 | O214: =[2]TOTAUX!$O$21 -> 0 | P214: =[2]TOTAUX!$P$21 -> 0 | Q214: =[2]TOTAUX!$Q$21 -> 0 | R214: =[2]TOTAUX!$R$21 -> 0 | S214: =H214/F214 ->  | T214: =((H214+N214)/(F214+N214+P214)) ->  | U214: =((J214)+(K214*2)+(L214*3)+(M214*4))/F214 -> 
A215: 20 | B215: =[2]TOTAUX!$B$22 -> OUI | C215: =[2]TOTAUX!$C$22 -> OUI | D215: =[2]TOTAUX!$D$22 -> SOARES STEVE | E215: =[2]TOTAUX!$E$23 -> 0 | F215: =[2]TOTAUX!$F$22 -> 0 | G215: =[2]TOTAUX!$G$22 -> 0 | H215: =[2]TOTAUX!$H$22 -> 0 | I215: =[2]TOTAUX!$I$22 -> 0 | J215: =[2]TOTAUX!$J$22 -> 0 | K215: =[2]TOTAUX!$K$22 -> 0 | L215: =[2]TOTAUX!$L$22 -> 0 | M215: =[2]TOTAUX!$M$22 -> 0 | N215: =[2]TOTAUX!$N$22 -> 0 | O215: =[2]TOTAUX!$O$22 -> 0 | P215: =[2]TOTAUX!$P$22 -> 0 | Q215: =[2]TOTAUX!$Q$22 -> 0 | R215: =[2]TOTAUX!$R$22 -> 0
D216: TOTAUX | F216: =[2]TOTAUX!$F$23 -> 296 | G216: =[2]TOTAUX!$G$23 -> 73 | H216: =[2]TOTAUX!$H$23 -> 122 | I216: =[2]TOTAUX!$I$23 -> 68 | J216: =[2]TOTAUX!$J$23 -> 97 | K216: =[2]TOTAUX!$K$23 -> 13 | L216: =[2]TOTAUX!$L$23 -> 5 | M216: =[2]TOTAUX!$M$23 -> 6 | N216: =[2]TOTAUX!$N$23 -> 42 | O216: =[2]TOTAUX!$O$23 -> 3 | P216: =[2]TOTAUX!$P$23 -> 9 | Q216: =[2]TOTAUX!$Q$23 -> 12 | R216: =[2]TOTAUX!$R$23 -> 11 | S216: 0.4121621622 | T216: 0.4726224784 | U216: 0.5472972973
D218: NOM | E218: PJ | F218: PD | G218: V | H218: D | I218: N | J218: ML | K218: P | L218: PM | M218: CS | N218: BB | O218: WP | P218: RAB | Q218: MPM | R218: K/7 | S218: WHIP | T218: ML SÉRIES
D219: =[2]TOTAUX!$D$27 -> BENOIT TOUPIN | E219: =[2]TOTAUX!$E$27 -> 2 | F219: =[2]TOTAUX!$F$27 -> 2 | G219: =[2]TOTAUX!$G$27 -> 2 | H219: =[2]TOTAUX!$H$27 -> 0 | I219: =[2]TOTAUX!$I$27 -> 0 | J219: =[2]TOTAUX!$J$27 -> 14 | K219: =[2]TOTAUX!$K$27 -> 8 | L219: =[2]TOTAUX!$L$27 -> 8 | M219: =[2]TOTAUX!$M$27 -> 17 | N219: =[2]TOTAUX!$N$27 -> 4 | O219: =[2]TOTAUX!$O$27 -> 0 | P219: =[2]TOTAUX!$P$27 -> 1 | Q219: =(L219*7)/J219 -> 4 | R219: =(P219*7)/J219 -> 0.5 | S219: =(M219+N219)/J219 -> 1.5 | T219: =[2]TOTAUX!$T$27 -> 14
D220: =[2]TOTAUX!$D$26 -> GUY TOUPIN | E220: =[2]TOTAUX!$E$26 -> 5 | F220: =[2]TOTAUX!$F$26 -> 5 | G220: =[2]TOTAUX!$G$26 -> 3 | H220: =[2]TOTAUX!$H$26 -> 2 | I220: =[2]TOTAUX!$I$26 -> 0 | J220: =[2]TOTAUX!$J$26 -> 31 | K220: =[2]TOTAUX!$K$26 -> 25 | L220: =[2]TOTAUX!$L$26 -> 23 | M220: =[2]TOTAUX!$M$26 -> 42 | N220: =[2]TOTAUX!$N$26 -> 10 | O220: =[2]TOTAUX!$O$26 -> 1 | P220: =[2]TOTAUX!$P$26 -> 10 | Q220: 5.193548387 | R220: 2.258064516 | S220: 1.677419355 | T220: =[2]TOTAUX!$T$26 -> 32
D221: =[2]TOTAUX!$D$28 -> ANDRÉ PAQUETTE | E221: =[2]TOTAUX!$E$28 -> 3 | F221: =[2]TOTAUX!$F$28 -> 3 | G221: =[2]TOTAUX!$G$28 -> 2 | H221: =[2]TOTAUX!$H$28 -> 1 | I221: =[2]TOTAUX!$I$28 -> 0 | J221: =[2]TOTAUX!$J$28 -> 19 | K221: =[2]TOTAUX!$K$28 -> 25 | L221: =[2]TOTAUX!$L$28 -> 19 | M221: =[2]TOTAUX!$M$28 -> 35 | N221: =[2]TOTAUX!$N$28 -> 16 | O221: =[2]TOTAUX!$O$28 -> 3 | P221: =[2]TOTAUX!$P$28 -> 7 | Q221: 7 | R221: 2.578947368 | S221: 2.684210526 | T221: =[2]TOTAUX!$T$28 -> 20
D222: =[2]TOTAUX!$D$29 -> 4 | E222: =[2]TOTAUX!$E$29 -> 0 | F222: =[2]TOTAUX!$F$29 -> 0 | G222: =[2]TOTAUX!$G$29 -> 0 | H222: =[2]TOTAUX!$H$29 -> 0 | I222: =[2]TOTAUX!$I$29 -> 0 | J222: =[2]TOTAUX!$J$29 -> 0 | K222: =[2]TOTAUX!$K$29 -> 0 | L222: =[2]TOTAUX!$L$29 -> 0 | M222: =[2]TOTAUX!$M$29 -> 0 | N222: =[2]TOTAUX!$N$29 -> 0 | O222: =[2]TOTAUX!$O$29 -> 0 | P222: =[2]TOTAUX!$P$29 -> 0 | T222: =[2]TOTAUX!$T$29 -> 0
D223: =[2]TOTAUX!$D$30 -> 5 | E223: =[2]TOTAUX!$E$30 -> 0 | F223: =[2]TOTAUX!$F$30 -> 0 | G223: =[2]TOTAUX!$G$30 -> 0 | H223: =[2]TOTAUX!$H$30 -> 0 | I223: =[2]TOTAUX!$I$30 -> 0 | J223: =[2]TOTAUX!$J$30 -> 0 | K223: =[2]TOTAUX!$K$30 -> 0 | L223: =[2]TOTAUX!$L$30 -> 0 | M223: =[2]TOTAUX!$M$30 -> 0 | N223: =[2]TOTAUX!$N$30 -> 0 | O223: =[2]TOTAUX!$O$30 -> 0 | P223: =[2]TOTAUX!$P$30 -> 0 | T223: =[2]TOTAUX!$T$30 -> 0
D224: =[2]TOTAUX!$D$31 -> 6 | E224: =[2]TOTAUX!$E$31 -> 0 | F224: =[2]TOTAUX!$F$31 -> 0 | G224: =[2]TOTAUX!$G$31 -> 0 | H224: =[2]TOTAUX!$H$31 -> 0 | I224: =[2]TOTAUX!$I$31 -> 0 | J224: =[2]TOTAUX!$J$31 -> 0 | K224: =[2]TOTAUX!$K$31 -> 0 | L224: =[2]TOTAUX!$L$31 -> 0 | M224: =[2]TOTAUX!$M$31 -> 0 | N224: =[2]TOTAUX!$N$31 -> 0 | O224: =[2]TOTAUX!$O$31 -> 0 | P224: =[2]TOTAUX!$P$31 -> 0 | T224: =[2]TOTAUX!$T$31 -> 0
D225: TOTAUX | E225: =[2]TOTAUX!$E$32 -> 10 | F225: =[2]TOTAUX!$F$32 -> 10 | G225: =[2]TOTAUX!$G$32 -> 7 | H225: =[2]TOTAUX!$H$32 -> 3 | I225: =[2]TOTAUX!$I$32 -> 0 | J225: =[2]TOTAUX!$J$32 -> 64 | K225: =[2]TOTAUX!$K$32 -> 58 | L225: =[2]TOTAUX!$L$32 -> 50 | M225: =[2]TOTAUX!$M$32 -> 94 | N225: =[2]TOTAUX!$N$32 -> 30 | O225: =[2]TOTAUX!$O$32 -> 4 | P225: =[2]TOTAUX!$P$32 -> 18 | Q225: 5.46875 | R225: 1.96875 | S225: 1.9375
H226: HOCHELAGA
A227: # | B227: Photo | C227: Contrat | D227: Nom | E227: PJ | F227: AB | G227: P | H227: CS | I227: PP | J227: 1B | K227: 2B | L227: 3B | M227: CC | N227: BB | O227: SAC | P227: BSAC | Q227: RAB | R227: ERR | S227: MOY | T227: MPB | U227: PUI
A228: 1 | B228: =[6]TOTAUX!$B$22 -> OUI | C228: =[6]TOTAUX!$C$22 -> OUI | D228: =[6]TOTAUX!$D$22 -> GUILLAUME MARTINEAU | E228: =[6]TOTAUX!$E$22 -> 2 | F228: =[6]TOTAUX!$F$22 -> 7 | G228: =[6]TOTAUX!$G$22 -> 2 | H228: =[6]TOTAUX!$H$22 -> 5 | I228: =[6]TOTAUX!$I$22 -> 0 | J228: =[6]TOTAUX!$J$22 -> 5 | K228: =[6]TOTAUX!$K$22 -> 0 | L228: =[6]TOTAUX!$L$22 -> 0 | M228: =[6]TOTAUX!$M$22 -> 0 | N228: =[6]TOTAUX!$N$22 -> 2 | O228: =[6]TOTAUX!$O$22 -> 0 | P228: =[6]TOTAUX!$P$22 -> 0 | Q228: =[6]TOTAUX!$Q$22 -> 0 | R228: =[6]TOTAUX!$R$22 -> 0 | S228: =H228/F228 -> 0.7142857143 | T228: =((H228+N228)/(F228+N228+P228)) -> 0.7777777778 | U228: =((J228)+(K228*2)+(L228*3)+(M228*4))/F228 -> 0.7142857143
A229: =A228+1 -> 2 | B229: =[6]TOTAUX!$B$21 -> OUI | C229: =[6]TOTAUX!$C$21 -> OUI | D229: =[6]TOTAUX!$D$21 -> MICHAEL SOULIGNY | E229: =[6]TOTAUX!$E$21 -> 1 | F229: =[6]TOTAUX!$F$21 -> 3 | G229: =[6]TOTAUX!$G$21 -> 3 | H229: =[6]TOTAUX!$H$21 -> 2 | I229: =[6]TOTAUX!$I$21 -> 1 | J229: =[6]TOTAUX!$J$21 -> 2 | K229: =[6]TOTAUX!$K$21 -> 0 | L229: =[6]TOTAUX!$L$21 -> 0 | M229: =[6]TOTAUX!$M$21 -> 0 | N229: =[6]TOTAUX!$N$21 -> 2 | O229: =[6]TOTAUX!$O$21 -> 0 | P229: =[6]TOTAUX!$P$21 -> 0 | Q229: =[6]TOTAUX!$Q$21 -> 0 | R229: =[6]TOTAUX!$R$21 -> 0 | S229: 0.6666666667 | T229: 0.8 | U229: 0.6666666667
A230: =A229+1 -> 3 | B230: =[6]TOTAUX!$B$8 -> OUI | C230: =[6]TOTAUX!$C$8 -> OUI | D230: =[6]TOTAUX!$D$8 -> SÉBASTIEN GAGNÉ | E230: =[6]TOTAUX!$E$8 -> 7 | F230: =[6]TOTAUX!$F$8 -> 23 | G230: =[6]TOTAUX!$G$8 -> 12 | H230: =[6]TOTAUX!$H$8 -> 14 | I230: =[6]TOTAUX!$I$8 -> 14 | J230: =[6]TOTAUX!$J$8 -> 9 | K230: =[6]TOTAUX!$K$8 -> 3 | L230: =[6]TOTAUX!$L$8 -> 0 | M230: =[6]TOTAUX!$M$8 -> 2 | N230: =[6]TOTAUX!$N$8 -> 2 | O230: =[6]TOTAUX!$O$8 -> 0 | P230: =[6]TOTAUX!$P$8 -> 0 | Q230: =[6]TOTAUX!$Q$8 -> 0 | R230: =[6]TOTAUX!$R$8 -> 0 | S230: 0.6086956522 | T230: 0.64 | U230: 1
A231: 4 | B231: =[6]TOTAUX!$B$16 -> OUI | C231: =[6]TOTAUX!$C$16 -> OUI | D231: =[6]TOTAUX!$D$16 -> GUILLAUME AYOTTE | E231: =[6]TOTAUX!$E$16 -> 3 | F231: =[6]TOTAUX!$F$16 -> 8 | G231: =[6]TOTAUX!$G$16 -> 1 | H231: =[6]TOTAUX!$H$16 -> 4 | I231: =[6]TOTAUX!$I$16 -> 4 | J231: =[6]TOTAUX!$J$16 -> 1 | K231: =[6]TOTAUX!$K$16 -> 3 | L231: =[6]TOTAUX!$L$16 -> 0 | M231: =[6]TOTAUX!$M$16 -> 0 | N231: =[6]TOTAUX!$N$16 -> 1 | O231: =[6]TOTAUX!$O$16 -> 0 | P231: =[6]TOTAUX!$P$16 -> 1 | Q231: =[6]TOTAUX!$Q$16 -> 2 | R231: =[6]TOTAUX!$R$16 -> 0 | S231: 0.5 | T231: 0.5 | U231: 0.875
A232: 5 | B232: =[6]TOTAUX!$B$15 -> OUI | C232: =[6]TOTAUX!$C$15 -> OUI | D232: =[6]TOTAUX!$D$15 -> PHILIPPE DIOTTE | E232: =[6]TOTAUX!$E$15 -> 1 | F232: =[6]TOTAUX!$F$15 -> 2 | G232: =[6]TOTAUX!$G$15 -> 0 | H232: =[6]TOTAUX!$H$15 -> 1 | I232: =[6]TOTAUX!$I$15 -> 0 | J232: =[6]TOTAUX!$J$15 -> 1 | K232: =[6]TOTAUX!$K$15 -> 0 | L232: =[6]TOTAUX!$L$15 -> 0 | M232: =[6]TOTAUX!$M$15 -> 0 | N232: =[6]TOTAUX!$N$15 -> 1 | O232: =[6]TOTAUX!$O$15 -> 0 | P232: =[6]TOTAUX!$P$15 -> 0 | Q232: =[6]TOTAUX!$Q$15 -> 0 | R232: =[6]TOTAUX!$R$15 -> 0 | S232: 0.5 | T232: 0.6666666667 | U232: 0.5
A233: 6 | B233: =[6]TOTAUX!$B$10 -> OUI | C233: =[6]TOTAUX!$C$10 -> OUI | D233: =[6]TOTAUX!$D$10 -> FRANCIS ARSENAULT | E233: =[6]TOTAUX!$E$10 -> 9 | F233: =[6]TOTAUX!$F$10 -> 25 | G233: =[6]TOTAUX!$G$10 -> 13 | H233: =[6]TOTAUX!$H$10 -> 10 | I233: =[6]TOTAUX!$I$10 -> 5 | J233: =[6]TOTAUX!$J$10 -> 7 | K233: =[6]TOTAUX!$K$10 -> 3 | L233: =[6]TOTAUX!$L$10 -> 0 | M233: =[6]TOTAUX!$M$10 -> 0 | N233: =[6]TOTAUX!$N$10 -> 7 | O233: =[6]TOTAUX!$O$10 -> 0 | P233: =[6]TOTAUX!$P$10 -> 0 | Q233: =[6]TOTAUX!$Q$10 -> 2 | R233: =[6]TOTAUX!$R$10 -> 0 | S233: 0.4 | T233: 0.53125 | U233: 0.52
A234: 7 | B234: =[6]TOTAUX!$B$11 -> OUI | C234: =[6]TOTAUX!$C$11 -> OUI | D234: =[6]TOTAUX!$D$11 -> MIKE LANDRY | E234: =[6]TOTAUX!$E$11 -> 9 | F234: =[6]TOTAUX!$F$11 -> 24 | G234: =[6]TOTAUX!$G$11 -> 3 | H234: =[6]TOTAUX!$H$11 -> 9 | I234: =[6]TOTAUX!$I$11 -> 3 | J234: =[6]TOTAUX!$J$11 -> 8 | K234: =[6]TOTAUX!$K$11 -> 1 | L234: =[6]TOTAUX!$L$11 -> 0 | M234: =[6]TOTAUX!$M$11 -> 0 | N234: =[6]TOTAUX!$N$11 -> 5 | O234: =[6]TOTAUX!$O$11 -> 1 | P234: =[6]TOTAUX!$P$11 -> 0 | Q234: =[6]TOTAUX!$Q$11 -> 2 | R234: =[6]TOTAUX!$R$11 -> 1 | S234: 0.375 | T234: 0.4827586207 | U234: 0.4166666667
A235: 8 | B235: =[6]TOTAUX!$B$5 -> OUI | C235: =[6]TOTAUX!$C$5 -> OUI | D235: =[6]TOTAUX!$D$5 -> DANIEL CASAVANT | E235: =[6]TOTAUX!$E$5 -> 5 | F235: =[6]TOTAUX!$F$5 -> 18 | G235: =[6]TOTAUX!$G$5 -> 7 | H235: =[6]TOTAUX!$H$5 -> 6 | I235: =[6]TOTAUX!$I$5 -> 4 | J235: =[6]TOTAUX!$J$5 -> 6 | K235: =[6]TOTAUX!$K$5 -> 0 | L235: =[6]TOTAUX!$L$5 -> 0 | M235: =[6]TOTAUX!$M$5 -> 0 | N235: =[6]TOTAUX!$N$5 -> 3 | O235: =[6]TOTAUX!$O$5 -> 0 | P235: =[6]TOTAUX!$P$5 -> 0 | Q235: =[6]TOTAUX!$Q$5 -> 1 | R235: =[6]TOTAUX!$R$5 -> 2 | S235: 0.3333333333 | T235: 0.4285714286 | U235: 0.3333333333
A236: 9 | B236: =[6]TOTAUX!$B$14 -> OUI | C236: =[6]TOTAUX!$C$14 -> OUI | D236: =[6]TOTAUX!$D$14 -> JEAN-FRANCOIS BOUCHER | E236: =[6]TOTAUX!$E$14 -> 4 | F236: =[6]TOTAUX!$F$14 -> 9 | G236: =[6]TOTAUX!$G$14 -> 6 | H236: =[6]TOTAUX!$H$14 -> 3 | I236: =[6]TOTAUX!$I$14 -> 2 | J236: =[6]TOTAUX!$J$14 -> 3 | K236: =[6]TOTAUX!$K$14 -> 0 | L236: =[6]TOTAUX!$L$14 -> 0 | M236: =[6]TOTAUX!$M$14 -> 0 | N236: =[6]TOTAUX!$N$14 -> 4 | O236: =[6]TOTAUX!$O$14 -> 0 | P236: =[6]TOTAUX!$P$14 -> 0 | Q236: =[6]TOTAUX!$Q$14 -> 2 | R236: =[6]TOTAUX!$R$14 -> 2 | S236: 0.3333333333 | T236: 0.5384615385 | U236: 0.3333333333
A237: 10 | B237: =[6]TOTAUX!$B$4 -> OUI | C237: =[6]TOTAUX!$C$4 -> OUI | D237: =[6]TOTAUX!$D$4 -> CLAUDE LABROSSE | E237: =[6]TOTAUX!$E$4 -> 3 | F237: =[6]TOTAUX!$F$4 -> 9 | G237: =[6]TOTAUX!$G$4 -> 1 | H237: =[6]TOTAUX!$H$4 -> 3 | I237: =[6]TOTAUX!$I$4 -> 1 | J237: =[6]TOTAUX!$J$4 -> 3 | K237: =[6]TOTAUX!$K$4 -> 0 | L237: =[6]TOTAUX!$L$4 -> 0 | M237: =[6]TOTAUX!$M$4 -> 0 | N237: =[6]TOTAUX!$N$4 -> 0 | O237: =[6]TOTAUX!$O$4 -> 0 | P237: =[6]TOTAUX!$P$4 -> 0 | Q237: =[6]TOTAUX!$Q$4 -> 0 | R237: =[6]TOTAUX!$R$4 -> 0 | S237: 0.3333333333 | T237: 0.3333333333 | U237: 0.3333333333
A238: 11 | B238: =[6]TOTAUX!$B$6 -> OUI | C238: =[6]TOTAUX!$C$6 -> OUI | D238: =[6]TOTAUX!$D$6 -> PIERRE-ALAIN ST-LAURENT | E238: =[6]TOTAUX!$E$6 -> 8 | F238: =[6]TOTAUX!$F$6 -> 25 | G238: =[6]TOTAUX!$G$6 -> 2 | H238: =[6]TOTAUX!$H$6 -> 8 | I238: =[6]TOTAUX!$I$6 -> 9 | J238: =[6]TOTAUX!$J$6 -> 2 | K238: =[6]TOTAUX!$K$6 -> 4 | L238: =[6]TOTAUX!$L$6 -> 1 | M238: =[6]TOTAUX!$M$6 -> 1 | N238: =[6]TOTAUX!$N$6 -> 1 | O238: =[6]TOTAUX!$O$6 -> 0 | P238: =[6]TOTAUX!$P$6 -> 2 | Q238: =[6]TOTAUX!$Q$6 -> 0 | R238: =[6]TOTAUX!$R$6 -> 0 | S238: 0.32 | T238: 0.3214285714 | U238: 0.68
... 49 more rows

Sheet MAISON MERCREDI
E1: STATISTIQUES MAISON MERCREDI
H34: METS
A35: # | B35: Photo | C35: Contrat | D35: Nom | E35: PJ | F35: AB | G35: P | H35: CS | I35: PP | J35: 1B | K35: 2B | L35: 3B | M35: CC | N35: BB | O35: SAC | P35: BSAC | Q35: RAB | R35: ERR | S35: MOY | T35: MPB | U35: PUI
A36: 1 | B36: =[11]TOTAUX!$B$5 -> OUI | C36: =[11]TOTAUX!$C$5 -> OUI | D36: =[11]TOTAUX!$D$5 -> ALEX ANTONACCI | E36: =[11]TOTAUX!$E$5 -> 8 | F36: =[11]TOTAUX!$F$5 -> 26 | G36: =[11]TOTAUX!$G$5 -> 12 | H36: =[11]TOTAUX!$H$5 -> 15 | I36: =[11]TOTAUX!$I$5 -> 9 | J36: =[11]TOTAUX!$J$5 -> 9 | K36: =[11]TOTAUX!$K$5 -> 0 | L36: =[11]TOTAUX!$L$5 -> 4 | M36: =[11]TOTAUX!$M$5 -> 2 | N36: =[11]TOTAUX!$N$5 -> 1 | O36: =[11]TOTAUX!$O$5 -> 0 | P36: =[11]TOTAUX!$P$5 -> 3 | Q36: =[11]TOTAUX!$Q$5 -> 1 | R36: =[11]TOTAUX!$R$5 -> 2 | S36: =H36/F36 -> 0.5769230769 | T36: =((H36+N36)/(F36+N36+P36)) -> 0.5333333333 | U36: =((J36)+(K36*2)+(L36*3)+(M36*4))/F36 -> 1.115384615
A37: 2 | B37: =[11]TOTAUX!$B$6 -> OUI | C37: =[11]TOTAUX!$C$6 -> OUI | D37: =[11]TOTAUX!$D$6 -> PHILIP JALBERT | E37: =[11]TOTAUX!$E$6 -> 11 | F37: =[11]TOTAUX!$F$6 -> 39 | G37: =[11]TOTAUX!$G$6 -> 10 | H37: =[11]TOTAUX!$H$6 -> 21 | I37: =[11]TOTAUX!$I$6 -> 17 | J37: =[11]TOTAUX!$J$6 -> 13 | K37: =[11]TOTAUX!$K$6 -> 5 | L37: =[11]TOTAUX!$L$6 -> 0 | M37: =[11]TOTAUX!$M$6 -> 3 | N37: =[11]TOTAUX!$N$6 -> 1 | O37: =[11]TOTAUX!$O$6 -> 0 | P37: =[11]TOTAUX!$P$6 -> 2 | Q37: =[11]TOTAUX!$Q$6 -> 1 | R37: =[11]TOTAUX!$R$6 -> 1 | S37: 0.5384615385 | T37: 0.5238095238 | U37: 0.8974358974
A38: 3 | B38: =[11]TOTAUX!$B$11 -> OUI | C38: =[11]TOTAUX!$C$11 -> OUI | D38: =[11]TOTAUX!$D$11 -> CEDRIK FAUCHER | E38: =[11]TOTAUX!$E$11 -> 3 | F38: =[11]TOTAUX!$F$11 -> 8 | G38: =[11]TOTAUX!$G$11 -> 4 | H38: =[11]TOTAUX!$H$11 -> 4 | I38: =[11]TOTAUX!$I$11 -> 1 | J38: =[11]TOTAUX!$J$11 -> 3 | K38: =[11]TOTAUX!$K$11 -> 1 | L38: =[11]TOTAUX!$L$11 -> 0 | M38: =[11]TOTAUX!$M$11 -> 0 | N38: =[11]TOTAUX!$N$11 -> 3 | O38: =[11]TOTAUX!$O$11 -> 0 | P38: =[11]TOTAUX!$P$11 -> 0 | Q38: =[11]TOTAUX!$Q$11 -> 1 | R38: =[11]TOTAUX!$R$11 -> 0 | S38: 0.5 | T38: 0.6363636364 | U38: 0.625
A39: 4 | B39: =[11]TOTAUX!$B$3 -> OUI | C39: =[11]TOTAUX!$C$3 -> OUI | D39: =[11]TOTAUX!$D$3 -> ALEXANDRE BRODEUR | E39: =[11]TOTAUX!$E$3 -> 10 | F39: =[11]TOTAUX!$F$3 -> 36 | G39: =[11]TOTAUX!$G$3 -> 11 | H39: =[11]TOTAUX!$H$3 -> 16 | I39: =[11]TOTAUX!$I$3 -> 8 | J39: =[11]TOTAUX!$J$3 -> 11 | K39: =[11]TOTAUX!$K$3 -> 4 | L39: =[11]TOTAUX!$L$3 -> 1 | M39: =[11]TOTAUX!$M$3 -> 0 | N39: =[11]TOTAUX!$N$3 -> 3 | O39: =[11]TOTAUX!$O$3 -> 0 | P39: =[11]TOTAUX!$P$3 -> 0 | Q39: =[11]TOTAUX!$Q$3 -> 0 | R39: =[11]TOTAUX!$R$3 -> 0 | S39: 0.4444444444 | T39: 0.4871794872 | U39: 0.6111111111
A40: 5 | B40: =[11]TOTAUX!$B$16 -> OUI | C40: =[11]TOTAUX!$C$16 -> OUI | D40: =[11]TOTAUX!$D$16 -> DOMINIC THERIAULT | E40: =[11]TOTAUX!$E$16 -> 4 | F40: =[11]TOTAUX!$F$16 -> 12 | G40: =[11]TOTAUX!$G$16 -> 3 | H40: =[11]TOTAUX!$H$16 -> 5 | I40: =[11]TOTAUX!$I$16 -> 1 | J40: =[11]TOTAUX!$J$16 -> 3 | K40: =[11]TOTAUX!$K$16 -> 2 | L40: =[11]TOTAUX!$L$16 -> 0 | M40: =[11]TOTAUX!$M$16 -> 0 | N40: =[11]TOTAUX!$N$16 -> 0 | O40: =[11]TOTAUX!$O$16 -> 0 | P40: =[11]TOTAUX!$P$16 -> 0 | Q40: =[11]TOTAUX!$Q$16 -> 1 | R40: =[11]TOTAUX!$R$16 -> 0 | S40: 0.4166666667 | T40: 0.4166666667 | U40: 0.5833333333
A41: 6 | B41: =[11]TOTAUX!$B$10 -> OUI | C41: =[11]TOTAUX!$C$10 -> OUI | D41: =[11]TOTAUX!$D$10 -> LOUIS-SÉBASTIEN DESHAIES | E41: =[11]TOTAUX!$E$10 -> 11 | F41: =[11]TOTAUX!$F$10 -> 39 | G41: =[11]TOTAUX!$G$10 -> 9 | H41: =[11]TOTAUX!$H$10 -> 15 | I41: =[11]TOTAUX!$I$10 -> 10 | J41: =[11]TOTAUX!$J$10 -> 13 | K41: =[11]TOTAUX!$K$10 -> 2 | L41: =[11]TOTAUX!$L$10 -> 0 | M41: =[11]TOTAUX!$M$10 -> 0 | N41: =[11]TOTAUX!$N$10 -> 1 | O41: =[11]TOTAUX!$O$10 -> 0 | P41: =[11]TOTAUX!$P$10 -> 1 | Q41: =[11]TOTAUX!$Q$10 -> 2 | R41: =[11]TOTAUX!$R$10 -> 2 | S41: 0.3846153846 | T41: 0.3902439024 | U41: 0.4358974359
A42: 7 | B42: =[11]TOTAUX!$B$7 -> OUI | C42: =[11]TOTAUX!$C$7 -> OUI | D42: =[11]TOTAUX!$D$7 -> HUGO VANASSE | E42: =[11]TOTAUX!$E$7 -> 8 | F42: =[11]TOTAUX!$F$7 -> 30 | G42: =[11]TOTAUX!$G$7 -> 8 | H42: =[11]TOTAUX!$H$7 -> 11 | I42: =[11]TOTAUX!$I$7 -> 2 | J42: =[11]TOTAUX!$J$7 -> 9 | K42: =[11]TOTAUX!$K$7 -> 1 | L42: =[11]TOTAUX!$L$7 -> 1 | M42: =[11]TOTAUX!$M$7 -> 0 | N42: =[11]TOTAUX!$N$7 -> 1 | O42: =[11]TOTAUX!$O$7 -> 0 | P42: =[11]TOTAUX!$P$7 -> 0 | Q42: =[11]TOTAUX!$Q$7 -> 3 | R42: =[11]TOTAUX!$R$7 -> 1 | S42: 0.3666666667 | T42: 0.3870967742 | U42: 0.4666666667
A43: 8 | B43: =[11]TOTAUX!$B$4 -> OUI | C43: =[11]TOTAUX!$C$4 -> OUI | D43: =[11]TOTAUX!$D$4 -> WILLIAM SCOTT | E43: =[11]TOTAUX!$E$4 -> 8 | F43: =[11]TOTAUX!$F$4 -> 25 | G43: =[11]TOTAUX!$G$4 -> 4 | H43: =[11]TOTAUX!$H$4 -> 9 | I43: =[11]TOTAUX!$I$4 -> 2 | J43: =[11]TOTAUX!$J$4 -> 6 | K43: =[11]TOTAUX!$K$4 -> 3 | L43: =[11]TOTAUX!$L$4 -> 0 | M43: =[11]TOTAUX!$M$4 -> 0 | N43: =[11]TOTAUX!$N$4 -> 3 | O43: =[11]TOTAUX!$O$4 -> 0 | P43: =[11]TOTAUX!$P$4 -> 0 | Q43: =[11]TOTAUX!$Q$4 -> 0 | R43: =[11]TOTAUX!$R$4 -> 1 | S43: 0.36 | T43: 0.4285714286 | U43: 0.48
A44: 9 | B44: =[11]TOTAUX!$B$18 -> OUI | C44: =[11]TOTAUX!$C$18 -> OUI | D44: =[11]TOTAUX!$D$18 -> MATHIEU BROUSSEAU | E44: =[11]TOTAUX!$E$18 -> 2 | F44: =[11]TOTAUX!$F$18 -> 6 | G44: =[11]TOTAUX!$G$18 -> 0 | H44: =[11]TOTAUX!$H$18 -> 2 | I44: =[11]TOTAUX!$I$18 -> 1 | J44: =[11]TOTAUX!$J$18 -> 2 | K44: =[11]TOTAUX!$K$18 -> 0 | L44: =[11]TOTAUX!$L$18 -> 0 | M44: =[11]TOTAUX!$M$18 -> 0 | N44: =[11]TOTAUX!$N$18 -> 0 | O44: =[11]TOTAUX!$O$18 -> 0 | P44: =[11]TOTAUX!$P$18 -> 0 | Q44: =[11]TOTAUX!$Q$18 -> 1 | R44: =[11]TOTAUX!$R$18 -> 0 | S44: 0.3333333333 | T44: 0.3333333333 | U44: 0.3333333333
A45: 10 | B45: =[11]TOTAUX!$B$14 -> OUI | C45: =[11]TOTAUX!$C$14 -> OUI | D45: =[11]TOTAUX!$D$14 -> PHILIPPE DALLAIRE | E45: =[11]TOTAUX!$E$14 -> 4 | F45: =[11]TOTAUX!$F$14 -> 11 | G45: =[11]TOTAUX!$G$14 -> 2 | H45: =[11]TOTAUX!$H$14 -> 3 | I45: =[11]TOTAUX!$I$14 -> 5 | J45: =[11]TOTAUX!$J$14 -> 1 | K45: =[11]TOTAUX!$K$14 -> 1 | L45: =[11]TOTAUX!$L$14 -> 0 | M45: =[11]TOTAUX!$M$14 -> 1 | N45: =[11]TOTAUX!$N$14 -> 0 | O45: =[11]TOTAUX!$O$14 -> 0 | P45: =[11]TOTAUX!$P$14 -> 1 | Q45: =[11]TOTAUX!$Q$14 -> 3 | R45: =[11]TOTAUX!$R$14 -> 0 | S45: 0.2727272727 | T45: 0.25 | U45: 0.6363636364
A46: 11 | B46: =[11]TOTAUX!$B$13 -> OUI | C46: =[11]TOTAUX!$C$13 -> OUI | D46: =[11]TOTAUX!$D$13 -> FRÉDÉRIC CHARLEBOIS | E46: =[11]TOTAUX!$E$13 -> 3 | F46: =[11]TOTAUX!$F$13 -> 11 | G46: =[11]TOTAUX!$G$13 -> 5 | H46: =[11]TOTAUX!$H$13 -> 3 | I46: =[11]TOTAUX!$I$13 -> 0 | J46: =[11]TOTAUX!$J$13 -> 1 | K46: =[11]TOTAUX!$K$13 -> 1 | L46: =[11]TOTAUX!$L$13 -> 1 | M46: =[11]TOTAUX!$M$13 -> 0 | N46: =[11]TOTAUX!$N$13 -> 0 | O46: =[11]TOTAUX!$O$13 -> 0 | P46: =[11]TOTAUX!$P$13 -> 0 | Q46: =[11]TOTAUX!$Q$13 -> 0 | R46: =[11]TOTAUX!$R$13 -> 0 | S46: 0.2727272727 | T46: 0.2727272727 | U46: 0.5454545455
A47: 12 | B47: =[11]TOTAUX!$B$8 -> OUI | C47: =[11]TOTAUX!$C$8 -> OUI | D47: =[11]TOTAUX!$D$8 -> JULIEN HENRI | E47: =[11]TOTAUX!$E$8 -> 6 | F47: =[11]TOTAUX!$F$8 -> 15 | G47: =[11]TOTAUX!$G$8 -> 6 | H47: =[11]TOTAUX!$H$8 -> 4 | I47: =[11]TOTAUX!$I$8 -> 2 | J47: =[11]TOTAUX!$J$8 -> 3 | K47: =[11]TOTAUX!$K$8 -> 1 | L47: =[11]TOTAUX!$L$8 -> 0 | M47: =[11]TOTAUX!$M$8 -> 0 | N47: =[11]TOTAUX!$N$8 -> 3 | O47: =[11]TOTAUX!$O$8 -> 0 | P47: =[11]TOTAUX!$P$8 -> 0 | Q47: =[11]TOTAUX!$Q$8 -> 2 | R47: =[11]TOTAUX!$R$8 -> 0 | S47: 0.2666666667 | T47: 0.3888888889 | U47: 0.3333333333
A48: 13 | B48: =[11]TOTAUX!$B$17 -> OUI | C48: =[11]TOTAUX!$C$17 -> OUI | D48: =[11]TOTAUX!$D$17 -> JÉRÔME TREMBLAY | E48: =[11]TOTAUX!$E$17 -> 7 | F48: =[11]TOTAUX!$F$17 -> 23 | G48: =[11]TOTAUX!$G$17 -> 4 | H48: =[11]TOTAUX!$H$17 -> 6 | I48: =[11]TOTAUX!$I$17 -> 2 | J48: =[11]TOTAUX!$J$17 -> 4 | K48: =[11]TOTAUX!$K$17 -> 2 | L48: =[11]TOTAUX!$L$17 -> 0 | M48: =[11]TOTAUX!$M$17 -> 0 | N48: =[11]TOTAUX!$N$17 -> 3 | O48: =[11]TOTAUX!$O$17 -> 0 | P48: =[11]TOTAUX!$P$17 -> 0 | Q48: =[11]TOTAUX!$Q$17 -> 3 | R48: =[11]TOTAUX!$R$17 -> 0 | S48: 0.2608695652 | T48: 0.3461538462 | U48: 0.347826087
A49: 14 | B49: =[11]TOTAUX!$B$15 -> OUI | C49: =[11]TOTAUX!$C$15 -> OUI | D49: =[11]TOTAUX!$D$15 -> ALEX LALONDE | E49: =[11]TOTAUX!$E$15 -> 11 | F49: =[11]TOTAUX!$F$15 -> 31 | G49: =[11]TOTAUX!$G$15 -> 5 | H49: =[11]TOTAUX!$H$15 -> 8 | I49: =[11]TOTAUX!$I$15 -> 4 | J49: =[11]TOTAUX!$J$15 -> 7 | K49: =[11]TOTAUX!$K$15 -> 1 | L49: =[11]TOTAUX!$L$15 -> 0 | M49: =[11]TOTAUX!$M$15 -> 0 | N49: =[11]TOTAUX!$N$15 -> 8 | O49: =[11]TOTAUX!$O$15 -> 0 | P49: =[11]TOTAUX!$P$15 -> 1 | Q49: =[11]TOTAUX!$Q$15 -> 1 | R49: =[11]TOTAUX!$R$15 -> 1 | S49: 0.2580645161 | T49: 0.4 | U49: 0.2903225806
A50: 15 | B50: =[11]TOTAUX!$B$12 -> OUI | C50: =[11]TOTAUX!$C$12 -> OUI | D50: =[11]TOTAUX!$D$12 -> GABRIEL LAFOREST | E50: =[11]TOTAUX!$E$12 -> 10 | F50: =[11]TOTAUX!$F$12 -> 32 | G50: =[11]TOTAUX!$G$12 -> 2 | H50: =[11]TOTAUX!$H$12 -> 7 | I50: =[11]TOTAUX!$I$12 -> 6 | J50: =[11]TOTAUX!$J$12 -> 4 | K50: =[11]TOTAUX!$K$12 -> 2 | L50: =[11]TOTAUX!$L$12 -> 0 | M50: =[11]TOTAUX!$M$12 -> 0 | N50: =[11]TOTAUX!$N$12 -> 3 | O50: =[11]TOTAUX!$O$12 -> 0 | P50: =[11]TOTAUX!$P$12 -> 2 | Q50: =[11]TOTAUX!$Q$12 -> 2 | R50: =[11]TOTAUX!$R$12 -> 3 | S50: 0.21875 | T50: 0.2702702703 | U50: 0.25
A51: 16 | B51: =[11]TOTAUX!$B$20 -> OUI | C51: =[11]TOTAUX!$C$20 -> OUI | D51: =[11]TOTAUX!$D$20 -> MATHIEU VADEBONCOEUR | E51: =[11]TOTAUX!$E$20 -> 3 | F51: =[11]TOTAUX!$F$20 -> 9 | G51: =[11]TOTAUX!$G$20 -> 1 | H51: =[11]TOTAUX!$H$20 -> 1 | I51: =[11]TOTAUX!$I$20 -> 0 | J51: =[11]TOTAUX!$J$20 -> 1 | K51: =[11]TOTAUX!$K$20 -> 0 | L51: =[11]TOTAUX!$L$20 -> 0 | M51: =[11]TOTAUX!$M$20 -> 0 | N51: =[11]TOTAUX!$N$20 -> 0 | O51: =[11]TOTAUX!$O$20 -> 0 | P51: =[11]TOTAUX!$P$20 -> 0 | Q51: =[11]TOTAUX!$Q$20 -> 0 | R51: =[11]TOTAUX!$R$20 -> 0 | S51: 0.1111111111 | T51: 0.1111111111 | U51: 0.1111111111
A52: 17 | B52: =[11]TOTAUX!$B$9 -> OUI | C52: =[11]TOTAUX!$C$9 -> OUI | D52: =[11]TOTAUX!$D$9 -> RAPHAËL HENRI | E52: =[11]TOTAUX!$E$9 -> 0 | F52: =[11]TOTAUX!$F$9 -> 0 | G52: =[11]TOTAUX!$G$9 -> 0 | H52: =[11]TOTAUX!$H$9 -> 0 | I52: =[11]TOTAUX!$I$9 -> 0 | J52: =[11]TOTAUX!$J$9 -> 0 | K52: =[11]TOTAUX!$K$9 -> 0 | L52: =[11]TOTAUX!$L$9 -> 0 | M52: =[11]TOTAUX!$M$9 -> 0 | N52: =[11]TOTAUX!$N$9 -> 0 | O52: =[11]TOTAUX!$O$9 -> 0 | P52: =[11]TOTAUX!$P$9 -> 0 | Q52: =[11]TOTAUX!$Q$9 -> 0 | R52: =[11]TOTAUX!$R$9 -> 0
A53: 18 | B53: =[11]TOTAUX!$B$19 -> OUI | C53: =[11]TOTAUX!$C$19 -> OUI | D53: =[11]TOTAUX!$D$19 -> FRANCIS LE MESURIER | E53: =[11]TOTAUX!$E$19 -> 0 | F53: =[11]TOTAUX!$F$19 -> 0 | G53: =[11]TOTAUX!$G$19 -> 0 | H53: =[11]TOTAUX!$H$19 -> 0 | I53: =[11]TOTAUX!$I$19 -> 0 | J53: =[11]TOTAUX!$J$19 -> 0 | K53: =[11]TOTAUX!$K$19 -> 0 | L53: =[11]TOTAUX!$L$19 -> 0 | M53: =[11]TOTAUX!$M$19 -> 0 | N53: =[11]TOTAUX!$N$19 -> 0 | O53: =[11]TOTAUX!$O$19 -> 0 | P53: =[11]TOTAUX!$P$19 -> 0 | Q53: =[11]TOTAUX!$Q$19 -> 0 | R53: =[11]TOTAUX!$R$19 -> 0
A54: 19 | B54: =[11]TOTAUX!$B$21 -> OUI | C54: =[11]TOTAUX!$C$21 -> OUI | D54: =[11]TOTAUX!$D$21 -> DANIEL SCOTT | E54: =[11]TOTAUX!$E$22 -> 0 | F54: =[11]TOTAUX!$F$21 -> 0 | G54: =[11]TOTAUX!$G$21 -> 0 | H54: =[11]TOTAUX!$H$21 -> 0 | I54: =[11]TOTAUX!$I$21 -> 0 | J54: =[11]TOTAUX!$J$21 -> 0 | K54: =[11]TOTAUX!$K$21 -> 0 | L54: =[11]TOTAUX!$L$21 -> 0 | M54: =[11]TOTAUX!$M$21 -> 0 | N54: =[11]TOTAUX!$N$21 -> 0 | O54: =[11]TOTAUX!$O$21 -> 0 | P54: =[11]TOTAUX!$P$21 -> 0 | Q54: =[11]TOTAUX!$Q$21 -> 0 | R54: =[11]TOTAUX!$R$21 -> 0
A55: 20 | B55: =[11]TOTAUX!$B$22 -> OUI | C55: =[11]TOTAUX!$C$22 -> OUI | D55: =[11]TOTAUX!$D$22 -> SEBATIEN LORD-MASSÉ | E55: =[11]TOTAUX!$E$23 -> 0 | F55: =[11]TOTAUX!$F$22 -> 0 | G55: =[11]TOTAUX!$G$22 -> 0 | H55: =[11]TOTAUX!$H$22 -> 0 | I55: =[11]TOTAUX!$I$22 -> 0 | J55: =[11]TOTAUX!$J$22 -> 0 | K55: =[11]TOTAUX!$K$22 -> 0 | L55: =[11]TOTAUX!$L$22 -> 0 | M55: =[11]TOTAUX!$M$22 -> 0 | N55: =[11]TOTAUX!$N$22 -> 0 | O55: =[11]TOTAUX!$O$22 -> 0 | P55: =[11]TOTAUX!$P$22 -> 0 | Q55: =[11]TOTAUX!$Q$22 -> 0 | R55: =[11]TOTAUX!$R$22 -> 0
D56: TOTAUX | F56: =[11]TOTAUX!$F$23 -> 353 | G56: =[11]TOTAUX!$G$23 -> 86 | H56: =[11]TOTAUX!$H$23 -> 130 | I56: =[11]TOTAUX!$I$23 -> 70 | J56: =[11]TOTAUX!$J$23 -> 90 | K56: =[11]TOTAUX!$K$23 -> 26 | L56: =[11]TOTAUX!$L$23 -> 7 | M56: =[11]TOTAUX!$M$23 -> 6 | N56: =[11]TOTAUX!$N$23 -> 30 | O56: =[11]TOTAUX!$O$23 -> 0 | P56: =[11]TOTAUX!$P$23 -> 10 | Q56: =[11]TOTAUX!$Q$23 -> 21 | R56: =[11]TOTAUX!$R$23 -> 11 | S56: 0.3682719547 | T56: 0.4071246819 | U56: 0.5297450425
D58: NOM | E58: PJ | F58: PD | G58: V | H58: D | I58: N | J58: ML | K58: P | L58: PM | M58: CS | N58: BB | O58: WP | P58: RAB | Q58: MPM | R58: K/7 | S58: WHIP | T58: ML SÉRIES
D59: =[11]TOTAUX!$D$27 -> PHILIPPE DALLAIRE | E59: =[11]TOTAUX!$E$27 -> 2 | F59: =[11]TOTAUX!$F$27 -> 2 | G59: =[11]TOTAUX!$G$27 -> 2 | H59: =[11]TOTAUX!$H$27 -> 0 | I59: =[11]TOTAUX!$I$27 -> 0 | J59: =[11]TOTAUX!$J$27 -> 14 | K59: =[11]TOTAUX!$K$27 -> 5 | L59: =[11]TOTAUX!$L$27 -> 3 | M59: =[11]TOTAUX!$M$27 -> 9 | N59: =[11]TOTAUX!$N$27 -> 5 | O59: =[11]TOTAUX!$O$27 -> 0 | P59: =[11]TOTAUX!$P$27 -> 10 | Q59: =(L59*7)/J59 -> 1.5 | R59: =(P59*7)/J59 -> 5 | S59: =(M59+N59)/J59 -> 1 | T59: =[11]TOTAUX!$T$27 -> 14
D60: =[11]TOTAUX!$D$26 -> GABRIEL LAFOREST | E60: =[11]TOTAUX!$E$26 -> 8 | F60: =[11]TOTAUX!$F$26 -> 8 | G60: =[11]TOTAUX!$G$26 -> 4 | H60: =[11]TOTAUX!$H$26 -> 3 | I60: =[11]TOTAUX!$I$26 -> 0 | J60: =[11]TOTAUX!$J$26 -> 47 | K60: =[11]TOTAUX!$K$26 -> 58 | L60: =[11]TOTAUX!$L$26 -> 41 | M60: =[11]TOTAUX!$M$26 -> 70 | N60: =[11]TOTAUX!$N$26 -> 36 | O60: =[11]TOTAUX!$O$26 -> 5 | P60: =[11]TOTAUX!$P$26 -> 17 | Q60: 6.106382979 | R60: 2.531914894 | S60: 2.255319149 | T60: =[11]TOTAUX!$T$26 -> 48.66
D61: =[11]TOTAUX!$D$28 -> ALEXANDRE BRODEUR | E61: =[11]TOTAUX!$E$28 -> 3 | F61: =[11]TOTAUX!$F$28 -> 1 | G61: =[11]TOTAUX!$G$28 -> 0 | H61: =[11]TOTAUX!$H$28 -> 2 | I61: =[11]TOTAUX!$I$28 -> 0 | J61: =[11]TOTAUX!$J$28 -> 14.34 | K61: =[11]TOTAUX!$K$28 -> 17 | L61: =[11]TOTAUX!$L$28 -> 16 | M61: =[11]TOTAUX!$M$28 -> 24 | N61: =[11]TOTAUX!$N$28 -> 15 | O61: =[11]TOTAUX!$O$28 -> 0 | P61: =[11]TOTAUX!$P$28 -> 2 | Q61: 7.810320781 | R61: 0.9762900976 | S61: 2.719665272 | T61: =[11]TOTAUX!$T$28 -> 14.34
D62: =[11]TOTAUX!$D$29 -> 4 | E62: =[11]TOTAUX!$E$29 -> 0 | F62: =[11]TOTAUX!$F$29 -> 0 | G62: =[11]TOTAUX!$G$29 -> 0 | H62: =[11]TOTAUX!$H$29 -> 0 | I62: =[11]TOTAUX!$I$29 -> 0 | J62: =[11]TOTAUX!$J$29 -> 0 | K62: =[11]TOTAUX!$K$29 -> 0 | L62: =[11]TOTAUX!$L$29 -> 0 | M62: =[11]TOTAUX!$M$29 -> 0 | N62: =[11]TOTAUX!$N$29 -> 0 | O62: =[11]TOTAUX!$O$29 -> 0 | P62: =[11]TOTAUX!$P$29 -> 0 | T62: =[11]TOTAUX!$T$29 -> 0
D63: =[11]TOTAUX!$D$30 -> 5 | E63: =[11]TOTAUX!$E$30 -> 0 | F63: =[11]TOTAUX!$F$30 -> 0 | G63: =[11]TOTAUX!$G$30 -> 0 | H63: =[11]TOTAUX!$H$30 -> 0 | I63: =[11]TOTAUX!$I$30 -> 0 | J63: =[11]TOTAUX!$J$30 -> 0 | K63: =[11]TOTAUX!$K$30 -> 0 | L63: =[11]TOTAUX!$L$30 -> 0 | M63: =[11]TOTAUX!$M$30 -> 0 | N63: =[11]TOTAUX!$N$30 -> 0 | O63: =[11]TOTAUX!$O$30 -> 0 | P63: =[11]TOTAUX!$P$30 -> 0 | T63: =[11]TOTAUX!$T$30 -> 0
D64: =[11]TOTAUX!$D$31 -> 6 | E64: =[11]TOTAUX!$E$31 -> 0 | F64: =[11]TOTAUX!$F$31 -> 0 | G64: =[11]TOTAUX!$G$31 -> 0 | H64: =[11]TOTAUX!$H$31 -> 0 | I64: =[11]TOTAUX!$I$31 -> 0 | J64: =[11]TOTAUX!$J$31 -> 0 | K64: =[11]TOTAUX!$K$31 -> 0 | L64: =[11]TOTAUX!$L$31 -> 0 | M64: =[11]TOTAUX!$M$31 -> 0 | N64: =[11]TOTAUX!$N$31 -> 0 | O64: =[11]TOTAUX!$O$31 -> 0 | P64: =[11]TOTAUX!$P$31 -> 0 | T64: =[11]TOTAUX!$T$31 -> 0
D65: TOTAUX | E65: =[11]TOTAUX!$E$32 -> 13 | F65: =[11]TOTAUX!$F$32 -> 11 | G65: =[11]TOTAUX!$G$32 -> 6 | H65: =[11]TOTAUX!$H$32 -> 5 | I65: =[11]TOTAUX!$I$32 -> 0 | J65: =[11]TOTAUX!$J$32 -> 75.34 | K65: =[11]TOTAUX!$K$32 -> 80 | L65: =[11]TOTAUX!$L$32 -> 60 | M65: =[11]TOTAUX!$M$32 -> 103 | N65: =[11]TOTAUX!$N$32 -> 56 | O65: =[11]TOTAUX!$O$32 -> 5 | P65: =[11]TOTAUX!$P$32 -> 29 | Q65: 5.5747279 | R65: 2.694451818 | S65: 2.110432705
H66: GIANTS
A67: # | B67: Photo | C67: Contrat | D67: Nom | E67: PJ | F67: AB | G67: P | H67: CS | I67: PP | J67: 1B | K67: 2B | L67: 3B | M67: CC | N67: BB | O67: SAC | P67: BSAC | Q67: RAB | R67: ERR | S67: MOY | T67: MPB | U67: PUI
A68: 1 | B68: =[13]TOTAUX!$B$17 -> OUI | C68: =[13]TOTAUX!$C$17 -> OUI | D68: =[13]TOTAUX!$D$17 -> YANNICK GIBEAU | E68: =[13]TOTAUX!$E$17 -> 4 | F68: =[13]TOTAUX!$F$17 -> 14 | G68: =[13]TOTAUX!$G$17 -> 6 | H68: =[13]TOTAUX!$H$17 -> 8 | I68: =[13]TOTAUX!$I$17 -> 7 | J68: =[13]TOTAUX!$J$17 -> 2 | K68: =[13]TOTAUX!$K$17 -> 4 | L68: =[13]TOTAUX!$L$17 -> 0 | M68: =[13]TOTAUX!$M$17 -> 2 | N68: =[13]TOTAUX!$N$17 -> 0 | O68: =[13]TOTAUX!$O$17 -> 0 | P68: =[13]TOTAUX!$P$17 -> 0 | Q68: =[13]TOTAUX!$Q$17 -> 0 | R68: =[13]TOTAUX!$R$17 -> 1 | S68: =H68/F68 -> 0.5714285714 | T68: =((H68+N68)/(F68+N68+P68)) -> 0.5714285714 | U68: =((J68)+(K68*2)+(L68*3)+(M68*4))/F68 -> 1.285714286
A69: =A68+1 -> 2 | B69: =[13]TOTAUX!$B$6 -> OUI | C69: =[13]TOTAUX!$C$6 -> OUI | D69: =[13]TOTAUX!$D$6 -> MARCO DYOTTE | E69: =[13]TOTAUX!$E$6 -> 10 | F69: =[13]TOTAUX!$F$6 -> 29 | G69: =[13]TOTAUX!$G$6 -> 9 | H69: =[13]TOTAUX!$H$6 -> 14 | I69: =[13]TOTAUX!$I$6 -> 7 | J69: =[13]TOTAUX!$J$6 -> 11 | K69: =[13]TOTAUX!$K$6 -> 2 | L69: =[13]TOTAUX!$L$6 -> 1 | M69: =[13]TOTAUX!$M$6 -> 0 | N69: =[13]TOTAUX!$N$6 -> 6 | O69: =[13]TOTAUX!$O$6 -> 0 | P69: =[13]TOTAUX!$P$6 -> 0 | Q69: =[13]TOTAUX!$Q$6 -> 1 | R69: =[13]TOTAUX!$R$6 -> 1 | S69: 0.4827586207 | T69: 0.5714285714 | U69: 0.6206896552
A70: =A69+1 -> 3 | B70: =[13]TOTAUX!$B$14 -> OUI | C70: =[13]TOTAUX!$C$14 -> OUI | D70: =[13]TOTAUX!$D$14 -> SEBASTIEN DÉNOMMÉ | E70: =[13]TOTAUX!$E$14 -> 10 | F70: =[13]TOTAUX!$F$14 -> 34 | G70: =[13]TOTAUX!$G$14 -> 2 | H70: =[13]TOTAUX!$H$14 -> 14 | I70: =[13]TOTAUX!$I$14 -> 4 | J70: =[13]TOTAUX!$J$14 -> 14 | K70: =[13]TOTAUX!$K$14 -> 0 | L70: =[13]TOTAUX!$L$14 -> 0 | M70: =[13]TOTAUX!$M$14 -> 0 | N70: =[13]TOTAUX!$N$14 -> 0 | O70: =[13]TOTAUX!$O$14 -> 0 | P70: =[13]TOTAUX!$P$14 -> 1 | Q70: =[13]TOTAUX!$Q$14 -> 0 | R70: =[13]TOTAUX!$R$14 -> 0 | S70: 0.4117647059 | T70: 0.4 | U70: 0.4117647059
A71: 4 | B71: =[13]TOTAUX!$B$10 -> OUI | C71: =[13]TOTAUX!$C$10 -> OUI | D71: =[13]TOTAUX!$D$10 -> FRANCIS LARIVÉE | E71: =[13]TOTAUX!$E$10 -> 8 | F71: =[13]TOTAUX!$F$10 -> 26 | G71: =[13]TOTAUX!$G$10 -> 5 | H71: =[13]TOTAUX!$H$10 -> 10 | I71: =[13]TOTAUX!$I$10 -> 7 | J71: =[13]TOTAUX!$J$10 -> 7 | K71: =[13]TOTAUX!$K$10 -> 2 | L71: =[13]TOTAUX!$L$10 -> 0 | M71: =[13]TOTAUX!$M$10 -> 1 | N71: =[13]TOTAUX!$N$10 -> 1 | O71: =[13]TOTAUX!$O$10 -> 0 | P71: =[13]TOTAUX!$P$10 -> 1 | Q71: =[13]TOTAUX!$Q$10 -> 2 | R71: =[13]TOTAUX!$R$10 -> 0 | S71: 0.3846153846 | T71: 0.3928571429 | U71: 0.5769230769
A72: 5 | B72: =[13]TOTAUX!$B$8 -> OUI | C72: =[13]TOTAUX!$C$8 -> OUI | D72: =[13]TOTAUX!$D$8 -> ERIC CHABADOS | E72: =[13]TOTAUX!$E$8 -> 10 | F72: =[13]TOTAUX!$F$8 -> 28 | G72: =[13]TOTAUX!$G$8 -> 5 | H72: =[13]TOTAUX!$H$8 -> 10 | I72: =[13]TOTAUX!$I$8 -> 3 | J72: =[13]TOTAUX!$J$8 -> 9 | K72: =[13]TOTAUX!$K$8 -> 1 | L72: =[13]TOTAUX!$L$8 -> 0 | M72: =[13]TOTAUX!$M$8 -> 0 | N72: =[13]TOTAUX!$N$8 -> 3 | O72: =[13]TOTAUX!$O$8 -> 0 | P72: =[13]TOTAUX!$P$8 -> 0 | Q72: =[13]TOTAUX!$Q$8 -> 1 | R72: =[13]TOTAUX!$R$8 -> 0 | S72: 0.3571428571 | T72: 0.4193548387 | U72: 0.3928571429
A73: 6 | B73: =[13]TOTAUX!$B$5 -> OUI | C73: =[13]TOTAUX!$C$5 -> OUI | D73: =[13]TOTAUX!$D$5 -> JEAN-FRANCOIS POULIOT | E73: =[13]TOTAUX!$E$5 -> 10 | F73: =[13]TOTAUX!$F$5 -> 34 | G73: =[13]TOTAUX!$G$5 -> 3 | H73: =[13]TOTAUX!$H$5 -> 12 | I73: =[13]TOTAUX!$I$5 -> 9 | J73: =[13]TOTAUX!$J$5 -> 8 | K73: =[13]TOTAUX!$K$5 -> 4 | L73: =[13]TOTAUX!$L$5 -> 0 | M73: =[13]TOTAUX!$M$5 -> 0 | N73: =[13]TOTAUX!$N$5 -> 0 | O73: =[13]TOTAUX!$O$5 -> 0 | P73: =[13]TOTAUX!$P$5 -> 0 | Q73: =[13]TOTAUX!$Q$5 -> 2 | R73: =[13]TOTAUX!$R$5 -> 0 | S73: 0.3529411765 | T73: 0.3529411765 | U73: 0.4705882353
A74: 7 | B74: =[13]TOTAUX!$B$7 -> OUI | C74: =[13]TOTAUX!$C$7 -> OUI | D74: =[13]TOTAUX!$D$7 -> BENOIT BOISVERT | E74: =[13]TOTAUX!$E$7 -> 11 | F74: =[13]TOTAUX!$F$7 -> 36 | G74: =[13]TOTAUX!$G$7 -> 6 | H74: =[13]TOTAUX!$H$7 -> 12 | I74: =[13]TOTAUX!$I$7 -> 4 | J74: =[13]TOTAUX!$J$7 -> 9 | K74: =[13]TOTAUX!$K$7 -> 3 | L74: =[13]TOTAUX!$L$7 -> 0 | M74: =[13]TOTAUX!$M$7 -> 0 | N74: =[13]TOTAUX!$N$7 -> 1 | O74: =[13]TOTAUX!$O$7 -> 1 | P74: =[13]TOTAUX!$P$7 -> 1 | Q74: =[13]TOTAUX!$Q$7 -> 2 | R74: =[13]TOTAUX!$R$7 -> 1 | S74: 0.3333333333 | T74: 0.3421052632 | U74: 0.4166666667
A75: 8 | B75: =[13]TOTAUX!$B$15 -> OUI | C75: =[13]TOTAUX!$C$15 -> OUI | D75: =[13]TOTAUX!$D$15 -> ALAIN SÉNÉCAL | E75: =[13]TOTAUX!$E$15 -> 3 | F75: =[13]TOTAUX!$F$15 -> 3 | G75: =[13]TOTAUX!$G$15 -> 1 | H75: =[13]TOTAUX!$H$15 -> 1 | I75: =[13]TOTAUX!$I$15 -> 0 | J75: =[13]TOTAUX!$J$15 -> 1 | K75: =[13]TOTAUX!$K$15 -> 0 | L75: =[13]TOTAUX!$L$15 -> 0 | M75: =[13]TOTAUX!$M$15 -> 0 | N75: =[13]TOTAUX!$N$15 -> 0 | O75: =[13]TOTAUX!$O$15 -> 0 | P75: =[13]TOTAUX!$P$15 -> 0 | Q75: =[13]TOTAUX!$Q$15 -> 0 | R75: =[13]TOTAUX!$R$15 -> 0 | S75: 0.3333333333 | T75: 0.3333333333 | U75: 0.3333333333
A76: 9 | B76: =[13]TOTAUX!$B$9 -> OUI | C76: =[13]TOTAUX!$C$9 -> OUI | D76: =[13]TOTAUX!$D$9 -> JEREMY CHAPADOS | E76: =[13]TOTAUX!$E$9 -> 9 | F76: =[13]TOTAUX!$F$9 -> 27 | G76: =[13]TOTAUX!$G$9 -> 3 | H76: =[13]TOTAUX!$H$9 -> 8 | I76: =[13]TOTAUX!$I$9 -> 4 | J76: =[13]TOTAUX!$J$9 -> 3 | K76: =[13]TOTAUX!$K$9 -> 2 | L76: =[13]TOTAUX!$L$9 -> 2 | M76: =[13]TOTAUX!$M$9 -> 1 | N76: =[13]TOTAUX!$N$9 -> 3 | O76: =[13]TOTAUX!$O$9 -> 0 | P76: =[13]TOTAUX!$P$9 -> 0 | Q76: =[13]TOTAUX!$Q$9 -> 3 | R76: =[13]TOTAUX!$R$9 -> 1 | S76: 0.2962962963 | T76: 0.3666666667 | U76: 0.6296296296
A77: 10 | B77: =[13]TOTAUX!$B$11 -> OUI | C77: =[13]TOTAUX!$C$11 -> OUI | D77: =[13]TOTAUX!$D$11 -> MARC-ANDRÉ POIRIER | E77: =[13]TOTAUX!$E$11 -> 8 | F77: =[13]TOTAUX!$F$11 -> 22 | G77: =[13]TOTAUX!$G$11 -> 3 | H77: =[13]TOTAUX!$H$11 -> 6 | I77: =[13]TOTAUX!$I$11 -> 2 | J77: =[13]TOTAUX!$J$11 -> 5 | K77: =[13]TOTAUX!$K$11 -> 1 | L77: =[13]TOTAUX!$L$11 -> 0 | M77: =[13]TOTAUX!$M$11 -> 0 | N77: =[13]TOTAUX!$N$11 -> 3 | O77: =[13]TOTAUX!$O$11 -> 0 | P77: =[13]TOTAUX!$P$11 -> 0 | Q77: =[13]TOTAUX!$Q$11 -> 4 | R77: =[13]TOTAUX!$R$11 -> 0 | S77: 0.2727272727 | T77: 0.36 | U77: 0.3181818182
A78: 11 | B78: =[13]TOTAUX!$B$3 -> OUI | C78: =[13]TOTAUX!$C$3 -> OUI | D78: =[13]TOTAUX!$D$3 -> PHILIP DYOTTE | E78: =[13]TOTAUX!$E$3 -> 10 | F78: =[13]TOTAUX!$F$3 -> 31 | G78: =[13]TOTAUX!$G$3 -> 4 | H78: =[13]TOTAUX!$H$3 -> 8 | I78: =[13]TOTAUX!$I$3 -> 6 | J78: =[13]TOTAUX!$J$3 -> 6 | K78: =[13]TOTAUX!$K$3 -> 2 | L78: =[13]TOTAUX!$L$3 -> 0 | M78: =[13]TOTAUX!$M$3 -> 0 | N78: =[13]TOTAUX!$N$3 -> 2 | O78: =[13]TOTAUX!$O$3 -> 0 | P78: =[13]TOTAUX!$P$3 -> 0 | Q78: =[13]TOTAUX!$Q$3 -> 1 | R78: =[13]TOTAUX!$R$3 -> 1 | S78: 0.2580645161 | T78: 0.303030303 | U78: 0.3225806452
A79: 12 | B79: =[13]TOTAUX!$B$4 -> OUI | C79: =[13]TOTAUX!$C$4 -> OUI | D79: =[13]TOTAUX!$D$4 -> DOMINIQUE RICARD | E79: =[13]TOTAUX!$E$4 -> 8 | F79: =[13]TOTAUX!$F$4 -> 27 | G79: =[13]TOTAUX!$G$4 -> 6 | H79: =[13]TOTAUX!$H$4 -> 6 | I79: =[13]TOTAUX!$I$4 -> 2 | J79: =[13]TOTAUX!$J$4 -> 6 | K79: =[13]TOTAUX!$K$4 -> 0 | L79: =[13]TOTAUX!$L$4 -> 0 | M79: =[13]TOTAUX!$M$4 -> 0 | N79: =[13]TOTAUX!$N$4 -> 1 | O79: =[13]TOTAUX!$O$4 -> 0 | P79: =[13]TOTAUX!$P$4 -> 0 | Q79: =[13]TOTAUX!$Q$4 -> 2 | R79: =[13]TOTAUX!$R$4 -> 2 | S79: 0.2222222222 | T79: 0.25 | U79: 0.2222222222
A80: 13 | B80: =[13]TOTAUX!$B$12 -> OUI | C80: =[13]TOTAUX!$C$12 -> OUI | D80: =[13]TOTAUX!$D$12 -> KEVIN FORREST | E80: =[13]TOTAUX!$E$12 -> 9 | F80: =[13]TOTAUX!$F$12 -> 26 | G80: =[13]TOTAUX!$G$12 -> 5 | H80: =[13]TOTAUX!$H$12 -> 4 | I80: =[13]TOTAUX!$I$12 -> 1 | J80: =[13]TOTAUX!$J$12 -> 3 | K80: =[13]TOTAUX!$K$12 -> 1 | L80: =[13]TOTAUX!$L$12 -> 0 | M80: =[13]TOTAUX!$M$12 -> 0 | N80: =[13]TOTAUX!$N$12 -> 2 | O80: =[13]TOTAUX!$O$12 -> 0 | P80: =[13]TOTAUX!$P$12 -> 0 | Q80: =[13]TOTAUX!$Q$12 -> 0 | R80: =[13]TOTAUX!$R$12 -> 2 | S80: 0.1538461538 | T80: 0.2142857143 | U80: 0.1923076923
A81: 14 | B81: =[13]TOTAUX!$B$13 -> OUI | C81: =[13]TOTAUX!$C$13 -> OUI | D81: =[13]TOTAUX!$D$13 -> BENOIT CARMEL | E81: =[13]TOTAUX!$E$13 -> 1 | F81: =[13]TOTAUX!$F$13 -> 2 | G81: =[13]TOTAUX!$G$13 -> 0 | H81: =[13]TOTAUX!$H$13 -> 0 | I81: =[13]TOTAUX!$I$13 -> 0 | J81: =[13]TOTAUX!$J$13 -> 0 | K81: =[13]TOTAUX!$K$13 -> 0 | L81: =[13]TOTAUX!$L$13 -> 0 | M81: =[13]TOTAUX!$M$13 -> 0 | N81: =[13]TOTAUX!$N$13 -> 2 | O81: =[13]TOTAUX!$O$13 -> 0 | P81: =[13]TOTAUX!$P$13 -> 0 | Q81: =[13]TOTAUX!$Q$13 -> 0 | R81: =[13]TOTAUX!$R$13 -> 0 | S81: 0 | T81: 0.5 | U81: 0
A82: 15 | B82: =[13]TOTAUX!$B$22 -> OUI | C82: =[13]TOTAUX!$C$22 -> OUI | D82: =[13]TOTAUX!$D$22 -> JACQUES CHOUINARD | E82: =[13]TOTAUX!$E$22 -> 1 | F82: =[13]TOTAUX!$F$22 -> 1 | G82: =[13]TOTAUX!$G$22 -> 1 | H82: =[13]TOTAUX!$H$22 -> 0 | I82: =[13]TOTAUX!$I$22 -> 0 | J82: =[13]TOTAUX!$J$22 -> 0 | K82: =[13]TOTAUX!$K$22 -> 0 | L82: =[13]TOTAUX!$L$22 -> 0 | M82: =[13]TOTAUX!$M$22 -> 0 | N82: =[13]TOTAUX!$N$22 -> 1 | O82: =[13]TOTAUX!$O$22 -> 0 | P82: =[13]TOTAUX!$P$22 -> 0 | Q82: =[13]TOTAUX!$Q$22 -> 0 | R82: =[13]TOTAUX!$R$22 -> 0 | S82: 0 | T82: 0.5 | U82: 0
A83: 16 | B83: =[13]TOTAUX!$B$16 -> OUI | C83: =[13]TOTAUX!$C$16 -> OUI | D83: =[13]TOTAUX!$D$16 -> FREDERICK BATES | E83: =[13]TOTAUX!$E$16 -> 0 | F83: =[13]TOTAUX!$F$16 -> 0 | G83: =[13]TOTAUX!$G$16 -> 0 | H83: =[13]TOTAUX!$H$16 -> 0 | I83: =[13]TOTAUX!$I$16 -> 0 | J83: =[13]TOTAUX!$J$16 -> 0 | K83: =[13]TOTAUX!$K$16 -> 0 | L83: =[13]TOTAUX!$L$16 -> 0 | M83: =[13]TOTAUX!$M$16 -> 0 | N83: =[13]TOTAUX!$N$16 -> 0 | O83: =[13]TOTAUX!$O$16 -> 0 | P83: =[13]TOTAUX!$P$16 -> 0 | Q83: =[13]TOTAUX!$Q$16 -> 0 | R83: =[13]TOTAUX!$R$16 -> 0 | S83: =H83/F83 ->  | T83: =((H83+N83)/(F83+N83+P83)) ->  | U83: =((J83)+(K83*2)+(L83*3)+(M83*4))/F83 -> 
A84: 17 | B84: =[13]TOTAUX!$B$18 -> OUI | C84: =[13]TOTAUX!$C$18 -> OUI | D84: =[13]TOTAUX!$D$18 -> GUILLAUME AYOTTE | E84: =[13]TOTAUX!$E$18 -> 0 | F84: =[13]TOTAUX!$F$18 -> 0 | G84: =[13]TOTAUX!$G$18 -> 0 | H84: =[13]TOTAUX!$H$18 -> 0 | I84: =[13]TOTAUX!$I$18 -> 0 | J84: =[13]TOTAUX!$J$18 -> 0 | K84: =[13]TOTAUX!$K$18 -> 0 | L84: =[13]TOTAUX!$L$18 -> 0 | M84: =[13]TOTAUX!$M$18 -> 0 | N84: =[13]TOTAUX!$N$18 -> 0 | O84: =[13]TOTAUX!$O$18 -> 0 | P84: =[13]TOTAUX!$P$18 -> 0 | Q84: =[13]TOTAUX!$Q$18 -> 0 | R84: =[13]TOTAUX!$R$18 -> 0 | S84: =H84/F84 ->  | T84: =((H84+N84)/(F84+N84+P84)) ->  | U84: =((J84)+(K84*2)+(L84*3)+(M84*4))/F84 -> 
A85: 18 | B85: =[13]TOTAUX!$B$19 -> OUI | C85: =[13]TOTAUX!$C$19 -> OUI | D85: =[13]TOTAUX!$D$19 -> MATTHEW MEDLEY | E85: =[13]TOTAUX!$E$19 -> 0 | F85: =[13]TOTAUX!$F$19 -> 0 | G85: =[13]TOTAUX!$G$19 -> 0 | H85: =[13]TOTAUX!$H$19 -> 0 | I85: =[13]TOTAUX!$I$19 -> 0 | J85: =[13]TOTAUX!$J$19 -> 0 | K85: =[13]TOTAUX!$K$19 -> 0 | L85: =[13]TOTAUX!$L$19 -> 0 | M85: =[13]TOTAUX!$M$19 -> 0 | N85: =[13]TOTAUX!$N$19 -> 0 | O85: =[13]TOTAUX!$O$19 -> 0 | P85: =[13]TOTAUX!$P$19 -> 0 | Q85: =[13]TOTAUX!$Q$19 -> 0 | R85: =[13]TOTAUX!$R$19 -> 0
A86: 19 | B86: =[13]TOTAUX!$B$20 -> OUI | C86: =[13]TOTAUX!$C$20 -> OUI | D86: =[13]TOTAUX!$D$20 -> DANY MEDLEY | E86: =[13]TOTAUX!$E$20 -> 0 | F86: =[13]TOTAUX!$F$20 -> 0 | G86: =[13]TOTAUX!$G$20 -> 0 | H86: =[13]TOTAUX!$H$20 -> 0 | I86: =[13]TOTAUX!$I$20 -> 0 | J86: =[13]TOTAUX!$J$20 -> 0 | K86: =[13]TOTAUX!$K$20 -> 0 | L86: =[13]TOTAUX!$L$20 -> 0 | M86: =[13]TOTAUX!$M$20 -> 0 | N86: =[13]TOTAUX!$N$20 -> 0 | O86: =[13]TOTAUX!$O$20 -> 0 | P86: =[13]TOTAUX!$P$20 -> 0 | Q86: =[13]TOTAUX!$Q$20 -> 0 | R86: =[13]TOTAUX!$R$20 -> 0
A87: 20 | B87: =[13]TOTAUX!$B$21 -> OUI | C87: =[13]TOTAUX!$C$21 -> OUI | D87: =[13]TOTAUX!$D$21 -> SÉBASTIEN GAGNÉ | E87: =[13]TOTAUX!$E$21 -> 0 | F87: =[13]TOTAUX!$F$21 -> 0 | G87: =[13]TOTAUX!$G$21 -> 0 | H87: =[13]TOTAUX!$H$21 -> 0 | I87: =[13]TOTAUX!$I$21 -> 0 | J87: =[13]TOTAUX!$J$21 -> 0 | K87: =[13]TOTAUX!$K$21 -> 0 | L87: =[13]TOTAUX!$L$21 -> 0 | M87: =[13]TOTAUX!$M$21 -> 0 | N87: =[13]TOTAUX!$N$21 -> 0 | O87: =[13]TOTAUX!$O$21 -> 0 | P87: =[13]TOTAUX!$P$21 -> 0 | Q87: =[13]TOTAUX!$Q$21 -> 0 | R87: =[13]TOTAUX!$R$21 -> 0
D88: TOTAUX | F88: =[13]TOTAUX!$F$23 -> 340 | G88: =[13]TOTAUX!$G$23 -> 59 | H88: =[13]TOTAUX!$H$23 -> 113 | I88: =[13]TOTAUX!$I$23 -> 56 | J88: =[13]TOTAUX!$J$23 -> 84 | K88: =[13]TOTAUX!$K$23 -> 22 | L88: =[13]TOTAUX!$L$23 -> 3 | M88: =[13]TOTAUX!$M$23 -> 4 | N88: =[13]TOTAUX!$N$23 -> 25 | O88: =[13]TOTAUX!$O$23 -> 1 | P88: =[13]TOTAUX!$P$23 -> 3 | Q88: =[13]TOTAUX!$Q$23 -> 18 | R88: =[13]TOTAUX!$R$23 -> 9 | S88: 0.3323529412 | T88: 0.375 | U88: 0.45
D90: NOM | E90: PJ | F90: PD | G90: V | H90: D | I90: N | J90: ML | K90: P | L90: PM | M90: CS | N90: BB | O90: WP | P90: RAB | Q90: MPM | R90: K/7 | S90: WHIP | T90: ML SÉRIES
D91: =[13]TOTAUX!$D$29 -> BENOIT BOISVERT | E91: =[13]TOTAUX!$E$29 -> 1 | F91: =[13]TOTAUX!$F$29 -> 0 | G91: =[13]TOTAUX!$G$29 -> 0 | H91: =[13]TOTAUX!$H$29 -> 0 | I91: =[13]TOTAUX!$I$29 -> 0 | J91: =[13]TOTAUX!$J$29 -> 1.33 | K91: =[13]TOTAUX!$K$29 -> 0 | L91: =[13]TOTAUX!$L$29 -> 0 | M91: =[13]TOTAUX!$M$29 -> 0 | N91: =[13]TOTAUX!$N$29 -> 1 | O91: =[13]TOTAUX!$O$29 -> 0 | P91: =[13]TOTAUX!$P$29 -> 0 | Q91: =(L91*7)/J91 -> 0 | R91: =(P91*7)/J91 -> 0 | S91: =(M91+N91)/J91 -> 0.7518796992 | T91: =[13]TOTAUX!$T$29 -> 1.33
D92: =[13]TOTAUX!$D$26 -> ERIC CHABADOS | E92: =[13]TOTAUX!$E$26 -> 8 | F92: =[13]TOTAUX!$F$26 -> 8 | G92: =[13]TOTAUX!$G$26 -> 2 | H92: =[13]TOTAUX!$H$26 -> 6 | I92: =[13]TOTAUX!$I$26 -> 0 | J92: =[13]TOTAUX!$J$26 -> 50.33 | K92: =[13]TOTAUX!$K$26 -> 61 | L92: =[13]TOTAUX!$L$26 -> 48 | M92: =[13]TOTAUX!$M$26 -> 82 | N92: =[13]TOTAUX!$N$26 -> 37 | O92: =[13]TOTAUX!$O$26 -> 3 | P92: =[13]TOTAUX!$P$26 -> 18 | Q92: =(L92*7)/J92 -> 6.675938804 | R92: =(P92*7)/J92 -> 2.503477051 | S92: =(M92+N92)/J92 -> 2.364394993 | T92: =[13]TOTAUX!$T$26 -> 51
D93: =[13]TOTAUX!$D$27 -> ALAIN SÉNÉCAL | E93: =[13]TOTAUX!$E$27 -> 2 | F93: =[13]TOTAUX!$F$27 -> 2 | G93: =[13]TOTAUX!$G$27 -> 0 | H93: =[13]TOTAUX!$H$27 -> 1 | I93: =[13]TOTAUX!$I$27 -> 1 | J93: =[13]TOTAUX!$J$27 -> 14.33 | K93: =[13]TOTAUX!$K$27 -> 23 | L93: =[13]TOTAUX!$L$27 -> 15 | M93: =[13]TOTAUX!$M$27 -> 36 | N93: =[13]TOTAUX!$N$27 -> 3 | O93: =[13]TOTAUX!$O$27 -> 1 | P93: =[13]TOTAUX!$P$27 -> 3 | Q93: =(L93*7)/J93 -> 7.327285415 | R93: =(P93*7)/J93 -> 1.465457083 | S93: =(M93+N93)/J93 -> 2.721563154 | T93: =[13]TOTAUX!$T$27 -> 15
D94: =[13]TOTAUX!$D$28 -> JACQUES CHOUINARD | E94: =[13]TOTAUX!$E$28 -> 1 | F94: =[13]TOTAUX!$F$28 -> 1 | G94: =[13]TOTAUX!$G$28 -> 0 | H94: =[13]TOTAUX!$H$28 -> 1 | I94: =[13]TOTAUX!$I$28 -> 0 | J94: =[13]TOTAUX!$J$28 -> 6.33 | K94: =[13]TOTAUX!$K$28 -> 12 | L94: =[13]TOTAUX!$L$28 -> 12 | M94: =[13]TOTAUX!$M$28 -> 17 | N94: =[13]TOTAUX!$N$28 -> 2 | O94: =[13]TOTAUX!$O$28 -> 0 | P94: =[13]TOTAUX!$P$28 -> 3 | Q94: =(L94*7)/J94 -> 13.27014218 | R94: =(P94*7)/J94 -> 3.317535545 | S94: =(M94+N94)/J94 -> 3.001579779 | T94: =[13]TOTAUX!$T$28 -> 7
D95: =[13]TOTAUX!$D$30 -> 5 | E95: =[13]TOTAUX!$E$30 -> 0 | F95: =[13]TOTAUX!$F$30 -> 0 | G95: =[13]TOTAUX!$G$30 -> 0 | H95: =[13]TOTAUX!$H$30 -> 0 | I95: =[13]TOTAUX!$I$30 -> 0 | J95: =[13]TOTAUX!$J$30 -> 0 | K95: =[13]TOTAUX!$K$30 -> 0 | L95: =[13]TOTAUX!$L$30 -> 0 | M95: =[13]TOTAUX!$M$30 -> 0 | N95: =[13]TOTAUX!$N$30 -> 0 | O95: =[13]TOTAUX!$O$30 -> 0 | P95: =[13]TOTAUX!$P$30 -> 0 | Q95: =(L95*7)/J95 ->  | R95: =(P95*7)/J95 ->  | S95: =(M95+N95)/J95 ->  | T95: =[13]TOTAUX!$T$30 -> 0
D96: =[13]TOTAUX!$D$31 -> 6 | E96: =[13]TOTAUX!$E$31 -> 0 | F96: =[13]TOTAUX!$F$31 -> 0 | G96: =[13]TOTAUX!$G$31 -> 0 | H96: =[13]TOTAUX!$H$31 -> 0 | I96: =[13]TOTAUX!$I$31 -> 0 | J96: =[13]TOTAUX!$J$31 -> 0 | K96: =[13]TOTAUX!$K$31 -> 0 | L96: =[13]TOTAUX!$L$31 -> 0 | M96: =[13]TOTAUX!$M$31 -> 0 | N96: =[13]TOTAUX!$N$31 -> 0 | O96: =[13]TOTAUX!$O$31 -> 0 | P96: =[13]TOTAUX!$P$31 -> 0 | T96: =[13]TOTAUX!$T$31 -> 0
D97: TOTAUX | E97: =[13]TOTAUX!$E$32 -> 12 | F97: =[13]TOTAUX!$F$32 -> 11 | G97: =[13]TOTAUX!$G$32 -> 2 | H97: =[13]TOTAUX!$H$32 -> 8 | I97: =[13]TOTAUX!$I$32 -> 1 | J97: =[13]TOTAUX!$J$32 -> 72.32 | K97: =[13]TOTAUX!$K$32 -> 96 | L97: =[13]TOTAUX!$L$32 -> 75 | M97: =[13]TOTAUX!$M$32 -> 135 | N97: =[13]TOTAUX!$N$32 -> 43 | O97: =[13]TOTAUX!$O$32 -> 4 | P97: =[13]TOTAUX!$P$32 -> 24 | Q97: 7.259402655 | R97: 2.32300885 | S97: 2.461283186
H98: CHEVALIERS
A99: # | B99: Photo | C99: Contrat | D99: Nom | E99: PJ | F99: AB | G99: P | H99: CS | I99: PP | J99: 1B | K99: 2B | L99: 3B | M99: CC | N99: BB | O99: SAC | P99: BSAC | Q99: RAB | R99: ERR | S99: MOY | T99: MPB | U99: PUI
A100: 1 | B100: =[9]TOTAUX!$B$22 -> OUI | C100: =[9]TOTAUX!$C$22 -> OUI | D100: =[9]TOTAUX!$D$22 -> FRANCIS RIVARD | E100: =[9]TOTAUX!$E$22 -> 1 | F100: =[9]TOTAUX!$F$22 -> 3 | G100: =[9]TOTAUX!$G$22 -> 0 | H100: =[9]TOTAUX!$H$22 -> 2 | I100: =[9]TOTAUX!$I$22 -> 1 | J100: =[9]TOTAUX!$J$22 -> 1 | K100: =[9]TOTAUX!$K$22 -> 1 | L100: =[9]TOTAUX!$L$22 -> 0 | M100: =[9]TOTAUX!$M$22 -> 0 | N100: =[9]TOTAUX!$N$22 -> 0 | O100: =[9]TOTAUX!$O$22 -> 0 | P100: =[9]TOTAUX!$P$22 -> 0 | Q100: =[9]TOTAUX!$Q$22 -> 0 | R100: =[9]TOTAUX!$R$22 -> 0 | S100: =H100/F100 -> 0.6666666667 | T100: =((H100+N100)/(F100+N100+P100)) -> 0.6666666667 | U100: =((J100)+(K100*2)+(L100*3)+(M100*4))/F100 -> 1
A101: =A100+1 -> 2 | B101: =[9]TOTAUX!$B$6 -> OUI | C101: =[9]TOTAUX!$C$6 -> OUI | D101: =[9]TOTAUX!$D$6 -> MARTIN DUGRÉ | E101: =[9]TOTAUX!$E$6 -> 5 | F101: =[9]TOTAUX!$F$6 -> 19 | G101: =[9]TOTAUX!$G$6 -> 5 | H101: =[9]TOTAUX!$H$6 -> 11 | I101: =[9]TOTAUX!$I$6 -> 6 | J101: =[9]TOTAUX!$J$6 -> 9 | K101: =[9]TOTAUX!$K$6 -> 2 | L101: =[9]TOTAUX!$L$6 -> 0 | M101: =[9]TOTAUX!$M$6 -> 0 | N101: =[9]TOTAUX!$N$6 -> 1 | O101: =[9]TOTAUX!$O$6 -> 0 | P101: =[9]TOTAUX!$P$6 -> 0 | Q101: =[9]TOTAUX!$Q$6 -> 0 | R101: =[9]TOTAUX!$R$6 -> 0 | S101: 0.5789473684 | T101: 0.6 | U101: 0.6842105263
A102: =A101+1 -> 3 | B102: =[9]TOTAUX!$B$9 -> OUI | C102: =[9]TOTAUX!$C$9 -> OUI | D102: =[9]TOTAUX!$D$9 -> ALEXANDRE THIBAULT | E102: =[9]TOTAUX!$E$9 -> 9 | F102: =[9]TOTAUX!$F$9 -> 28 | G102: =[9]TOTAUX!$G$9 -> 6 | H102: =[9]TOTAUX!$H$9 -> 15 | I102: =[9]TOTAUX!$I$9 -> 13 | J102: =[9]TOTAUX!$J$9 -> 12 | K102: =[9]TOTAUX!$K$9 -> 2 | L102: =[9]TOTAUX!$L$9 -> 0 | M102: =[9]TOTAUX!$M$9 -> 1 | N102: =[9]TOTAUX!$N$9 -> 2 | O102: =[9]TOTAUX!$O$9 -> 0 | P102: =[9]TOTAUX!$P$9 -> 1 | Q102: =[9]TOTAUX!$Q$9 -> 1 | R102: =[9]TOTAUX!$R$9 -> 1 | S102: 0.5357142857 | T102: 0.5483870968 | U102: 0.7142857143
A103: 4 | B103: =[9]TOTAUX!$B$5 -> OUI | C103: =[9]TOTAUX!$C$5 -> OUI | D103: =[9]TOTAUX!$D$5 -> FRANCIS LUSSIER | E103: =[9]TOTAUX!$E$5 -> 11 | F103: =[9]TOTAUX!$F$5 -> 38 | G103: =[9]TOTAUX!$G$5 -> 12 | H103: =[9]TOTAUX!$H$5 -> 20 | I103: =[9]TOTAUX!$I$5 -> 12 | J103: =[9]TOTAUX!$J$5 -> 14 | K103: =[9]TOTAUX!$K$5 -> 5 | L103: =[9]TOTAUX!$L$5 -> 1 | M103: =[9]TOTAUX!$M$5 -> 0 | N103: =[9]TOTAUX!$N$5 -> 5 | O103: =[9]TOTAUX!$O$5 -> 0 | P103: =[9]TOTAUX!$P$5 -> 1 | Q103: =[9]TOTAUX!$Q$5 -> 1 | R103: =[9]TOTAUX!$R$5 -> 0 | S103: 0.5263157895 | T103: 0.5681818182 | U103: 0.7105263158
A104: 5 | B104: =[9]TOTAUX!$B$8 -> OUI | C104: =[9]TOTAUX!$C$8 -> OUI | D104: =[9]TOTAUX!$D$8 -> GUILLAUME THIBAULT | E104: =[9]TOTAUX!$E$8 -> 7 | F104: =[9]TOTAUX!$F$8 -> 23 | G104: =[9]TOTAUX!$G$8 -> 2 | H104: =[9]TOTAUX!$H$8 -> 12 | I104: =[9]TOTAUX!$I$8 -> 6 | J104: =[9]TOTAUX!$J$8 -> 9 | K104: =[9]TOTAUX!$K$8 -> 2 | L104: =[9]TOTAUX!$L$8 -> 1 | M104: =[9]TOTAUX!$M$8 -> 0 | N104: =[9]TOTAUX!$N$8 -> 2 | O104: =[9]TOTAUX!$O$8 -> 0 | P104: =[9]TOTAUX!$P$8 -> 0 | Q104: =[9]TOTAUX!$Q$8 -> 1 | R104: =[9]TOTAUX!$R$8 -> 0 | S104: 0.5217391304 | T104: 0.56 | U104: 0.6956521739
A105: 6 | B105: =[9]TOTAUX!$B$16 -> OUI | C105: =[9]TOTAUX!$C$16 -> OUI | D105: =[9]TOTAUX!$D$16 -> SÉBASTIEN BILLETTE | E105: =[9]TOTAUX!$E$16 -> 5 | F105: =[9]TOTAUX!$F$16 -> 17 | G105: =[9]TOTAUX!$G$16 -> 4 | H105: =[9]TOTAUX!$H$16 -> 8 | I105: =[9]TOTAUX!$I$16 -> 2 | J105: =[9]TOTAUX!$J$16 -> 5 | K105: =[9]TOTAUX!$K$16 -> 3 | L105: =[9]TOTAUX!$L$16 -> 0 | M105: =[9]TOTAUX!$M$16 -> 0 | N105: =[9]TOTAUX!$N$16 -> 2 | O105: =[9]TOTAUX!$O$16 -> 0 | P105: =[9]TOTAUX!$P$16 -> 0 | Q105: =[9]TOTAUX!$Q$16 -> 1 | R105: =[9]TOTAUX!$R$16 -> 1 | S105: 0.4705882353 | T105: 0.5263157895 | U105: 0.6470588235
A106: 7 | B106: =[9]TOTAUX!$B$7 -> OUI | C106: =[9]TOTAUX!$C$7 -> OUI | D106: =[9]TOTAUX!$D$7 -> JEAN-FRANÇOIS ROBERGE | E106: =[9]TOTAUX!$E$7 -> 9 | F106: =[9]TOTAUX!$F$7 -> 30 | G106: =[9]TOTAUX!$G$7 -> 12 | H106: =[9]TOTAUX!$H$7 -> 14 | I106: =[9]TOTAUX!$I$7 -> 9 | J106: =[9]TOTAUX!$J$7 -> 9 | K106: =[9]TOTAUX!$K$7 -> 3 | L106: =[9]TOTAUX!$L$7 -> 2 | M106: =[9]TOTAUX!$M$7 -> 0 | N106: =[9]TOTAUX!$N$7 -> 5 | O106: =[9]TOTAUX!$O$7 -> 0 | P106: =[9]TOTAUX!$P$7 -> 1 | Q106: =[9]TOTAUX!$Q$7 -> 1 | R106: =[9]TOTAUX!$R$7 -> 1 | S106: 0.4666666667 | T106: 0.5277777778 | U106: 0.7
A107: 8 | B107: =[9]TOTAUX!$B$10 -> OUI | C107: =[9]TOTAUX!$C$10 -> OUI | D107: =[9]TOTAUX!$D$10 -> FRÉDÉRIC BEAN | E107: =[9]TOTAUX!$E$10 -> 6 | F107: =[9]TOTAUX!$F$10 -> 16 | G107: =[9]TOTAUX!$G$10 -> 8 | H107: =[9]TOTAUX!$H$10 -> 7 | I107: =[9]TOTAUX!$I$10 -> 1 | J107: =[9]TOTAUX!$J$10 -> 6 | K107: =[9]TOTAUX!$K$10 -> 0 | L107: =[9]TOTAUX!$L$10 -> 1 | M107: =[9]TOTAUX!$M$10 -> 0 | N107: =[9]TOTAUX!$N$10 -> 2 | O107: =[9]TOTAUX!$O$10 -> 0 | P107: =[9]TOTAUX!$P$10 -> 0 | Q107: =[9]TOTAUX!$Q$10 -> 1 | R107: =[9]TOTAUX!$R$10 -> 0 | S107: 0.4375 | T107: 0.5 | U107: 0.5625
A108: 9 | B108: =[9]TOTAUX!$B$4 -> OUI | C108: =[9]TOTAUX!$C$4 -> OUI | D108: =[9]TOTAUX!$D$4 -> RAYMOND GAGNON | E108: =[9]TOTAUX!$E$4 -> 9 | F108: =[9]TOTAUX!$F$4 -> 33 | G108: =[9]TOTAUX!$G$4 -> 10 | H108: =[9]TOTAUX!$H$4 -> 13 | I108: =[9]TOTAUX!$I$4 -> 7 | J108: =[9]TOTAUX!$J$4 -> 9 | K108: =[9]TOTAUX!$K$4 -> 1 | L108: =[9]TOTAUX!$L$4 -> 3 | M108: =[9]TOTAUX!$M$4 -> 0 | N108: =[9]TOTAUX!$N$4 -> 2 | O108: =[9]TOTAUX!$O$4 -> 0 | P108: =[9]TOTAUX!$P$4 -> 1 | Q108: =[9]TOTAUX!$Q$4 -> 0 | R108: =[9]TOTAUX!$R$4 -> 0 | S108: 0.3939393939 | T108: 0.4166666667 | U108: 0.6060606061
A109: 10 | B109: =[9]TOTAUX!$B$15 -> OUI | C109: =[9]TOTAUX!$C$15 -> OUI | D109: =[9]TOTAUX!$D$15 -> NICOLAS FOUCAULT | E109: =[9]TOTAUX!$E$15 -> 3 | F109: =[9]TOTAUX!$F$15 -> 13 | G109: =[9]TOTAUX!$G$15 -> 6 | H109: =[9]TOTAUX!$H$15 -> 5 | I109: =[9]TOTAUX!$I$15 -> 0 | J109: =[9]TOTAUX!$J$15 -> 3 | K109: =[9]TOTAUX!$K$15 -> 2 | L109: =[9]TOTAUX!$L$15 -> 0 | M109: =[9]TOTAUX!$M$15 -> 0 | N109: =[9]TOTAUX!$N$15 -> 0 | O109: =[9]TOTAUX!$O$15 -> 0 | P109: =[9]TOTAUX!$P$15 -> 0 | Q109: =[9]TOTAUX!$Q$15 -> 0 | R109: =[9]TOTAUX!$R$15 -> 0 | S109: 0.3846153846 | T109: 0.3846153846 | U109: 0.5384615385
A110: 11 | B110: =[9]TOTAUX!$B$11 -> OUI | C110: =[9]TOTAUX!$C$11 -> OUI | D110: =[9]TOTAUX!$D$11 -> JÉRÔME LAVOIE-PILOTE | E110: =[9]TOTAUX!$E$11 -> 8 | F110: =[9]TOTAUX!$F$11 -> 27 | G110: =[9]TOTAUX!$G$11 -> 8 | H110: =[9]TOTAUX!$H$11 -> 10 | I110: =[9]TOTAUX!$I$11 -> 5 | J110: =[9]TOTAUX!$J$11 -> 8 | K110: =[9]TOTAUX!$K$11 -> 1 | L110: =[9]TOTAUX!$L$11 -> 1 | M110: =[9]TOTAUX!$M$11 -> 0 | N110: =[9]TOTAUX!$N$11 -> 3 | O110: =[9]TOTAUX!$O$11 -> 0 | P110: =[9]TOTAUX!$P$11 -> 0 | Q110: =[9]TOTAUX!$Q$11 -> 1 | R110: =[9]TOTAUX!$R$11 -> 3 | S110: 0.3703703704 | T110: 0.4333333333 | U110: 0.4814814815
A111: 12 | B111: =[9]TOTAUX!$B$17 -> OUI | C111: =[9]TOTAUX!$C$17 -> OUI | D111: =[9]TOTAUX!$D$17 -> JEAN-FRANÇOIS MARCHAND | E111: =[9]TOTAUX!$E$17 -> 5 | F111: =[9]TOTAUX!$F$17 -> 18 | G111: =[9]TOTAUX!$G$17 -> 3 | H111: =[9]TOTAUX!$H$17 -> 6 | I111: =[9]TOTAUX!$I$17 -> 3 | J111: =[9]TOTAUX!$J$17 -> 6 | K111: =[9]TOTAUX!$K$17 -> 0 | L111: =[9]TOTAUX!$L$17 -> 0 | M111: =[9]TOTAUX!$M$17 -> 0 | N111: =[9]TOTAUX!$N$17 -> 2 | O111: =[9]TOTAUX!$O$17 -> 0 | P111: =[9]TOTAUX!$P$17 -> 0 | Q111: =[9]TOTAUX!$Q$17 -> 0 | R111: =[9]TOTAUX!$R$17 -> 1 | S111: 0.3333333333 | T111: 0.4 | U111: 0.3333333333
A112: 13 | B112: =[9]TOTAUX!$B$14 -> OUI | C112: =[9]TOTAUX!$C$14 -> OUI | D112: =[9]TOTAUX!$D$14 -> JULIEN CHOQUETTE | E112: =[9]TOTAUX!$E$14 -> 3 | F112: =[9]TOTAUX!$F$14 -> 9 | G112: =[9]TOTAUX!$G$14 -> 1 | H112: =[9]TOTAUX!$H$14 -> 3 | I112: =[9]TOTAUX!$I$14 -> 0 | J112: =[9]TOTAUX!$J$14 -> 3 | K112: =[9]TOTAUX!$K$14 -> 0 | L112: =[9]TOTAUX!$L$14 -> 0 | M112: =[9]TOTAUX!$M$14 -> 0 | N112: =[9]TOTAUX!$N$14 -> 1 | O112: =[9]TOTAUX!$O$14 -> 0 | P112: =[9]TOTAUX!$P$14 -> 0 | Q112: =[9]TOTAUX!$Q$14 -> 0 | R112: =[9]TOTAUX!$R$14 -> 0 | S112: 0.3333333333 | T112: 0.4 | U112: 0.3333333333
A113: 14 | B113: =[9]TOTAUX!$B$18 -> OUI | C113: =[9]TOTAUX!$C$18 -> OUI | D113: =[9]TOTAUX!$D$18 -> BENOIT RICHARD | E113: =[9]TOTAUX!$E$18 -> 2 | F113: =[9]TOTAUX!$F$18 -> 6 | G113: =[9]TOTAUX!$G$18 -> 1 | H113: =[9]TOTAUX!$H$18 -> 2 | I113: =[9]TOTAUX!$I$18 -> 0 | J113: =[9]TOTAUX!$J$18 -> 2 | K113: =[9]TOTAUX!$K$18 -> 0 | L113: =[9]TOTAUX!$L$18 -> 0 | M113: =[9]TOTAUX!$M$18 -> 0 | N113: =[9]TOTAUX!$N$18 -> 3 | O113: =[9]TOTAUX!$O$18 -> 0 | P113: =[9]TOTAUX!$P$18 -> 0 | Q113: =[9]TOTAUX!$Q$18 -> 2 | R113: =[9]TOTAUX!$R$18 -> 1 | S113: 0.3333333333 | T113: 0.5555555556 | U113: 0.3333333333
A114: 15 | B114: =[9]TOTAUX!$B$19 -> OUI | C114: =[9]TOTAUX!$C$19 -> OUI | D114: =[9]TOTAUX!$D$19 -> STÉPHANE BERNIER | E114: =[9]TOTAUX!$E$19 -> 5 | F114: =[9]TOTAUX!$F$19 -> 19 | G114: =[9]TOTAUX!$G$19 -> 3 | H114: =[9]TOTAUX!$H$19 -> 5 | I114: =[9]TOTAUX!$I$19 -> 3 | J114: =[9]TOTAUX!$J$19 -> 5 | K114: =[9]TOTAUX!$K$19 -> 0 | L114: =[9]TOTAUX!$L$19 -> 0 | M114: =[9]TOTAUX!$M$19 -> 0 | N114: =[9]TOTAUX!$N$19 -> 0 | O114: =[9]TOTAUX!$O$19 -> 0 | P114: =[9]TOTAUX!$P$19 -> 0 | Q114: =[9]TOTAUX!$Q$19 -> 2 | R114: =[9]TOTAUX!$R$19 -> 1 | S114: 0.2631578947 | T114: 0.2631578947 | U114: 0.2631578947
A115: 16 | B115: =[9]TOTAUX!$B$13 -> OUI | C115: =[9]TOTAUX!$C$13 -> OUI | D115: =[9]TOTAUX!$D$13 -> GUILLAUME RIVEST | E115: =[9]TOTAUX!$E$13 -> 7 | F115: =[9]TOTAUX!$F$13 -> 22 | G115: =[9]TOTAUX!$G$13 -> 7 | H115: =[9]TOTAUX!$H$13 -> 5 | I115: =[9]TOTAUX!$I$13 -> 3 | J115: =[9]TOTAUX!$J$13 -> 2 | K115: =[9]TOTAUX!$K$13 -> 3 | L115: =[9]TOTAUX!$L$13 -> 0 | M115: =[9]TOTAUX!$M$13 -> 0 | N115: =[9]TOTAUX!$N$13 -> 4 | O115: =[9]TOTAUX!$O$13 -> 0 | P115: =[9]TOTAUX!$P$13 -> 0 | Q115: =[9]TOTAUX!$Q$13 -> 0 | R115: =[9]TOTAUX!$R$13 -> 2 | S115: 0.2272727273 | T115: 0.3461538462 | U115: 0.3636363636
A116: 17 | B116: =[9]TOTAUX!$B$12 -> OUI | C116: =[9]TOTAUX!$C$12 -> OUI | D116: =[9]TOTAUX!$D$12 -> DOMINIQUE BÉDARD | E116: =[9]TOTAUX!$E$12 -> 2 | F116: =[9]TOTAUX!$F$12 -> 6 | G116: =[9]TOTAUX!$G$12 -> 1 | H116: =[9]TOTAUX!$H$12 -> 1 | I116: =[9]TOTAUX!$I$12 -> 0 | J116: =[9]TOTAUX!$J$12 -> 0 | K116: =[9]TOTAUX!$K$12 -> 1 | L116: =[9]TOTAUX!$L$12 -> 0 | M116: =[9]TOTAUX!$M$12 -> 0 | N116: =[9]TOTAUX!$N$12 -> 0 | O116: =[9]TOTAUX!$O$12 -> 0 | P116: =[9]TOTAUX!$P$12 -> 0 | Q116: =[9]TOTAUX!$Q$12 -> 0 | R116: =[9]TOTAUX!$R$12 -> 0 | S116: 0.1666666667 | T116: 0.1666666667 | U116: 0.3333333333
A117: 18 | B117: =[9]TOTAUX!$B$21 -> OUI | C117: =[9]TOTAUX!$C$21 -> OUI | D117: =[9]TOTAUX!$D$21 -> ALAIN ROY | E117: =[9]TOTAUX!$E$21 -> 3 | F117: =[9]TOTAUX!$F$21 -> 5 | G117: =[9]TOTAUX!$G$21 -> 2 | H117: =[9]TOTAUX!$H$21 -> 0 | I117: =[9]TOTAUX!$I$21 -> 1 | J117: =[9]TOTAUX!$J$21 -> 0 | K117: =[9]TOTAUX!$K$21 -> 0 | L117: =[9]TOTAUX!$L$21 -> 0 | M117: =[9]TOTAUX!$M$21 -> 0 | N117: =[9]TOTAUX!$N$21 -> 3 | O117: =[9]TOTAUX!$O$21 -> 0 | P117: =[9]TOTAUX!$P$21 -> 1 | Q117: =[9]TOTAUX!$Q$21 -> 0 | R117: =[9]TOTAUX!$R$21 -> 0 | S117: 0 | T117: 0.3333333333 | U117: 0
A118: 19 | B118: =[9]TOTAUX!$B$3 -> OUI | C118: =[9]TOTAUX!$C$3 -> OUI | D118: =[9]TOTAUX!$D$3 -> MARC-ANDRÉ GAGNON | E118: =[9]TOTAUX!$E$3 -> 0 | F118: =[9]TOTAUX!$F$3 -> 0 | G118: =[9]TOTAUX!$G$3 -> 0 | H118: =[9]TOTAUX!$H$3 -> 0 | I118: =[9]TOTAUX!$I$3 -> 0 | J118: =[9]TOTAUX!$J$3 -> 0 | K118: =[9]TOTAUX!$K$3 -> 0 | L118: =[9]TOTAUX!$L$3 -> 0 | M118: =[9]TOTAUX!$M$3 -> 0 | N118: =[9]TOTAUX!$N$3 -> 0 | O118: =[9]TOTAUX!$O$3 -> 0 | P118: =[9]TOTAUX!$P$3 -> 0 | Q118: =[9]TOTAUX!$Q$3 -> 0 | R118: =[9]TOTAUX!$R$3 -> 0 | S118: 0 | T118: =((H118+N118)/(F118+N118+P118)) ->  | U118: =((J118)+(K118*2)+(L118*3)+(M118*4))/F118 -> 
A119: 20 | B119: =[9]TOTAUX!$B$20 -> OUI | C119: =[9]TOTAUX!$C$20 -> OUI | D119: =[9]TOTAUX!$D$20 -> PATRICK LARAMÉE | E119: =[9]TOTAUX!$E$20 -> 0 | F119: =[9]TOTAUX!$F$20 -> 0 | G119: =[9]TOTAUX!$G$20 -> 0 | H119: =[9]TOTAUX!$H$20 -> 0 | I119: =[9]TOTAUX!$I$20 -> 0 | J119: =[9]TOTAUX!$J$20 -> 0 | K119: =[9]TOTAUX!$K$20 -> 0 | L119: =[9]TOTAUX!$L$20 -> 0 | M119: =[9]TOTAUX!$M$20 -> 0 | N119: =[9]TOTAUX!$N$20 -> 0 | O119: =[9]TOTAUX!$O$20 -> 0 | P119: =[9]TOTAUX!$P$20 -> 0 | Q119: =[9]TOTAUX!$Q$20 -> 0 | R119: =[9]TOTAUX!$R$20 -> 0 | S119: =H119/F119 -> 
D120: TOTAUX | F120: =[9]TOTAUX!$F$23 -> 332 | G120: =[9]TOTAUX!$G$23 -> 91 | H120: =[9]TOTAUX!$H$23 -> 139 | I120: =[9]TOTAUX!$I$23 -> 72 | J120: =[9]TOTAUX!$J$23 -> 103 | K120: =[9]TOTAUX!$K$23 -> 26 | L120: =[9]TOTAUX!$L$23 -> 9 | M120: =[9]TOTAUX!$M$23 -> 1 | N120: =[9]TOTAUX!$N$23 -> 37 | O120: =[9]TOTAUX!$O$23 -> 0 | P120: =[9]TOTAUX!$P$23 -> 5 | Q120: =[9]TOTAUX!$Q$23 -> 11 | R120: =[9]TOTAUX!$R$23 -> 11 | S120: =H120/F120 -> 0.4186746988 | T120: 0.4705882353 | U120: 0.5602409639
D122: NOM | E122: PJ | F122: PD | G122: V | H122: D | I122: N | J122: ML | K122: P | L122: PM | M122: CS | N122: BB | O122: WP | P122: RAB | Q122: MPM | R122: K/7 | S122: WHIP | T122: ML SÉRIES
D123: =[9]TOTAUX!$D$30 -> JEAN-FRANÇOIS ROBERGE | E123: =[9]TOTAUX!$E$30 -> 1 | F123: =[9]TOTAUX!$F$30 -> 0 | G123: =[9]TOTAUX!$G$30 -> 0 | H123: =[9]TOTAUX!$H$30 -> 0 | I123: =[9]TOTAUX!$I$30 -> 0 | J123: =[9]TOTAUX!$J$30 -> 1 | K123: =[9]TOTAUX!$K$30 -> 0 | L123: =[9]TOTAUX!$L$30 -> 0 | M123: =[9]TOTAUX!$M$30 -> 1 | N123: =[9]TOTAUX!$N$30 -> 0 | O123: =[9]TOTAUX!$O$30 -> 0 | P123: =[9]TOTAUX!$P$30 -> 0 | Q123: =(L123*7)/J123 -> 0 | R123: =(P123*7)/J123 -> 0 | S123: =(M123+N123)/J123 -> 1 | T123: =[9]TOTAUX!$T$30 -> 1
D124: =[9]TOTAUX!$D$27 -> ALEXANDRE THIBAULT | E124: =[9]TOTAUX!$E$27 -> 5 | F124: =[9]TOTAUX!$F$27 -> 5 | G124: =[9]TOTAUX!$G$27 -> 4 | H124: =[9]TOTAUX!$H$27 -> 0 | I124: =[9]TOTAUX!$I$27 -> 1 | J124: =[9]TOTAUX!$J$27 -> 35 | K124: =[9]TOTAUX!$K$27 -> 23 | L124: =[9]TOTAUX!$L$27 -> 17 | M124: =[9]TOTAUX!$M$27 -> 41 | N124: =[9]TOTAUX!$N$27 -> 6 | O124: =[9]TOTAUX!$O$27 -> 0 | P124: =[9]TOTAUX!$P$27 -> 14 | Q124: =(L124*7)/J124 -> 3.4 | R124: =(P124*7)/J124 -> 2.8 | S124: =(M124+N124)/J124 -> 1.342857143 | T124: =[9]TOTAUX!$T$27 -> 35
D125: =[9]TOTAUX!$D$26 -> GUILLAUME THIBAULT | E125: =[9]TOTAUX!$E$26 -> 3 | F125: =[9]TOTAUX!$F$26 -> 3 | G125: =[9]TOTAUX!$G$26 -> 2 | H125: =[9]TOTAUX!$H$26 -> 1 | I125: =[9]TOTAUX!$I$26 -> 0 | J125: =[9]TOTAUX!$J$26 -> 17.67 | K125: =[9]TOTAUX!$K$26 -> 13 | L125: =[9]TOTAUX!$L$26 -> 11 | M125: =[9]TOTAUX!$M$26 -> 26 | N125: =[9]TOTAUX!$N$26 -> 6 | O125: =[9]TOTAUX!$O$26 -> 0 | P125: =[9]TOTAUX!$P$26 -> 5 | Q125: =(L125*7)/J125 -> 4.357668364 | R125: =(P125*7)/J125 -> 1.980758347 | S125: =(M125+N125)/J125 -> 1.810979061 | T125: =[9]TOTAUX!$T$26 -> 18
D126: =[9]TOTAUX!$D$29 -> JÉRÔME LAVOIE-PILOTE | E126: =[9]TOTAUX!$E$29 -> 1 | F126: =[9]TOTAUX!$F$29 -> 1 | G126: =[9]TOTAUX!$G$29 -> 1 | H126: =[9]TOTAUX!$H$29 -> 0 | I126: =[9]TOTAUX!$I$29 -> 0 | J126: =[9]TOTAUX!$J$29 -> 6 | K126: =[9]TOTAUX!$K$29 -> 5 | L126: =[9]TOTAUX!$L$29 -> 5 | M126: =[9]TOTAUX!$M$29 -> 10 | N126: =[9]TOTAUX!$N$29 -> 1 | O126: =[9]TOTAUX!$O$29 -> 0 | P126: =[9]TOTAUX!$P$29 -> 1 | Q126: =(L126*7)/J126 -> 5.833333333 | R126: =(P126*7)/J126 -> 1.166666667 | S126: =(M126+N126)/J126 -> 1.833333333 | T126: =[9]TOTAUX!$T$29 -> 6
D127: =[9]TOTAUX!$D$28 -> STEPHANE BERNIER | E127: =[9]TOTAUX!$E$28 -> 2 | F127: =[9]TOTAUX!$F$28 -> 2 | G127: =[9]TOTAUX!$G$28 -> 1 | H127: =[9]TOTAUX!$H$28 -> 1 | I127: =[9]TOTAUX!$I$28 -> 0 | J127: =[9]TOTAUX!$J$28 -> 13.33 | K127: =[9]TOTAUX!$K$28 -> 15 | L127: =[9]TOTAUX!$L$28 -> 14 | M127: =[9]TOTAUX!$M$28 -> 27 | N127: =[9]TOTAUX!$N$28 -> 2 | O127: =[9]TOTAUX!$O$28 -> 3 | P127: =[9]TOTAUX!$P$28 -> 0 | Q127: =(L127*7)/J127 -> 7.351837959 | R127: =(P127*7)/J127 -> 0 | S127: =(M127+N127)/J127 -> 2.175543886 | T127: =[9]TOTAUX!$T$28 -> 13.33
D128: =[9]TOTAUX!$D$31 -> 6 | E128: =[9]TOTAUX!$E$31 -> 0 | F128: =[9]TOTAUX!$F$31 -> 0 | G128: =[9]TOTAUX!$G$31 -> 0 | H128: =[9]TOTAUX!$H$31 -> 0 | I128: =[9]TOTAUX!$I$31 -> 0 | J128: =[9]TOTAUX!$J$31 -> 0 | K128: =[9]TOTAUX!$K$31 -> 0 | L128: =[9]TOTAUX!$L$31 -> 0 | M128: =[9]TOTAUX!$M$31 -> 0 | N128: =[9]TOTAUX!$N$31 -> 0 | O128: =[9]TOTAUX!$O$31 -> 0 | P128: =[9]TOTAUX!$P$31 -> 0 | Q128: =(L128*7)/J128 ->  | R128: =(P128*7)/J128 ->  | S128: =(M128+N128)/J128 ->  | T128: =[9]TOTAUX!$T$31 -> 0
D129: TOTAUX | E129: =[9]TOTAUX!$E$32 -> 12 | F129: =[9]TOTAUX!$F$32 -> 11 | G129: =[9]TOTAUX!$G$32 -> 8 | H129: =[9]TOTAUX!$H$32 -> 2 | I129: =[9]TOTAUX!$I$32 -> 1 | J129: =[9]TOTAUX!$J$32 -> 73 | K129: =[9]TOTAUX!$K$32 -> 56 | L129: =[9]TOTAUX!$L$32 -> 47 | M129: =[9]TOTAUX!$M$32 -> 105 | N129: =[9]TOTAUX!$N$32 -> 15 | O129: =[9]TOTAUX!$O$32 -> 3 | P129: =[9]TOTAUX!$P$32 -> 20 | Q129: 4.506849315 | R129: 1.917808219 | S129: 1.643835616
A131: # | B131: Photo | C131: Contrat | D131: Nom | E131: PJ | F131: AB | G131: P | H131: CS | I131: PP | J131: 1B | K131: 2B | L131: 3B | M131: CC | N131: BB | O131: SAC | P131: BSAC | Q131: RAB | R131: ERR | S131: MOY | T131: MPB | U131: PUI
A132: 1 | B132: =[134]TOTAUX!$B$3 -> NON | C132: =[134]TOTAUX!$C$3 -> NON | D132: =[134]TOTAUX!$D$3 -> 1 | E132: =[134]TOTAUX!$E$3 -> 0 | F132: =[134]TOTAUX!$F$3 -> 0 | G132: =[134]TOTAUX!$G$3 -> 0 | H132: =[134]TOTAUX!$H$3 -> 0 | I132: =[134]TOTAUX!$I$3 -> 0 | J132: =[134]TOTAUX!$J$3 -> 0 | K132: =[134]TOTAUX!$K$3 -> 0 | L132: =[134]TOTAUX!$L$3 -> 0 | M132: =[134]TOTAUX!$M$3 -> 0 | N132: =[134]TOTAUX!$N$3 -> 0 | O132: =[134]TOTAUX!$O$3 -> 0 | P132: =[134]TOTAUX!$P$3 -> 0 | Q132: =[134]TOTAUX!$Q$3 -> 0 | R132: =[134]TOTAUX!$R$3 -> 0 | S132: =H132/F132 ->  | T132: =((H132+N132)/(F132+N132+P132)) ->  | U132: =((K132)+(L132*2)+(M132*3)+(N132*4))/F132 -> 
A133: =A132+1 -> 2 | B133: =[134]TOTAUX!$B$4 -> NON | C133: =[134]TOTAUX!$C$4 -> NON | D133: =[134]TOTAUX!$D$4 -> 2 | E133: =[134]TOTAUX!$E$4 -> 0 | F133: =[134]TOTAUX!$F$4 -> 0 | G133: =[134]TOTAUX!$G$4 -> 0 | H133: =[134]TOTAUX!$H$4 -> 0 | I133: =[134]TOTAUX!$I$4 -> 0 | J133: =[134]TOTAUX!$J$4 -> 0 | K133: =[134]TOTAUX!$K$4 -> 0 | L133: =[134]TOTAUX!$L$4 -> 0 | M133: =[134]TOTAUX!$M$4 -> 0 | N133: =[134]TOTAUX!$N$4 -> 0 | O133: =[134]TOTAUX!$O$4 -> 0 | P133: =[134]TOTAUX!$P$4 -> 0 | Q133: =[134]TOTAUX!$Q$4 -> 0 | R133: =[134]TOTAUX!$R$4 -> 0 | S133: =H133/F133 ->  | T133: =((H133+N133)/(F133+N133+P133)) ->  | U133: =((K133)+(L133*2)+(M133*3)+(N133*4))/F133 -> 
A134: =A133+1 -> 3 | B134: =[134]TOTAUX!$B$5 -> NON | C134: =[134]TOTAUX!$C$5 -> NON | D134: =[134]TOTAUX!$D$5 -> 3 | E134: =[134]TOTAUX!$E$5 -> 0 | F134: =[134]TOTAUX!$F$5 -> 0 | G134: =[134]TOTAUX!$G$5 -> 0 | H134: =[134]TOTAUX!$H$5 -> 0 | I134: =[134]TOTAUX!$I$5 -> 0 | J134: =[134]TOTAUX!$J$5 -> 0 | K134: =[134]TOTAUX!$K$5 -> 0 | L134: =[134]TOTAUX!$L$5 -> 0 | M134: =[134]TOTAUX!$M$5 -> 0 | N134: =[134]TOTAUX!$N$5 -> 0 | O134: =[134]TOTAUX!$O$5 -> 0 | P134: =[134]TOTAUX!$P$5 -> 0 | Q134: =[134]TOTAUX!$Q$5 -> 0 | R134: =[134]TOTAUX!$R$5 -> 0
A135: 4 | B135: =[134]TOTAUX!$B$6 -> NON | C135: =[134]TOTAUX!$C$6 -> NON | D135: =[134]TOTAUX!$D$6 -> 4 | E135: =[134]TOTAUX!$E$6 -> 0 | F135: =[134]TOTAUX!$F$6 -> 0 | G135: =[134]TOTAUX!$G$6 -> 0 | H135: =[134]TOTAUX!$H$6 -> 0 | I135: =[134]TOTAUX!$I$6 -> 0 | J135: =[134]TOTAUX!$J$6 -> 0 | K135: =[134]TOTAUX!$K$6 -> 0 | L135: =[134]TOTAUX!$L$6 -> 0 | M135: =[134]TOTAUX!$M$6 -> 0 | N135: =[134]TOTAUX!$N$6 -> 0 | O135: =[134]TOTAUX!$O$6 -> 0 | P135: =[134]TOTAUX!$P$6 -> 0 | Q135: =[134]TOTAUX!$Q$6 -> 0 | R135: =[134]TOTAUX!$R$6 -> 0
A136: 5 | B136: =[134]TOTAUX!$B$7 -> NON | C136: =[134]TOTAUX!$C$7 -> NON | D136: =[134]TOTAUX!$D$7 -> 5 | E136: =[134]TOTAUX!$E$7 -> 0 | F136: =[134]TOTAUX!$F$7 -> 0 | G136: =[134]TOTAUX!$G$7 -> 0 | H136: =[134]TOTAUX!$H$7 -> 0 | I136: =[134]TOTAUX!$I$7 -> 0 | J136: =[134]TOTAUX!$J$7 -> 0 | K136: =[134]TOTAUX!$K$7 -> 0 | L136: =[134]TOTAUX!$L$7 -> 0 | M136: =[134]TOTAUX!$M$7 -> 0 | N136: =[134]TOTAUX!$N$7 -> 0 | O136: =[134]TOTAUX!$O$7 -> 0 | P136: =[134]TOTAUX!$P$7 -> 0 | Q136: =[134]TOTAUX!$Q$7 -> 0 | R136: =[134]TOTAUX!$R$7 -> 0
A137: 6 | B137: =[134]TOTAUX!$B$8 -> NON | C137: =[134]TOTAUX!$C$8 -> NON | D137: =[134]TOTAUX!$D$8 -> 6 | E137: =[134]TOTAUX!$E$8 -> 0 | F137: =[134]TOTAUX!$F$8 -> 0 | G137: =[134]TOTAUX!$G$8 -> 0 | H137: =[134]TOTAUX!$H$8 -> 0 | I137: =[134]TOTAUX!$I$8 -> 0 | J137: =[134]TOTAUX!$J$8 -> 0 | K137: =[134]TOTAUX!$K$8 -> 0 | L137: =[134]TOTAUX!$L$8 -> 0 | M137: =[134]TOTAUX!$M$8 -> 0 | N137: =[134]TOTAUX!$N$8 -> 0 | O137: =[134]TOTAUX!$O$8 -> 0 | P137: =[134]TOTAUX!$P$8 -> 0 | Q137: =[134]TOTAUX!$Q$8 -> 0 | R137: =[134]TOTAUX!$R$8 -> 0
A138: 7 | B138: =[134]TOTAUX!$B$9 -> NON | C138: =[134]TOTAUX!$C$9 -> NON | D138: =[134]TOTAUX!$D$9 -> 7 | E138: =[134]TOTAUX!$E$9 -> 0 | F138: =[134]TOTAUX!$F$9 -> 0 | G138: =[134]TOTAUX!$G$9 -> 0 | H138: =[134]TOTAUX!$H$9 -> 0 | I138: =[134]TOTAUX!$I$9 -> 0 | J138: =[134]TOTAUX!$J$9 -> 0 | K138: =[134]TOTAUX!$K$9 -> 0 | L138: =[134]TOTAUX!$L$9 -> 0 | M138: =[134]TOTAUX!$M$9 -> 0 | N138: =[134]TOTAUX!$N$9 -> 0 | O138: =[134]TOTAUX!$O$9 -> 0 | P138: =[134]TOTAUX!$P$9 -> 0 | Q138: =[134]TOTAUX!$Q$9 -> 0 | R138: =[134]TOTAUX!$R$9 -> 0
A139: 8 | B139: =[134]TOTAUX!$B$10 -> NON | C139: =[134]TOTAUX!$C$10 -> NON | D139: =[134]TOTAUX!$D$10 -> 8 | E139: =[134]TOTAUX!$E$10 -> 0 | F139: =[134]TOTAUX!$F$10 -> 0 | G139: =[134]TOTAUX!$G$10 -> 0 | H139: =[134]TOTAUX!$H$10 -> 0 | I139: =[134]TOTAUX!$I$10 -> 0 | J139: =[134]TOTAUX!$J$10 -> 0 | K139: =[134]TOTAUX!$K$10 -> 0 | L139: =[134]TOTAUX!$L$10 -> 0 | M139: =[134]TOTAUX!$M$10 -> 0 | N139: =[134]TOTAUX!$N$10 -> 0 | O139: =[134]TOTAUX!$O$10 -> 0 | P139: =[134]TOTAUX!$P$10 -> 0 | Q139: =[134]TOTAUX!$Q$10 -> 0 | R139: =[134]TOTAUX!$R$10 -> 0
A140: 9 | B140: =[134]TOTAUX!$B$11 -> NON | C140: =[134]TOTAUX!$C$11 -> NON | D140: =[134]TOTAUX!$D$11 -> 9 | E140: =[134]TOTAUX!$E$11 -> 0 | F140: =[134]TOTAUX!$F$11 -> 0 | G140: =[134]TOTAUX!$G$11 -> 0 | H140: =[134]TOTAUX!$H$11 -> 0 | I140: =[134]TOTAUX!$I$11 -> 0 | J140: =[134]TOTAUX!$J$11 -> 0 | K140: =[134]TOTAUX!$K$11 -> 0 | L140: =[134]TOTAUX!$L$11 -> 0 | M140: =[134]TOTAUX!$M$11 -> 0 | N140: =[134]TOTAUX!$N$11 -> 0 | O140: =[134]TOTAUX!$O$11 -> 0 | P140: =[134]TOTAUX!$P$11 -> 0 | Q140: =[134]TOTAUX!$Q$11 -> 0 | R140: =[134]TOTAUX!$R$11 -> 0
A141: 10 | B141: =[134]TOTAUX!$B$12 -> NON | C141: =[134]TOTAUX!$C$12 -> NON | D141: =[134]TOTAUX!$D$12 -> 10 | E141: =[134]TOTAUX!$E$12 -> 0 | F141: =[134]TOTAUX!$F$12 -> 0 | G141: =[134]TOTAUX!$G$12 -> 0 | H141: =[134]TOTAUX!$H$12 -> 0 | I141: =[134]TOTAUX!$I$12 -> 0 | J141: =[134]TOTAUX!$J$12 -> 0 | K141: =[134]TOTAUX!$K$12 -> 0 | L141: =[134]TOTAUX!$L$12 -> 0 | M141: =[134]TOTAUX!$M$12 -> 0 | N141: =[134]TOTAUX!$N$12 -> 0 | O141: =[134]TOTAUX!$O$12 -> 0 | P141: =[134]TOTAUX!$P$12 -> 0 | Q141: =[134]TOTAUX!$Q$12 -> 0 | R141: =[134]TOTAUX!$R$12 -> 0
A142: 11 | B142: =[134]TOTAUX!$B$13 -> NON | C142: =[134]TOTAUX!$C$13 -> NON | D142: =[134]TOTAUX!$D$13 -> 11 | E142: =[134]TOTAUX!$E$13 -> 0 | F142: =[134]TOTAUX!$F$13 -> 0 | G142: =[134]TOTAUX!$G$13 -> 0 | H142: =[134]TOTAUX!$H$13 -> 0 | I142: =[134]TOTAUX!$I$13 -> 0 | J142: =[134]TOTAUX!$J$13 -> 0 | K142: =[134]TOTAUX!$K$13 -> 0 | L142: =[134]TOTAUX!$L$13 -> 0 | M142: =[134]TOTAUX!$M$13 -> 0 | N142: =[134]TOTAUX!$N$13 -> 0 | O142: =[134]TOTAUX!$O$13 -> 0 | P142: =[134]TOTAUX!$P$13 -> 0 | Q142: =[134]TOTAUX!$Q$13 -> 0 | R142: =[134]TOTAUX!$R$13 -> 0
A143: 12 | B143: =[134]TOTAUX!$B$14 -> NON | C143: =[134]TOTAUX!$C$14 -> NON | D143: =[134]TOTAUX!$D$14 -> 12 | E143: =[134]TOTAUX!$E$14 -> 0 | F143: =[134]TOTAUX!$F$14 -> 0 | G143: =[134]TOTAUX!$G$14 -> 0 | H143: =[134]TOTAUX!$H$14 -> 0 | I143: =[134]TOTAUX!$I$14 -> 0 | J143: =[134]TOTAUX!$J$14 -> 0 | K143: =[134]TOTAUX!$K$14 -> 0 | L143: =[134]TOTAUX!$L$14 -> 0 | M143: =[134]TOTAUX!$M$14 -> 0 | N143: =[134]TOTAUX!$N$14 -> 0 | O143: =[134]TOTAUX!$O$14 -> 0 | P143: =[134]TOTAUX!$P$14 -> 0 | Q143: =[134]TOTAUX!$Q$14 -> 0 | R143: =[134]TOTAUX!$R$14 -> 0
A144: 13 | B144: =[134]TOTAUX!$B$15 -> NON | C144: =[134]TOTAUX!$C$15 -> NON | D144: =[134]TOTAUX!$D$15 -> 13 | E144: =[134]TOTAUX!$E$15 -> 0 | F144: =[134]TOTAUX!$F$15 -> 0 | G144: =[134]TOTAUX!$G$15 -> 0 | H144: =[134]TOTAUX!$H$15 -> 0 | I144: =[134]TOTAUX!$I$15 -> 0 | J144: =[134]TOTAUX!$J$15 -> 0 | K144: =[134]TOTAUX!$K$15 -> 0 | L144: =[134]TOTAUX!$L$15 -> 0 | M144: =[134]TOTAUX!$M$15 -> 0 | N144: =[134]TOTAUX!$N$15 -> 0 | O144: =[134]TOTAUX!$O$15 -> 0 | P144: =[134]TOTAUX!$P$15 -> 0 | Q144: =[134]TOTAUX!$Q$15 -> 0 | R144: =[134]TOTAUX!$R$15 -> 0
A145: 14 | B145: =[134]TOTAUX!$B$16 -> NON | C145: =[134]TOTAUX!$C$16 -> NON | D145: =[134]TOTAUX!$D$16 -> 14 | E145: =[134]TOTAUX!$E$16 -> 0 | F145: =[134]TOTAUX!$F$16 -> 0 | G145: =[134]TOTAUX!$G$16 -> 0 | H145: =[134]TOTAUX!$H$16 -> 0 | I145: =[134]TOTAUX!$I$16 -> 0 | J145: =[134]TOTAUX!$J$16 -> 0 | K145: =[134]TOTAUX!$K$16 -> 0 | L145: =[134]TOTAUX!$L$16 -> 0 | M145: =[134]TOTAUX!$M$16 -> 0 | N145: =[134]TOTAUX!$N$16 -> 0 | O145: =[134]TOTAUX!$O$16 -> 0 | P145: =[134]TOTAUX!$P$16 -> 0 | Q145: =[134]TOTAUX!$Q$16 -> 0 | R145: =[134]TOTAUX!$R$16 -> 0
A146: 15 | B146: =[134]TOTAUX!$B$17 -> NON | C146: =[134]TOTAUX!$C$17 -> NON | D146: =[134]TOTAUX!$D$17 -> 15 | E146: =[134]TOTAUX!$E$17 -> 0 | F146: =[134]TOTAUX!$F$17 -> 0 | G146: =[134]TOTAUX!$G$17 -> 0 | H146: =[134]TOTAUX!$H$17 -> 0 | I146: =[134]TOTAUX!$I$17 -> 0 | J146: =[134]TOTAUX!$J$17 -> 0 | K146: =[134]TOTAUX!$K$17 -> 0 | L146: =[134]TOTAUX!$L$17 -> 0 | M146: =[134]TOTAUX!$M$17 -> 0 | N146: =[134]TOTAUX!$N$17 -> 0 | O146: =[134]TOTAUX!$O$17 -> 0 | P146: =[134]TOTAUX!$P$17 -> 0 | Q146: =[134]TOTAUX!$Q$17 -> 0 | R146: =[134]TOTAUX!$R$17 -> 0
A147: 16 | B147: =[134]TOTAUX!$B$18 -> NON | C147: =[134]TOTAUX!$C$18 -> NON | D147: =[134]TOTAUX!$D$18 -> 16 | E147: =[134]TOTAUX!$E$18 -> 0 | F147: =[134]TOTAUX!$F$18 -> 0 | G147: =[134]TOTAUX!$G$18 -> 0 | H147: =[134]TOTAUX!$H$18 -> 0 | I147: =[134]TOTAUX!$I$18 -> 0 | J147: =[134]TOTAUX!$J$18 -> 0 | K147: =[134]TOTAUX!$K$18 -> 0 | L147: =[134]TOTAUX!$L$18 -> 0 | M147: =[134]TOTAUX!$M$18 -> 0 | N147: =[134]TOTAUX!$N$18 -> 0 | O147: =[134]TOTAUX!$O$18 -> 0 | P147: =[134]TOTAUX!$P$18 -> 0 | Q147: =[134]TOTAUX!$Q$18 -> 0 | R147: =[134]TOTAUX!$R$18 -> 0
A148: 17 | B148: =[134]TOTAUX!$B$19 -> NON | C148: =[134]TOTAUX!$C$19 -> NON | D148: =[134]TOTAUX!$D$19 -> 17 | E148: =[134]TOTAUX!$E$19 -> 0 | F148: =[134]TOTAUX!$F$19 -> 0 | G148: =[134]TOTAUX!$G$19 -> 0 | H148: =[134]TOTAUX!$H$19 -> 0 | I148: =[134]TOTAUX!$I$19 -> 0 | J148: =[134]TOTAUX!$J$19 -> 0 | K148: =[134]TOTAUX!$K$19 -> 0 | L148: =[134]TOTAUX!$L$19 -> 0 | M148: =[134]TOTAUX!$M$19 -> 0 | N148: =[134]TOTAUX!$N$19 -> 0 | O148: =[134]TOTAUX!$O$19 -> 0 | P148: =[134]TOTAUX!$P$19 -> 0 | Q148: =[134]TOTAUX!$Q$19 -> 0 | R148: =[134]TOTAUX!$R$19 -> 0
A149: 18 | B149: =[134]TOTAUX!$B$20 -> NON | C149: =[134]TOTAUX!$C$20 -> NON | D149: =[134]TOTAUX!$D$20 -> 18 | E149: =[134]TOTAUX!$E$20 -> 0 | F149: =[134]TOTAUX!$F$20 -> 0 | G149: =[134]TOTAUX!$G$20 -> 0 | H149: =[134]TOTAUX!$H$20 -> 0 | I149: =[134]TOTAUX!$I$20 -> 0 | J149: =[134]TOTAUX!$J$20 -> 0 | K149: =[134]TOTAUX!$K$20 -> 0 | L149: =[134]TOTAUX!$L$20 -> 0 | M149: =[134]TOTAUX!$M$20 -> 0 | N149: =[134]TOTAUX!$N$20 -> 0 | O149: =[134]TOTAUX!$O$20 -> 0 | P149: =[134]TOTAUX!$P$20 -> 0 | Q149: =[134]TOTAUX!$Q$20 -> 0 | R149: =[134]TOTAUX!$R$20 -> 0
A150: 19 | B150: =[134]TOTAUX!$B$21 -> NON | C150: =[134]TOTAUX!$C$21 -> NON | D150: =[134]TOTAUX!$D$21 -> 19 | E150: =[134]TOTAUX!$E$22 -> 0 | F150: =[134]TOTAUX!$F$21 -> 0 | G150: =[134]TOTAUX!$G$21 -> 0 | H150: =[134]TOTAUX!$H$21 -> 0 | I150: =[134]TOTAUX!$I$21 -> 0 | J150: =[134]TOTAUX!$J$21 -> 0 | K150: =[134]TOTAUX!$K$21 -> 0 | L150: =[134]TOTAUX!$L$21 -> 0 | M150: =[134]TOTAUX!$M$21 -> 0 | N150: =[134]TOTAUX!$N$21 -> 0 | O150: =[134]TOTAUX!$O$21 -> 0 | P150: =[134]TOTAUX!$P$21 -> 0 | Q150: =[134]TOTAUX!$Q$21 -> 0 | R150: =[134]TOTAUX!$R$21 -> 0
A151: 20 | B151: =[134]TOTAUX!$B$22 -> NON | C151: =[134]TOTAUX!$C$22 -> NON | D151: =[134]TOTAUX!$D$22 -> 20 | E151: =[134]TOTAUX!$E$23 -> 0 | F151: =[134]TOTAUX!$F$22 -> 0 | G151: =[134]TOTAUX!$G$22 -> 0 | H151: =[134]TOTAUX!$H$22 -> 0 | I151: =[134]TOTAUX!$I$22 -> 0 | J151: =[134]TOTAUX!$J$22 -> 0 | K151: =[134]TOTAUX!$K$22 -> 0 | L151: =[134]TOTAUX!$L$22 -> 0 | M151: =[134]TOTAUX!$M$22 -> 0 | N151: =[134]TOTAUX!$N$22 -> 0 | O151: =[134]TOTAUX!$O$22 -> 0 | P151: =[134]TOTAUX!$P$22 -> 0 | Q151: =[134]TOTAUX!$Q$22 -> 0 | R151: =[134]TOTAUX!$R$22 -> 0
D152: TOTAUX | F152: =[134]TOTAUX!$F$23 -> 0 | G152: =[134]TOTAUX!$G$23 -> 0 | H152: =[134]TOTAUX!$H$23 -> 0 | I152: =[134]TOTAUX!$I$23 -> 0 | J152: =[134]TOTAUX!$J$23 -> 0 | K152: =[134]TOTAUX!$K$23 -> 0 | L152: =[134]TOTAUX!$L$23 -> 0 | M152: =[134]TOTAUX!$M$23 -> 0 | N152: =[134]TOTAUX!$N$23 -> 0 | O152: =[134]TOTAUX!$O$23 -> 0 | P152: =[134]TOTAUX!$P$23 -> 0 | Q152: =[134]TOTAUX!$Q$23 -> 0 | R152: =[134]TOTAUX!$R$23 -> 0
D154: NOM | E154: PJ | F154: PD | G154: V | H154: D | I154: N | J154: ML | K154: P | L154: PM | M154: CS | N154: BB | O154: WP | P154: RAB | Q154: MPM | R154: K/7 | S154: WHIP | T154: ML SÉRIES
D155: =[134]TOTAUX!$D$26 -> 1 | E155: =[134]TOTAUX!$E$26 -> 0 | F155: =[134]TOTAUX!$F$26 -> 0 | G155: =[134]TOTAUX!$G$26 -> 0 | H155: =[134]TOTAUX!$H$26 -> 0 | I155: =[134]TOTAUX!$I$26 -> 0 | J155: =[134]TOTAUX!$J$26 -> 0 | K155: =[134]TOTAUX!$K$26 -> 0 | L155: =[134]TOTAUX!$L$26 -> 0 | M155: =[134]TOTAUX!$M$26 -> 0 | N155: =[134]TOTAUX!$N$26 -> 0 | O155: =[134]TOTAUX!$O$26 -> 0 | P155: =[134]TOTAUX!$P$26 -> 0 | Q155: =(L155*7)/J155 ->  | R155: =(P155*7)/J155 ->  | S155: =(M155+N155)/J155 ->  | T155: =[134]TOTAUX!$T$26 -> 0
D156: =[134]TOTAUX!$D$27 -> 2 | E156: =[134]TOTAUX!$E$27 -> 0 | F156: =[134]TOTAUX!$F$27 -> 0 | G156: =[134]TOTAUX!$G$27 -> 0 | H156: =[134]TOTAUX!$H$27 -> 0 | I156: =[134]TOTAUX!$I$27 -> 0 | J156: =[134]TOTAUX!$J$27 -> 0 | K156: =[134]TOTAUX!$K$27 -> 0 | L156: =[134]TOTAUX!$L$27 -> 0 | M156: =[134]TOTAUX!$M$27 -> 0 | N156: =[134]TOTAUX!$N$27 -> 0 | O156: =[134]TOTAUX!$O$27 -> 0 | P156: =[134]TOTAUX!$P$27 -> 0 | Q156: =(L156*7)/J156 ->  | R156: =(P156*7)/J156 ->  | S156: =(M156+N156)/J156 ->  | T156: =[134]TOTAUX!$T$27 -> 0
D157: =[134]TOTAUX!$D$28 -> 3 | E157: =[134]TOTAUX!$E$28 -> 0 | F157: =[134]TOTAUX!$F$28 -> 0 | G157: =[134]TOTAUX!$G$28 -> 0 | H157: =[134]TOTAUX!$H$28 -> 0 | I157: =[134]TOTAUX!$I$28 -> 0 | J157: =[134]TOTAUX!$J$28 -> 0 | K157: =[134]TOTAUX!$K$28 -> 0 | L157: =[134]TOTAUX!$L$28 -> 0 | M157: =[134]TOTAUX!$M$28 -> 0 | N157: =[134]TOTAUX!$N$28 -> 0 | O157: =[134]TOTAUX!$O$28 -> 0 | P157: =[134]TOTAUX!$P$28 -> 0 | T157: =[134]TOTAUX!$T$28 -> 0
D158: =[134]TOTAUX!$D$29 -> 4 | E158: =[134]TOTAUX!$E$29 -> 0 | F158: =[134]TOTAUX!$F$29 -> 0 | G158: =[134]TOTAUX!$G$29 -> 0 | H158: =[134]TOTAUX!$H$29 -> 0 | I158: =[134]TOTAUX!$I$29 -> 0 | J158: =[134]TOTAUX!$J$29 -> 0 | K158: =[134]TOTAUX!$K$29 -> 0 | L158: =[134]TOTAUX!$L$29 -> 0 | M158: =[134]TOTAUX!$M$29 -> 0 | N158: =[134]TOTAUX!$N$29 -> 0 | O158: =[134]TOTAUX!$O$29 -> 0 | P158: =[134]TOTAUX!$P$29 -> 0 | T158: =[134]TOTAUX!$T$29 -> 0
D159: =[134]TOTAUX!$D$30 -> 5 | E159: =[134]TOTAUX!$E$30 -> 0 | F159: =[134]TOTAUX!$F$30 -> 0 | G159: =[134]TOTAUX!$G$30 -> 0 | H159: =[134]TOTAUX!$H$30 -> 0 | I159: =[134]TOTAUX!$I$30 -> 0 | J159: =[134]TOTAUX!$J$30 -> 0 | K159: =[134]TOTAUX!$K$30 -> 0 | L159: =[134]TOTAUX!$L$30 -> 0 | M159: =[134]TOTAUX!$M$30 -> 0 | N159: =[134]TOTAUX!$N$30 -> 0 | O159: =[134]TOTAUX!$O$30 -> 0 | P159: =[134]TOTAUX!$P$30 -> 0 | T159: =[134]TOTAUX!$T$30 -> 0
D160: =[134]TOTAUX!$D$31 -> 6 | E160: =[134]TOTAUX!$E$31 -> 0 | F160: =[134]TOTAUX!$F$31 -> 0 | G160: =[134]TOTAUX!$G$31 -> 0 | H160: =[134]TOTAUX!$H$31 -> 0 | I160: =[134]TOTAUX!$I$31 -> 0 | J160: =[134]TOTAUX!$J$31 -> 0 | K160: =[134]TOTAUX!$K$31 -> 0 | L160: =[134]TOTAUX!$L$31 -> 0 | M160: =[134]TOTAUX!$M$31 -> 0 | N160: =[134]TOTAUX!$N$31 -> 0 | O160: =[134]TOTAUX!$O$31 -> 0 | P160: =[134]TOTAUX!$P$31 -> 0 | T160: =[134]TOTAUX!$T$31 -> 0
D161: TOTAUX | E161: =[134]TOTAUX!$E$32 -> 0 | F161: =[134]TOTAUX!$F$32 -> 0 | G161: =[134]TOTAUX!$G$32 -> 0 | H161: =[134]TOTAUX!$H$32 -> 0 | I161: =[134]TOTAUX!$I$32 -> 0 | J161: =[134]TOTAUX!$J$32 -> 0 | K161: =[134]TOTAUX!$K$32 -> 0 | L161: =[134]TOTAUX!$L$32 -> 0 | M161: =[134]TOTAUX!$M$32 -> 0 | N161: =[134]TOTAUX!$N$32 -> 0 | O161: =[134]TOTAUX!$O$32 -> 0 | P161: =[134]TOTAUX!$P$32 -> 0
H162: BUCANEROS
A163: # | B163: Photo | C163: Contrat | D163: Nom | E163: PJ | F163: AB | G163: P | H163: CS | I163: PP | J163: 1B | K163: 2B | L163: 3B | M163: CC | N163: BB | O163: SAC | P163: BSAC | Q163: RAB | R163: ERR | S163: MOY | T163: MPB | U163: PUI
A164: 1 | B164: =[10]TOTAUX!$B$18 -> OUI | C164: =[10]TOTAUX!$C$18 -> OUI | D164: =[10]TOTAUX!$D$18 -> OMAR MONTANO | E164: =[10]TOTAUX!$E$18 -> 2 | F164: =[10]TOTAUX!$F$18 -> 4 | G164: =[10]TOTAUX!$G$18 -> 4 | H164: =[10]TOTAUX!$H$18 -> 4 | I164: =[10]TOTAUX!$I$18 -> 3 | J164: =[10]TOTAUX!$J$18 -> 2 | K164: =[10]TOTAUX!$K$18 -> 1 | L164: =[10]TOTAUX!$L$18 -> 0 | M164: =[10]TOTAUX!$M$18 -> 1 | N164: =[10]TOTAUX!$N$18 -> 2 | O164: =[10]TOTAUX!$O$18 -> 0 | P164: =[10]TOTAUX!$P$18 -> 0 | Q164: =[10]TOTAUX!$Q$18 -> 0 | R164: =[10]TOTAUX!$R$18 -> 0 | S164: =H164/F164 -> 1 | T164: =((H164+N164)/(F164+N164+P164)) -> 1 | U164: =((J164)+(K164*2)+(L164*3)+(M164*4))/F164 -> 2
A165: =A164+1 -> 2 | B165: =[10]TOTAUX!$B$22 -> OUI | C165: =[10]TOTAUX!$C$22 -> OUI | D165: =[10]TOTAUX!$D$22 -> LUC BOUCHARD | E165: =[10]TOTAUX!$E$22 -> 2 | F165: =[10]TOTAUX!$F$22 -> 5 | G165: =[10]TOTAUX!$G$22 -> 2 | H165: =[10]TOTAUX!$H$22 -> 3 | I165: =[10]TOTAUX!$I$22 -> 1 | J165: =[10]TOTAUX!$J$22 -> 3 | K165: =[10]TOTAUX!$K$22 -> 0 | L165: =[10]TOTAUX!$L$22 -> 0 | M165: =[10]TOTAUX!$M$22 -> 0 | N165: =[10]TOTAUX!$N$22 -> 0 | O165: =[10]TOTAUX!$O$22 -> 0 | P165: =[10]TOTAUX!$P$22 -> 0 | Q165: =[10]TOTAUX!$Q$22 -> 1 | R165: =[10]TOTAUX!$R$22 -> 0 | S165: 0.6 | T165: 0.6 | U165: 0.6
A166: =A165+1 -> 3 | B166: =[10]TOTAUX!$B$11 -> OUI | C166: =[10]TOTAUX!$C$11 -> OUI | D166: =[10]TOTAUX!$D$11 -> ADAM BOUCHARD | E166: =[10]TOTAUX!$E$11 -> 9 | F166: =[10]TOTAUX!$F$11 -> 32 | G166: =[10]TOTAUX!$G$11 -> 14 | H166: =[10]TOTAUX!$H$11 -> 18 | I166: =[10]TOTAUX!$I$11 -> 13 | J166: =[10]TOTAUX!$J$11 -> 9 | K166: =[10]TOTAUX!$K$11 -> 5 | L166: =[10]TOTAUX!$L$11 -> 0 | M166: =[10]TOTAUX!$M$11 -> 4 | N166: =[10]TOTAUX!$N$11 -> 0 | O166: =[10]TOTAUX!$O$11 -> 0 | P166: =[10]TOTAUX!$P$11 -> 0 | Q166: =[10]TOTAUX!$Q$11 -> 3 | R166: =[10]TOTAUX!$R$11 -> 0 | S166: 0.5625 | T166: 0.5625 | U166: 1.09375
A167: 4 | B167: =[10]TOTAUX!$B$9 -> OUI | C167: =[10]TOTAUX!$C$9 -> OUI | D167: =[10]TOTAUX!$D$9 -> JUAN MARTINEZ | E167: =[10]TOTAUX!$E$9 -> 11 | F167: =[10]TOTAUX!$F$9 -> 29 | G167: =[10]TOTAUX!$G$9 -> 13 | H167: =[10]TOTAUX!$H$9 -> 16 | I167: =[10]TOTAUX!$I$9 -> 13 | J167: =[10]TOTAUX!$J$9 -> 9 | K167: =[10]TOTAUX!$K$9 -> 2 | L167: =[10]TOTAUX!$L$9 -> 4 | M167: =[10]TOTAUX!$M$9 -> 1 | N167: =[10]TOTAUX!$N$9 -> 4 | O167: =[10]TOTAUX!$O$9 -> 0 | P167: =[10]TOTAUX!$P$9 -> 0 | Q167: =[10]TOTAUX!$Q$9 -> 0 | R167: =[10]TOTAUX!$R$9 -> 2 | S167: 0.5517241379 | T167: 0.6060606061 | U167: 1
A168: 5 | B168: =[10]TOTAUX!$B$3 -> OUI | C168: =[10]TOTAUX!$C$3 -> OUI | D168: =[10]TOTAUX!$D$3 -> HAROLD SALINAS | E168: =[10]TOTAUX!$E$3 -> 11 | F168: =[10]TOTAUX!$F$3 -> 35 | G168: =[10]TOTAUX!$G$3 -> 7 | H168: =[10]TOTAUX!$H$3 -> 18 | I168: =[10]TOTAUX!$I$3 -> 20 | J168: =[10]TOTAUX!$J$3 -> 13 | K168: =[10]TOTAUX!$K$3 -> 3 | L168: =[10]TOTAUX!$L$3 -> 0 | M168: =[10]TOTAUX!$M$3 -> 2 | N168: =[10]TOTAUX!$N$3 -> 0 | O168: =[10]TOTAUX!$O$3 -> 0 | P168: =[10]TOTAUX!$P$3 -> 1 | Q168: =[10]TOTAUX!$Q$3 -> 0 | R168: =[10]TOTAUX!$R$3 -> 1 | S168: 0.5142857143 | T168: 0.5 | U168: 0.7714285714
A169: 6 | B169: =[10]TOTAUX!$B$15 -> OUI | C169: =[10]TOTAUX!$C$15 -> OUI | D169: =[10]TOTAUX!$D$15 -> ADONYS ALEA | E169: =[10]TOTAUX!$E$15 -> 5 | F169: =[10]TOTAUX!$F$15 -> 16 | G169: =[10]TOTAUX!$G$15 -> 8 | H169: =[10]TOTAUX!$H$15 -> 8 | I169: =[10]TOTAUX!$I$15 -> 6 | J169: =[10]TOTAUX!$J$15 -> 7 | K169: =[10]TOTAUX!$K$15 -> 1 | L169: =[10]TOTAUX!$L$15 -> 0 | M169: =[10]TOTAUX!$M$15 -> 0 | N169: =[10]TOTAUX!$N$15 -> 3 | O169: =[10]TOTAUX!$O$15 -> 0 | P169: =[10]TOTAUX!$P$15 -> 0 | Q169: =[10]TOTAUX!$Q$15 -> 1 | R169: =[10]TOTAUX!$R$15 -> 0 | S169: 0.5 | T169: 0.5789473684 | U169: 0.5625
A170: 7 | B170: =[10]TOTAUX!$B$16 -> OUI | C170: =[10]TOTAUX!$C$16 -> OUI | D170: =[10]TOTAUX!$D$16 -> FABIAN TARRIBA | E170: =[10]TOTAUX!$E$16 -> 5 | F170: =[10]TOTAUX!$F$16 -> 16 | G170: =[10]TOTAUX!$G$16 -> 4 | H170: =[10]TOTAUX!$H$16 -> 7 | I170: =[10]TOTAUX!$I$16 -> 1 | J170: =[10]TOTAUX!$J$16 -> 5 | K170: =[10]TOTAUX!$K$16 -> 1 | L170: =[10]TOTAUX!$L$16 -> 1 | M170: =[10]TOTAUX!$M$16 -> 0 | N170: =[10]TOTAUX!$N$16 -> 2 | O170: =[10]TOTAUX!$O$16 -> 0 | P170: =[10]TOTAUX!$P$16 -> 0 | Q170: =[10]TOTAUX!$Q$16 -> 1 | R170: =[10]TOTAUX!$R$16 -> 1 | S170: 0.4375 | T170: 0.5 | U170: 0.625
A171: 8 | B171: =[10]TOTAUX!$B$19 -> OUI | C171: =[10]TOTAUX!$C$19 -> OUI | D171: =[10]TOTAUX!$D$19 -> RENE-ALEXANDRE MORELOS | E171: =[10]TOTAUX!$E$19 -> 2 | F171: =[10]TOTAUX!$F$19 -> 7 | G171: =[10]TOTAUX!$G$19 -> 3 | H171: =[10]TOTAUX!$H$19 -> 3 | I171: =[10]TOTAUX!$I$19 -> 2 | J171: =[10]TOTAUX!$J$19 -> 0 | K171: =[10]TOTAUX!$K$19 -> 2 | L171: =[10]TOTAUX!$L$19 -> 0 | M171: =[10]TOTAUX!$M$19 -> 1 | N171: =[10]TOTAUX!$N$19 -> 0 | O171: =[10]TOTAUX!$O$19 -> 0 | P171: =[10]TOTAUX!$P$19 -> 0 | Q171: =[10]TOTAUX!$Q$19 -> 1 | R171: =[10]TOTAUX!$R$19 -> 1 | S171: 0.4285714286 | T171: 0.4285714286 | U171: 1.142857143
A172: 9 | B172: =[10]TOTAUX!$B$6 -> OUI | C172: =[10]TOTAUX!$C$6 -> OUI | D172: =[10]TOTAUX!$D$6 -> MIGUEL VELIZ | E172: =[10]TOTAUX!$E$6 -> 10 | F172: =[10]TOTAUX!$F$6 -> 26 | G172: =[10]TOTAUX!$G$6 -> 9 | H172: =[10]TOTAUX!$H$6 -> 10 | I172: =[10]TOTAUX!$I$6 -> 2 | J172: =[10]TOTAUX!$J$6 -> 10 | K172: =[10]TOTAUX!$K$6 -> 0 | L172: =[10]TOTAUX!$L$6 -> 0 | M172: =[10]TOTAUX!$M$6 -> 0 | N172: =[10]TOTAUX!$N$6 -> 6 | O172: =[10]TOTAUX!$O$6 -> 0 | P172: =[10]TOTAUX!$P$6 -> 0 | Q172: =[10]TOTAUX!$Q$6 -> 0 | R172: =[10]TOTAUX!$R$6 -> 2 | S172: 0.3846153846 | T172: 0.5 | U172: 0.3846153846
A173: 10 | B173: =[10]TOTAUX!$B$14 -> OUI | C173: =[10]TOTAUX!$C$14 -> OUI | D173: =[10]TOTAUX!$D$14 -> DANIEL LEBLANC | E173: =[10]TOTAUX!$E$14 -> 8 | F173: =[10]TOTAUX!$F$14 -> 18 | G173: =[10]TOTAUX!$G$14 -> 3 | H173: =[10]TOTAUX!$H$14 -> 6 | I173: =[10]TOTAUX!$I$14 -> 2 | J173: =[10]TOTAUX!$J$14 -> 6 | K173: =[10]TOTAUX!$K$14 -> 0 | L173: =[10]TOTAUX!$L$14 -> 0 | M173: =[10]TOTAUX!$M$14 -> 0 | N173: =[10]TOTAUX!$N$14 -> 1 | O173: =[10]TOTAUX!$O$14 -> 0 | P173: =[10]TOTAUX!$P$14 -> 0 | Q173: =[10]TOTAUX!$Q$14 -> 0 | R173: =[10]TOTAUX!$R$14 -> 1 | S173: 0.3333333333 | T173: 0.3684210526 | U173: 0.3333333333
A174: 11 | B174: =[10]TOTAUX!$B$17 -> OUI | C174: =[10]TOTAUX!$C$17 -> OUI | D174: =[10]TOTAUX!$D$17 -> ANGEL PINO | E174: =[10]TOTAUX!$E$17 -> 2 | F174: =[10]TOTAUX!$F$17 -> 6 | G174: =[10]TOTAUX!$G$17 -> 1 | H174: =[10]TOTAUX!$H$17 -> 2 | I174: =[10]TOTAUX!$I$17 -> 1 | J174: =[10]TOTAUX!$J$17 -> 2 | K174: =[10]TOTAUX!$K$17 -> 0 | L174: =[10]TOTAUX!$L$17 -> 0 | M174: =[10]TOTAUX!$M$17 -> 0 | N174: =[10]TOTAUX!$N$17 -> 0 | O174: =[10]TOTAUX!$O$17 -> 0 | P174: =[10]TOTAUX!$P$17 -> 0 | Q174: =[10]TOTAUX!$Q$17 -> 0 | R174: =[10]TOTAUX!$R$17 -> 0 | S174: 0.3333333333 | T174: 0.3333333333 | U174: 0.3333333333
A175: 12 | B175: =[10]TOTAUX!$B$12 -> OUI | C175: =[10]TOTAUX!$C$12 -> OUI | D175: =[10]TOTAUX!$D$12 -> REMI BOUCHARD | E175: =[10]TOTAUX!$E$12 -> 9 | F175: =[10]TOTAUX!$F$12 -> 25 | G175: =[10]TOTAUX!$G$12 -> 5 | H175: =[10]TOTAUX!$H$12 -> 7 | I175: =[10]TOTAUX!$I$12 -> 8 | J175: =[10]TOTAUX!$J$12 -> 4 | K175: =[10]TOTAUX!$K$12 -> 1 | L175: =[10]TOTAUX!$L$12 -> 1 | M175: =[10]TOTAUX!$M$12 -> 1 | N175: =[10]TOTAUX!$N$12 -> 3 | O175: =[10]TOTAUX!$O$12 -> 0 | P175: =[10]TOTAUX!$P$12 -> 0 | Q175: =[10]TOTAUX!$Q$12 -> 2 | R175: =[10]TOTAUX!$R$12 -> 1 | S175: 0.28 | T175: 0.3571428571 | U175: 0.52
A176: 13 | B176: =[10]TOTAUX!$B$8 -> OUI | C176: =[10]TOTAUX!$C$8 -> OUI | D176: =[10]TOTAUX!$D$8 -> DANIEL RODRIGUEZ | E176: =[10]TOTAUX!$E$8 -> 10 | F176: =[10]TOTAUX!$F$8 -> 29 | G176: =[10]TOTAUX!$G$8 -> 10 | H176: =[10]TOTAUX!$H$8 -> 8 | I176: =[10]TOTAUX!$I$8 -> 3 | J176: =[10]TOTAUX!$J$8 -> 7 | K176: =[10]TOTAUX!$K$8 -> 1 | L176: =[10]TOTAUX!$L$8 -> 0 | M176: =[10]TOTAUX!$M$8 -> 0 | N176: =[10]TOTAUX!$N$8 -> 7 | O176: =[10]TOTAUX!$O$8 -> 0 | P176: =[10]TOTAUX!$P$8 -> 0 | Q176: =[10]TOTAUX!$Q$8 -> 0 | R176: =[10]TOTAUX!$R$8 -> 2 | S176: 0.275862069 | T176: 0.4166666667 | U176: 0.3103448276
A177: 14 | B177: =[10]TOTAUX!$B$4 -> OUI | C177: =[10]TOTAUX!$C$4 -> OUI | D177: =[10]TOTAUX!$D$4 -> JIMMY DOMINGUEZ | E177: =[10]TOTAUX!$E$4 -> 3 | F177: =[10]TOTAUX!$F$4 -> 8 | G177: =[10]TOTAUX!$G$4 -> 3 | H177: =[10]TOTAUX!$H$4 -> 2 | I177: =[10]TOTAUX!$I$4 -> 2 | J177: =[10]TOTAUX!$J$4 -> 2 | K177: =[10]TOTAUX!$K$4 -> 0 | L177: =[10]TOTAUX!$L$4 -> 0 | M177: =[10]TOTAUX!$M$4 -> 0 | N177: =[10]TOTAUX!$N$4 -> 3 | O177: =[10]TOTAUX!$O$4 -> 0 | P177: =[10]TOTAUX!$P$4 -> 0 | Q177: =[10]TOTAUX!$Q$4 -> 0 | R177: =[10]TOTAUX!$R$4 -> 0 | S177: 0.25 | T177: 0.4545454545 | U177: 0.25
A178: 15 | B178: =[10]TOTAUX!$B$5 -> OUI | C178: =[10]TOTAUX!$C$5 -> OUI | D178: =[10]TOTAUX!$D$5 -> CARLOS ACUNA | E178: =[10]TOTAUX!$E$5 -> 11 | F178: =[10]TOTAUX!$F$5 -> 25 | G178: =[10]TOTAUX!$G$5 -> 8 | H178: =[10]TOTAUX!$H$5 -> 6 | I178: =[10]TOTAUX!$I$5 -> 3 | J178: =[10]TOTAUX!$J$5 -> 4 | K178: =[10]TOTAUX!$K$5 -> 2 | L178: =[10]TOTAUX!$L$5 -> 0 | M178: =[10]TOTAUX!$M$5 -> 0 | N178: =[10]TOTAUX!$N$5 -> 9 | O178: =[10]TOTAUX!$O$5 -> 0 | P178: =[10]TOTAUX!$P$5 -> 1 | Q178: =[10]TOTAUX!$Q$5 -> 1 | R178: =[10]TOTAUX!$R$5 -> 4 | S178: 0.24 | T178: 0.4285714286 | U178: 0.32
A179: 16 | B179: =[10]TOTAUX!$B$7 -> OUI | C179: =[10]TOTAUX!$C$7 -> OUI | D179: =[10]TOTAUX!$D$7 -> JOSÉ GOMEZ | E179: =[10]TOTAUX!$E$7 -> 10 | F179: =[10]TOTAUX!$F$7 -> 25 | G179: =[10]TOTAUX!$G$7 -> 4 | H179: =[10]TOTAUX!$H$7 -> 6 | I179: =[10]TOTAUX!$I$7 -> 4 | J179: =[10]TOTAUX!$J$7 -> 6 | K179: =[10]TOTAUX!$K$7 -> 0 | L179: =[10]TOTAUX!$L$7 -> 0 | M179: =[10]TOTAUX!$M$7 -> 0 | N179: =[10]TOTAUX!$N$7 -> 4 | O179: =[10]TOTAUX!$O$7 -> 0 | P179: =[10]TOTAUX!$P$7 -> 0 | Q179: =[10]TOTAUX!$Q$7 -> 1 | R179: =[10]TOTAUX!$R$7 -> 1 | S179: 0.24 | T179: 0.3448275862 | U179: 0.24
A180: 17 | B180: =[10]TOTAUX!$B$13 -> OUI | C180: =[10]TOTAUX!$C$13 -> OUI | D180: =[10]TOTAUX!$D$13 -> DANIEL JIMENEZ | E180: =[10]TOTAUX!$E$13 -> 11 | F180: =[10]TOTAUX!$F$13 -> 28 | G180: =[10]TOTAUX!$G$13 -> 5 | H180: =[10]TOTAUX!$H$13 -> 6 | I180: =[10]TOTAUX!$I$13 -> 6 | J180: =[10]TOTAUX!$J$13 -> 6 | K180: =[10]TOTAUX!$K$13 -> 0 | L180: =[10]TOTAUX!$L$13 -> 0 | M180: =[10]TOTAUX!$M$13 -> 0 | N180: =[10]TOTAUX!$N$13 -> 6 | O180: =[10]TOTAUX!$O$13 -> 0 | P180: =[10]TOTAUX!$P$13 -> 0 | Q180: =[10]TOTAUX!$Q$13 -> 8 | R180: =[10]TOTAUX!$R$13 -> 2 | S180: 0.2142857143 | T180: 0.3529411765 | U180: 0.2142857143
A181: 18 | B181: =[10]TOTAUX!$B$10 -> OUI | C181: =[10]TOTAUX!$C$10 -> OUI | D181: =[10]TOTAUX!$D$10 -> JUAN-CARLOS MARTELO | E181: =[10]TOTAUX!$E$10 -> 0 | F181: =[10]TOTAUX!$F$10 -> 0 | G181: =[10]TOTAUX!$G$10 -> 0 | H181: =[10]TOTAUX!$H$10 -> 0 | I181: =[10]TOTAUX!$I$10 -> 0 | J181: =[10]TOTAUX!$J$10 -> 0 | K181: =[10]TOTAUX!$K$10 -> 0 | L181: =[10]TOTAUX!$L$10 -> 0 | M181: =[10]TOTAUX!$M$10 -> 0 | N181: =[10]TOTAUX!$N$10 -> 0 | O181: =[10]TOTAUX!$O$10 -> 0 | P181: =[10]TOTAUX!$P$10 -> 0 | Q181: =[10]TOTAUX!$Q$10 -> 0 | R181: =[10]TOTAUX!$R$10 -> 0
A182: 19 | B182: =[10]TOTAUX!$B$20 -> OUI | C182: =[10]TOTAUX!$C$20 -> OUI | D182: =[10]TOTAUX!$D$20 -> SIMON DUGAL | E182: =[10]TOTAUX!$E$20 -> 0 | F182: =[10]TOTAUX!$F$20 -> 0 | G182: =[10]TOTAUX!$G$20 -> 0 | H182: =[10]TOTAUX!$H$20 -> 0 | I182: =[10]TOTAUX!$I$20 -> 0 | J182: =[10]TOTAUX!$J$20 -> 0 | K182: =[10]TOTAUX!$K$20 -> 0 | L182: =[10]TOTAUX!$L$20 -> 0 | M182: =[10]TOTAUX!$M$20 -> 0 | N182: =[10]TOTAUX!$N$20 -> 0 | O182: =[10]TOTAUX!$O$20 -> 0 | P182: =[10]TOTAUX!$P$20 -> 0 | Q182: =[10]TOTAUX!$Q$20 -> 0 | R182: =[10]TOTAUX!$R$20 -> 0
A183: 20 | B183: =[10]TOTAUX!$B$21 -> OUI | C183: =[10]TOTAUX!$C$21 -> OUI | D183: =[10]TOTAUX!$D$21 -> ÉRIC GEOFFRION | E183: =[10]TOTAUX!$E$21 -> 0 | F183: =[10]TOTAUX!$F$21 -> 0 | G183: =[10]TOTAUX!$G$21 -> 0 | H183: =[10]TOTAUX!$H$21 -> 0 | I183: =[10]TOTAUX!$I$21 -> 0 | J183: =[10]TOTAUX!$J$21 -> 0 | K183: =[10]TOTAUX!$K$21 -> 0 | L183: =[10]TOTAUX!$L$21 -> 0 | M183: =[10]TOTAUX!$M$21 -> 0 | N183: =[10]TOTAUX!$N$21 -> 0 | O183: =[10]TOTAUX!$O$21 -> 0 | P183: =[10]TOTAUX!$P$21 -> 0 | Q183: =[10]TOTAUX!$Q$21 -> 0 | R183: =[10]TOTAUX!$R$21 -> 0
D184: TOTAUX | F184: =[10]TOTAUX!$F$23 -> 334 | G184: =[10]TOTAUX!$G$23 -> 103 | H184: =[10]TOTAUX!$H$23 -> 130 | I184: =[10]TOTAUX!$I$23 -> 90 | J184: =[10]TOTAUX!$J$23 -> 95 | K184: =[10]TOTAUX!$K$23 -> 19 | L184: =[10]TOTAUX!$L$23 -> 6 | M184: =[10]TOTAUX!$M$23 -> 10 | N184: =[10]TOTAUX!$N$23 -> 50 | O184: =[10]TOTAUX!$O$23 -> 0 | P184: =[10]TOTAUX!$P$23 -> 2 | Q184: =[10]TOTAUX!$Q$23 -> 19 | R184: =[10]TOTAUX!$R$23 -> 18 | S184: 0.3892215569 | T184: 0.4663212435 | U184: 0.5718562874
D186: NOM | E186: PJ | F186: PD | G186: V | H186: D | I186: N | J186: ML | K186: P | L186: PM | M186: CS | N186: BB | O186: WP | P186: RAB | Q186: MPM | R186: K/7 | S186: WHIP | T186: ML SÉRIES
D187: =[10]TOTAUX!$D$30 -> LUC BOUCHARD | E187: =[10]TOTAUX!$E$30 -> 2 | F187: =[10]TOTAUX!$F$30 -> 2 | G187: =[10]TOTAUX!$G$30 -> 2 | H187: =[10]TOTAUX!$H$30 -> 0 | I187: =[10]TOTAUX!$I$30 -> 0 | J187: =[10]TOTAUX!$J$30 -> 13 | K187: =[10]TOTAUX!$K$30 -> 2 | L187: =[10]TOTAUX!$L$30 -> 0 | M187: =[10]TOTAUX!$M$30 -> 4 | N187: =[10]TOTAUX!$N$30 -> 4 | O187: =[10]TOTAUX!$O$30 -> 0 | P187: =[10]TOTAUX!$P$30 -> 2 | Q187: =(L187*7)/J187 -> 0 | R187: =(P187*7)/J187 -> 1.076923077 | S187: =(M187+N187)/J187 -> 0.6153846154 | T187: =[10]TOTAUX!$T$30 -> 13
D188: =[10]TOTAUX!$D$28 -> ADAM BOUCHARD | E188: =[10]TOTAUX!$E$28 -> 4 | F188: =[10]TOTAUX!$F$28 -> 1 | G188: =[10]TOTAUX!$G$28 -> 1 | H188: =[10]TOTAUX!$H$28 -> 0 | I188: =[10]TOTAUX!$I$28 -> 0 | J188: =[10]TOTAUX!$J$28 -> 11 | K188: =[10]TOTAUX!$K$28 -> 3 | L188: =[10]TOTAUX!$L$28 -> 1 | M188: =[10]TOTAUX!$M$28 -> 8 | N188: =[10]TOTAUX!$N$28 -> 8 | O188: =[10]TOTAUX!$O$28 -> 0 | P188: =[10]TOTAUX!$P$28 -> 9 | Q188: 0.6363636364 | R188: 5.727272727 | S188: 1.454545455 | T188: =[10]TOTAUX!$T$28 -> 11
D189: =[10]TOTAUX!$D$27 -> HAROLD SALINAS | E189: =[10]TOTAUX!$E$27 -> 4 | F189: =[10]TOTAUX!$F$27 -> 2 | G189: =[10]TOTAUX!$G$27 -> 1 | H189: =[10]TOTAUX!$H$27 -> 0 | I189: =[10]TOTAUX!$I$27 -> 0 | J189: =[10]TOTAUX!$J$27 -> 13.33 | K189: =[10]TOTAUX!$K$27 -> 9 | L189: =[10]TOTAUX!$L$27 -> 3 | M189: =[10]TOTAUX!$M$27 -> 11 | N189: =[10]TOTAUX!$N$27 -> 4 | O189: =[10]TOTAUX!$O$27 -> 0 | P189: =[10]TOTAUX!$P$27 -> 5 | Q189: 1.575393848 | R189: 2.625656414 | S189: 1.12528132 | T189: =[10]TOTAUX!$T$27 -> 13.33
D190: =[10]TOTAUX!$D$26 -> DANIEL JIMENEZ | E190: =[10]TOTAUX!$E$26 -> 4 | F190: =[10]TOTAUX!$F$26 -> 3 | G190: =[10]TOTAUX!$G$26 -> 3 | H190: =[10]TOTAUX!$H$26 -> 0 | I190: =[10]TOTAUX!$I$26 -> 0 | J190: =[10]TOTAUX!$J$26 -> 17.67 | K190: =[10]TOTAUX!$K$26 -> 9 | L190: =[10]TOTAUX!$L$26 -> 9 | M190: =[10]TOTAUX!$M$26 -> 21 | N190: =[10]TOTAUX!$N$26 -> 11 | O190: =[10]TOTAUX!$O$26 -> 0 | P190: =[10]TOTAUX!$P$26 -> 5 | Q190: 3.565365025 | R190: 1.980758347 | S190: 1.810979061 | T190: =[10]TOTAUX!$T$26 -> 18
D191: =[10]TOTAUX!$D$29 -> DANIEL LEBLANC | E191: =[10]TOTAUX!$E$29 -> 4 | F191: =[10]TOTAUX!$F$29 -> 3 | G191: =[10]TOTAUX!$G$29 -> 1 | H191: =[10]TOTAUX!$H$29 -> 3 | I191: =[10]TOTAUX!$I$29 -> 0 | J191: =[10]TOTAUX!$J$29 -> 15 | K191: =[10]TOTAUX!$K$29 -> 26 | L191: =[10]TOTAUX!$L$29 -> 18 | M191: =[10]TOTAUX!$M$29 -> 27 | N191: =[10]TOTAUX!$N$29 -> 11 | O191: =[10]TOTAUX!$O$29 -> 1 | P191: =[10]TOTAUX!$P$29 -> 2 | Q191: 8.4 | R191: 0.9333333333 | S191: 2.533333333 | T191: =[10]TOTAUX!$T$29 -> 15.67
D192: =[10]TOTAUX!$D$31 -> 6 | E192: =[10]TOTAUX!$E$31 -> 0 | F192: =[10]TOTAUX!$F$31 -> 0 | G192: =[10]TOTAUX!$G$31 -> 0 | H192: =[10]TOTAUX!$H$31 -> 0 | I192: =[10]TOTAUX!$I$31 -> 0 | J192: =[10]TOTAUX!$J$31 -> 0 | K192: =[10]TOTAUX!$K$31 -> 0 | L192: =[10]TOTAUX!$L$31 -> 0 | M192: =[10]TOTAUX!$M$31 -> 0 | N192: =[10]TOTAUX!$N$31 -> 0 | O192: =[10]TOTAUX!$O$31 -> 0 | P192: =[10]TOTAUX!$P$31 -> 0 | T192: =[10]TOTAUX!$T$31 -> 0
D193: TOTAUX | E193: =[10]TOTAUX!$E$32 -> 18 | F193: =[10]TOTAUX!$F$32 -> 11 | G193: =[10]TOTAUX!$G$32 -> 8 | H193: =[10]TOTAUX!$H$32 -> 3 | I193: =[10]TOTAUX!$I$32 -> 0 | J193: =[10]TOTAUX!$J$32 -> 70 | K193: =[10]TOTAUX!$K$32 -> 49 | L193: =[10]TOTAUX!$L$32 -> 31 | M193: =[10]TOTAUX!$M$32 -> 71 | N193: =[10]TOTAUX!$N$32 -> 38 | O193: =[10]TOTAUX!$O$32 -> 1 | P193: =[10]TOTAUX!$P$32 -> 23 | Q193: 3.1 | R193: 2.3 | S193: 1.557142857
F194: ROTOCULTEURS
A195: # | B195: Photo | C195: Contrat | D195: Nom | E195: PJ | F195: AB | G195: P | H195: CS | I195: PP | J195: 1B | K195: 2B | L195: 3B | M195: CC | N195: BB | O195: SAC | P195: BSAC | Q195: RAB | R195: ERR | S195: MOY | T195: MPB | U195: PUI
A196: 1 | B196: =[15]TOTAUX!$B$9 -> OUI | C196: =[15]TOTAUX!$C$9 -> OUI | D196: =[15]TOTAUX!$D$9 -> ALEX LEJEUNE | E196: =[15]TOTAUX!$E$9 -> 1 | F196: =[15]TOTAUX!$F$9 -> 3 | G196: =[15]TOTAUX!$G$9 -> 0 | H196: =[15]TOTAUX!$H$9 -> 2 | I196: =[15]TOTAUX!$I$9 -> 0 | J196: =[15]TOTAUX!$J$9 -> 2 | K196: =[15]TOTAUX!$K$9 -> 0 | L196: =[15]TOTAUX!$L$9 -> 0 | M196: =[15]TOTAUX!$M$9 -> 0 | N196: =[15]TOTAUX!$N$9 -> 0 | O196: =[15]TOTAUX!$O$9 -> 0 | P196: =[15]TOTAUX!$P$9 -> 0 | Q196: =[15]TOTAUX!$Q$9 -> 0 | R196: =[15]TOTAUX!$R$9 -> 0 | S196: =H196/F196 -> 0.6666666667 | T196: =((H196+N196)/(F196+N196+P196)) -> 0.6666666667 | U196: =((J196)+(K196*2)+(L196*3)+(M196*4))/F196 -> 0.6666666667
A197: =A196+1 -> 2 | B197: =[15]TOTAUX!$B$8 -> OUI | C197: =[15]TOTAUX!$C$8 -> OUI | D197: =[15]TOTAUX!$D$8 -> RENÉ-PIERRE BÉLANGER | E197: =[15]TOTAUX!$E$8 -> 1 | F197: =[15]TOTAUX!$F$8 -> 2 | G197: =[15]TOTAUX!$G$8 -> 0 | H197: =[15]TOTAUX!$H$8 -> 1 | I197: =[15]TOTAUX!$I$8 -> 0 | J197: =[15]TOTAUX!$J$8 -> 1 | K197: =[15]TOTAUX!$K$8 -> 0 | L197: =[15]TOTAUX!$L$8 -> 0 | M197: =[15]TOTAUX!$M$8 -> 0 | N197: =[15]TOTAUX!$N$8 -> 1 | O197: =[15]TOTAUX!$O$8 -> 0 | P197: =[15]TOTAUX!$P$8 -> 0 | Q197: =[15]TOTAUX!$Q$8 -> 0 | R197: =[15]TOTAUX!$R$8 -> 0 | S197: 0.5 | T197: 0.6666666667 | U197: 0.5
A198: =A197+1 -> 3 | B198: =[15]TOTAUX!$B$3 -> OUI | C198: =[15]TOTAUX!$C$3 -> OUI | D198: =[15]TOTAUX!$D$3 -> MARTIN LAROCHE | E198: =[15]TOTAUX!$E$3 -> 1 | F198: =[15]TOTAUX!$F$3 -> 3 | G198: =[15]TOTAUX!$G$3 -> 0 | H198: =[15]TOTAUX!$H$3 -> 1 | I198: =[15]TOTAUX!$I$3 -> 0 | J198: =[15]TOTAUX!$J$3 -> 1 | K198: =[15]TOTAUX!$K$3 -> 0 | L198: =[15]TOTAUX!$L$3 -> 0 | M198: =[15]TOTAUX!$M$3 -> 0 | N198: =[15]TOTAUX!$N$3 -> 0 | O198: =[15]TOTAUX!$O$3 -> 0 | P198: =[15]TOTAUX!$P$3 -> 0 | Q198: =[15]TOTAUX!$Q$3 -> 0 | R198: =[15]TOTAUX!$R$3 -> 0 | S198: 0.3333333333 | T198: 0.3333333333 | U198: 0.3333333333
A199: 4 | B199: =[15]TOTAUX!$B$4 -> OUI | C199: =[15]TOTAUX!$C$4 -> OUI | D199: =[15]TOTAUX!$D$4 -> MARC ST-MARTIN | E199: =[15]TOTAUX!$E$4 -> 1 | F199: =[15]TOTAUX!$F$4 -> 3 | G199: =[15]TOTAUX!$G$4 -> 0 | H199: =[15]TOTAUX!$H$4 -> 1 | I199: =[15]TOTAUX!$I$4 -> 0 | J199: =[15]TOTAUX!$J$4 -> 1 | K199: =[15]TOTAUX!$K$4 -> 0 | L199: =[15]TOTAUX!$L$4 -> 0 | M199: =[15]TOTAUX!$M$4 -> 0 | N199: =[15]TOTAUX!$N$4 -> 0 | O199: =[15]TOTAUX!$O$4 -> 0 | P199: =[15]TOTAUX!$P$4 -> 0 | Q199: =[15]TOTAUX!$Q$4 -> 1 | R199: =[15]TOTAUX!$R$4 -> 0 | S199: 0.3333333333 | T199: 0.3333333333 | U199: 0.3333333333
A200: 5 | B200: =[15]TOTAUX!$B$7 -> OUI | C200: =[15]TOTAUX!$C$7 -> OUI | D200: =[15]TOTAUX!$D$7 -> JULIEN VÉRONNEAU | E200: =[15]TOTAUX!$E$7 -> 1 | F200: =[15]TOTAUX!$F$7 -> 3 | G200: =[15]TOTAUX!$G$7 -> 1 | H200: =[15]TOTAUX!$H$7 -> 1 | I200: =[15]TOTAUX!$I$7 -> 0 | J200: =[15]TOTAUX!$J$7 -> 1 | K200: =[15]TOTAUX!$K$7 -> 0 | L200: =[15]TOTAUX!$L$7 -> 0 | M200: =[15]TOTAUX!$M$7 -> 0 | N200: =[15]TOTAUX!$N$7 -> 0 | O200: =[15]TOTAUX!$O$7 -> 0 | P200: =[15]TOTAUX!$P$7 -> 0 | Q200: =[15]TOTAUX!$Q$7 -> 0 | R200: =[15]TOTAUX!$R$7 -> 0 | S200: 0.3333333333 | T200: 0.3333333333 | U200: 0.3333333333
A201: 6 | B201: =[15]TOTAUX!$B$14 -> OUI | C201: =[15]TOTAUX!$C$14 -> OUI | D201: =[15]TOTAUX!$D$14 -> MARTIN LEJEUNE | E201: =[15]TOTAUX!$E$14 -> 1 | F201: =[15]TOTAUX!$F$14 -> 3 | G201: =[15]TOTAUX!$G$14 -> 0 | H201: =[15]TOTAUX!$H$14 -> 1 | I201: =[15]TOTAUX!$I$14 -> 0 | J201: =[15]TOTAUX!$J$14 -> 1 | K201: =[15]TOTAUX!$K$14 -> 0 | L201: =[15]TOTAUX!$L$14 -> 0 | M201: =[15]TOTAUX!$M$14 -> 0 | N201: =[15]TOTAUX!$N$14 -> 0 | O201: =[15]TOTAUX!$O$14 -> 0 | P201: =[15]TOTAUX!$P$14 -> 0 | Q201: =[15]TOTAUX!$Q$14 -> 0 | R201: =[15]TOTAUX!$R$14 -> 0 | S201: 0.3333333333 | T201: 0.3333333333 | U201: 0.3333333333
A202: 7 | B202: =[15]TOTAUX!$B$5 -> OUI | C202: =[15]TOTAUX!$C$5 -> OUI | D202: =[15]TOTAUX!$D$5 -> ALAIN BÉRARD | E202: =[15]TOTAUX!$E$5 -> 1 | F202: =[15]TOTAUX!$F$5 -> 3 | G202: =[15]TOTAUX!$G$5 -> 0 | H202: =[15]TOTAUX!$H$5 -> 0 | I202: =[15]TOTAUX!$I$5 -> 0 | J202: =[15]TOTAUX!$J$5 -> 0 | K202: =[15]TOTAUX!$K$5 -> 0 | L202: =[15]TOTAUX!$L$5 -> 0 | M202: =[15]TOTAUX!$M$5 -> 0 | N202: =[15]TOTAUX!$N$5 -> 0 | O202: =[15]TOTAUX!$O$5 -> 0 | P202: =[15]TOTAUX!$P$5 -> 0 | Q202: =[15]TOTAUX!$Q$5 -> 1 | R202: =[15]TOTAUX!$R$5 -> 0 | S202: 0 | T202: 0 | U202: 0
A203: 8 | B203: =[15]TOTAUX!$B$11 -> OUI | C203: =[15]TOTAUX!$C$11 -> OUI | D203: =[15]TOTAUX!$D$11 -> HUGUES LAPOINTE | E203: =[15]TOTAUX!$E$11 -> 1 | F203: =[15]TOTAUX!$F$11 -> 3 | G203: =[15]TOTAUX!$G$11 -> 0 | H203: =[15]TOTAUX!$H$11 -> 0 | I203: =[15]TOTAUX!$I$11 -> 0 | J203: =[15]TOTAUX!$J$11 -> 0 | K203: =[15]TOTAUX!$K$11 -> 0 | L203: =[15]TOTAUX!$L$11 -> 0 | M203: =[15]TOTAUX!$M$11 -> 0 | N203: =[15]TOTAUX!$N$11 -> 0 | O203: =[15]TOTAUX!$O$11 -> 0 | P203: =[15]TOTAUX!$P$11 -> 0 | Q203: =[15]TOTAUX!$Q$11 -> 0 | R203: =[15]TOTAUX!$R$11 -> 0 | S203: 0 | T203: 0 | U203: 0
A204: 9 | B204: =[15]TOTAUX!$B$18 -> OUI | C204: =[15]TOTAUX!$C$18 -> OUI | D204: =[15]TOTAUX!$D$18 -> MARC-ANDRÉ DUMONT | E204: =[15]TOTAUX!$E$18 -> 1 | F204: =[15]TOTAUX!$F$18 -> 1 | G204: =[15]TOTAUX!$G$18 -> 0 | H204: =[15]TOTAUX!$H$18 -> 0 | I204: =[15]TOTAUX!$I$18 -> 0 | J204: =[15]TOTAUX!$J$18 -> 0 | K204: =[15]TOTAUX!$K$18 -> 0 | L204: =[15]TOTAUX!$L$18 -> 0 | M204: =[15]TOTAUX!$M$18 -> 0 | N204: =[15]TOTAUX!$N$18 -> 2 | O204: =[15]TOTAUX!$O$18 -> 0 | P204: =[15]TOTAUX!$P$18 -> 0 | Q204: =[15]TOTAUX!$Q$18 -> 0 | R204: =[15]TOTAUX!$R$18 -> 0 | S204: 0 | T204: 0.6666666667 | U204: 0
A205: 10 | B205: =[15]TOTAUX!$B$10 -> OUI | C205: =[15]TOTAUX!$C$10 -> OUI | D205: =[15]TOTAUX!$D$10 -> BARCLAY FORTIN | E205: =[15]TOTAUX!$E$10 -> 1 | F205: =[15]TOTAUX!$F$10 -> 0 | G205: =[15]TOTAUX!$G$10 -> 0 | H205: =[15]TOTAUX!$H$10 -> 0 | I205: =[15]TOTAUX!$I$10 -> 0 | J205: =[15]TOTAUX!$J$10 -> 0 | K205: =[15]TOTAUX!$K$10 -> 0 | L205: =[15]TOTAUX!$L$10 -> 0 | M205: =[15]TOTAUX!$M$10 -> 0 | N205: =[15]TOTAUX!$N$10 -> 1 | O205: =[15]TOTAUX!$O$10 -> 1 | P205: =[15]TOTAUX!$P$10 -> 0 | Q205: =[15]TOTAUX!$Q$10 -> 0 | R205: =[15]TOTAUX!$R$10 -> 0 | S205: 0 | T205: 1
A206: 11 | B206: =[15]TOTAUX!$B$19 -> NON | C206: =[15]TOTAUX!$C$19 -> NON | D206: =[15]TOTAUX!$D$19 -> LAFLECHE TALBOT | E206: =[15]TOTAUX!$E$19 -> 1 | F206: =[15]TOTAUX!$F$19 -> 0 | G206: =[15]TOTAUX!$G$19 -> 0 | H206: =[15]TOTAUX!$H$19 -> 0 | I206: =[15]TOTAUX!$I$19 -> 0 | J206: =[15]TOTAUX!$J$19 -> 0 | K206: =[15]TOTAUX!$K$19 -> 0 | L206: =[15]TOTAUX!$L$19 -> 0 | M206: =[15]TOTAUX!$M$19 -> 0 | N206: =[15]TOTAUX!$N$19 -> 0 | O206: =[15]TOTAUX!$O$19 -> 0 | P206: =[15]TOTAUX!$P$19 -> 0 | Q206: =[15]TOTAUX!$Q$19 -> 0 | R206: =[15]TOTAUX!$R$19 -> 0 | S206: 0
A207: 12 | B207: =[15]TOTAUX!$B$22 -> NON | C207: =[15]TOTAUX!$C$22 -> NON | D207: =[15]TOTAUX!$D$22 -> BENOIT TOUPIN | E207: =[15]TOTAUX!$E$22 -> 1 | F207: =[15]TOTAUX!$F$22 -> 0 | G207: =[15]TOTAUX!$G$22 -> 0 | H207: =[15]TOTAUX!$H$22 -> 0 | I207: =[15]TOTAUX!$I$22 -> 0 | J207: =[15]TOTAUX!$J$22 -> 0 | K207: =[15]TOTAUX!$K$22 -> 0 | L207: =[15]TOTAUX!$L$22 -> 0 | M207: =[15]TOTAUX!$M$22 -> 0 | N207: =[15]TOTAUX!$N$22 -> 0 | O207: =[15]TOTAUX!$O$22 -> 0 | P207: =[15]TOTAUX!$P$22 -> 0 | Q207: =[15]TOTAUX!$Q$22 -> 0 | R207: =[15]TOTAUX!$R$22 -> 0 | S207: 0
A208: 13 | B208: =[15]TOTAUX!$B$21 -> OUI | C208: =[15]TOTAUX!$C$21 -> OUI | D208: =[15]TOTAUX!$D$21 -> PATRICK RENAUD | E208: =[15]TOTAUX!$E$21 -> 0 | F208: =[15]TOTAUX!$F$21 -> 0 | G208: =[15]TOTAUX!$G$21 -> 0 | H208: =[15]TOTAUX!$H$21 -> 0 | I208: =[15]TOTAUX!$I$21 -> 0 | J208: =[15]TOTAUX!$J$21 -> 0 | K208: =[15]TOTAUX!$K$21 -> 0 | L208: =[15]TOTAUX!$L$21 -> 0 | M208: =[15]TOTAUX!$M$21 -> 0 | N208: =[15]TOTAUX!$N$21 -> 0 | O208: =[15]TOTAUX!$O$21 -> 0 | P208: =[15]TOTAUX!$P$21 -> 0 | Q208: =[15]TOTAUX!$Q$21 -> 0 | R208: =[15]TOTAUX!$R$21 -> 0 | S208: 0
A209: 14 | B209: =[15]TOTAUX!$B$6 -> OUI | C209: =[15]TOTAUX!$C$6 -> OUI | D209: =[15]TOTAUX!$D$6 -> GUY TOUPIN | E209: =[15]TOTAUX!$E$6 -> 0 | F209: =[15]TOTAUX!$F$6 -> 0 | G209: =[15]TOTAUX!$G$6 -> 0 | H209: =[15]TOTAUX!$H$6 -> 0 | I209: =[15]TOTAUX!$I$6 -> 0 | J209: =[15]TOTAUX!$J$6 -> 0 | K209: =[15]TOTAUX!$K$6 -> 0 | L209: =[15]TOTAUX!$L$6 -> 0 | M209: =[15]TOTAUX!$M$6 -> 0 | N209: =[15]TOTAUX!$N$6 -> 0 | O209: =[15]TOTAUX!$O$6 -> 0 | P209: =[15]TOTAUX!$P$6 -> 0 | Q209: =[15]TOTAUX!$Q$6 -> 0 | R209: =[15]TOTAUX!$R$6 -> 0 | S209: 0
A210: 15 | B210: =[15]TOTAUX!$B$12 -> OUI | C210: =[15]TOTAUX!$C$12 -> OUI | D210: =[15]TOTAUX!$D$12 -> FÉLIX DOSTON | E210: =[15]TOTAUX!$E$12 -> 0 | F210: =[15]TOTAUX!$F$12 -> 0 | G210: =[15]TOTAUX!$G$12 -> 0 | H210: =[15]TOTAUX!$H$12 -> 0 | I210: =[15]TOTAUX!$I$12 -> 0 | J210: =[15]TOTAUX!$J$12 -> 0 | K210: =[15]TOTAUX!$K$12 -> 0 | L210: =[15]TOTAUX!$L$12 -> 0 | M210: =[15]TOTAUX!$M$12 -> 0 | N210: =[15]TOTAUX!$N$12 -> 0 | O210: =[15]TOTAUX!$O$12 -> 0 | P210: =[15]TOTAUX!$P$12 -> 0 | Q210: =[15]TOTAUX!$Q$12 -> 0 | R210: =[15]TOTAUX!$R$12 -> 0 | S210: 0
A211: 16 | B211: =[15]TOTAUX!$B$13 -> OUI | C211: =[15]TOTAUX!$C$13 -> OUI | D211: =[15]TOTAUX!$D$13 -> FRANÇOIS THOMAS | E211: =[15]TOTAUX!$E$13 -> 0 | F211: =[15]TOTAUX!$F$13 -> 0 | G211: =[15]TOTAUX!$G$13 -> 0 | H211: =[15]TOTAUX!$H$13 -> 0 | I211: =[15]TOTAUX!$I$13 -> 0 | J211: =[15]TOTAUX!$J$13 -> 0 | K211: =[15]TOTAUX!$K$13 -> 0 | L211: =[15]TOTAUX!$L$13 -> 0 | M211: =[15]TOTAUX!$M$13 -> 0 | N211: =[15]TOTAUX!$N$13 -> 0 | O211: =[15]TOTAUX!$O$13 -> 0 | P211: =[15]TOTAUX!$P$13 -> 0 | Q211: =[15]TOTAUX!$Q$13 -> 0 | R211: =[15]TOTAUX!$R$13 -> 0 | S211: 0
A212: 17 | B212: =[15]TOTAUX!$B$15 -> OUI | C212: =[15]TOTAUX!$C$15 -> OUI | D212: =[15]TOTAUX!$D$15 -> ANDRÉ PAQUETTE | E212: =[15]TOTAUX!$E$15 -> 0 | F212: =[15]TOTAUX!$F$15 -> 0 | G212: =[15]TOTAUX!$G$15 -> 0 | H212: =[15]TOTAUX!$H$15 -> 0 | I212: =[15]TOTAUX!$I$15 -> 0 | J212: =[15]TOTAUX!$J$15 -> 0 | K212: =[15]TOTAUX!$K$15 -> 0 | L212: =[15]TOTAUX!$L$15 -> 0 | M212: =[15]TOTAUX!$M$15 -> 0 | N212: =[15]TOTAUX!$N$15 -> 0 | O212: =[15]TOTAUX!$O$15 -> 0 | P212: =[15]TOTAUX!$P$15 -> 0 | Q212: =[15]TOTAUX!$Q$15 -> 0 | R212: =[15]TOTAUX!$R$15 -> 0 | S212: 0
A213: 18 | B213: =[15]TOTAUX!$B$16 -> OUI | C213: =[15]TOTAUX!$C$16 -> OUI | D213: =[15]TOTAUX!$D$16 -> SERGE BOLDUC | E213: =[15]TOTAUX!$E$16 -> 0 | F213: =[15]TOTAUX!$F$16 -> 0 | G213: =[15]TOTAUX!$G$16 -> 0 | H213: =[15]TOTAUX!$H$16 -> 0 | I213: =[15]TOTAUX!$I$16 -> 0 | J213: =[15]TOTAUX!$J$16 -> 0 | K213: =[15]TOTAUX!$K$16 -> 0 | L213: =[15]TOTAUX!$L$16 -> 0 | M213: =[15]TOTAUX!$M$16 -> 0 | N213: =[15]TOTAUX!$N$16 -> 0 | O213: =[15]TOTAUX!$O$16 -> 0 | P213: =[15]TOTAUX!$P$16 -> 0 | Q213: =[15]TOTAUX!$Q$16 -> 0 | R213: =[15]TOTAUX!$R$16 -> 0 | S213: 0
A214: 19 | B214: =[15]TOTAUX!$B$17 -> OUI | C214: =[15]TOTAUX!$C$17 -> OUI | D214: =[15]TOTAUX!$D$17 -> JEAN-PHILIPPE BOURGIE | E214: =[15]TOTAUX!$E$17 -> 0 | F214: =[15]TOTAUX!$F$17 -> 0 | G214: =[15]TOTAUX!$G$17 -> 0 | H214: =[15]TOTAUX!$H$17 -> 0 | I214: =[15]TOTAUX!$I$17 -> 0 | J214: =[15]TOTAUX!$J$17 -> 0 | K214: =[15]TOTAUX!$K$17 -> 0 | L214: =[15]TOTAUX!$L$17 -> 0 | M214: =[15]TOTAUX!$M$17 -> 0 | N214: =[15]TOTAUX!$N$17 -> 0 | O214: =[15]TOTAUX!$O$17 -> 0 | P214: =[15]TOTAUX!$P$17 -> 0 | Q214: =[15]TOTAUX!$Q$17 -> 0 | R214: =[15]TOTAUX!$R$17 -> 0 | S214: 0
A215: 20 | B215: =[15]TOTAUX!$B$20 -> OUI | C215: =[15]TOTAUX!$C$20 -> OUI | D215: =[15]TOTAUX!$D$20 -> JEAN-FRANÇOIS RENÉ | E215: =[15]TOTAUX!$E$20 -> 0 | F215: =[15]TOTAUX!$F$20 -> 0 | G215: =[15]TOTAUX!$G$20 -> 0 | H215: =[15]TOTAUX!$H$20 -> 0 | I215: =[15]TOTAUX!$I$20 -> 0 | J215: =[15]TOTAUX!$J$20 -> 0 | K215: =[15]TOTAUX!$K$20 -> 0 | L215: =[15]TOTAUX!$L$20 -> 0 | M215: =[15]TOTAUX!$M$20 -> 0 | N215: =[15]TOTAUX!$N$20 -> 0 | O215: =[15]TOTAUX!$O$20 -> 0 | P215: =[15]TOTAUX!$P$20 -> 0 | Q215: =[15]TOTAUX!$Q$20 -> 0 | R215: =[15]TOTAUX!$R$20 -> 0 | S215: 0
D216: TOTAUX | F216: =[15]TOTAUX!$F$23 -> 24 | G216: =[15]TOTAUX!$G$23 -> 1 | H216: =[15]TOTAUX!$H$23 -> 7 | I216: =[15]TOTAUX!$I$23 -> 0 | J216: =[15]TOTAUX!$J$23 -> 7 | K216: =[15]TOTAUX!$K$23 -> 0 | L216: =[15]TOTAUX!$L$23 -> 0 | M216: =[15]TOTAUX!$M$23 -> 0 | N216: =[15]TOTAUX!$N$23 -> 4 | O216: =[15]TOTAUX!$O$23 -> 1 | P216: =[15]TOTAUX!$P$23 -> 0 | Q216: =[15]TOTAUX!$Q$23 -> 2 | R216: =[15]TOTAUX!$R$23 -> 0 | S216: =H216/F216 -> 0.2916666667 | T216: 0.3928571429 | U216: 0.2916666667
D218: NOM | E218: PJ | F218: PD | G218: V | H218: D | I218: N | J218: ML | K218: P | L218: PM | M218: CS | N218: BB | O218: WP | P218: RAB | Q218: MPM | R218: K/7 | S218: WHIP | T218: ML SÉRIES
D219: =[15]TOTAUX!$D$27 -> BENOIT TOUPIN | E219: =[15]TOTAUX!$E$27 -> 0 | F219: =[15]TOTAUX!$F$27 -> 1 | G219: =[15]TOTAUX!$G$27 -> 0 | H219: =[15]TOTAUX!$H$27 -> 0 | I219: =[15]TOTAUX!$I$27 -> 1 | J219: =[15]TOTAUX!$J$27 -> 6 | K219: =[15]TOTAUX!$K$27 -> 1 | L219: =[15]TOTAUX!$L$27 -> 0 | M219: =[15]TOTAUX!$M$27 -> 6 | N219: =[15]TOTAUX!$N$27 -> 3 | O219: =[15]TOTAUX!$O$27 -> 0 | P219: =[15]TOTAUX!$P$27 -> 1 | Q219: =(L219*7)/J219 -> 0 | R219: =(P219*7)/J219 -> 1.166666667 | S219: =(M219+N219)/J219 -> 1.5 | T219: =[15]TOTAUX!$T$27 -> 6
D220: =[15]TOTAUX!$D$26 -> LAFLECHE TALBOT | E220: =[15]TOTAUX!$E$26 -> 1 | F220: =[15]TOTAUX!$F$26 -> 1 | G220: =[15]TOTAUX!$G$26 -> 0 | H220: =[15]TOTAUX!$H$26 -> 0 | I220: =[15]TOTAUX!$I$26 -> 0 | J220: =[15]TOTAUX!$J$26 -> 1 | K220: =[15]TOTAUX!$K$26 -> 0 | L220: =[15]TOTAUX!$L$26 -> 0 | M220: =[15]TOTAUX!$M$26 -> 1 | N220: =[15]TOTAUX!$N$26 -> 2 | O220: =[15]TOTAUX!$O$26 -> 0 | P220: =[15]TOTAUX!$P$26 -> 0 | Q220: 0 | R220: 0 | S220: 3 | T220: =[15]TOTAUX!$T$26 -> 1
D221: =[15]TOTAUX!$D$28 -> 3 | E221: =[15]TOTAUX!$E$28 -> 0 | F221: =[15]TOTAUX!$F$28 -> 0 | G221: =[15]TOTAUX!$G$28 -> 0 | H221: =[15]TOTAUX!$H$28 -> 0 | I221: =[15]TOTAUX!$I$28 -> 0 | J221: =[15]TOTAUX!$J$28 -> 0 | K221: =[15]TOTAUX!$K$28 -> 0 | L221: =[15]TOTAUX!$L$28 -> 0 | M221: =[15]TOTAUX!$M$28 -> 0 | N221: =[15]TOTAUX!$N$28 -> 0 | O221: =[15]TOTAUX!$O$28 -> 0 | P221: =[15]TOTAUX!$P$28 -> 0 | T221: =[15]TOTAUX!$T$28 -> 0
D222: =[15]TOTAUX!$D$29 -> 4 | E222: =[15]TOTAUX!$E$29 -> 0 | F222: =[15]TOTAUX!$F$29 -> 0 | G222: =[15]TOTAUX!$G$29 -> 0 | H222: =[15]TOTAUX!$H$29 -> 0 | I222: =[15]TOTAUX!$I$29 -> 0 | J222: =[15]TOTAUX!$J$29 -> 0 | K222: =[15]TOTAUX!$K$29 -> 0 | L222: =[15]TOTAUX!$L$29 -> 0 | M222: =[15]TOTAUX!$M$29 -> 0 | N222: =[15]TOTAUX!$N$29 -> 0 | O222: =[15]TOTAUX!$O$29 -> 0 | P222: =[15]TOTAUX!$P$29 -> 0 | T222: =[15]TOTAUX!$T$29 -> 0
D223: =[15]TOTAUX!$D$30 -> 5 | E223: =[15]TOTAUX!$E$30 -> 0 | F223: =[15]TOTAUX!$F$30 -> 0 | G223: =[15]TOTAUX!$G$30 -> 0 | H223: =[15]TOTAUX!$H$30 -> 0 | I223: =[15]TOTAUX!$I$30 -> 0 | J223: =[15]TOTAUX!$J$30 -> 0 | K223: =[15]TOTAUX!$K$30 -> 0 | L223: =[15]TOTAUX!$L$30 -> 0 | M223: =[15]TOTAUX!$M$30 -> 0 | N223: =[15]TOTAUX!$N$30 -> 0 | O223: =[15]TOTAUX!$O$30 -> 0 | P223: =[15]TOTAUX!$P$30 -> 0 | T223: =[15]TOTAUX!$T$30 -> 0
D224: =[15]TOTAUX!$D$31 -> 6 | E224: =[15]TOTAUX!$E$31 -> 0 | F224: =[15]TOTAUX!$F$31 -> 0 | G224: =[15]TOTAUX!$G$31 -> 0 | H224: =[15]TOTAUX!$H$31 -> 0 | I224: =[15]TOTAUX!$I$31 -> 0 | J224: =[15]TOTAUX!$J$31 -> 0 | K224: =[15]TOTAUX!$K$31 -> 0 | L224: =[15]TOTAUX!$L$31 -> 0 | M224: =[15]TOTAUX!$M$31 -> 0 | N224: =[15]TOTAUX!$N$31 -> 0 | O224: =[15]TOTAUX!$O$31 -> 0 | P224: =[15]TOTAUX!$P$31 -> 0 | T224: =[15]TOTAUX!$T$31 -> 0
D225: TOTAUX | E225: =[15]TOTAUX!$E$32 -> 1 | F225: =[15]TOTAUX!$F$32 -> 2 | G225: =[15]TOTAUX!$G$32 -> 0 | H225: =[15]TOTAUX!$H$32 -> 0 | I225: =[15]TOTAUX!$I$32 -> 1 | J225: =[15]TOTAUX!$J$32 -> 7 | K225: =[15]TOTAUX!$K$32 -> 1 | L225: =[15]TOTAUX!$L$32 -> 0 | M225: =[15]TOTAUX!$M$32 -> 7 | N225: =[15]TOTAUX!$N$32 -> 5 | O225: =[15]TOTAUX!$O$32 -> 0 | P225: =[15]TOTAUX!$P$32 -> 1 | Q225: 0 | R225: 1 | S225: 1.714285714
G226: SONS OF PITCHES
A227: # | B227: Photo | C227: Contrat | D227: Nom | E227: PJ | F227: AB | G227: P | H227: CS | I227: PP | J227: 1B | K227: 2B | L227: 3B | M227: CC | N227: BB | O227: SAC | P227: BSAC | Q227: RAB | R227: ERR | S227: MOY | T227: MPB | U227: PUI
A228: 1 | B228: =[14]TOTAUX!$B$19 -> OUI | C228: =[14]TOTAUX!$C$19 -> OUI | D228: =[14]TOTAUX!$D$19 -> VINCENT MAROIS | E228: =[14]TOTAUX!$E$19 -> 1 | F228: =[14]TOTAUX!$F$19 -> 2 | G228: =[14]TOTAUX!$G$19 -> 0 | H228: =[14]TOTAUX!$H$19 -> 1 | I228: =[14]TOTAUX!$I$19 -> 0 | J228: =[14]TOTAUX!$J$19 -> 0 | K228: =[14]TOTAUX!$K$19 -> 1 | L228: =[14]TOTAUX!$L$19 -> 0 | M228: =[14]TOTAUX!$M$19 -> 0 | N228: =[14]TOTAUX!$N$19 -> 0 | O228: =[14]TOTAUX!$O$19 -> 0 | P228: =[14]TOTAUX!$P$19 -> 0 | Q228: =[14]TOTAUX!$Q$19 -> 0 | R228: =[14]TOTAUX!$R$19 -> 0 | S228: =H228/F228 -> 0.5 | T228: =((H228+N228)/(F228+N228+P228)) -> 0.5 | U228: =((J228)+(K228*2)+(L228*3)+(M228*4))/F228 -> 1
A229: =A228+1 -> 2 | B229: =[14]TOTAUX!$B$11 -> OUI | C229: =[14]TOTAUX!$C$11 -> OUI | D229: =[14]TOTAUX!$D$11 -> ALEXANDRE BOUCHARD | E229: =[14]TOTAUX!$E$11 -> 8 | F229: =[14]TOTAUX!$F$11 -> 19 | G229: =[14]TOTAUX!$G$11 -> 3 | H229: =[14]TOTAUX!$H$11 -> 9 | I229: =[14]TOTAUX!$I$11 -> 4 | J229: =[14]TOTAUX!$J$11 -> 4 | K229: =[14]TOTAUX!$K$11 -> 4 | L229: =[14]TOTAUX!$L$11 -> 0 | M229: =[14]TOTAUX!$M$11 -> 1 | N229: =[14]TOTAUX!$N$11 -> 3 | O229: =[14]TOTAUX!$O$11 -> 0 | P229: =[14]TOTAUX!$P$11 -> 0 | Q229: =[14]TOTAUX!$Q$11 -> 1 | R229: =[14]TOTAUX!$R$11 -> 0 | S229: 0.4736842105 | T229: 0.5454545455 | U229: 0.8421052632
A230: =A229+1 -> 3 | B230: =[14]TOTAUX!$B$20 -> OUI | C230: =[14]TOTAUX!$C$20 -> OUI | D230: =[14]TOTAUX!$D$20 -> MATHIEU LAROSE | E230: =[14]TOTAUX!$E$20 -> 6 | F230: =[14]TOTAUX!$F$20 -> 15 | G230: =[14]TOTAUX!$G$20 -> 2 | H230: =[14]TOTAUX!$H$20 -> 5 | I230: =[14]TOTAUX!$I$20 -> 3 | J230: =[14]TOTAUX!$J$20 -> 5 | K230: =[14]TOTAUX!$K$20 -> 0 | L230: =[14]TOTAUX!$L$20 -> 0 | M230: =[14]TOTAUX!$M$20 -> 0 | N230: =[14]TOTAUX!$N$20 -> 2 | O230: =[14]TOTAUX!$O$20 -> 0 | P230: =[14]TOTAUX!$P$20 -> 0 | Q230: =[14]TOTAUX!$Q$20 -> 3 | R230: =[14]TOTAUX!$R$20 -> 1 | S230: 0.3333333333 | T230: 0.4117647059 | U230: 0.3333333333
A231: 4 | B231: =[14]TOTAUX!$B$13 -> OUI | C231: =[14]TOTAUX!$C$13 -> OUI | D231: =[14]TOTAUX!$D$13 -> MARC ANTOINE GINGRA | E231: =[14]TOTAUX!$E$13 -> 2 | F231: =[14]TOTAUX!$F$13 -> 6 | G231: =[14]TOTAUX!$G$13 -> 2 | H231: =[14]TOTAUX!$H$13 -> 2 | I231: =[14]TOTAUX!$I$13 -> 0 | J231: =[14]TOTAUX!$J$13 -> 2 | K231: =[14]TOTAUX!$K$13 -> 0 | L231: =[14]TOTAUX!$L$13 -> 0 | M231: =[14]TOTAUX!$M$13 -> 0 | N231: =[14]TOTAUX!$N$13 -> 0 | O231: =[14]TOTAUX!$O$13 -> 0 | P231: =[14]TOTAUX!$P$13 -> 0 | Q231: =[14]TOTAUX!$Q$13 -> 3 | R231: =[14]TOTAUX!$R$13 -> 0 | S231: 0.3333333333 | T231: 0.3333333333 | U231: 0.3333333333
A232: 5 | B232: =[14]TOTAUX!$B$3 -> OUI | C232: =[14]TOTAUX!$C$3 -> OUI | D232: =[14]TOTAUX!$D$3 -> DOMINIC IANNIRUBERTO | E232: =[14]TOTAUX!$E$3 -> 9 | F232: =[14]TOTAUX!$F$3 -> 26 | G232: =[14]TOTAUX!$G$3 -> 8 | H232: =[14]TOTAUX!$H$3 -> 7 | I232: =[14]TOTAUX!$I$3 -> 4 | J232: =[14]TOTAUX!$J$3 -> 5 | K232: =[14]TOTAUX!$K$3 -> 2 | L232: =[14]TOTAUX!$L$3 -> 0 | M232: =[14]TOTAUX!$M$3 -> 0 | N232: =[14]TOTAUX!$N$3 -> 3 | O232: =[14]TOTAUX!$O$3 -> 0 | P232: =[14]TOTAUX!$P$3 -> 0 | Q232: =[14]TOTAUX!$Q$3 -> 1 | R232: =[14]TOTAUX!$R$3 -> 3 | S232: 0.2692307692 | T232: 0.3448275862 | U232: 0.3461538462
A233: 6 | B233: =[14]TOTAUX!$B$8 -> OUI | C233: =[14]TOTAUX!$C$8 -> OUI | D233: =[14]TOTAUX!$D$8 -> JEAN-SÉBASTIEN POMERLEAU | E233: =[14]TOTAUX!$E$8 -> 6 | F233: =[14]TOTAUX!$F$8 -> 15 | G233: =[14]TOTAUX!$G$8 -> 2 | H233: =[14]TOTAUX!$H$8 -> 4 | I233: =[14]TOTAUX!$I$8 -> 3 | J233: =[14]TOTAUX!$J$8 -> 4 | K233: =[14]TOTAUX!$K$8 -> 0 | L233: =[14]TOTAUX!$L$8 -> 0 | M233: =[14]TOTAUX!$M$8 -> 0 | N233: =[14]TOTAUX!$N$8 -> 3 | O233: =[14]TOTAUX!$O$8 -> 0 | P233: =[14]TOTAUX!$P$8 -> 0 | Q233: =[14]TOTAUX!$Q$8 -> 2 | R233: =[14]TOTAUX!$R$8 -> 0 | S233: 0.2666666667 | T233: 0.3888888889 | U233: 0.2666666667
A234: 7 | B234: =[14]TOTAUX!$B$9 -> OUI | C234: =[14]TOTAUX!$C$9 -> OUI | D234: =[14]TOTAUX!$D$9 -> JASON LEMIRE | E234: =[14]TOTAUX!$E$9 -> 10 | F234: =[14]TOTAUX!$F$9 -> 24 | G234: =[14]TOTAUX!$G$9 -> 6 | H234: =[14]TOTAUX!$H$9 -> 6 | I234: =[14]TOTAUX!$I$9 -> 4 | J234: =[14]TOTAUX!$J$9 -> 3 | K234: =[14]TOTAUX!$K$9 -> 2 | L234: =[14]TOTAUX!$L$9 -> 0 | M234: =[14]TOTAUX!$M$9 -> 1 | N234: =[14]TOTAUX!$N$9 -> 6 | O234: =[14]TOTAUX!$O$9 -> 0 | P234: =[14]TOTAUX!$P$9 -> 1 | Q234: =[14]TOTAUX!$Q$9 -> 1 | R234: =[14]TOTAUX!$R$9 -> 4 | S234: 0.25 | T234: 0.3870967742 | U234: 0.4583333333
A235: 8 | B235: =[14]TOTAUX!$B$16 -> OUI | C235: =[14]TOTAUX!$C$16 -> OUI | D235: =[14]TOTAUX!$D$16 -> SIMON THÉRIEN | E235: =[14]TOTAUX!$E$16 -> 2 | F235: =[14]TOTAUX!$F$16 -> 4 | G235: =[14]TOTAUX!$G$16 -> 0 | H235: =[14]TOTAUX!$H$16 -> 1 | I235: =[14]TOTAUX!$I$16 -> 0 | J235: =[14]TOTAUX!$J$16 -> 1 | K235: =[14]TOTAUX!$K$16 -> 0 | L235: =[14]TOTAUX!$L$16 -> 0 | M235: =[14]TOTAUX!$M$16 -> 0 | N235: =[14]TOTAUX!$N$16 -> 0 | O235: =[14]TOTAUX!$O$16 -> 0 | P235: =[14]TOTAUX!$P$16 -> 0 | Q235: =[14]TOTAUX!$Q$16 -> 1 | R235: =[14]TOTAUX!$R$16 -> 0 | S235: 0.25 | T235: 0.25 | U235: 0.25
A236: 9 | B236: =[14]TOTAUX!$B$10 -> OUI | C236: =[14]TOTAUX!$C$10 -> OUI | D236: =[14]TOTAUX!$D$10 -> JULIEN LAROUCHE | E236: =[14]TOTAUX!$E$10 -> 7 | F236: =[14]TOTAUX!$F$10 -> 18 | G236: =[14]TOTAUX!$G$10 -> 4 | H236: =[14]TOTAUX!$H$10 -> 4 | I236: =[14]TOTAUX!$I$10 -> 1 | J236: =[14]TOTAUX!$J$10 -> 3 | K236: =[14]TOTAUX!$K$10 -> 1 | L236: =[14]TOTAUX!$L$10 -> 0 | M236: =[14]TOTAUX!$M$10 -> 0 | N236: =[14]TOTAUX!$N$10 -> 3 | O236: =[14]TOTAUX!$O$10 -> 0 | P236: =[14]TOTAUX!$P$10 -> 0 | Q236: =[14]TOTAUX!$Q$10 -> 2 | R236: =[14]TOTAUX!$R$10 -> 0 | S236: 0.2222222222 | T236: 0.3333333333 | U236: 0.2777777778
A237: 10 | B237: =[14]TOTAUX!$B$5 -> OUI | C237: =[14]TOTAUX!$C$5 -> OUI | D237: =[14]TOTAUX!$D$5 -> CHARLES OLIVIER BONNARDEAU | E237: =[14]TOTAUX!$E$5 -> 5 | F237: =[14]TOTAUX!$F$5 -> 14 | G237: =[14]TOTAUX!$G$5 -> 3 | H237: =[14]TOTAUX!$H$5 -> 3 | I237: =[14]TOTAUX!$I$5 -> 4 | J237: =[14]TOTAUX!$J$5 -> 0 | K237: =[14]TOTAUX!$K$5 -> 2 | L237: =[14]TOTAUX!$L$5 -> 0 | M237: =[14]TOTAUX!$M$5 -> 1 | N237: =[14]TOTAUX!$N$5 -> 2 | O237: =[14]TOTAUX!$O$5 -> 0 | P237: =[14]TOTAUX!$P$5 -> 0 | Q237: =[14]TOTAUX!$Q$5 -> 3 | R237: =[14]TOTAUX!$R$5 -> 0 | S237: 0.2142857143 | T237: 0.3125 | U237: 0.5714285714
A238: 11 | B238: =[14]TOTAUX!$B$7 -> OUI | C238: =[14]TOTAUX!$C$7 -> OUI | D238: =[14]TOTAUX!$D$7 -> VINCENT GAUTHIER | E238: =[14]TOTAUX!$E$7 -> 9 | F238: =[14]TOTAUX!$F$7 -> 29 | G238: =[14]TOTAUX!$G$7 -> 4 | H238: =[14]TOTAUX!$H$7 -> 6 | I238: =[14]TOTAUX!$I$7 -> 0 | J238: =[14]TOTAUX!$J$7 -> 4 | K238: =[14]TOTAUX!$K$7 -> 2 | L238: =[14]TOTAUX!$L$7 -> 0 | M238: =[14]TOTAUX!$M$7 -> 0 | N238: =[14]TOTAUX!$N$7 -> 4 | O238: =[14]TOTAUX!$O$7 -> 0 | P238: =[14]TOTAUX!$P$7 -> 0 | Q238: =[14]TOTAUX!$Q$7 -> 5 | R238: =[14]TOTAUX!$R$7 -> 0 | S238: 0.2068965517 | T238: 0.303030303 | U238: 0.275862069
A239: 12 | B239: =[14]TOTAUX!$B$6 -> OUI | C239: =[14]TOTAUX!$C$6 -> OUI | D239: =[14]TOTAUX!$D$6 -> LOUIS-VINCENT HOULE | E239: =[14]TOTAUX!$E$6 -> 8 | F239: =[14]TOTAUX!$F$6 -> 20 | G239: =[14]TOTAUX!$G$6 -> 1 | H239: =[14]TOTAUX!$H$6 -> 4 | I239: =[14]TOTAUX!$I$6 -> 1 | J239: =[14]TOTAUX!$J$6 -> 3 | K239: =[14]TOTAUX!$K$6 -> 1 | L239: =[14]TOTAUX!$L$6 -> 0 | M239: =[14]TOTAUX!$M$6 -> 0 | N239: =[14]TOTAUX!$N$6 -> 2 | O239: =[14]TOTAUX!$O$6 -> 0 | P239: =[14]TOTAUX!$P$6 -> 0 | Q239: =[14]TOTAUX!$Q$6 -> 1 | R239: =[14]TOTAUX!$R$6 -> 0 | S239: 0.2 | T239: 0.2727272727 | U239: 0.25
... 48 more rows

Sheet AMICAL LUNDI
E1: STATISTIQUES AMICAL LUNDI
H34: KINO
A35: # | B35: Photo | C35: Contrat | D35: Nom | E35: PJ | F35: AB | G35: P | H35: CS | I35: PP | J35: 1B | K35: 2B | L35: 3B | M35: CC | N35: BB | O35: SAC | P35: BSAC | Q35: RAB | R35: ERR | S35: MOY | T35: MPB | U35: PUI
A36: 1 | B36: =[22]TOTAUX!$B$22 -> OUI | C36: =[22]TOTAUX!$C$22 -> OUI | D36: =[22]TOTAUX!$D$22 -> ETIENNE BEAUSOLEIL | E36: =[22]TOTAUX!$E$22 -> 2 | F36: =[22]TOTAUX!$F$22 -> 6 | G36: =[22]TOTAUX!$G$22 -> 2 | H36: =[22]TOTAUX!$H$22 -> 4 | I36: =[22]TOTAUX!$I$22 -> 2 | J36: =[22]TOTAUX!$J$22 -> 2 | K36: =[22]TOTAUX!$K$22 -> 2 | L36: =[22]TOTAUX!$L$22 -> 0 | M36: =[22]TOTAUX!$M$22 -> 0 | N36: =[22]TOTAUX!$N$22 -> 2 | O36: =[22]TOTAUX!$O$22 -> 0 | P36: =[22]TOTAUX!$P$22 -> 0 | Q36: =[22]TOTAUX!$Q$22 -> 1 | R36: =[22]TOTAUX!$R$22 -> 0 | S36: =H36/F36 -> 0.6666666667 | T36: =((H36+N36)/(F36+N36+P36)) -> 0.75 | U36: =((J36)+(K36*2)+(L36*3)+(M36*4))/F36 -> 1
A37: 2 | B37: =[22]TOTAUX!$B$4 -> OUI | C37: =[22]TOTAUX!$C$4 -> OUI | D37: =[22]TOTAUX!$D$4 -> BRETT WATSON | E37: =[22]TOTAUX!$E$4 -> 4 | F37: =[22]TOTAUX!$F$4 -> 13 | G37: =[22]TOTAUX!$G$4 -> 1 | H37: =[22]TOTAUX!$H$4 -> 8 | I37: =[22]TOTAUX!$I$4 -> 6 | J37: =[22]TOTAUX!$J$4 -> 4 | K37: =[22]TOTAUX!$K$4 -> 4 | L37: =[22]TOTAUX!$L$4 -> 0 | M37: =[22]TOTAUX!$M$4 -> 0 | N37: =[22]TOTAUX!$N$4 -> 1 | O37: =[22]TOTAUX!$O$4 -> 0 | P37: =[22]TOTAUX!$P$4 -> 0 | Q37: =[22]TOTAUX!$Q$4 -> 0 | R37: =[22]TOTAUX!$R$4 -> 0 | S37: 0.6153846154 | T37: 0.6428571429 | U37: 0.9230769231
A38: 3 | B38: =[22]TOTAUX!$B$8 -> OUI | C38: =[22]TOTAUX!$C$8 -> OUI | D38: =[22]TOTAUX!$D$8 -> CHRISTIAN LAURENCE | E38: =[22]TOTAUX!$E$8 -> 5 | F38: =[22]TOTAUX!$F$8 -> 15 | G38: =[22]TOTAUX!$G$8 -> 6 | H38: =[22]TOTAUX!$H$8 -> 8 | I38: =[22]TOTAUX!$I$8 -> 2 | J38: =[22]TOTAUX!$J$8 -> 5 | K38: =[22]TOTAUX!$K$8 -> 2 | L38: =[22]TOTAUX!$L$8 -> 3 | M38: =[22]TOTAUX!$M$8 -> 0 | N38: =[22]TOTAUX!$N$8 -> 3 | O38: =[22]TOTAUX!$O$8 -> 0 | P38: =[22]TOTAUX!$P$8 -> 1 | Q38: =[22]TOTAUX!$Q$8 -> 0 | R38: =[22]TOTAUX!$R$8 -> 1 | S38: 0.5333333333 | T38: 0.5789473684 | U38: 1.2
A39: 4 | B39: =[22]TOTAUX!$B$12 -> OUI | C39: =[22]TOTAUX!$C$12 -> OUI | D39: =[22]TOTAUX!$D$12 -> GABRIEL DUGAS | E39: =[22]TOTAUX!$E$12 -> 8 | F39: =[22]TOTAUX!$F$12 -> 20 | G39: =[22]TOTAUX!$G$12 -> 14 | H39: =[22]TOTAUX!$H$12 -> 10 | I39: =[22]TOTAUX!$I$12 -> 12 | J39: =[22]TOTAUX!$J$12 -> 3 | K39: =[22]TOTAUX!$K$12 -> 5 | L39: =[22]TOTAUX!$L$12 -> 0 | M39: =[22]TOTAUX!$M$12 -> 2 | N39: =[22]TOTAUX!$N$12 -> 9 | O39: =[22]TOTAUX!$O$12 -> 0 | P39: =[22]TOTAUX!$P$12 -> 1 | Q39: =[22]TOTAUX!$Q$12 -> 0 | R39: =[22]TOTAUX!$R$12 -> 4 | S39: 0.5 | T39: 0.6333333333 | U39: 1.05
A40: 5 | B40: =[22]TOTAUX!$B$15 -> OUI | C40: =[22]TOTAUX!$C$15 -> OUI | D40: =[22]TOTAUX!$D$15 -> NICOLAS MERCIER | E40: =[22]TOTAUX!$E$15 -> 3 | F40: =[22]TOTAUX!$F$15 -> 11 | G40: =[22]TOTAUX!$G$15 -> 3 | H40: =[22]TOTAUX!$H$15 -> 5 | I40: =[22]TOTAUX!$I$15 -> 1 | J40: =[22]TOTAUX!$J$15 -> 4 | K40: =[22]TOTAUX!$K$15 -> 0 | L40: =[22]TOTAUX!$L$15 -> 1 | M40: =[22]TOTAUX!$M$15 -> 0 | N40: =[22]TOTAUX!$N$15 -> 0 | O40: =[22]TOTAUX!$O$15 -> 0 | P40: =[22]TOTAUX!$P$15 -> 0 | Q40: =[22]TOTAUX!$Q$15 -> 0 | R40: =[22]TOTAUX!$R$15 -> 1 | S40: 0.4545454545 | T40: 0.4545454545 | U40: 0.6363636364
A41: 6 | B41: =[22]TOTAUX!$B$11 -> OUI | C41: =[22]TOTAUX!$C$11 -> OUI | D41: =[22]TOTAUX!$D$11 -> OLIVIER GILBERT | E41: =[22]TOTAUX!$E$11 -> 6 | F41: =[22]TOTAUX!$F$11 -> 16 | G41: =[22]TOTAUX!$G$11 -> 4 | H41: =[22]TOTAUX!$H$11 -> 7 | I41: =[22]TOTAUX!$I$11 -> 3 | J41: =[22]TOTAUX!$J$11 -> 7 | K41: =[22]TOTAUX!$K$11 -> 0 | L41: =[22]TOTAUX!$L$11 -> 0 | M41: =[22]TOTAUX!$M$11 -> 0 | N41: =[22]TOTAUX!$N$11 -> 4 | O41: =[22]TOTAUX!$O$11 -> 0 | P41: =[22]TOTAUX!$P$11 -> 1 | Q41: =[22]TOTAUX!$Q$11 -> 0 | R41: =[22]TOTAUX!$R$11 -> 3 | S41: 0.4375 | T41: 0.5238095238 | U41: 0.4375
A42: 7 | B42: =[22]TOTAUX!$B$20 -> OUI | C42: =[22]TOTAUX!$C$20 -> OUI | D42: =[22]TOTAUX!$D$20 -> MICHAEL LORTIE | E42: =[22]TOTAUX!$E$20 -> 2 | F42: =[22]TOTAUX!$F$20 -> 7 | G42: =[22]TOTAUX!$G$20 -> 0 | H42: =[22]TOTAUX!$H$20 -> 3 | I42: =[22]TOTAUX!$I$20 -> 2 | J42: =[22]TOTAUX!$J$20 -> 2 | K42: =[22]TOTAUX!$K$20 -> 1 | L42: =[22]TOTAUX!$L$20 -> 0 | M42: =[22]TOTAUX!$M$20 -> 0 | N42: =[22]TOTAUX!$N$20 -> 0 | O42: =[22]TOTAUX!$O$20 -> 0 | P42: =[22]TOTAUX!$P$20 -> 0 | Q42: =[22]TOTAUX!$Q$20 -> 1 | R42: =[22]TOTAUX!$R$20 -> 1 | S42: 0.4285714286 | T42: 0.4285714286 | U42: 0.5714285714
A43: 8 | B43: =[22]TOTAUX!$B$3 -> OUI | C43: =[22]TOTAUX!$C$3 -> OUI | D43: =[22]TOTAUX!$D$3 -> ALEXANDRE PARADIS | E43: =[22]TOTAUX!$E$3 -> 5 | F43: =[22]TOTAUX!$F$3 -> 15 | G43: =[22]TOTAUX!$G$3 -> 4 | H43: =[22]TOTAUX!$H$3 -> 6 | I43: =[22]TOTAUX!$I$3 -> 1 | J43: =[22]TOTAUX!$J$3 -> 6 | K43: =[22]TOTAUX!$K$3 -> 0 | L43: =[22]TOTAUX!$L$3 -> 0 | M43: =[22]TOTAUX!$M$3 -> 0 | N43: =[22]TOTAUX!$N$3 -> 3 | O43: =[22]TOTAUX!$O$3 -> 0 | P43: =[22]TOTAUX!$P$3 -> 0 | Q43: =[22]TOTAUX!$Q$3 -> 0 | R43: =[22]TOTAUX!$R$3 -> 1 | S43: 0.4 | T43: 0.5 | U43: 0.4
A44: 9 | B44: =[22]TOTAUX!$B$21 -> OUI | C44: =[22]TOTAUX!$C$21 -> OUI | D44: =[22]TOTAUX!$D$21 -> LOUIS-PIERRE LEGAULT | E44: =[22]TOTAUX!$E$21 -> 4 | F44: =[22]TOTAUX!$F$21 -> 15 | G44: =[22]TOTAUX!$G$21 -> 5 | H44: =[22]TOTAUX!$H$21 -> 6 | I44: =[22]TOTAUX!$I$21 -> 3 | J44: =[22]TOTAUX!$J$21 -> 4 | K44: =[22]TOTAUX!$K$21 -> 1 | L44: =[22]TOTAUX!$L$21 -> 1 | M44: =[22]TOTAUX!$M$21 -> 0 | N44: =[22]TOTAUX!$N$21 -> 1 | O44: =[22]TOTAUX!$O$21 -> 0 | P44: =[22]TOTAUX!$P$21 -> 0 | Q44: =[22]TOTAUX!$Q$21 -> 0 | R44: =[22]TOTAUX!$R$21 -> 0 | S44: 0.4 | T44: 0.4375 | U44: 0.6
A45: 10 | B45: =[22]TOTAUX!$B$13 -> OUI | C45: =[22]TOTAUX!$C$13 -> OUI | D45: =[22]TOTAUX!$D$13 -> JEAN-FRANÇOIS NADEAU | E45: =[22]TOTAUX!$E$13 -> 4 | F45: =[22]TOTAUX!$F$13 -> 15 | G45: =[22]TOTAUX!$G$13 -> 3 | H45: =[22]TOTAUX!$H$13 -> 6 | I45: =[22]TOTAUX!$I$13 -> 7 | J45: =[22]TOTAUX!$J$13 -> 4 | K45: =[22]TOTAUX!$K$13 -> 2 | L45: =[22]TOTAUX!$L$13 -> 0 | M45: =[22]TOTAUX!$M$13 -> 0 | N45: =[22]TOTAUX!$N$13 -> 0 | O45: =[22]TOTAUX!$O$13 -> 0 | P45: =[22]TOTAUX!$P$13 -> 0 | Q45: =[22]TOTAUX!$Q$13 -> 1 | R45: =[22]TOTAUX!$R$13 -> 1 | S45: 0.4 | T45: 0.4 | U45: 0.5333333333
A46: 11 | B46: =[22]TOTAUX!$B$16 -> OUI | C46: =[22]TOTAUX!$C$16 -> OUI | D46: =[22]TOTAUX!$D$16 -> MARC ST-MARTIN | E46: =[22]TOTAUX!$E$16 -> 5 | F46: =[22]TOTAUX!$F$16 -> 13 | G46: =[22]TOTAUX!$G$16 -> 6 | H46: =[22]TOTAUX!$H$16 -> 4 | I46: =[22]TOTAUX!$I$16 -> 2 | J46: =[22]TOTAUX!$J$16 -> 3 | K46: =[22]TOTAUX!$K$16 -> 1 | L46: =[22]TOTAUX!$L$16 -> 0 | M46: =[22]TOTAUX!$M$16 -> 0 | N46: =[22]TOTAUX!$N$16 -> 4 | O46: =[22]TOTAUX!$O$16 -> 0 | P46: =[22]TOTAUX!$P$16 -> 0 | Q46: =[22]TOTAUX!$Q$16 -> 0 | R46: =[22]TOTAUX!$R$16 -> 1 | S46: 0.3076923077 | T46: 0.4705882353 | U46: 0.3846153846
A47: 12 | B47: =[22]TOTAUX!$B$14 -> OUI | C47: =[22]TOTAUX!$C$14 -> OUI | D47: =[22]TOTAUX!$D$14 -> DANIEL MALENFANT | E47: =[22]TOTAUX!$E$14 -> 6 | F47: =[22]TOTAUX!$F$14 -> 15 | G47: =[22]TOTAUX!$G$14 -> 6 | H47: =[22]TOTAUX!$H$14 -> 4 | I47: =[22]TOTAUX!$I$14 -> 3 | J47: =[22]TOTAUX!$J$14 -> 4 | K47: =[22]TOTAUX!$K$14 -> 0 | L47: =[22]TOTAUX!$L$14 -> 0 | M47: =[22]TOTAUX!$M$14 -> 0 | N47: =[22]TOTAUX!$N$14 -> 4 | O47: =[22]TOTAUX!$O$14 -> 1 | P47: =[22]TOTAUX!$P$14 -> 0 | Q47: =[22]TOTAUX!$Q$14 -> 0 | R47: =[22]TOTAUX!$R$14 -> 2 | S47: 0.2666666667 | T47: 0.4210526316 | U47: 0.2666666667
A48: 13 | B48: =[22]TOTAUX!$B$18 -> OUI | C48: =[22]TOTAUX!$C$18 -> OUI | D48: =[22]TOTAUX!$D$18 -> DOMINIQUE LAURENCE | E48: =[22]TOTAUX!$E$18 -> 2 | F48: =[22]TOTAUX!$F$18 -> 8 | G48: =[22]TOTAUX!$G$18 -> 2 | H48: =[22]TOTAUX!$H$18 -> 2 | I48: =[22]TOTAUX!$I$18 -> 3 | J48: =[22]TOTAUX!$J$18 -> 2 | K48: =[22]TOTAUX!$K$18 -> 0 | L48: =[22]TOTAUX!$L$18 -> 0 | M48: =[22]TOTAUX!$M$18 -> 0 | N48: =[22]TOTAUX!$N$18 -> 0 | O48: =[22]TOTAUX!$O$18 -> 0 | P48: =[22]TOTAUX!$P$18 -> 0 | Q48: =[22]TOTAUX!$Q$18 -> 0 | R48: =[22]TOTAUX!$R$18 -> 2 | S48: 0.25 | T48: 0.25 | U48: 0.25
A49: 14 | B49: =[22]TOTAUX!$B$9 -> OUI | C49: =[22]TOTAUX!$C$9 -> OUI | D49: =[22]TOTAUX!$D$9 -> STEVE JACKSON | E49: =[22]TOTAUX!$E$9 -> 8 | F49: =[22]TOTAUX!$F$9 -> 21 | G49: =[22]TOTAUX!$G$9 -> 3 | H49: =[22]TOTAUX!$H$9 -> 5 | I49: =[22]TOTAUX!$I$9 -> 5 | J49: =[22]TOTAUX!$J$9 -> 4 | K49: =[22]TOTAUX!$K$9 -> 1 | L49: =[22]TOTAUX!$L$9 -> 0 | M49: =[22]TOTAUX!$M$9 -> 0 | N49: =[22]TOTAUX!$N$9 -> 8 | O49: =[22]TOTAUX!$O$9 -> 0 | P49: =[22]TOTAUX!$P$9 -> 0 | Q49: =[22]TOTAUX!$Q$9 -> 2 | R49: =[22]TOTAUX!$R$9 -> 2 | S49: 0.2380952381 | T49: 0.4482758621 | U49: 0.2857142857
A50: 15 | B50: =[22]TOTAUX!$B$17 -> OUI | C50: =[22]TOTAUX!$C$17 -> OUI | D50: =[22]TOTAUX!$D$17 -> BENOÎT BEAUDOIN | E50: =[22]TOTAUX!$E$17 -> 5 | F50: =[22]TOTAUX!$F$17 -> 20 | G50: =[22]TOTAUX!$G$17 -> 3 | H50: =[22]TOTAUX!$H$17 -> 4 | I50: =[22]TOTAUX!$I$17 -> 3 | J50: =[22]TOTAUX!$J$17 -> 2 | K50: =[22]TOTAUX!$K$17 -> 2 | L50: =[22]TOTAUX!$L$17 -> 0 | M50: =[22]TOTAUX!$M$17 -> 0 | N50: =[22]TOTAUX!$N$17 -> 0 | O50: =[22]TOTAUX!$O$17 -> 0 | P50: =[22]TOTAUX!$P$17 -> 0 | Q50: =[22]TOTAUX!$Q$17 -> 1 | R50: =[22]TOTAUX!$R$17 -> 0 | S50: 0.2 | T50: 0.2 | U50: 0.3
A51: 16 | B51: =[22]TOTAUX!$B$6 -> OUI | C51: =[22]TOTAUX!$C$6 -> OUI | D51: =[22]TOTAUX!$D$6 -> STÉPHANE BOUTROS | E51: =[22]TOTAUX!$E$6 -> 8 | F51: =[22]TOTAUX!$F$6 -> 20 | G51: =[22]TOTAUX!$G$6 -> 0 | H51: =[22]TOTAUX!$H$6 -> 3 | I51: =[22]TOTAUX!$I$6 -> 4 | J51: =[22]TOTAUX!$J$6 -> 2 | K51: =[22]TOTAUX!$K$6 -> 1 | L51: =[22]TOTAUX!$L$6 -> 0 | M51: =[22]TOTAUX!$M$6 -> 0 | N51: =[22]TOTAUX!$N$6 -> 2 | O51: =[22]TOTAUX!$O$6 -> 0 | P51: =[22]TOTAUX!$P$6 -> 0 | Q51: =[22]TOTAUX!$Q$6 -> 0 | R51: =[22]TOTAUX!$R$6 -> 0 | S51: 0.15 | T51: 0.2272727273 | U51: 0.2
A52: 17 | B52: =[22]TOTAUX!$B$10 -> OUI | C52: =[22]TOTAUX!$C$10 -> OUI | D52: =[22]TOTAUX!$D$10 -> DAVID GOULET-JOBIN | E52: =[22]TOTAUX!$E$10 -> 3 | F52: =[22]TOTAUX!$F$10 -> 11 | G52: =[22]TOTAUX!$G$10 -> 1 | H52: =[22]TOTAUX!$H$10 -> 1 | I52: =[22]TOTAUX!$I$10 -> 0 | J52: =[22]TOTAUX!$J$10 -> 1 | K52: =[22]TOTAUX!$K$10 -> 0 | L52: =[22]TOTAUX!$L$10 -> 0 | M52: =[22]TOTAUX!$M$10 -> 0 | N52: =[22]TOTAUX!$N$10 -> 0 | O52: =[22]TOTAUX!$O$10 -> 0 | P52: =[22]TOTAUX!$P$10 -> 0 | Q52: =[22]TOTAUX!$Q$10 -> 0 | R52: =[22]TOTAUX!$R$10 -> 1 | S52: 0.09090909091 | T52: 0.09090909091 | U52: 0.09090909091
A53: 18 | B53: =[22]TOTAUX!$B$19 -> OUI | C53: =[22]TOTAUX!$C$19 -> OUI | D53: =[22]TOTAUX!$D$19 -> RENAUD ST-LAURENT | E53: =[22]TOTAUX!$E$19 -> 1 | F53: =[22]TOTAUX!$F$19 -> 2 | G53: =[22]TOTAUX!$G$19 -> 0 | H53: =[22]TOTAUX!$H$19 -> 0 | I53: =[22]TOTAUX!$I$19 -> 0 | J53: =[22]TOTAUX!$J$19 -> 0 | K53: =[22]TOTAUX!$K$19 -> 0 | L53: =[22]TOTAUX!$L$19 -> 0 | M53: =[22]TOTAUX!$M$19 -> 0 | N53: =[22]TOTAUX!$N$19 -> 1 | O53: =[22]TOTAUX!$O$19 -> 0 | P53: =[22]TOTAUX!$P$19 -> 0 | Q53: =[22]TOTAUX!$Q$19 -> 0 | R53: =[22]TOTAUX!$R$19 -> 0 | S53: 0 | T53: 0.3333333333 | U53: 0
A54: 19 | B54: =[22]TOTAUX!$B$5 -> OUI | C54: =[22]TOTAUX!$C$5 -> OUI | D54: =[22]TOTAUX!$D$5 -> FRANCIS PIQUETTE | E54: =[22]TOTAUX!$E$5 -> 0 | F54: =[22]TOTAUX!$F$5 -> 0 | G54: =[22]TOTAUX!$G$5 -> 0 | H54: =[22]TOTAUX!$H$5 -> 0 | I54: =[22]TOTAUX!$I$5 -> 0 | J54: =[22]TOTAUX!$J$5 -> 0 | K54: =[22]TOTAUX!$K$5 -> 0 | L54: =[22]TOTAUX!$L$5 -> 0 | M54: =[22]TOTAUX!$M$5 -> 0 | N54: =[22]TOTAUX!$N$5 -> 0 | O54: =[22]TOTAUX!$O$5 -> 0 | P54: =[22]TOTAUX!$P$5 -> 0 | Q54: =[22]TOTAUX!$Q$5 -> 0 | R54: =[22]TOTAUX!$R$5 -> 0 | S54: =H54/F54 ->  | T54: =((H54+N54)/(F54+N54+P54)) ->  | U54: =((J54)+(K54*2)+(L54*3)+(M54*4))/F54 -> 
A55: 20 | B55: =[22]TOTAUX!$B$7 -> OUI | C55: =[22]TOTAUX!$C$7 -> OUI | D55: =[22]TOTAUX!$D$7 -> BENOÎT HOULE | E55: =[22]TOTAUX!$E$7 -> 0 | F55: =[22]TOTAUX!$F$7 -> 0 | G55: =[22]TOTAUX!$G$7 -> 0 | H55: =[22]TOTAUX!$H$7 -> 0 | I55: =[22]TOTAUX!$I$7 -> 0 | J55: =[22]TOTAUX!$J$7 -> 0 | K55: =[22]TOTAUX!$K$7 -> 0 | L55: =[22]TOTAUX!$L$7 -> 0 | M55: =[22]TOTAUX!$M$7 -> 0 | N55: =[22]TOTAUX!$N$7 -> 0 | O55: =[22]TOTAUX!$O$7 -> 0 | P55: =[22]TOTAUX!$P$7 -> 0 | Q55: =[22]TOTAUX!$Q$7 -> 0 | R55: =[22]TOTAUX!$R$7 -> 0
D56: TOTAUX | F56: =[22]TOTAUX!$F$23 -> 243 | G56: =[22]TOTAUX!$G$23 -> 70 | H56: =[22]TOTAUX!$H$23 -> 86 | I56: =[22]TOTAUX!$I$23 -> 59 | J56: =[22]TOTAUX!$J$23 -> 59 | K56: =[22]TOTAUX!$K$23 -> 22 | L56: =[22]TOTAUX!$L$23 -> 5 | M56: =[22]TOTAUX!$M$23 -> 2 | N56: =[22]TOTAUX!$N$23 -> 42 | O56: =[22]TOTAUX!$O$23 -> 1 | P56: =[22]TOTAUX!$P$23 -> 3 | Q56: =[22]TOTAUX!$Q$23 -> 6 | R56: =[22]TOTAUX!$R$23 -> 20 | S56: 0.353909465 | T56: 0.4444444444 | U56: 0.5185185185
D58: NOM | E58: PJ | F58: PD | G58: V | H58: D | I58: N | J58: ML | K58: P | L58: PM | M58: CS | N58: BB | O58: WP | P58: RAB | Q58: MPM | R58: K/7 | S58: WHIP | T58: ML SÉRIES
D59: =[22]TOTAUX!$D$28 -> ETIENNE BEAUSOLEIL | E59: =[22]TOTAUX!$E$28 -> 1 | F59: =[22]TOTAUX!$F$28 -> 0 | G59: =[22]TOTAUX!$G$28 -> 0 | H59: =[22]TOTAUX!$H$28 -> 0 | I59: =[22]TOTAUX!$I$28 -> 0 | J59: =[22]TOTAUX!$J$28 -> 1 | K59: =[22]TOTAUX!$K$28 -> 1 | L59: =[22]TOTAUX!$L$28 -> 0 | M59: =[22]TOTAUX!$M$28 -> 2 | N59: =[22]TOTAUX!$N$28 -> 0 | O59: =[22]TOTAUX!$O$28 -> 0 | P59: =[22]TOTAUX!$P$28 -> 0 | Q59: =(L59*7)/J59 -> 0 | R59: =(P59*7)/J59 -> 0 | S59: =(M59+N59)/J59 -> 2 | T59: =[22]TOTAUX!$T$28 -> 1
D60: =[22]TOTAUX!$D$26 -> STÉPHANE BOUTROS | E60: =[22]TOTAUX!$E$26 -> 6 | F60: =[22]TOTAUX!$F$26 -> 6 | G60: =[22]TOTAUX!$G$26 -> 3 | H60: =[22]TOTAUX!$H$26 -> 3 | I60: =[22]TOTAUX!$I$26 -> 0 | J60: =[22]TOTAUX!$J$26 -> 35.33 | K60: =[22]TOTAUX!$K$26 -> 34 | L60: =[22]TOTAUX!$L$26 -> 22 | M60: =[22]TOTAUX!$M$26 -> 60 | N60: =[22]TOTAUX!$N$26 -> 23 | O60: =[22]TOTAUX!$O$26 -> 4 | P60: =[22]TOTAUX!$P$26 -> 5 | Q60: =(L60*7)/J60 -> 4.358901783 | R60: =(P60*7)/J60 -> 0.9906594962 | S60: =(M60+N60)/J60 -> 2.349278234 | T60: =[22]TOTAUX!$T$26 -> 37
D61: =[22]TOTAUX!$D$27 -> JEAN-FRANÇOIS NADEAU | E61: =[22]TOTAUX!$E$27 -> 3 | F61: =[22]TOTAUX!$F$27 -> 2 | G61: =[22]TOTAUX!$G$27 -> 2 | H61: =[22]TOTAUX!$H$27 -> 0 | I61: =[22]TOTAUX!$I$27 -> 0 | J61: =[22]TOTAUX!$J$27 -> 16 | K61: =[22]TOTAUX!$K$27 -> 13 | L61: =[22]TOTAUX!$L$27 -> 11 | M61: =[22]TOTAUX!$M$27 -> 25 | N61: =[22]TOTAUX!$N$27 -> 9 | O61: =[22]TOTAUX!$O$27 -> 3 | P61: =[22]TOTAUX!$P$27 -> 12 | Q61: =(L61*7)/J61 -> 4.8125 | R61: =(P61*7)/J61 -> 5.25 | S61: =(M61+N61)/J61 -> 2.125 | T61: =[22]TOTAUX!$T$27 -> 16
D62: =[22]TOTAUX!$D$29 -> 4 | E62: =[22]TOTAUX!$E$29 -> 0 | F62: =[22]TOTAUX!$F$29 -> 0 | G62: =[22]TOTAUX!$G$29 -> 0 | H62: =[22]TOTAUX!$H$29 -> 0 | I62: =[22]TOTAUX!$I$29 -> 0 | J62: =[22]TOTAUX!$J$29 -> 0 | K62: =[22]TOTAUX!$K$29 -> 0 | L62: =[22]TOTAUX!$L$29 -> 0 | M62: =[22]TOTAUX!$M$29 -> 0 | N62: =[22]TOTAUX!$N$29 -> 0 | O62: =[22]TOTAUX!$O$29 -> 0 | P62: =[22]TOTAUX!$P$29 -> 0 | Q62: =(L62*7)/J62 ->  | R62: =(P62*7)/J62 ->  | S62: =(M62+N62)/J62 ->  | T62: =[22]TOTAUX!$T$29 -> 0
D63: =[22]TOTAUX!$D$30 -> 5 | E63: =[22]TOTAUX!$E$30 -> 0 | F63: =[22]TOTAUX!$F$30 -> 0 | G63: =[22]TOTAUX!$G$30 -> 0 | H63: =[22]TOTAUX!$H$30 -> 0 | I63: =[22]TOTAUX!$I$30 -> 0 | J63: =[22]TOTAUX!$J$30 -> 0 | K63: =[22]TOTAUX!$K$30 -> 0 | L63: =[22]TOTAUX!$L$30 -> 0 | M63: =[22]TOTAUX!$M$30 -> 0 | N63: =[22]TOTAUX!$N$30 -> 0 | O63: =[22]TOTAUX!$O$30 -> 0 | P63: =[22]TOTAUX!$P$30 -> 0 | T63: =[22]TOTAUX!$T$30 -> 0
D64: =[22]TOTAUX!$D$31 -> DÉFAUT | E64: =[22]TOTAUX!$E$31 -> 0 | F64: =[22]TOTAUX!$F$31 -> 2 | G64: =[22]TOTAUX!$G$31 -> 1 | H64: =[22]TOTAUX!$H$31 -> 1 | I64: =[22]TOTAUX!$I$31 -> 0 | J64: =[22]TOTAUX!$J$31 -> 0 | K64: =[22]TOTAUX!$K$31 -> 7 | L64: =[22]TOTAUX!$L$31 -> 0 | M64: =[22]TOTAUX!$M$31 -> 0 | N64: =[22]TOTAUX!$N$31 -> 0 | O64: =[22]TOTAUX!$O$31 -> 0 | P64: =[22]TOTAUX!$P$31 -> 0 | T64: =[22]TOTAUX!$T$31 -> 0
D65: TOTAUX | E65: =[22]TOTAUX!$E$32 -> 10 | F65: =[22]TOTAUX!$F$32 -> 10 | G65: =[22]TOTAUX!$G$32 -> 6 | H65: =[22]TOTAUX!$H$32 -> 4 | I65: =[22]TOTAUX!$I$32 -> 0 | J65: =[22]TOTAUX!$J$32 -> 52.33 | K65: =[22]TOTAUX!$K$32 -> 55 | L65: =[22]TOTAUX!$L$32 -> 33 | M65: =[22]TOTAUX!$M$32 -> 87 | N65: =[22]TOTAUX!$N$32 -> 32 | O65: =[22]TOTAUX!$O$32 -> 7 | P65: =[22]TOTAUX!$P$32 -> 17 | Q65: 4.414293904 | R65: 2.274030193 | S65: 2.274030193
H66: BORATIFS
A67: # | B67: Photo | C67: Contrat | D67: Nom | E67: PJ | F67: AB | G67: P | H67: CS | I67: PP | J67: 1B | K67: 2B | L67: 3B | M67: CC | N67: BB | O67: SAC | P67: BSAC | Q67: RAB | R67: ERR | S67: MOY | T67: MPB | U67: PUI
A68: 1 | B68: =[20]TOTAUX!$B$12 -> OUI | C68: =[20]TOTAUX!$C$12 -> OUI | D68: =[20]TOTAUX!$D$12 -> RONALD RACICOT | E68: =[20]TOTAUX!$E$12 -> 4 | F68: =[20]TOTAUX!$F$12 -> 11 | G68: =[20]TOTAUX!$G$12 -> 4 | H68: =[20]TOTAUX!$H$12 -> 7 | I68: =[20]TOTAUX!$I$12 -> 3 | J68: =[20]TOTAUX!$J$12 -> 6 | K68: =[20]TOTAUX!$K$12 -> 1 | L68: =[20]TOTAUX!$L$12 -> 0 | M68: =[20]TOTAUX!$M$12 -> 0 | N68: =[20]TOTAUX!$N$12 -> 1 | O68: =[20]TOTAUX!$O$12 -> 0 | P68: =[20]TOTAUX!$P$12 -> 0 | Q68: =[20]TOTAUX!$Q$12 -> 0 | R68: =[20]TOTAUX!$R$12 -> 1 | S68: =H68/F68 -> 0.6363636364 | T68: =((H68+N68)/(F68+N68+P68)) -> 0.6666666667 | U68: =((J68)+(K68*2)+(L68*3)+(M68*4))/F68 -> 0.7272727273
A69: =A68+1 -> 2 | B69: =[20]TOTAUX!$B$5 -> OUI | C69: =[20]TOTAUX!$C$5 -> OUI | D69: =[20]TOTAUX!$D$5 -> CLAUDE LABROSSE | E69: =[20]TOTAUX!$E$5 -> 7 | F69: =[20]TOTAUX!$F$5 -> 19 | G69: =[20]TOTAUX!$G$5 -> 11 | H69: =[20]TOTAUX!$H$5 -> 11 | I69: =[20]TOTAUX!$I$5 -> 7 | J69: =[20]TOTAUX!$J$5 -> 7 | K69: =[20]TOTAUX!$K$5 -> 2 | L69: =[20]TOTAUX!$L$5 -> 2 | M69: =[20]TOTAUX!$M$5 -> 0 | N69: =[20]TOTAUX!$N$5 -> 3 | O69: =[20]TOTAUX!$O$5 -> 0 | P69: =[20]TOTAUX!$P$5 -> 0 | Q69: =[20]TOTAUX!$Q$5 -> 0 | R69: =[20]TOTAUX!$R$5 -> 0 | S69: 0.5789473684 | T69: 0.6363636364 | U69: 0.8947368421
A70: =A69+1 -> 3 | B70: =[20]TOTAUX!$B$6 -> OUI | C70: =[20]TOTAUX!$C$6 -> OUI | D70: =[20]TOTAUX!$D$6 -> ANTONY LAPOINTE | E70: =[20]TOTAUX!$E$6 -> 10 | F70: =[20]TOTAUX!$F$6 -> 27 | G70: =[20]TOTAUX!$G$6 -> 11 | H70: =[20]TOTAUX!$H$6 -> 14 | I70: =[20]TOTAUX!$I$6 -> 7 | J70: =[20]TOTAUX!$J$6 -> 10 | K70: =[20]TOTAUX!$K$6 -> 2 | L70: =[20]TOTAUX!$L$6 -> 2 | M70: =[20]TOTAUX!$M$6 -> 0 | N70: =[20]TOTAUX!$N$6 -> 6 | O70: =[20]TOTAUX!$O$6 -> 0 | P70: =[20]TOTAUX!$P$6 -> 1 | Q70: =[20]TOTAUX!$Q$6 -> 2 | R70: =[20]TOTAUX!$R$6 -> 0 | S70: 0.5185185185 | T70: 0.5882352941 | U70: 0.7407407407
A71: 4 | B71: =[20]TOTAUX!$B$16 -> OUI | C71: =[20]TOTAUX!$C$16 -> OUI | D71: =[20]TOTAUX!$D$16 -> FRANCIS ARSENAULT | E71: =[20]TOTAUX!$E$16 -> 2 | F71: =[20]TOTAUX!$F$16 -> 4 | G71: =[20]TOTAUX!$G$16 -> 1 | H71: =[20]TOTAUX!$H$16 -> 2 | I71: =[20]TOTAUX!$I$16 -> 1 | J71: =[20]TOTAUX!$J$16 -> 1 | K71: =[20]TOTAUX!$K$16 -> 1 | L71: =[20]TOTAUX!$L$16 -> 0 | M71: =[20]TOTAUX!$M$16 -> 0 | N71: =[20]TOTAUX!$N$16 -> 0 | O71: =[20]TOTAUX!$O$16 -> 0 | P71: =[20]TOTAUX!$P$16 -> 0 | Q71: =[20]TOTAUX!$Q$16 -> 0 | R71: =[20]TOTAUX!$R$16 -> 0 | S71: 0.5 | T71: 0.5 | U71: 0.75
A72: 5 | B72: =[20]TOTAUX!$B$21 -> OUI | C72: =[20]TOTAUX!$C$21 -> OUI | D72: =[20]TOTAUX!$D$21 -> NICOLAS DUFAULT | E72: =[20]TOTAUX!$E$21 -> 6 | F72: =[20]TOTAUX!$F$21 -> 19 | G72: =[20]TOTAUX!$G$21 -> 12 | H72: =[20]TOTAUX!$H$21 -> 9 | I72: =[20]TOTAUX!$I$21 -> 2 | J72: =[20]TOTAUX!$J$21 -> 8 | K72: =[20]TOTAUX!$K$21 -> 1 | L72: =[20]TOTAUX!$L$21 -> 0 | M72: =[20]TOTAUX!$M$21 -> 0 | N72: =[20]TOTAUX!$N$21 -> 4 | O72: =[20]TOTAUX!$O$21 -> 0 | P72: =[20]TOTAUX!$P$21 -> 0 | Q72: =[20]TOTAUX!$Q$21 -> 2 | R72: =[20]TOTAUX!$R$21 -> 2 | S72: 0.4736842105 | T72: 0.5652173913 | U72: 0.5263157895
A73: 6 | B73: =[20]TOTAUX!$B$20 -> OUI | C73: =[20]TOTAUX!$C$20 -> OUI | D73: =[20]TOTAUX!$D$20 -> MAXIME DESJARDINS | E73: =[20]TOTAUX!$E$20 -> 6 | F73: =[20]TOTAUX!$F$20 -> 15 | G73: =[20]TOTAUX!$G$20 -> 10 | H73: =[20]TOTAUX!$H$20 -> 7 | I73: =[20]TOTAUX!$I$20 -> 13 | J73: =[20]TOTAUX!$J$20 -> 2 | K73: =[20]TOTAUX!$K$20 -> 0 | L73: =[20]TOTAUX!$L$20 -> 0 | M73: =[20]TOTAUX!$M$20 -> 5 | N73: =[20]TOTAUX!$N$20 -> 4 | O73: =[20]TOTAUX!$O$20 -> 0 | P73: =[20]TOTAUX!$P$20 -> 0 | Q73: =[20]TOTAUX!$Q$20 -> 0 | R73: =[20]TOTAUX!$R$20 -> 1 | S73: 0.4666666667 | T73: 0.5789473684 | U73: 1.466666667
A74: 7 | B74: =[20]TOTAUX!$B$8 -> OUI | C74: =[20]TOTAUX!$C$8 -> OUI | D74: =[20]TOTAUX!$D$8 -> GUILLAUME MARTINEAU | E74: =[20]TOTAUX!$E$8 -> 9 | F74: =[20]TOTAUX!$F$8 -> 23 | G74: =[20]TOTAUX!$G$8 -> 9 | H74: =[20]TOTAUX!$H$8 -> 8 | I74: =[20]TOTAUX!$I$8 -> 8 | J74: =[20]TOTAUX!$J$8 -> 7 | K74: =[20]TOTAUX!$K$8 -> 1 | L74: =[20]TOTAUX!$L$8 -> 0 | M74: =[20]TOTAUX!$M$8 -> 0 | N74: =[20]TOTAUX!$N$8 -> 4 | O74: =[20]TOTAUX!$O$8 -> 0 | P74: =[20]TOTAUX!$P$8 -> 1 | Q74: =[20]TOTAUX!$Q$8 -> 1 | R74: =[20]TOTAUX!$R$8 -> 3 | S74: 0.347826087 | T74: 0.4285714286 | U74: 0.3913043478
A75: 8 | B75: =[20]TOTAUX!$B$9 -> OUI | C75: =[20]TOTAUX!$C$9 -> OUI | D75: =[20]TOTAUX!$D$9 -> GUILLAUME PINARD | E75: =[20]TOTAUX!$E$9 -> 9 | F75: =[20]TOTAUX!$F$9 -> 24 | G75: =[20]TOTAUX!$G$9 -> 3 | H75: =[20]TOTAUX!$H$9 -> 8 | I75: =[20]TOTAUX!$I$9 -> 9 | J75: =[20]TOTAUX!$J$9 -> 6 | K75: =[20]TOTAUX!$K$9 -> 1 | L75: =[20]TOTAUX!$L$9 -> 1 | M75: =[20]TOTAUX!$M$9 -> 0 | N75: =[20]TOTAUX!$N$9 -> 4 | O75: =[20]TOTAUX!$O$9 -> 0 | P75: =[20]TOTAUX!$P$9 -> 0 | Q75: =[20]TOTAUX!$Q$9 -> 3 | R75: =[20]TOTAUX!$R$9 -> 2 | S75: 0.3333333333 | T75: 0.4285714286 | U75: 0.4583333333
A76: 9 | B76: =[20]TOTAUX!$B$10 -> OUI | C76: =[20]TOTAUX!$C$10 -> OUI | D76: =[20]TOTAUX!$D$10 -> DOUG PHELAN | E76: =[20]TOTAUX!$E$10 -> 10 | F76: =[20]TOTAUX!$F$10 -> 22 | G76: =[20]TOTAUX!$G$10 -> 7 | H76: =[20]TOTAUX!$H$10 -> 7 | I76: =[20]TOTAUX!$I$10 -> 12 | J76: =[20]TOTAUX!$J$10 -> 2 | K76: =[20]TOTAUX!$K$10 -> 2 | L76: =[20]TOTAUX!$L$10 -> 0 | M76: =[20]TOTAUX!$M$10 -> 3 | N76: =[20]TOTAUX!$N$10 -> 7 | O76: =[20]TOTAUX!$O$10 -> 0 | P76: =[20]TOTAUX!$P$10 -> 3 | Q76: =[20]TOTAUX!$Q$10 -> 1 | R76: =[20]TOTAUX!$R$10 -> 1 | S76: 0.3181818182 | T76: 0.4375 | U76: 0.8181818182
A77: 10 | B77: =[20]TOTAUX!$B$14 -> OUI | C77: =[20]TOTAUX!$C$14 -> OUI | D77: =[20]TOTAUX!$D$14 -> MAURICE GARAND | E77: =[20]TOTAUX!$E$14 -> 4 | F77: =[20]TOTAUX!$F$14 -> 10 | G77: =[20]TOTAUX!$G$14 -> 1 | H77: =[20]TOTAUX!$H$14 -> 3 | I77: =[20]TOTAUX!$I$14 -> 1 | J77: =[20]TOTAUX!$J$14 -> 3 | K77: =[20]TOTAUX!$K$14 -> 0 | L77: =[20]TOTAUX!$L$14 -> 0 | M77: =[20]TOTAUX!$M$14 -> 0 | N77: =[20]TOTAUX!$N$14 -> 0 | O77: =[20]TOTAUX!$O$14 -> 0 | P77: =[20]TOTAUX!$P$14 -> 0 | Q77: =[20]TOTAUX!$Q$14 -> 2 | R77: =[20]TOTAUX!$R$14 -> 0 | S77: 0.3 | T77: 0.3 | U77: 0.3
A78: 11 | B78: =[20]TOTAUX!$B$19 -> OUI | C78: =[20]TOTAUX!$C$19 -> OUI | D78: =[20]TOTAUX!$D$19 -> PHILiPPE LECLERC | E78: =[20]TOTAUX!$E$19 -> 2 | F78: =[20]TOTAUX!$F$19 -> 4 | G78: =[20]TOTAUX!$G$19 -> 1 | H78: =[20]TOTAUX!$H$19 -> 1 | I78: =[20]TOTAUX!$I$19 -> 2 | J78: =[20]TOTAUX!$J$19 -> 1 | K78: =[20]TOTAUX!$K$19 -> 0 | L78: =[20]TOTAUX!$L$19 -> 0 | M78: =[20]TOTAUX!$M$19 -> 0 | N78: =[20]TOTAUX!$N$19 -> 2 | O78: =[20]TOTAUX!$O$19 -> 0 | P78: =[20]TOTAUX!$P$19 -> 1 | Q78: =[20]TOTAUX!$Q$19 -> 0 | R78: =[20]TOTAUX!$R$19 -> 1 | S78: 0.25 | T78: 0.4285714286 | U78: 0.25
A79: 12 | B79: =[20]TOTAUX!$B$4 -> OUI | C79: =[20]TOTAUX!$C$4 -> OUI | D79: =[20]TOTAUX!$D$4 -> JACQUES DUFAULT | E79: =[20]TOTAUX!$E$4 -> 10 | F79: =[20]TOTAUX!$F$4 -> 21 | G79: =[20]TOTAUX!$G$4 -> 4 | H79: =[20]TOTAUX!$H$4 -> 5 | I79: =[20]TOTAUX!$I$4 -> 1 | J79: =[20]TOTAUX!$J$4 -> 3 | K79: =[20]TOTAUX!$K$4 -> 2 | L79: =[20]TOTAUX!$L$4 -> 0 | M79: =[20]TOTAUX!$M$4 -> 0 | N79: =[20]TOTAUX!$N$4 -> 7 | O79: =[20]TOTAUX!$O$4 -> 1 | P79: =[20]TOTAUX!$P$4 -> 0 | Q79: =[20]TOTAUX!$Q$4 -> 2 | R79: =[20]TOTAUX!$R$4 -> 1 | S79: 0.2380952381 | T79: 0.4285714286 | U79: 0.3333333333
A80: 13 | B80: =[20]TOTAUX!$B$13 -> OUI | C80: =[20]TOTAUX!$C$13 -> OUI | D80: =[20]TOTAUX!$D$13 -> PATRICE LECLERC | E80: =[20]TOTAUX!$E$13 -> 6 | F80: =[20]TOTAUX!$F$13 -> 11 | G80: =[20]TOTAUX!$G$13 -> 0 | H80: =[20]TOTAUX!$H$13 -> 2 | I80: =[20]TOTAUX!$I$13 -> 2 | J80: =[20]TOTAUX!$J$13 -> 2 | K80: =[20]TOTAUX!$K$13 -> 0 | L80: =[20]TOTAUX!$L$13 -> 0 | M80: =[20]TOTAUX!$M$13 -> 0 | N80: =[20]TOTAUX!$N$13 -> 5 | O80: =[20]TOTAUX!$O$13 -> 1 | P80: =[20]TOTAUX!$P$13 -> 0 | Q80: =[20]TOTAUX!$Q$13 -> 1 | R80: =[20]TOTAUX!$R$13 -> 0 | S80: 0.1818181818 | T80: 0.4375 | U80: 0.1818181818
A81: 14 | B81: =[20]TOTAUX!$B$3 -> OUI | C81: =[20]TOTAUX!$C$3 -> OUI | D81: =[20]TOTAUX!$D$3 -> YANICK CYR | E81: =[20]TOTAUX!$E$3 -> 4 | F81: =[20]TOTAUX!$F$3 -> 12 | G81: =[20]TOTAUX!$G$3 -> 3 | H81: =[20]TOTAUX!$H$3 -> 2 | I81: =[20]TOTAUX!$I$3 -> 1 | J81: =[20]TOTAUX!$J$3 -> 2 | K81: =[20]TOTAUX!$K$3 -> 0 | L81: =[20]TOTAUX!$L$3 -> 0 | M81: =[20]TOTAUX!$M$3 -> 0 | N81: =[20]TOTAUX!$N$3 -> 2 | O81: =[20]TOTAUX!$O$3 -> 0 | P81: =[20]TOTAUX!$P$3 -> 0 | Q81: =[20]TOTAUX!$Q$3 -> 1 | R81: =[20]TOTAUX!$R$3 -> 0 | S81: 0.1666666667 | T81: 0.2857142857 | U81: 0.1666666667
A82: 15 | B82: =[20]TOTAUX!$B$7 -> OUI | C82: =[20]TOTAUX!$C$7 -> OUI | D82: =[20]TOTAUX!$D$7 -> PATRICK LAPOINTE | E82: =[20]TOTAUX!$E$7 -> 9 | F82: =[20]TOTAUX!$F$7 -> 18 | G82: =[20]TOTAUX!$G$7 -> 3 | H82: =[20]TOTAUX!$H$7 -> 2 | I82: =[20]TOTAUX!$I$7 -> 4 | J82: =[20]TOTAUX!$J$7 -> 2 | K82: =[20]TOTAUX!$K$7 -> 0 | L82: =[20]TOTAUX!$L$7 -> 0 | M82: =[20]TOTAUX!$M$7 -> 0 | N82: =[20]TOTAUX!$N$7 -> 5 | O82: =[20]TOTAUX!$O$7 -> 1 | P82: =[20]TOTAUX!$P$7 -> 0 | Q82: =[20]TOTAUX!$Q$7 -> 4 | R82: =[20]TOTAUX!$R$7 -> 0 | S82: 0.1111111111 | T82: 0.3043478261 | U82: 0.1111111111
A83: 16 | B83: =[20]TOTAUX!$B$17 -> OUI | C83: =[20]TOTAUX!$C$17 -> OUI | D83: =[20]TOTAUX!$D$17 -> MICHEL LANDRY | E83: =[20]TOTAUX!$E$17 -> 5 | F83: =[20]TOTAUX!$F$17 -> 4 | G83: =[20]TOTAUX!$G$17 -> 3 | H83: =[20]TOTAUX!$H$17 -> 0 | I83: =[20]TOTAUX!$I$17 -> 0 | J83: =[20]TOTAUX!$J$17 -> 0 | K83: =[20]TOTAUX!$K$17 -> 0 | L83: =[20]TOTAUX!$L$17 -> 0 | M83: =[20]TOTAUX!$M$17 -> 0 | N83: =[20]TOTAUX!$N$17 -> 4 | O83: =[20]TOTAUX!$O$17 -> 0 | P83: =[20]TOTAUX!$P$17 -> 0 | Q83: =[20]TOTAUX!$Q$17 -> 1 | R83: =[20]TOTAUX!$R$17 -> 1 | S83: 0 | T83: 0.5 | U83: 0
A84: 17 | B84: =[20]TOTAUX!$B$15 -> OUI | C84: =[20]TOTAUX!$C$15 -> OUI | D84: =[20]TOTAUX!$D$15 -> SERGE BOUTET | E84: =[20]TOTAUX!$E$15 -> 1 | F84: =[20]TOTAUX!$F$15 -> 3 | G84: =[20]TOTAUX!$G$15 -> 0 | H84: =[20]TOTAUX!$H$15 -> 0 | I84: =[20]TOTAUX!$I$15 -> 0 | J84: =[20]TOTAUX!$J$15 -> 0 | K84: =[20]TOTAUX!$K$15 -> 0 | L84: =[20]TOTAUX!$L$15 -> 0 | M84: =[20]TOTAUX!$M$15 -> 0 | N84: =[20]TOTAUX!$N$15 -> 0 | O84: =[20]TOTAUX!$O$15 -> 1 | P84: =[20]TOTAUX!$P$15 -> 0 | Q84: =[20]TOTAUX!$Q$15 -> 0 | R84: =[20]TOTAUX!$R$15 -> 0 | S84: 0 | T84: 0 | U84: 0
A85: 18 | B85: =[20]TOTAUX!$B$11 -> OUI | C85: =[20]TOTAUX!$C$11 -> OUI | D85: =[20]TOTAUX!$D$11 -> DANIEL MARIN | E85: =[20]TOTAUX!$E$11 -> 0 | F85: =[20]TOTAUX!$F$11 -> 0 | G85: =[20]TOTAUX!$G$11 -> 0 | H85: =[20]TOTAUX!$H$11 -> 0 | I85: =[20]TOTAUX!$I$11 -> 0 | J85: =[20]TOTAUX!$J$11 -> 0 | K85: =[20]TOTAUX!$K$11 -> 0 | L85: =[20]TOTAUX!$L$11 -> 0 | M85: =[20]TOTAUX!$M$11 -> 0 | N85: =[20]TOTAUX!$N$11 -> 0 | O85: =[20]TOTAUX!$O$11 -> 0 | P85: =[20]TOTAUX!$P$11 -> 0 | Q85: =[20]TOTAUX!$Q$11 -> 0 | R85: =[20]TOTAUX!$R$11 -> 0 | S85: 0
A86: 19 | B86: =[20]TOTAUX!$B$18 -> OUI | C86: =[20]TOTAUX!$C$18 -> OUI | D86: =[20]TOTAUX!$D$18 -> MICHEL BACHELET | E86: =[20]TOTAUX!$E$18 -> 0 | F86: =[20]TOTAUX!$F$18 -> 0 | G86: =[20]TOTAUX!$G$18 -> 0 | H86: =[20]TOTAUX!$H$18 -> 0 | I86: =[20]TOTAUX!$I$18 -> 0 | J86: =[20]TOTAUX!$J$18 -> 0 | K86: =[20]TOTAUX!$K$18 -> 0 | L86: =[20]TOTAUX!$L$18 -> 0 | M86: =[20]TOTAUX!$M$18 -> 0 | N86: =[20]TOTAUX!$N$18 -> 0 | O86: =[20]TOTAUX!$O$18 -> 0 | P86: =[20]TOTAUX!$P$18 -> 0 | Q86: =[20]TOTAUX!$Q$18 -> 0 | R86: =[20]TOTAUX!$R$18 -> 0 | S86: =H86/F86 ->  | T86: =((H86+N86)/(F86+N86+P86)) ->  | U86: =((J86)+(K86*2)+(L86*3)+(M86*4))/F86 -> 
A87: 20 | B87: =[20]TOTAUX!$B$22 -> OUI | C87: =[20]TOTAUX!$C$22 -> OUI | D87: =[20]TOTAUX!$D$22 -> CLAUDE DOIRON | E87: =[20]TOTAUX!$E$22 -> 0 | F87: =[20]TOTAUX!$F$22 -> 0 | G87: =[20]TOTAUX!$G$22 -> 0 | H87: =[20]TOTAUX!$H$22 -> 0 | I87: =[20]TOTAUX!$I$22 -> 0 | J87: =[20]TOTAUX!$J$22 -> 0 | K87: =[20]TOTAUX!$K$22 -> 0 | L87: =[20]TOTAUX!$L$22 -> 0 | M87: =[20]TOTAUX!$M$22 -> 0 | N87: =[20]TOTAUX!$N$22 -> 0 | O87: =[20]TOTAUX!$O$22 -> 0 | P87: =[20]TOTAUX!$P$22 -> 0 | Q87: =[20]TOTAUX!$Q$22 -> 0 | R87: =[20]TOTAUX!$R$22 -> 0
D88: TOTAUX | F88: =[20]TOTAUX!$F$23 -> 247 | G88: =[20]TOTAUX!$G$23 -> 90 | H88: =[20]TOTAUX!$H$23 -> 88 | I88: =[20]TOTAUX!$I$23 -> 73 | J88: =[20]TOTAUX!$J$23 -> 62 | K88: =[20]TOTAUX!$K$23 -> 13 | L88: =[20]TOTAUX!$L$23 -> 5 | M88: =[20]TOTAUX!$M$23 -> 8 | N88: =[20]TOTAUX!$N$23 -> 58 | O88: =[20]TOTAUX!$O$23 -> 4 | P88: =[20]TOTAUX!$P$23 -> 6 | Q88: =[20]TOTAUX!$Q$23 -> 20 | R88: =[20]TOTAUX!$R$23 -> 13 | S88: 0.3562753036 | T88: 0.4694533762 | U88: 0.5465587045
D90: NOM | E90: PJ | F90: PD | G90: V | H90: D | I90: N | J90: ML | K90: P | L90: PM | M90: CS | N90: BB | O90: WP | P90: RAB | Q90: MPM | R90: K/7 | S90: WHIP | T90: ML SÉRIES
D91: =[20]TOTAUX!$D$28 -> CLAUDE LABROSSE | E91: =[20]TOTAUX!$E$28 -> 6 | F91: =[20]TOTAUX!$F$28 -> 1 | G91: =[20]TOTAUX!$G$28 -> 4 | H91: =[20]TOTAUX!$H$28 -> 1 | I91: =[20]TOTAUX!$I$28 -> 0 | J91: =[20]TOTAUX!$J$28 -> 16.33 | K91: =[20]TOTAUX!$K$28 -> 8 | L91: =[20]TOTAUX!$L$28 -> 8 | M91: =[20]TOTAUX!$M$28 -> 19 | N91: =[20]TOTAUX!$N$28 -> 4 | O91: =[20]TOTAUX!$O$28 -> 0 | P91: =[20]TOTAUX!$P$28 -> 5 | Q91: =(L91*7)/J91 -> 3.42927128 | R91: =(P91*7)/J91 -> 2.14329455 | S91: =(M91+N91)/J91 -> 1.408450704 | T91: =[20]TOTAUX!$T$28 -> 16.33
D92: =[20]TOTAUX!$D$30 -> JACQUES DUFAULT | E92: =[20]TOTAUX!$E$30 -> 2 | F92: =[20]TOTAUX!$F$30 -> 2 | G92: =[20]TOTAUX!$G$30 -> 1 | H92: =[20]TOTAUX!$H$30 -> 0 | I92: =[20]TOTAUX!$I$30 -> 0 | J92: =[20]TOTAUX!$J$30 -> 6 | K92: =[20]TOTAUX!$K$30 -> 4 | L92: =[20]TOTAUX!$L$30 -> 4 | M92: =[20]TOTAUX!$M$30 -> 8 | N92: =[20]TOTAUX!$N$30 -> 5 | O92: =[20]TOTAUX!$O$30 -> 0 | P92: =[20]TOTAUX!$P$30 -> 4 | Q92: 4.666666667 | R92: 4.666666667 | S92: 2.166666667 | T92: =[20]TOTAUX!$T$30 -> 10
D93: =[20]TOTAUX!$D$27 -> MICHEL LANDRY | E93: =[20]TOTAUX!$E$27 -> 4 | F93: =[20]TOTAUX!$F$27 -> 2 | G93: =[20]TOTAUX!$G$27 -> 0 | H93: =[20]TOTAUX!$H$27 -> 1 | I93: =[20]TOTAUX!$I$27 -> 0 | J93: =[20]TOTAUX!$J$27 -> 12 | K93: =[20]TOTAUX!$K$27 -> 16 | L93: =[20]TOTAUX!$L$27 -> 13 | M93: =[20]TOTAUX!$M$27 -> 17 | N93: =[20]TOTAUX!$N$27 -> 11 | O93: =[20]TOTAUX!$O$27 -> 0 | P93: =[20]TOTAUX!$P$27 -> 2 | Q93: 7.583333333 | R93: 1.166666667 | S93: 2.333333333 | T93: =[20]TOTAUX!$T$27 -> 15
D94: =[20]TOTAUX!$D$29 -> GUILLAUME MARTINEAU | E94: =[20]TOTAUX!$E$29 -> 1 | F94: =[20]TOTAUX!$F$29 -> 1 | G94: =[20]TOTAUX!$G$29 -> 0 | H94: =[20]TOTAUX!$H$29 -> 0 | I94: =[20]TOTAUX!$I$29 -> 0 | J94: =[20]TOTAUX!$J$29 -> 1.33 | K94: =[20]TOTAUX!$K$29 -> 8 | L94: =[20]TOTAUX!$L$29 -> 2 | M94: =[20]TOTAUX!$M$29 -> 6 | N94: =[20]TOTAUX!$N$29 -> 2 | O94: =[20]TOTAUX!$O$29 -> 0 | P94: =[20]TOTAUX!$P$29 -> 0 | Q94: 10.52631579 | R94: 0 | S94: 6.015037594 | T94: =[20]TOTAUX!$T$29 -> 2
D95: =[20]TOTAUX!$D$26 -> PATRICE LECLERC | E95: =[20]TOTAUX!$E$26 -> 5 | F95: =[20]TOTAUX!$F$26 -> 4 | G95: =[20]TOTAUX!$G$26 -> 1 | H95: =[20]TOTAUX!$H$26 -> 2 | I95: =[20]TOTAUX!$I$26 -> 0 | J95: =[20]TOTAUX!$J$26 -> 17.33 | K95: =[20]TOTAUX!$K$26 -> 29 | L95: =[20]TOTAUX!$L$26 -> 27 | M95: =[20]TOTAUX!$M$26 -> 45 | N95: =[20]TOTAUX!$N$26 -> 9 | O95: =[20]TOTAUX!$O$26 -> 0 | P95: =[20]TOTAUX!$P$26 -> 2 | Q95: 10.90594345 | R95: 0.807847663 | S95: 3.115983843 | T95: =[20]TOTAUX!$T$26 -> 18.33
D96: =[20]TOTAUX!$D$31 -> PATRICK LAPOINTE | E96: =[20]TOTAUX!$E$31 -> 1 | F96: =[20]TOTAUX!$F$31 -> 0 | G96: =[20]TOTAUX!$G$31 -> 0 | H96: =[20]TOTAUX!$H$31 -> 0 | I96: =[20]TOTAUX!$I$31 -> 0 | J96: =[20]TOTAUX!$J$31 -> 1.67 | K96: =[20]TOTAUX!$K$31 -> 6 | L96: =[20]TOTAUX!$L$31 -> 6 | M96: =[20]TOTAUX!$M$31 -> 9 | N96: =[20]TOTAUX!$N$31 -> 1 | O96: =[20]TOTAUX!$O$31 -> 0 | P96: =[20]TOTAUX!$P$31 -> 0 | Q96: 25.1497006 | R96: 0 | S96: 5.988023952 | T96: =[20]TOTAUX!$T$31 -> 1.67
D97: TOTAUX | E97: =[20]TOTAUX!$E$32 -> 19 | F97: =[20]TOTAUX!$F$32 -> 10 | G97: =[20]TOTAUX!$G$32 -> 6 | H97: =[20]TOTAUX!$H$32 -> 4 | I97: =[20]TOTAUX!$I$32 -> 0 | J97: =[20]TOTAUX!$J$32 -> 54.66 | K97: =[20]TOTAUX!$K$32 -> 71 | L97: =[20]TOTAUX!$L$32 -> 60 | M97: =[20]TOTAUX!$M$32 -> 104 | N97: =[20]TOTAUX!$N$32 -> 32 | O97: =[20]TOTAUX!$O$32 -> 0 | P97: =[20]TOTAUX!$P$32 -> 13 | Q97: 7.683863886 | R97: 1.664837175 | S97: 2.488108306
H98: LEONES
A99: # | B99: Photo | C99: Contrat | D99: Nom | E99: PJ | F99: AB | G99: P | H99: CS | I99: PP | J99: 1B | K99: 2B | L99: 3B | M99: CC | N99: BB | O99: SAC | P99: BSAC | Q99: RAB | R99: ERR | S99: MOY | T99: MPB | U99: PUI
A100: 1 | B100: =[17]TOTAUX!$B$3 -> OUI | C100: =[17]TOTAUX!$C$3 -> OUI | D100: =[17]TOTAUX!$D$3 -> PETTER TUSA | E100: =[17]TOTAUX!$E$3 -> 2 | F100: =[17]TOTAUX!$F$3 -> 1 | G100: =[17]TOTAUX!$G$3 -> 1 | H100: =[17]TOTAUX!$H$3 -> 1 | I100: =[17]TOTAUX!$I$3 -> 0 | J100: =[17]TOTAUX!$J$3 -> 1 | K100: =[17]TOTAUX!$K$3 -> 0 | L100: =[17]TOTAUX!$L$3 -> 0 | M100: =[17]TOTAUX!$M$3 -> 0 | N100: =[17]TOTAUX!$N$3 -> 0 | O100: =[17]TOTAUX!$O$3 -> 0 | P100: =[17]TOTAUX!$P$3 -> 0 | Q100: =[17]TOTAUX!$Q$3 -> 0 | R100: =[17]TOTAUX!$R$3 -> 0 | S100: =H100/F100 -> 1 | T100: =((H100+N100)/(F100+N100+P100)) -> 1 | U100: =((J100)+(K100*2)+(L100*3)+(M100*4))/F100 -> 1
A101: =A100+1 -> 2 | B101: =[17]TOTAUX!$B$19 -> OUI | C101: =[17]TOTAUX!$C$19 -> OUI | D101: =[17]TOTAUX!$D$19 -> EDGAR TORRES | E101: =[17]TOTAUX!$E$19 -> 1 | F101: =[17]TOTAUX!$F$19 -> 1 | G101: =[17]TOTAUX!$G$19 -> 1 | H101: =[17]TOTAUX!$H$19 -> 1 | I101: =[17]TOTAUX!$I$19 -> 0 | J101: =[17]TOTAUX!$J$19 -> 1 | K101: =[17]TOTAUX!$K$19 -> 0 | L101: =[17]TOTAUX!$L$19 -> 0 | M101: =[17]TOTAUX!$M$19 -> 0 | N101: =[17]TOTAUX!$N$19 -> 0 | O101: =[17]TOTAUX!$O$19 -> 0 | P101: =[17]TOTAUX!$P$19 -> 0 | Q101: =[17]TOTAUX!$Q$19 -> 0 | R101: =[17]TOTAUX!$R$19 -> 0 | S101: 1 | T101: 1 | U101: 1
A102: =A101+1 -> 3 | B102: =[17]TOTAUX!$B$22 -> OUI | C102: =[17]TOTAUX!$C$22 -> OUI | D102: =[17]TOTAUX!$D$22 -> FRANÇOIS LAMOUREUX | E102: =[17]TOTAUX!$E$22 -> 3 | F102: =[17]TOTAUX!$F$22 -> 8 | G102: =[17]TOTAUX!$G$22 -> 5 | H102: =[17]TOTAUX!$H$22 -> 6 | I102: =[17]TOTAUX!$I$22 -> 3 | J102: =[17]TOTAUX!$J$22 -> 3 | K102: =[17]TOTAUX!$K$22 -> 2 | L102: =[17]TOTAUX!$L$22 -> 1 | M102: =[17]TOTAUX!$M$22 -> 0 | N102: =[17]TOTAUX!$N$22 -> 1 | O102: =[17]TOTAUX!$O$22 -> 0 | P102: =[17]TOTAUX!$P$22 -> 0 | Q102: =[17]TOTAUX!$Q$22 -> 0 | R102: =[17]TOTAUX!$R$22 -> 0 | S102: 0.75 | T102: 0.7777777778 | U102: 1.25
A103: 4 | B103: =[17]TOTAUX!$B$15 -> OUI | C103: =[17]TOTAUX!$C$15 -> OUI | D103: =[17]TOTAUX!$D$15 -> LUIS ALEJANDRO RODRIGUEZ CLARK | E103: =[17]TOTAUX!$E$15 -> 7 | F103: =[17]TOTAUX!$F$15 -> 17 | G103: =[17]TOTAUX!$G$15 -> 8 | H103: =[17]TOTAUX!$H$15 -> 11 | I103: =[17]TOTAUX!$I$15 -> 12 | J103: =[17]TOTAUX!$J$15 -> 8 | K103: =[17]TOTAUX!$K$15 -> 1 | L103: =[17]TOTAUX!$L$15 -> 0 | M103: =[17]TOTAUX!$M$15 -> 2 | N103: =[17]TOTAUX!$N$15 -> 3 | O103: =[17]TOTAUX!$O$15 -> 0 | P103: =[17]TOTAUX!$P$15 -> 1 | Q103: =[17]TOTAUX!$Q$15 -> 1 | R103: =[17]TOTAUX!$R$15 -> 1 | S103: 0.6470588235 | T103: 0.6666666667 | U103: 1.058823529
A104: 5 | B104: =[17]TOTAUX!$B$7 -> OUI | C104: =[17]TOTAUX!$C$7 -> OUI | D104: =[17]TOTAUX!$D$7 -> JOSÉ MILLAN | E104: =[17]TOTAUX!$E$7 -> 5 | F104: =[17]TOTAUX!$F$7 -> 17 | G104: =[17]TOTAUX!$G$7 -> 6 | H104: =[17]TOTAUX!$H$7 -> 11 | I104: =[17]TOTAUX!$I$7 -> 17 | J104: =[17]TOTAUX!$J$7 -> 5 | K104: =[17]TOTAUX!$K$7 -> 1 | L104: =[17]TOTAUX!$L$7 -> 1 | M104: =[17]TOTAUX!$M$7 -> 4 | N104: =[17]TOTAUX!$N$7 -> 1 | O104: =[17]TOTAUX!$O$7 -> 0 | P104: =[17]TOTAUX!$P$7 -> 0 | Q104: =[17]TOTAUX!$Q$7 -> 1 | R104: =[17]TOTAUX!$R$7 -> 0 | S104: 0.6470588235 | T104: 0.6666666667 | U104: 1.529411765
A105: 6 | B105: =[17]TOTAUX!$B$6 -> OUI | C105: =[17]TOTAUX!$C$6 -> OUI | D105: =[17]TOTAUX!$D$6 -> MAIKEL JIMENEZ | E105: =[17]TOTAUX!$E$6 -> 8 | F105: =[17]TOTAUX!$F$6 -> 28 | G105: =[17]TOTAUX!$G$6 -> 13 | H105: =[17]TOTAUX!$H$6 -> 18 | I105: =[17]TOTAUX!$I$6 -> 5 | J105: =[17]TOTAUX!$J$6 -> 13 | K105: =[17]TOTAUX!$K$6 -> 4 | L105: =[17]TOTAUX!$L$6 -> 1 | M105: =[17]TOTAUX!$M$6 -> 0 | N105: =[17]TOTAUX!$N$6 -> 2 | O105: =[17]TOTAUX!$O$6 -> 0 | P105: =[17]TOTAUX!$P$6 -> 1 | Q105: =[17]TOTAUX!$Q$6 -> 0 | R105: =[17]TOTAUX!$R$6 -> 2 | S105: 0.6428571429 | T105: 0.6451612903 | U105: 0.8571428571
A106: 7 | B106: =[17]TOTAUX!$B$11 -> OUI | C106: =[17]TOTAUX!$C$11 -> OUI | D106: =[17]TOTAUX!$D$11 -> JAVIER CONTRERAS | E106: =[17]TOTAUX!$E$11 -> 1 | F106: =[17]TOTAUX!$F$11 -> 2 | G106: =[17]TOTAUX!$G$11 -> 2 | H106: =[17]TOTAUX!$H$11 -> 1 | I106: =[17]TOTAUX!$I$11 -> 0 | J106: =[17]TOTAUX!$J$11 -> 1 | K106: =[17]TOTAUX!$K$11 -> 0 | L106: =[17]TOTAUX!$L$11 -> 0 | M106: =[17]TOTAUX!$M$11 -> 0 | N106: =[17]TOTAUX!$N$11 -> 1 | O106: =[17]TOTAUX!$O$11 -> 0 | P106: =[17]TOTAUX!$P$11 -> 0 | Q106: =[17]TOTAUX!$Q$11 -> 0 | R106: =[17]TOTAUX!$R$11 -> 0 | S106: 0.5 | T106: 0.6666666667 | U106: 0.5
A107: 8 | B107: =[17]TOTAUX!$B$12 -> OUI | C107: =[17]TOTAUX!$C$12 -> OUI | D107: =[17]TOTAUX!$D$12 -> RENÉ MORELO | E107: =[17]TOTAUX!$E$12 -> 7 | F107: =[17]TOTAUX!$F$12 -> 21 | G107: =[17]TOTAUX!$G$12 -> 11 | H107: =[17]TOTAUX!$H$12 -> 10 | I107: =[17]TOTAUX!$I$12 -> 13 | J107: =[17]TOTAUX!$J$12 -> 7 | K107: =[17]TOTAUX!$K$12 -> 2 | L107: =[17]TOTAUX!$L$12 -> 0 | M107: =[17]TOTAUX!$M$12 -> 1 | N107: =[17]TOTAUX!$N$12 -> 3 | O107: =[17]TOTAUX!$O$12 -> 0 | P107: =[17]TOTAUX!$P$12 -> 2 | Q107: =[17]TOTAUX!$Q$12 -> 0 | R107: =[17]TOTAUX!$R$12 -> 1 | S107: 0.4761904762 | T107: 0.5 | U107: 0.7142857143
A108: 9 | B108: =[17]TOTAUX!$B$8 -> OUI | C108: =[17]TOTAUX!$C$8 -> OUI | D108: =[17]TOTAUX!$D$8 -> CARLOS ALBERTO PENA | E108: =[17]TOTAUX!$E$8 -> 8 | F108: =[17]TOTAUX!$F$8 -> 19 | G108: =[17]TOTAUX!$G$8 -> 8 | H108: =[17]TOTAUX!$H$8 -> 8 | I108: =[17]TOTAUX!$I$8 -> 4 | J108: =[17]TOTAUX!$J$8 -> 8 | K108: =[17]TOTAUX!$K$8 -> 0 | L108: =[17]TOTAUX!$L$8 -> 0 | M108: =[17]TOTAUX!$M$8 -> 0 | N108: =[17]TOTAUX!$N$8 -> 4 | O108: =[17]TOTAUX!$O$8 -> 0 | P108: =[17]TOTAUX!$P$8 -> 0 | Q108: =[17]TOTAUX!$Q$8 -> 0 | R108: =[17]TOTAUX!$R$8 -> 1 | S108: 0.4210526316 | T108: 0.5217391304 | U108: 0.4210526316
A109: 10 | B109: =[17]TOTAUX!$B$16 -> OUI | C109: =[17]TOTAUX!$C$16 -> OUI | D109: =[17]TOTAUX!$D$16 -> CHRISTIAN MEJIA AVILA | E109: =[17]TOTAUX!$E$16 -> 7 | F109: =[17]TOTAUX!$F$16 -> 19 | G109: =[17]TOTAUX!$G$16 -> 4 | H109: =[17]TOTAUX!$H$16 -> 8 | I109: =[17]TOTAUX!$I$16 -> 7 | J109: =[17]TOTAUX!$J$16 -> 8 | K109: =[17]TOTAUX!$K$16 -> 0 | L109: =[17]TOTAUX!$L$16 -> 0 | M109: =[17]TOTAUX!$M$16 -> 0 | N109: =[17]TOTAUX!$N$16 -> 4 | O109: =[17]TOTAUX!$O$16 -> 0 | P109: =[17]TOTAUX!$P$16 -> 1 | Q109: =[17]TOTAUX!$Q$16 -> 0 | R109: =[17]TOTAUX!$R$16 -> 2 | S109: 0.4210526316 | T109: 0.5 | U109: 0.4210526316
A110: 11 | B110: =[17]TOTAUX!$B$10 -> OUI | C110: =[17]TOTAUX!$C$10 -> OUI | D110: =[17]TOTAUX!$D$10 -> ANTONIO GONZALEZ | E110: =[17]TOTAUX!$E$10 -> 7 | F110: =[17]TOTAUX!$F$10 -> 18 | G110: =[17]TOTAUX!$G$10 -> 5 | H110: =[17]TOTAUX!$H$10 -> 6 | I110: =[17]TOTAUX!$I$10 -> 0 | J110: =[17]TOTAUX!$J$10 -> 4 | K110: =[17]TOTAUX!$K$10 -> 1 | L110: =[17]TOTAUX!$L$10 -> 1 | M110: =[17]TOTAUX!$M$10 -> 0 | N110: =[17]TOTAUX!$N$10 -> 4 | O110: =[17]TOTAUX!$O$10 -> 0 | P110: =[17]TOTAUX!$P$10 -> 0 | Q110: =[17]TOTAUX!$Q$10 -> 0 | R110: =[17]TOTAUX!$R$10 -> 1 | S110: 0.3333333333 | T110: 0.4545454545 | U110: 0.5
A111: 12 | B111: =[17]TOTAUX!$B$13 -> OUI | C111: =[17]TOTAUX!$C$13 -> OUI | D111: =[17]TOTAUX!$D$13 -> YANNY TUSA | E111: =[17]TOTAUX!$E$13 -> 7 | F111: =[17]TOTAUX!$F$13 -> 15 | G111: =[17]TOTAUX!$G$13 -> 3 | H111: =[17]TOTAUX!$H$13 -> 5 | I111: =[17]TOTAUX!$I$13 -> 1 | J111: =[17]TOTAUX!$J$13 -> 4 | K111: =[17]TOTAUX!$K$13 -> 1 | L111: =[17]TOTAUX!$L$13 -> 0 | M111: =[17]TOTAUX!$M$13 -> 0 | N111: =[17]TOTAUX!$N$13 -> 0 | O111: =[17]TOTAUX!$O$13 -> 0 | P111: =[17]TOTAUX!$P$13 -> 0 | Q111: =[17]TOTAUX!$Q$13 -> 3 | R111: =[17]TOTAUX!$R$13 -> 0 | S111: 0.3333333333 | T111: 0.3333333333 | U111: 0.4
A112: 13 | B112: =[17]TOTAUX!$B$4 -> OUI | C112: =[17]TOTAUX!$C$4 -> OUI | D112: =[17]TOTAUX!$D$4 -> JOSE FELIPE CALDERA | E112: =[17]TOTAUX!$E$4 -> 6 | F112: =[17]TOTAUX!$F$4 -> 15 | G112: =[17]TOTAUX!$G$4 -> 4 | H112: =[17]TOTAUX!$H$4 -> 5 | I112: =[17]TOTAUX!$I$4 -> 4 | J112: =[17]TOTAUX!$J$4 -> 3 | K112: =[17]TOTAUX!$K$4 -> 1 | L112: =[17]TOTAUX!$L$4 -> 1 | M112: =[17]TOTAUX!$M$4 -> 0 | N112: =[17]TOTAUX!$N$4 -> 3 | O112: =[17]TOTAUX!$O$4 -> 0 | P112: =[17]TOTAUX!$P$4 -> 0 | Q112: =[17]TOTAUX!$Q$4 -> 3 | R112: =[17]TOTAUX!$R$4 -> 0 | S112: 0.3333333333 | T112: 0.4444444444 | U112: 0.5333333333
A113: 14 | B113: =[17]TOTAUX!$B$5 -> OUI | C113: =[17]TOTAUX!$C$5 -> OUI | D113: =[17]TOTAUX!$D$5 -> HAROLD CANTILLO | E113: =[17]TOTAUX!$E$5 -> 7 | F113: =[17]TOTAUX!$F$5 -> 21 | G113: =[17]TOTAUX!$G$5 -> 8 | H113: =[17]TOTAUX!$H$5 -> 6 | I113: =[17]TOTAUX!$I$5 -> 6 | J113: =[17]TOTAUX!$J$5 -> 3 | K113: =[17]TOTAUX!$K$5 -> 1 | L113: =[17]TOTAUX!$L$5 -> 1 | M113: =[17]TOTAUX!$M$5 -> 0 | N113: =[17]TOTAUX!$N$5 -> 4 | O113: =[17]TOTAUX!$O$5 -> 0 | P113: =[17]TOTAUX!$P$5 -> 0 | Q113: =[17]TOTAUX!$Q$5 -> 1 | R113: =[17]TOTAUX!$R$5 -> 2 | S113: 0.2857142857 | T113: 0.4 | U113: 0.380952381
A114: 15 | B114: =[17]TOTAUX!$B$18 -> OUI | C114: =[17]TOTAUX!$C$18 -> OUI | D114: =[17]TOTAUX!$D$18 -> LUIS GONZALEZ | E114: =[17]TOTAUX!$E$18 -> 8 | F114: =[17]TOTAUX!$F$18 -> 15 | G114: =[17]TOTAUX!$G$18 -> 6 | H114: =[17]TOTAUX!$H$18 -> 4 | I114: =[17]TOTAUX!$I$18 -> 6 | J114: =[17]TOTAUX!$J$18 -> 2 | K114: =[17]TOTAUX!$K$18 -> 2 | L114: =[17]TOTAUX!$L$18 -> 0 | M114: =[17]TOTAUX!$M$18 -> 0 | N114: =[17]TOTAUX!$N$18 -> 2 | O114: =[17]TOTAUX!$O$18 -> 0 | P114: =[17]TOTAUX!$P$18 -> 1 | Q114: =[17]TOTAUX!$Q$18 -> 0 | R114: =[17]TOTAUX!$R$18 -> 1 | S114: 0.2666666667 | T114: 0.3333333333 | U114: 0.4
A115: 16 | B115: =[17]TOTAUX!$B$17 -> OUI | C115: =[17]TOTAUX!$C$17 -> OUI | D115: =[17]TOTAUX!$D$17 -> JUAN TORIBIO | E115: =[17]TOTAUX!$E$17 -> 8 | F115: =[17]TOTAUX!$F$17 -> 13 | G115: =[17]TOTAUX!$G$17 -> 1 | H115: =[17]TOTAUX!$H$17 -> 3 | I115: =[17]TOTAUX!$I$17 -> 3 | J115: =[17]TOTAUX!$J$17 -> 3 | K115: =[17]TOTAUX!$K$17 -> 0 | L115: =[17]TOTAUX!$L$17 -> 0 | M115: =[17]TOTAUX!$M$17 -> 0 | N115: =[17]TOTAUX!$N$17 -> 2 | O115: =[17]TOTAUX!$O$17 -> 0 | P115: =[17]TOTAUX!$P$17 -> 0 | Q115: =[17]TOTAUX!$Q$17 -> 2 | R115: =[17]TOTAUX!$R$17 -> 2 | S115: 0.2307692308 | T115: 0.3333333333 | U115: 0.2307692308
A116: 17 | B116: =[17]TOTAUX!$B$9 -> OUI | C116: =[17]TOTAUX!$C$9 -> OUI | D116: =[17]TOTAUX!$D$9 -> DAVID FELIPE PENA | E116: =[17]TOTAUX!$E$9 -> 3 | F116: =[17]TOTAUX!$F$9 -> 9 | G116: =[17]TOTAUX!$G$9 -> 1 | H116: =[17]TOTAUX!$H$9 -> 1 | I116: =[17]TOTAUX!$I$9 -> 1 | J116: =[17]TOTAUX!$J$9 -> 1 | K116: =[17]TOTAUX!$K$9 -> 0 | L116: =[17]TOTAUX!$L$9 -> 0 | M116: =[17]TOTAUX!$M$9 -> 0 | N116: =[17]TOTAUX!$N$9 -> 0 | O116: =[17]TOTAUX!$O$9 -> 0 | P116: =[17]TOTAUX!$P$9 -> 0 | Q116: =[17]TOTAUX!$Q$9 -> 0 | R116: =[17]TOTAUX!$R$9 -> 0 | S116: 0.1111111111 | T116: 0.1111111111 | U116: 0.1111111111
A117: 18 | B117: =[17]TOTAUX!$B$14 -> OUI | C117: =[17]TOTAUX!$C$14 -> OUI | D117: =[17]TOTAUX!$D$14 -> JAVIER ECHEGARAY | E117: =[17]TOTAUX!$E$14 -> 1 | F117: =[17]TOTAUX!$F$14 -> 2 | G117: =[17]TOTAUX!$G$14 -> 0 | H117: =[17]TOTAUX!$H$14 -> 0 | I117: =[17]TOTAUX!$I$14 -> 1 | J117: =[17]TOTAUX!$J$14 -> 0 | K117: =[17]TOTAUX!$K$14 -> 0 | L117: =[17]TOTAUX!$L$14 -> 0 | M117: =[17]TOTAUX!$M$14 -> 0 | N117: =[17]TOTAUX!$N$14 -> 0 | O117: =[17]TOTAUX!$O$14 -> 0 | P117: =[17]TOTAUX!$P$14 -> 1 | Q117: =[17]TOTAUX!$Q$14 -> 0 | R117: =[17]TOTAUX!$R$14 -> 0 | S117: 0 | T117: 0 | U117: 0
A118: 19 | B118: =[17]TOTAUX!$B$20 -> OUI | C118: =[17]TOTAUX!$C$20 -> OUI | D118: =[17]TOTAUX!$D$20 -> JESUS CANTILLO | E118: =[17]TOTAUX!$E$20 -> 0 | F118: =[17]TOTAUX!$F$20 -> 0 | G118: =[17]TOTAUX!$G$20 -> 0 | H118: =[17]TOTAUX!$H$20 -> 0 | I118: =[17]TOTAUX!$I$20 -> 0 | J118: =[17]TOTAUX!$J$20 -> 0 | K118: =[17]TOTAUX!$K$20 -> 0 | L118: =[17]TOTAUX!$L$20 -> 0 | M118: =[17]TOTAUX!$M$20 -> 0 | N118: =[17]TOTAUX!$N$20 -> 0 | O118: =[17]TOTAUX!$O$20 -> 0 | P118: =[17]TOTAUX!$P$20 -> 0 | Q118: =[17]TOTAUX!$Q$20 -> 0 | R118: =[17]TOTAUX!$R$20 -> 0 | S118: =H118/F118 ->  | T118: =((H118+N118)/(F118+N118+P118)) ->  | U118: =((J118)+(K118*2)+(L118*3)+(M118*4))/F118 -> 
A119: 20 | B119: =[17]TOTAUX!$B$21 -> OUI | C119: =[17]TOTAUX!$C$21 -> OUI | D119: =[17]TOTAUX!$D$21 -> DANIEL POMENTA | E119: =[17]TOTAUX!$E$21 -> 0 | F119: =[17]TOTAUX!$F$21 -> 0 | G119: =[17]TOTAUX!$G$21 -> 0 | H119: =[17]TOTAUX!$H$21 -> 0 | I119: =[17]TOTAUX!$I$21 -> 0 | J119: =[17]TOTAUX!$J$21 -> 0 | K119: =[17]TOTAUX!$K$21 -> 0 | L119: =[17]TOTAUX!$L$21 -> 0 | M119: =[17]TOTAUX!$M$21 -> 0 | N119: =[17]TOTAUX!$N$21 -> 0 | O119: =[17]TOTAUX!$O$21 -> 0 | P119: =[17]TOTAUX!$P$21 -> 0 | Q119: =[17]TOTAUX!$Q$21 -> 0 | R119: =[17]TOTAUX!$R$21 -> 0
D120: TOTAUX | F120: =[17]TOTAUX!$F$23 -> 241 | G120: =[17]TOTAUX!$G$23 -> 101 | H120: =[17]TOTAUX!$H$23 -> 105 | I120: =[17]TOTAUX!$I$23 -> 83 | J120: =[17]TOTAUX!$J$23 -> 75 | K120: =[17]TOTAUX!$K$23 -> 16 | L120: =[17]TOTAUX!$L$23 -> 6 | M120: =[17]TOTAUX!$M$23 -> 7 | N120: =[17]TOTAUX!$N$23 -> 34 | O120: =[17]TOTAUX!$O$23 -> 0 | P120: =[17]TOTAUX!$P$23 -> 7 | Q120: =[17]TOTAUX!$Q$23 -> 11 | R120: =[17]TOTAUX!$R$23 -> 13 | S120: =H120/F120 -> 0.4356846473 | T120: 0.4929078014 | U120: 0.6348547718
D122: NOM | E122: PJ | F122: PD | G122: V | H122: D | I122: N | J122: ML | K122: P | L122: PM | M122: CS | N122: BB | O122: WP | P122: RAB | Q122: MPM | R122: K/7 | S122: WHIP | T122: ML SÉRIES
D123: =[17]TOTAUX!$D$27 -> LUIS GONZALEZ | E123: =[17]TOTAUX!$E$27 -> 7 | F123: =[17]TOTAUX!$F$27 -> 4 | G123: =[17]TOTAUX!$G$27 -> 3 | H123: =[17]TOTAUX!$H$27 -> 0 | I123: =[17]TOTAUX!$I$27 -> 0 | J123: =[17]TOTAUX!$J$27 -> 21.67 | K123: =[17]TOTAUX!$K$27 -> 18 | L123: =[17]TOTAUX!$L$27 -> 14 | M123: =[17]TOTAUX!$M$27 -> 34 | N123: =[17]TOTAUX!$N$27 -> 6 | O123: =[17]TOTAUX!$O$27 -> 0 | P123: =[17]TOTAUX!$P$27 -> 5 | Q123: =(L123*7)/J123 -> 4.522381172 | R123: =(P123*7)/J123 -> 1.615136133 | S123: =(M123+N123)/J123 -> 1.845869866 | T123: =[17]TOTAUX!$T$27 -> 21.67
D124: =[17]TOTAUX!$D$26 -> JUAN TORIBIO | E124: =[17]TOTAUX!$E$26 -> 8 | F124: =[17]TOTAUX!$F$26 -> 4 | G124: =[17]TOTAUX!$G$26 -> 2 | H124: =[17]TOTAUX!$H$26 -> 2 | I124: =[17]TOTAUX!$I$26 -> 1 | J124: =[17]TOTAUX!$J$26 -> 27.67 | K124: =[17]TOTAUX!$K$26 -> 30 | L124: =[17]TOTAUX!$L$26 -> 23 | M124: =[17]TOTAUX!$M$26 -> 51 | N124: =[17]TOTAUX!$N$26 -> 10 | O124: =[17]TOTAUX!$O$26 -> 1 | P124: =[17]TOTAUX!$P$26 -> 11 | Q124: 5.818576075 | R124: 2.782797253 | S124: 2.204553668 | T124: =[17]TOTAUX!$T$26 -> 28.33
D125: =[17]TOTAUX!$D$28 -> JOSE FELIPE CALDERA | E125: =[17]TOTAUX!$E$28 -> 1 | F125: =[17]TOTAUX!$F$28 -> 0 | G125: =[17]TOTAUX!$G$28 -> 0 | H125: =[17]TOTAUX!$H$28 -> 0 | I125: =[17]TOTAUX!$I$28 -> 0 | J125: =[17]TOTAUX!$J$28 -> 0 | K125: =[17]TOTAUX!$K$28 -> 0 | L125: =[17]TOTAUX!$L$28 -> 0 | M125: =[17]TOTAUX!$M$28 -> 0 | N125: =[17]TOTAUX!$N$28 -> 0 | O125: =[17]TOTAUX!$O$28 -> 0 | P125: =[17]TOTAUX!$P$28 -> 0 | T125: =[17]TOTAUX!$T$28 -> 0
D126: =[17]TOTAUX!$D$29 -> 4 | E126: =[17]TOTAUX!$E$29 -> 0 | F126: =[17]TOTAUX!$F$29 -> 0 | G126: =[17]TOTAUX!$G$29 -> 0 | H126: =[17]TOTAUX!$H$29 -> 0 | I126: =[17]TOTAUX!$I$29 -> 0 | J126: =[17]TOTAUX!$J$29 -> 0 | K126: =[17]TOTAUX!$K$29 -> 0 | L126: =[17]TOTAUX!$L$29 -> 0 | M126: =[17]TOTAUX!$M$29 -> 0 | N126: =[17]TOTAUX!$N$29 -> 0 | O126: =[17]TOTAUX!$O$29 -> 0 | P126: =[17]TOTAUX!$P$29 -> 0 | T126: =[17]TOTAUX!$T$29 -> 0
D127: =[17]TOTAUX!$D$30 -> 5 | E127: =[17]TOTAUX!$E$30 -> 0 | F127: =[17]TOTAUX!$F$30 -> 0 | G127: =[17]TOTAUX!$G$30 -> 0 | H127: =[17]TOTAUX!$H$30 -> 0 | I127: =[17]TOTAUX!$I$30 -> 0 | J127: =[17]TOTAUX!$J$30 -> 0 | K127: =[17]TOTAUX!$K$30 -> 0 | L127: =[17]TOTAUX!$L$30 -> 0 | M127: =[17]TOTAUX!$M$30 -> 0 | N127: =[17]TOTAUX!$N$30 -> 0 | O127: =[17]TOTAUX!$O$30 -> 0 | P127: =[17]TOTAUX!$P$30 -> 0 | T127: =[17]TOTAUX!$T$30 -> 0
D128: =[17]TOTAUX!$D$31 -> DÉFAUT | E128: =[17]TOTAUX!$E$31 -> 0 | F128: =[17]TOTAUX!$F$31 -> 2 | G128: =[17]TOTAUX!$G$31 -> 2 | H128: =[17]TOTAUX!$H$31 -> 0 | I128: =[17]TOTAUX!$I$31 -> 0 | J128: =[17]TOTAUX!$J$31 -> 0 | K128: =[17]TOTAUX!$K$31 -> 0 | L128: =[17]TOTAUX!$L$31 -> 0 | M128: =[17]TOTAUX!$M$31 -> 0 | N128: =[17]TOTAUX!$N$31 -> 0 | O128: =[17]TOTAUX!$O$31 -> 0 | P128: =[17]TOTAUX!$P$31 -> 0 | T128: =[17]TOTAUX!$T$31 -> 0
D129: TOTAUX | E129: =[17]TOTAUX!$E$32 -> 16 | F129: =[17]TOTAUX!$F$32 -> 10 | G129: =[17]TOTAUX!$G$32 -> 7 | H129: =[17]TOTAUX!$H$32 -> 2 | I129: =[17]TOTAUX!$I$32 -> 1 | J129: =[17]TOTAUX!$J$32 -> 49.34 | K129: =[17]TOTAUX!$K$32 -> 48 | L129: =[17]TOTAUX!$L$32 -> 37 | M129: =[17]TOTAUX!$M$32 -> 85 | N129: =[17]TOTAUX!$N$32 -> 16 | O129: =[17]TOTAUX!$O$32 -> 1 | P129: =[17]TOTAUX!$P$32 -> 16 | Q129: 5.249290636 | R129: 2.269963518 | S129: 2.047020673
H162: REDSOX
A163: # | B163: Photo | C163: Contrat | D163: Nom | E163: PJ | F163: AB | G163: P | H163: CS | I163: PP | J163: 1B | K163: 2B | L163: 3B | M163: CC | N163: BB | O163: SAC | P163: BSAC | Q163: RAB | R163: ERR | S163: MOY | T163: MPB | U163: PUI
A164: 1 | B164: =[21]TOTAUX!$B$8 -> OUI | C164: =[21]TOTAUX!$C$8 -> OUI | D164: =[21]TOTAUX!$D$8 -> DOMINIC MÉNARD | E164: =[21]TOTAUX!$E$8 -> 7 | F164: =[21]TOTAUX!$F$8 -> 25 | G164: =[21]TOTAUX!$G$8 -> 11 | H164: =[21]TOTAUX!$H$8 -> 17 | I164: =[21]TOTAUX!$I$8 -> 8 | J164: =[21]TOTAUX!$J$8 -> 10 | K164: =[21]TOTAUX!$K$8 -> 5 | L164: =[21]TOTAUX!$L$8 -> 2 | M164: =[21]TOTAUX!$M$8 -> 0 | N164: =[21]TOTAUX!$N$8 -> 5 | O164: =[21]TOTAUX!$O$8 -> 0 | P164: =[21]TOTAUX!$P$8 -> 0 | Q164: =[21]TOTAUX!$Q$8 -> 0 | R164: =[21]TOTAUX!$R$8 -> 0 | S164: =H164/F164 -> 0.68 | T164: =((H164+N164)/(F164+N164+P164)) -> 0.7333333333 | U164: =((J164)+(K164*2)+(L164*3)+(M164*4))/F164 -> 1.04
A165: =A164+1 -> 2 | B165: =[21]TOTAUX!$B$19 -> OUI | C165: =[21]TOTAUX!$C$19 -> OUI | D165: =[21]TOTAUX!$D$19 -> MIKE BOURHIS | E165: =[21]TOTAUX!$E$19 -> 7 | F165: =[21]TOTAUX!$F$19 -> 23 | G165: =[21]TOTAUX!$G$19 -> 8 | H165: =[21]TOTAUX!$H$19 -> 14 | I165: =[21]TOTAUX!$I$19 -> 1 | J165: =[21]TOTAUX!$J$19 -> 10 | K165: =[21]TOTAUX!$K$19 -> 2 | L165: =[21]TOTAUX!$L$19 -> 2 | M165: =[21]TOTAUX!$M$19 -> 0 | N165: =[21]TOTAUX!$N$19 -> 1 | O165: =[21]TOTAUX!$O$19 -> 0 | P165: =[21]TOTAUX!$P$19 -> 0 | Q165: =[21]TOTAUX!$Q$19 -> 0 | R165: =[21]TOTAUX!$R$19 -> 2 | S165: 0.6086956522 | T165: 0.625 | U165: 0.8695652174
A166: =A165+1 -> 3 | B166: =[21]TOTAUX!$B$11 -> OUI | C166: =[21]TOTAUX!$C$11 -> OUI | D166: =[21]TOTAUX!$D$11 -> ALEX CHEVALIER | E166: =[21]TOTAUX!$E$11 -> 5 | F166: =[21]TOTAUX!$F$11 -> 15 | G166: =[21]TOTAUX!$G$11 -> 5 | H166: =[21]TOTAUX!$H$11 -> 9 | I166: =[21]TOTAUX!$I$11 -> 8 | J166: =[21]TOTAUX!$J$11 -> 7 | K166: =[21]TOTAUX!$K$11 -> 2 | L166: =[21]TOTAUX!$L$11 -> 0 | M166: =[21]TOTAUX!$M$11 -> 0 | N166: =[21]TOTAUX!$N$11 -> 1 | O166: =[21]TOTAUX!$O$11 -> 0 | P166: =[21]TOTAUX!$P$11 -> 2 | Q166: =[21]TOTAUX!$Q$11 -> 0 | R166: =[21]TOTAUX!$R$11 -> 0 | S166: 0.6 | T166: 0.5555555556 | U166: 0.7333333333
A167: 4 | B167: =[21]TOTAUX!$B$12 -> OUI | C167: =[21]TOTAUX!$C$12 -> OUI | D167: =[21]TOTAUX!$D$12 -> MARC LAFORGE | E167: =[21]TOTAUX!$E$12 -> 7 | F167: =[21]TOTAUX!$F$12 -> 18 | G167: =[21]TOTAUX!$G$12 -> 12 | H167: =[21]TOTAUX!$H$12 -> 10 | I167: =[21]TOTAUX!$I$12 -> 12 | J167: =[21]TOTAUX!$J$12 -> 4 | K167: =[21]TOTAUX!$K$12 -> 2 | L167: =[21]TOTAUX!$L$12 -> 0 | M167: =[21]TOTAUX!$M$12 -> 4 | N167: =[21]TOTAUX!$N$12 -> 10 | O167: =[21]TOTAUX!$O$12 -> 0 | P167: =[21]TOTAUX!$P$12 -> 0 | Q167: =[21]TOTAUX!$Q$12 -> 0 | R167: =[21]TOTAUX!$R$12 -> 0 | S167: 0.5555555556 | T167: 0.7142857143 | U167: 1.333333333
A168: 5 | B168: =[21]TOTAUX!$B$5 -> OUI | C168: =[21]TOTAUX!$C$5 -> OUI | D168: =[21]TOTAUX!$D$5 -> LUC TREMBLAY | E168: =[21]TOTAUX!$E$5 -> 8 | F168: =[21]TOTAUX!$F$5 -> 24 | G168: =[21]TOTAUX!$G$5 -> 12 | H168: =[21]TOTAUX!$H$5 -> 12 | I168: =[21]TOTAUX!$I$5 -> 14 | J168: =[21]TOTAUX!$J$5 -> 7 | K168: =[21]TOTAUX!$K$5 -> 1 | L168: =[21]TOTAUX!$L$5 -> 1 | M168: =[21]TOTAUX!$M$5 -> 3 | N168: =[21]TOTAUX!$N$5 -> 6 | O168: =[21]TOTAUX!$O$5 -> 0 | P168: =[21]TOTAUX!$P$5 -> 1 | Q168: =[21]TOTAUX!$Q$5 -> 1 | R168: =[21]TOTAUX!$R$5 -> 1 | S168: 0.5 | T168: 0.5806451613 | U168: 1
A169: 6 | B169: =[21]TOTAUX!$B$3 -> OUI | C169: =[21]TOTAUX!$C$3 -> OUI | D169: =[21]TOTAUX!$D$3 -> FRANÇOIS GAUTHIER | E169: =[21]TOTAUX!$E$3 -> 10 | F169: =[21]TOTAUX!$F$3 -> 34 | G169: =[21]TOTAUX!$G$3 -> 8 | H169: =[21]TOTAUX!$H$3 -> 16 | I169: =[21]TOTAUX!$I$3 -> 4 | J169: =[21]TOTAUX!$J$3 -> 14 | K169: =[21]TOTAUX!$K$3 -> 2 | L169: =[21]TOTAUX!$L$3 -> 0 | M169: =[21]TOTAUX!$M$3 -> 0 | N169: =[21]TOTAUX!$N$3 -> 3 | O169: =[21]TOTAUX!$O$3 -> 0 | P169: =[21]TOTAUX!$P$3 -> 0 | Q169: =[21]TOTAUX!$Q$3 -> 0 | R169: =[21]TOTAUX!$R$3 -> 0 | S169: 0.4705882353 | T169: 0.5135135135 | U169: 0.5294117647
A170: 7 | B170: =[21]TOTAUX!$B$14 -> OUI | C170: =[21]TOTAUX!$C$14 -> OUI | D170: =[21]TOTAUX!$D$14 -> GUILLAUME LAMARCHE | E170: =[21]TOTAUX!$E$14 -> 10 | F170: =[21]TOTAUX!$F$14 -> 29 | G170: =[21]TOTAUX!$G$14 -> 4 | H170: =[21]TOTAUX!$H$14 -> 11 | I170: =[21]TOTAUX!$I$14 -> 10 | J170: =[21]TOTAUX!$J$14 -> 8 | K170: =[21]TOTAUX!$K$14 -> 3 | L170: =[21]TOTAUX!$L$14 -> 0 | M170: =[21]TOTAUX!$M$14 -> 0 | N170: =[21]TOTAUX!$N$14 -> 7 | O170: =[21]TOTAUX!$O$14 -> 0 | P170: =[21]TOTAUX!$P$14 -> 1 | Q170: =[21]TOTAUX!$Q$14 -> 0 | R170: =[21]TOTAUX!$R$14 -> 0 | S170: 0.3793103448 | T170: 0.4864864865 | U170: 0.4827586207
A171: 8 | B171: =[21]TOTAUX!$B$17 -> OUI | C171: =[21]TOTAUX!$C$17 -> OUI | D171: =[21]TOTAUX!$D$17 -> MARC CONSTANTINEAU | E171: =[21]TOTAUX!$E$17 -> 2 | F171: =[21]TOTAUX!$F$17 -> 8 | G171: =[21]TOTAUX!$G$17 -> 1 | H171: =[21]TOTAUX!$H$17 -> 3 | I171: =[21]TOTAUX!$I$17 -> 1 | J171: =[21]TOTAUX!$J$17 -> 3 | K171: =[21]TOTAUX!$K$17 -> 0 | L171: =[21]TOTAUX!$L$17 -> 0 | M171: =[21]TOTAUX!$M$17 -> 0 | N171: =[21]TOTAUX!$N$17 -> 0 | O171: =[21]TOTAUX!$O$17 -> 0 | P171: =[21]TOTAUX!$P$17 -> 0 | Q171: =[21]TOTAUX!$Q$17 -> 0 | R171: =[21]TOTAUX!$R$17 -> 0 | S171: 0.375 | T171: 0.375 | U171: 0.375
A172: 9 | B172: =[21]TOTAUX!$B$4 -> OUI | C172: =[21]TOTAUX!$C$4 -> OUI | D172: =[21]TOTAUX!$D$4 -> PIERRE GAUDREAULT | E172: =[21]TOTAUX!$E$4 -> 7 | F172: =[21]TOTAUX!$F$4 -> 21 | G172: =[21]TOTAUX!$G$4 -> 4 | H172: =[21]TOTAUX!$H$4 -> 7 | I172: =[21]TOTAUX!$I$4 -> 10 | J172: =[21]TOTAUX!$J$4 -> 5 | K172: =[21]TOTAUX!$K$4 -> 1 | L172: =[21]TOTAUX!$L$4 -> 1 | M172: =[21]TOTAUX!$M$4 -> 0 | N172: =[21]TOTAUX!$N$4 -> 5 | O172: =[21]TOTAUX!$O$4 -> 0 | P172: =[21]TOTAUX!$P$4 -> 1 | Q172: =[21]TOTAUX!$Q$4 -> 0 | R172: =[21]TOTAUX!$R$4 -> 0 | S172: 0.3333333333 | T172: 0.4444444444 | U172: 0.4761904762
A173: 10 | B173: =[21]TOTAUX!$B$9 -> OUI | C173: =[21]TOTAUX!$C$9 -> OUI | D173: =[21]TOTAUX!$D$9 -> STÉPHANE MICHAUD | E173: =[21]TOTAUX!$E$9 -> 9 | F173: =[21]TOTAUX!$F$9 -> 26 | G173: =[21]TOTAUX!$G$9 -> 5 | H173: =[21]TOTAUX!$H$9 -> 7 | I173: =[21]TOTAUX!$I$9 -> 9 | J173: =[21]TOTAUX!$J$9 -> 5 | K173: =[21]TOTAUX!$K$9 -> 2 | L173: =[21]TOTAUX!$L$9 -> 0 | M173: =[21]TOTAUX!$M$9 -> 0 | N173: =[21]TOTAUX!$N$9 -> 6 | O173: =[21]TOTAUX!$O$9 -> 0 | P173: =[21]TOTAUX!$P$9 -> 0 | Q173: =[21]TOTAUX!$Q$9 -> 0 | R173: =[21]TOTAUX!$R$9 -> 1 | S173: 0.2692307692 | T173: 0.40625 | U173: 0.3461538462
A174: 11 | B174: =[21]TOTAUX!$B$6 -> OUI | C174: =[21]TOTAUX!$C$6 -> OUI | D174: =[21]TOTAUX!$D$6 -> PIERRE MANSEAU | E174: =[21]TOTAUX!$E$6 -> 7 | F174: =[21]TOTAUX!$F$6 -> 21 | G174: =[21]TOTAUX!$G$6 -> 3 | H174: =[21]TOTAUX!$H$6 -> 5 | I174: =[21]TOTAUX!$I$6 -> 2 | J174: =[21]TOTAUX!$J$6 -> 4 | K174: =[21]TOTAUX!$K$6 -> 1 | L174: =[21]TOTAUX!$L$6 -> 0 | M174: =[21]TOTAUX!$M$6 -> 0 | N174: =[21]TOTAUX!$N$6 -> 2 | O174: =[21]TOTAUX!$O$6 -> 0 | P174: =[21]TOTAUX!$P$6 -> 0 | Q174: =[21]TOTAUX!$Q$6 -> 1 | R174: =[21]TOTAUX!$R$6 -> 2 | S174: 0.2380952381 | T174: 0.3043478261 | U174: 0.2857142857
A175: 12 | B175: =[21]TOTAUX!$B$7 -> OUI | C175: =[21]TOTAUX!$C$7 -> OUI | D175: =[21]TOTAUX!$D$7 -> CHRISTIAN DeMONDEHARE | E175: =[21]TOTAUX!$E$7 -> 9 | F175: =[21]TOTAUX!$F$7 -> 36 | G175: =[21]TOTAUX!$G$7 -> 9 | H175: =[21]TOTAUX!$H$7 -> 7 | I175: =[21]TOTAUX!$I$7 -> 4 | J175: =[21]TOTAUX!$J$7 -> 4 | K175: =[21]TOTAUX!$K$7 -> 3 | L175: =[21]TOTAUX!$L$7 -> 0 | M175: =[21]TOTAUX!$M$7 -> 0 | N175: =[21]TOTAUX!$N$7 -> 2 | O175: =[21]TOTAUX!$O$7 -> 0 | P175: =[21]TOTAUX!$P$7 -> 0 | Q175: =[21]TOTAUX!$Q$7 -> 6 | R175: =[21]TOTAUX!$R$7 -> 4 | S175: 0.1944444444 | T175: 0.2368421053 | U175: 0.2777777778
A176: 13 | B176: =[21]TOTAUX!$B$10 -> OUI | C176: =[21]TOTAUX!$C$10 -> OUI | D176: =[21]TOTAUX!$D$10 -> ROBERT GAUDREAULT | E176: =[21]TOTAUX!$E$10 -> 10 | F176: =[21]TOTAUX!$F$10 -> 31 | G176: =[21]TOTAUX!$G$10 -> 3 | H176: =[21]TOTAUX!$H$10 -> 4 | I176: =[21]TOTAUX!$I$10 -> 1 | J176: =[21]TOTAUX!$J$10 -> 3 | K176: =[21]TOTAUX!$K$10 -> 0 | L176: =[21]TOTAUX!$L$10 -> 1 | M176: =[21]TOTAUX!$M$10 -> 0 | N176: =[21]TOTAUX!$N$10 -> 3 | O176: =[21]TOTAUX!$O$10 -> 0 | P176: =[21]TOTAUX!$P$10 -> 0 | Q176: =[21]TOTAUX!$Q$10 -> 3 | R176: =[21]TOTAUX!$R$10 -> 0 | S176: 0.1290322581 | T176: 0.2058823529 | U176: 0.1935483871
A177: 14 | B177: =[21]TOTAUX!$B$20 -> OUI | C177: =[21]TOTAUX!$C$20 -> OUI | D177: =[21]TOTAUX!$D$20 -> FRANCIS GINGRAS | E177: =[21]TOTAUX!$E$20 -> 1 | F177: =[21]TOTAUX!$F$20 -> 2 | G177: =[21]TOTAUX!$G$20 -> 0 | H177: =[21]TOTAUX!$H$20 -> 0 | I177: =[21]TOTAUX!$I$20 -> 0 | J177: =[21]TOTAUX!$J$20 -> 0 | K177: =[21]TOTAUX!$K$20 -> 0 | L177: =[21]TOTAUX!$L$20 -> 0 | M177: =[21]TOTAUX!$M$20 -> 0 | N177: =[21]TOTAUX!$N$20 -> 0 | O177: =[21]TOTAUX!$O$20 -> 0 | P177: =[21]TOTAUX!$P$20 -> 0 | Q177: =[21]TOTAUX!$Q$20 -> 1 | R177: =[21]TOTAUX!$R$20 -> 0 | S177: 0 | T177: 0 | U177: 0
A178: 15 | B178: =[21]TOTAUX!$B$21 -> OUI | C178: =[21]TOTAUX!$C$21 -> OUI | D178: =[21]TOTAUX!$D$21 -> ZACHARY CONSTANTINEAU | E178: =[21]TOTAUX!$E$21 -> 0 | F178: =[21]TOTAUX!$F$21 -> 0 | G178: =[21]TOTAUX!$G$21 -> 0 | H178: =[21]TOTAUX!$H$21 -> 0 | I178: =[21]TOTAUX!$I$21 -> 0 | J178: =[21]TOTAUX!$J$21 -> 0 | K178: =[21]TOTAUX!$K$21 -> 0 | L178: =[21]TOTAUX!$L$21 -> 0 | M178: =[21]TOTAUX!$M$21 -> 0 | N178: =[21]TOTAUX!$N$21 -> 0 | O178: =[21]TOTAUX!$O$21 -> 0 | P178: =[21]TOTAUX!$P$21 -> 0 | Q178: =[21]TOTAUX!$Q$21 -> 0 | R178: =[21]TOTAUX!$R$21 -> 0 | S178: 0
A179: 16 | B179: =[21]TOTAUX!$B$13 -> OUI | C179: =[21]TOTAUX!$C$13 -> OUI | D179: =[21]TOTAUX!$D$13 -> SERGE DAVIT | E179: =[21]TOTAUX!$E$13 -> 0 | F179: =[21]TOTAUX!$F$13 -> 0 | G179: =[21]TOTAUX!$G$13 -> 0 | H179: =[21]TOTAUX!$H$13 -> 0 | I179: =[21]TOTAUX!$I$13 -> 0 | J179: =[21]TOTAUX!$J$13 -> 0 | K179: =[21]TOTAUX!$K$13 -> 0 | L179: =[21]TOTAUX!$L$13 -> 0 | M179: =[21]TOTAUX!$M$13 -> 0 | N179: =[21]TOTAUX!$N$13 -> 0 | O179: =[21]TOTAUX!$O$13 -> 0 | P179: =[21]TOTAUX!$P$13 -> 0 | Q179: =[21]TOTAUX!$Q$13 -> 0 | R179: =[21]TOTAUX!$R$13 -> 0 | S179: =H179/F179 ->  | T179: =((H179+N179)/(F179+N179+P179)) ->  | U179: =((J179)+(K179*2)+(L179*3)+(M179*4))/F179 -> 
A180: 17 | B180: =[21]TOTAUX!$B$15 -> OUI | C180: =[21]TOTAUX!$C$15 -> OUI | D180: =[21]TOTAUX!$D$15 -> ROB CHARASIDIS | E180: =[21]TOTAUX!$E$15 -> 0 | F180: =[21]TOTAUX!$F$15 -> 0 | G180: =[21]TOTAUX!$G$15 -> 0 | H180: =[21]TOTAUX!$H$15 -> 0 | I180: =[21]TOTAUX!$I$15 -> 0 | J180: =[21]TOTAUX!$J$15 -> 0 | K180: =[21]TOTAUX!$K$15 -> 0 | L180: =[21]TOTAUX!$L$15 -> 0 | M180: =[21]TOTAUX!$M$15 -> 0 | N180: =[21]TOTAUX!$N$15 -> 0 | O180: =[21]TOTAUX!$O$15 -> 0 | P180: =[21]TOTAUX!$P$15 -> 0 | Q180: =[21]TOTAUX!$Q$15 -> 0 | R180: =[21]TOTAUX!$R$15 -> 0
A181: 18 | B181: =[21]TOTAUX!$B$16 -> OUI | C181: =[21]TOTAUX!$C$16 -> OUI | D181: =[21]TOTAUX!$D$16 -> STÉPHANE ROCHETTE | E181: =[21]TOTAUX!$E$16 -> 0 | F181: =[21]TOTAUX!$F$16 -> 0 | G181: =[21]TOTAUX!$G$16 -> 0 | H181: =[21]TOTAUX!$H$16 -> 0 | I181: =[21]TOTAUX!$I$16 -> 0 | J181: =[21]TOTAUX!$J$16 -> 0 | K181: =[21]TOTAUX!$K$16 -> 0 | L181: =[21]TOTAUX!$L$16 -> 0 | M181: =[21]TOTAUX!$M$16 -> 0 | N181: =[21]TOTAUX!$N$16 -> 0 | O181: =[21]TOTAUX!$O$16 -> 0 | P181: =[21]TOTAUX!$P$16 -> 0 | Q181: =[21]TOTAUX!$Q$16 -> 0 | R181: =[21]TOTAUX!$R$16 -> 0
A182: 19 | B182: =[21]TOTAUX!$B$18 -> OUI | C182: =[21]TOTAUX!$C$18 -> OUI | D182: =[21]TOTAUX!$D$18 -> STÉPHANE BOILEAU | E182: =[21]TOTAUX!$E$18 -> 0 | F182: =[21]TOTAUX!$F$18 -> 0 | G182: =[21]TOTAUX!$G$18 -> 0 | H182: =[21]TOTAUX!$H$18 -> 0 | I182: =[21]TOTAUX!$I$18 -> 0 | J182: =[21]TOTAUX!$J$18 -> 0 | K182: =[21]TOTAUX!$K$18 -> 0 | L182: =[21]TOTAUX!$L$18 -> 0 | M182: =[21]TOTAUX!$M$18 -> 0 | N182: =[21]TOTAUX!$N$18 -> 0 | O182: =[21]TOTAUX!$O$18 -> 0 | P182: =[21]TOTAUX!$P$18 -> 0 | Q182: =[21]TOTAUX!$Q$18 -> 0 | R182: =[21]TOTAUX!$R$18 -> 0
A183: 20 | B183: =[21]TOTAUX!$B$22 -> OUI | C183: =[21]TOTAUX!$C$22 -> OUI | D183: =[21]TOTAUX!$D$22 -> DANIEL LEPAGE | E183: =[21]TOTAUX!$E$22 -> 0 | F183: =[21]TOTAUX!$F$22 -> 0 | G183: =[21]TOTAUX!$G$22 -> 0 | H183: =[21]TOTAUX!$H$22 -> 0 | I183: =[21]TOTAUX!$I$22 -> 0 | J183: =[21]TOTAUX!$J$22 -> 0 | K183: =[21]TOTAUX!$K$22 -> 0 | L183: =[21]TOTAUX!$L$22 -> 0 | M183: =[21]TOTAUX!$M$22 -> 0 | N183: =[21]TOTAUX!$N$22 -> 0 | O183: =[21]TOTAUX!$O$22 -> 0 | P183: =[21]TOTAUX!$P$22 -> 0 | Q183: =[21]TOTAUX!$Q$22 -> 0 | R183: =[21]TOTAUX!$R$22 -> 0 | S183: =H183/F183 -> 
D184: TOTAUX | F184: =[21]TOTAUX!$F$23 -> 313 | G184: =[21]TOTAUX!$G$23 -> 85 | H184: =[21]TOTAUX!$H$23 -> 122 | I184: =[21]TOTAUX!$I$23 -> 84 | J184: =[21]TOTAUX!$J$23 -> 84 | K184: =[21]TOTAUX!$K$23 -> 24 | L184: =[21]TOTAUX!$L$23 -> 7 | M184: =[21]TOTAUX!$M$23 -> 7 | N184: =[21]TOTAUX!$N$23 -> 51 | O184: =[21]TOTAUX!$O$23 -> 0 | P184: =[21]TOTAUX!$P$23 -> 5 | Q184: =[21]TOTAUX!$Q$23 -> 12 | R184: =[21]TOTAUX!$R$23 -> 10 | S184: =H184/F184 -> 0.3897763578 | T184: 0.4688346883 | U184: 0.5782747604
D186: NOM | E186: PJ | F186: PD | G186: V | H186: D | I186: N | J186: ML | K186: P | L186: PM | M186: CS | N186: BB | O186: WP | P186: RAB | Q186: MPM | R186: K/7 | S186: WHIP | T186: ML SÉRIES
D187: =[21]TOTAUX!$D$26 -> ALEX CHEVALIER | E187: =[21]TOTAUX!$E$26 -> 3 | F187: =[21]TOTAUX!$F$26 -> 1 | G187: =[21]TOTAUX!$G$26 -> 1 | H187: =[21]TOTAUX!$H$26 -> 0 | I187: =[21]TOTAUX!$I$26 -> 0 | J187: =[21]TOTAUX!$J$26 -> 10 | K187: =[21]TOTAUX!$K$26 -> 7 | L187: =[21]TOTAUX!$L$26 -> 5 | M187: =[21]TOTAUX!$M$26 -> 13 | N187: =[21]TOTAUX!$N$26 -> 2 | O187: =[21]TOTAUX!$O$26 -> 0 | P187: =[21]TOTAUX!$P$26 -> 6 | Q187: =(L187*7)/J187 -> 3.5 | R187: =(P187*7)/J187 -> 4.2 | S187: =(M187+N187)/J187 -> 1.5 | T187: =[21]TOTAUX!$T$26 -> 10
D188: =[21]TOTAUX!$D$27 -> STÉPHANE MICHAUD | E188: =[21]TOTAUX!$E$27 -> 9 | F188: =[21]TOTAUX!$F$27 -> 9 | G188: =[21]TOTAUX!$G$27 -> 5 | H188: =[21]TOTAUX!$H$27 -> 4 | I188: =[21]TOTAUX!$I$27 -> 0 | J188: =[21]TOTAUX!$J$27 -> 54.68 | K188: =[21]TOTAUX!$K$27 -> 63 | L188: =[21]TOTAUX!$L$27 -> 45 | M188: =[21]TOTAUX!$M$27 -> 99 | N188: =[21]TOTAUX!$N$27 -> 17 | O188: =[21]TOTAUX!$O$27 -> 0 | P188: =[21]TOTAUX!$P$27 -> 25 | Q188: 5.760790051 | R188: 3.200438917 | S188: 2.121433797 | T188: =[21]TOTAUX!$T$27 -> 56
D189: =[21]TOTAUX!$D$28 -> 3 | E189: =[21]TOTAUX!$E$28 -> 0 | F189: =[21]TOTAUX!$F$28 -> 0 | G189: =[21]TOTAUX!$G$28 -> 0 | H189: =[21]TOTAUX!$H$28 -> 0 | I189: =[21]TOTAUX!$I$28 -> 0 | J189: =[21]TOTAUX!$J$28 -> 0 | K189: =[21]TOTAUX!$K$28 -> 0 | L189: =[21]TOTAUX!$L$28 -> 0 | M189: =[21]TOTAUX!$M$28 -> 0 | N189: =[21]TOTAUX!$N$28 -> 0 | O189: =[21]TOTAUX!$O$28 -> 0 | P189: =[21]TOTAUX!$P$28 -> 0 | T189: =[21]TOTAUX!$T$28 -> 0
D190: =[21]TOTAUX!$D$29 -> 4 | E190: =[21]TOTAUX!$E$29 -> 0 | F190: =[21]TOTAUX!$F$29 -> 0 | G190: =[21]TOTAUX!$G$29 -> 0 | H190: =[21]TOTAUX!$H$29 -> 0 | I190: =[21]TOTAUX!$I$29 -> 0 | J190: =[21]TOTAUX!$J$29 -> 0 | K190: =[21]TOTAUX!$K$29 -> 0 | L190: =[21]TOTAUX!$L$29 -> 0 | M190: =[21]TOTAUX!$M$29 -> 0 | N190: =[21]TOTAUX!$N$29 -> 0 | O190: =[21]TOTAUX!$O$29 -> 0 | P190: =[21]TOTAUX!$P$29 -> 0 | T190: =[21]TOTAUX!$T$29 -> 0
D191: =[21]TOTAUX!$D$30 -> 5 | E191: =[21]TOTAUX!$E$30 -> 0 | F191: =[21]TOTAUX!$F$30 -> 0 | G191: =[21]TOTAUX!$G$30 -> 0 | H191: =[21]TOTAUX!$H$30 -> 0 | I191: =[21]TOTAUX!$I$30 -> 0 | J191: =[21]TOTAUX!$J$30 -> 0 | K191: =[21]TOTAUX!$K$30 -> 0 | L191: =[21]TOTAUX!$L$30 -> 0 | M191: =[21]TOTAUX!$M$30 -> 0 | N191: =[21]TOTAUX!$N$30 -> 0 | O191: =[21]TOTAUX!$O$30 -> 0 | P191: =[21]TOTAUX!$P$30 -> 0 | T191: =[21]TOTAUX!$T$30 -> 0
D192: =[21]TOTAUX!$D$31 -> 6 | E192: =[21]TOTAUX!$E$31 -> 0 | F192: =[21]TOTAUX!$F$31 -> 0 | G192: =[21]TOTAUX!$G$31 -> 0 | H192: =[21]TOTAUX!$H$31 -> 0 | I192: =[21]TOTAUX!$I$31 -> 0 | J192: =[21]TOTAUX!$J$31 -> 0 | K192: =[21]TOTAUX!$K$31 -> 0 | L192: =[21]TOTAUX!$L$31 -> 0 | M192: =[21]TOTAUX!$M$31 -> 0 | N192: =[21]TOTAUX!$N$31 -> 0 | O192: =[21]TOTAUX!$O$31 -> 0 | P192: =[21]TOTAUX!$P$31 -> 0 | T192: =[21]TOTAUX!$T$31 -> 0
D193: TOTAUX | E193: =[21]TOTAUX!$E$32 -> 12 | F193: =[21]TOTAUX!$F$32 -> 10 | G193: =[21]TOTAUX!$G$32 -> 6 | H193: =[21]TOTAUX!$H$32 -> 4 | I193: =[21]TOTAUX!$I$32 -> 0 | J193: =[21]TOTAUX!$J$32 -> 64.68 | K193: =[21]TOTAUX!$K$32 -> 70 | L193: =[21]TOTAUX!$L$32 -> 50 | M193: =[21]TOTAUX!$M$32 -> 112 | N193: =[21]TOTAUX!$N$32 -> 19 | O193: =[21]TOTAUX!$O$32 -> 0 | P193: =[21]TOTAUX!$P$32 -> 31 | Q193: 5.411255411 | R193: 3.354978355 | S193: 2.025355597
H194: ANGELS
A195: # | B195: Photo | C195: Contrat | D195: Nom | E195: PJ | F195: AB | G195: P | H195: CS | I195: PP | J195: 1B | K195: 2B | L195: 3B | M195: CC | N195: BB | O195: SAC | P195: BSAC | Q195: RAB | R195: ERR | S195: MOY | T195: MPB | U195: PUI
A196: 1 | B196: =[23]TOTAUX!$B$17 -> OUI | C196: =[23]TOTAUX!$C$17 -> OUI | D196: =[23]TOTAUX!$D$17 -> PIER-OLIVIER PÉPIN | E196: =[23]TOTAUX!$E$17 -> 6 | F196: =[23]TOTAUX!$F$17 -> 18 | G196: =[23]TOTAUX!$G$17 -> 9 | H196: =[23]TOTAUX!$H$17 -> 12 | I196: =[23]TOTAUX!$I$17 -> 5 | J196: =[23]TOTAUX!$J$17 -> 9 | K196: =[23]TOTAUX!$K$17 -> 3 | L196: =[23]TOTAUX!$L$17 -> 0 | M196: =[23]TOTAUX!$M$17 -> 0 | N196: =[23]TOTAUX!$N$17 -> 3 | O196: =[23]TOTAUX!$O$17 -> 0 | P196: =[23]TOTAUX!$P$17 -> 0 | Q196: =[23]TOTAUX!$Q$17 -> 0 | R196: =[23]TOTAUX!$R$17 -> 0 | S196: =H196/F196 -> 0.6666666667 | T196: =((H196+N196)/(F196+N196+P196)) -> 0.7142857143 | U196: =((J196)+(K196*2)+(L196*3)+(M196*4))/F196 -> 0.8333333333
A197: =A196+1 -> 2 | B197: =[23]TOTAUX!$B$16 -> OUI | C197: =[23]TOTAUX!$C$16 -> OUI | D197: =[23]TOTAUX!$D$16 -> DOMINIC PROVOST | E197: =[23]TOTAUX!$E$16 -> 3 | F197: =[23]TOTAUX!$F$16 -> 8 | G197: =[23]TOTAUX!$G$16 -> 2 | H197: =[23]TOTAUX!$H$16 -> 5 | I197: =[23]TOTAUX!$I$16 -> 1 | J197: =[23]TOTAUX!$J$16 -> 5 | K197: =[23]TOTAUX!$K$16 -> 0 | L197: =[23]TOTAUX!$L$16 -> 0 | M197: =[23]TOTAUX!$M$16 -> 0 | N197: =[23]TOTAUX!$N$16 -> 1 | O197: =[23]TOTAUX!$O$16 -> 0 | P197: =[23]TOTAUX!$P$16 -> 0 | Q197: =[23]TOTAUX!$Q$16 -> 0 | R197: =[23]TOTAUX!$R$16 -> 1 | S197: 0.625 | T197: 0.6666666667 | U197: 0.625
A198: =A197+1 -> 3 | B198: =[23]TOTAUX!$B$5 -> OUI | C198: =[23]TOTAUX!$C$5 -> OUI | D198: =[23]TOTAUX!$D$5 -> ANTOINE MORIN | E198: =[23]TOTAUX!$E$5 -> 7 | F198: =[23]TOTAUX!$F$5 -> 27 | G198: =[23]TOTAUX!$G$5 -> 9 | H198: =[23]TOTAUX!$H$5 -> 16 | I198: =[23]TOTAUX!$I$5 -> 11 | J198: =[23]TOTAUX!$J$5 -> 9 | K198: =[23]TOTAUX!$K$5 -> 3 | L198: =[23]TOTAUX!$L$5 -> 1 | M198: =[23]TOTAUX!$M$5 -> 3 | N198: =[23]TOTAUX!$N$5 -> 1 | O198: =[23]TOTAUX!$O$5 -> 0 | P198: =[23]TOTAUX!$P$5 -> 0 | Q198: =[23]TOTAUX!$Q$5 -> 0 | R198: =[23]TOTAUX!$R$5 -> 1 | S198: 0.5925925926 | T198: 0.6071428571 | U198: 1.111111111
A199: 4 | B199: =[23]TOTAUX!$B$4 -> OUI | C199: =[23]TOTAUX!$C$4 -> OUI | D199: =[23]TOTAUX!$D$4 -> ANTHONY VOYER | E199: =[23]TOTAUX!$E$4 -> 6 | F199: =[23]TOTAUX!$F$4 -> 22 | G199: =[23]TOTAUX!$G$4 -> 9 | H199: =[23]TOTAUX!$H$4 -> 13 | I199: =[23]TOTAUX!$I$4 -> 9 | J199: =[23]TOTAUX!$J$4 -> 7 | K199: =[23]TOTAUX!$K$4 -> 6 | L199: =[23]TOTAUX!$L$4 -> 0 | M199: =[23]TOTAUX!$M$4 -> 0 | N199: =[23]TOTAUX!$N$4 -> 2 | O199: =[23]TOTAUX!$O$4 -> 0 | P199: =[23]TOTAUX!$P$4 -> 0 | Q199: =[23]TOTAUX!$Q$4 -> 1 | R199: =[23]TOTAUX!$R$4 -> 1 | S199: 0.5909090909 | T199: 0.625 | U199: 0.8636363636
A200: 5 | B200: =[23]TOTAUX!$B$12 -> OUI | C200: =[23]TOTAUX!$C$12 -> OUI | D200: =[23]TOTAUX!$D$12 -> SAMI BEN AMMAR | E200: =[23]TOTAUX!$E$12 -> 7 | F200: =[23]TOTAUX!$F$12 -> 24 | G200: =[23]TOTAUX!$G$12 -> 7 | H200: =[23]TOTAUX!$H$12 -> 12 | I200: =[23]TOTAUX!$I$12 -> 9 | J200: =[23]TOTAUX!$J$12 -> 8 | K200: =[23]TOTAUX!$K$12 -> 1 | L200: =[23]TOTAUX!$L$12 -> 2 | M200: =[23]TOTAUX!$M$12 -> 1 | N200: =[23]TOTAUX!$N$12 -> 3 | O200: =[23]TOTAUX!$O$12 -> 0 | P200: =[23]TOTAUX!$P$12 -> 1 | Q200: =[23]TOTAUX!$Q$12 -> 2 | R200: =[23]TOTAUX!$R$12 -> 0 | S200: 0.5 | T200: 0.5357142857 | U200: 0.8333333333
A201: 6 | B201: =[23]TOTAUX!$B$20 -> OUI | C201: =[23]TOTAUX!$C$20 -> OUI | D201: =[23]TOTAUX!$D$20 -> VINH NGO | E201: =[23]TOTAUX!$E$20 -> 4 | F201: =[23]TOTAUX!$F$20 -> 12 | G201: =[23]TOTAUX!$G$20 -> 2 | H201: =[23]TOTAUX!$H$20 -> 6 | I201: =[23]TOTAUX!$I$20 -> 5 | J201: =[23]TOTAUX!$J$20 -> 2 | K201: =[23]TOTAUX!$K$20 -> 2 | L201: =[23]TOTAUX!$L$20 -> 2 | M201: =[23]TOTAUX!$M$20 -> 0 | N201: =[23]TOTAUX!$N$20 -> 3 | O201: =[23]TOTAUX!$O$20 -> 0 | P201: =[23]TOTAUX!$P$20 -> 1 | Q201: =[23]TOTAUX!$Q$20 -> 0 | R201: =[23]TOTAUX!$R$20 -> 1 | S201: 0.5 | T201: 0.5625 | U201: 1
A202: 7 | B202: =[23]TOTAUX!$B$13 -> OUI | C202: =[23]TOTAUX!$C$13 -> OUI | D202: =[23]TOTAUX!$D$13 -> DAVID LAM | E202: =[23]TOTAUX!$E$13 -> 1 | F202: =[23]TOTAUX!$F$13 -> 4 | G202: =[23]TOTAUX!$G$13 -> 0 | H202: =[23]TOTAUX!$H$13 -> 2 | I202: =[23]TOTAUX!$I$13 -> 0 | J202: =[23]TOTAUX!$J$13 -> 1 | K202: =[23]TOTAUX!$K$13 -> 0 | L202: =[23]TOTAUX!$L$13 -> 1 | M202: =[23]TOTAUX!$M$13 -> 0 | N202: =[23]TOTAUX!$N$13 -> 0 | O202: =[23]TOTAUX!$O$13 -> 0 | P202: =[23]TOTAUX!$P$13 -> 0 | Q202: =[23]TOTAUX!$Q$13 -> 0 | R202: =[23]TOTAUX!$R$13 -> 0 | S202: 0.5 | T202: 0.5 | U202: 1
